Workbook

Sheet INGRESO DE DATOS
D10: Este cotizador incluye la promoción una Cuota Gratis - válida desde el 1 de agosto al 30 de noviembre, 2022
A11: Tarifas efectivas a partir del 1ro de enero de 2022 Para nuevos negocios emitidos a partir del 1 de enero de 2022
A13: 1. LLENE LA INFORMACIÓN DEL ASEGURADO PROPUESTO:
B15: Nombre del Asegurado Titular | D15: Nombre Completo
B17: Número de adultos en la póliza | D17: 2 | F17: Número de niños en la póliza | H17: 2
B19: Edad del Asegurado Titular | D19: 32 | F19: Edad del/la cónyuge | H19: 46
C21: Zona de cotización: | D21: Guayas/Santa Elena
A24: 2. SELECCIONE EL PRODUCTO PARA VER LA COTIZACIÓN CORRESPONDIENTE:
B29: 2 | D29: 1

Sheet Global Health Ultimate
A12: RESUMEN DE BENEFICIOS | D12: Nombre del Asegurado Titular | F12: =+'INGRESO DE DATOS'!$D$15 -> Nombre Completo
D14: Número de adultos en la póliza | F14: =+'INGRESO DE DATOS'!$D$17 -> 2 | H14: Edad del Asegurado Titular | I14: =+'INGRESO DE DATOS'!$D$19 -> 32
D16: Número de niños en la póliza | F16: =+'INGRESO DE DATOS'!$H$17 -> 2 | H16: Edad del/la conyuge | I16: =+'INGRESO DE DATOS'!$H$19 -> 46
D18: Número de niños menores de 16 años | F18: =+'INGRESO DE DATOS'!$B$29 -> 2 | H18: Fecha de la cotización : | I18: =NOW() -> 2022-08-02T16:29:34.620
H19: FALSE
E20: Zona de cotización: | F20: ='INGRESO DE DATOS'!D21 -> Guayas/Santa Elena
E22: Deducibles | G22: PLAN 1 | H22: PLAN 2
E23: En el país de residencia | G23: $0 | H23: 1000
E24: Fuera del país de residencia | G24: $0 | H24: 1000
E26: Tarifas Anuales
E27: Prima para Asegurado Titular | G27: =VLOOKUP($I$14,Tablas!$A$905:$G$971,3,TRUE)+75 -> 29131 | H27: =VLOOKUP($I$14,Tablas!$A$905:$G$971,4,TRUE)+75 -> 18818
E28: Prima para conyuge | G28: =IF($F$14=1,0,(VLOOKUP($I$16,Tablas!$A$905:$G$971,3,TRUE))) -> 40782 | H28: =IF($F$14=1,0,(VLOOKUP($I$16,Tablas!$A$905:$G$971,4,TRUE))) -> 26313
E29: Prima para hijo (s) | G29: =IF($F$14=1, (IF($F$16=0, 0, (IF($F$18>$F$16, (VLOOKUP($F$16,Tablas!$A$972:$G$974,3,TRUE)), (IF($F$16>4,(IF($F$18=0, (VLOOKUP(3,Tablas!$A$972:$G$974,3,TRUE)), (IF($F$18=1, (VLOOKUP(3,Tablas!$A$972:$G$974,3,TRUE)), (IF($F$18=2, (VLOOKUP(3,Tablas!$A$972:$G$974,3,TRUE)), (VLOOKUP(3,Tablas!$A$972:$G$974,3,TRUE)))))))), (IF($F$16=4,(IF(4-$F$18=0,(VLOOKUP(2,Tablas!$A$972:$G$974,3,TRUE)), (IF(4-$F$18=1,(VLOOKUP(2,Tablas!$A$972:$G$974,3,TRUE)), (IF(4-$F$18=2, (VLOOKUP(2,Tablas!$A$972:$G$974,3,TRUE)), (VLOOKUP(3,Tablas!$A$972:$G$974,3,TRUE)))))))), (IF($F$16=3,(IF(3-$F$18=0,(VLOOKUP(1,Tablas!$A$972:$G$974,3,TRUE)), (IF(3-$F$18=1,(VLOOKUP(1,Tablas!$A$972:$G$974,3,TRUE)), (IF(3-$F$18=2, (VLOOKUP(2,Tablas!$A$972:$G$974,3,TRUE)), (VLOOKUP(3,Tablas!$A$972:$G$974,3,TRUE)))))))), (IF($F$16=2,(IF(2-$F$18=0, 0, (IF(2-$F$18=1,(VLOOKUP(1,Tablas!$A$972:$G$974,3,TRUE)), (IF(2-$F$18=2, (VLOOKUP(2,Tablas!$A$972:$G$974,3,TRUE)), 0)))))), (IF($F$16=1,(IF(1-$F$18=0, 0, (IF(1-$F$18=1,(VLOOKUP(1,Tablas!$A$972:$G$974,3,TRUE)),0)))),0)))))))))))))), (IF($F$16=0, 0, (IF($F$18>$F$16, (VLOOKUP($F$16,Tablas!$A$972:$G$974,3,TRUE)), (IF($F$16=4,(IF(4-$F$18=0, 0, (IF(4-$F$18=1, (VLOOKUP(1,Tablas!$A$972:$G$974,3,TRUE)), (IF(4-$F$18=2, (VLOOKUP(2,Tablas!$A$972:$G$974,3,TRUE)), (IF(4-$F$18=3, (VLOOKUP(3,Tablas!$A$972:$G$974,3,TRUE)), (IF(4-$F$18=4, (VLOOKUP(3,Tablas!$A$972:$G$974,3,TRUE)), 0)))))))))), (IF($F$16=5,(IF(5-$F$18=0, (VLOOKUP(1,Tablas!$A$972:$G$974,3,TRUE)), (IF(5-$F$18=1, (VLOOKUP(1,Tablas!$A$972:$G$974,3,TRUE)), (IF(5-$F$18=2, (VLOOKUP(2,Tablas!$A$972:$G$974,3,TRUE)), (IF(5-$F$18=3, (VLOOKUP(3,Tablas!$A$972:$G$974,3,TRUE)), (IF(5-$F$18=4, (VLOOKUP(3,Tablas!$A$972:$G$974,3,TRUE)), (VLOOKUP(3,Tablas!$A$972:$G$974,3,TRUE)))))))))))), (IF($F$16=6,(IF(6-$F$18=0, (VLOOKUP(2,Tablas!$A$972:$G$974,3,TRUE)), (IF(6-$F$18=1, (VLOOKUP(2,Tablas!$A$972:$G$974,3,TRUE)), (IF(6-$F$18=2, (VLOOKUP(2,Tablas!$A$972:$G$974,3,TRUE)), (IF(6-$F$18=3, (VLOOKUP(3,Tablas!$A$972:$G$974,3,TRUE)), (IF(6-$F$18=4, (VLOOKUP(3,Tablas!$A$972:$G$974,3,TRUE)), (VLOOKUP(3,Tablas!$A$972:$G$974,3,TRUE)))))))))))), (IF($F$16>6,(IF(7-$F$18=0, (VLOOKUP(3,Tablas!$A$972:$G$974,3,TRUE)), (IF(7-$F$18=1, (VLOOKUP(3,Tablas!$A$972:$G$974,3,TRUE)), (IF(7-$F$18=2, (VLOOKUP(3,Tablas!$A$972:$G$974,3,TRUE)), (IF(7-$F$18=3, (VLOOKUP(3,Tablas!$A$972:$G$974,3,TRUE)), (IF(7-$F$18=4, (VLOOKUP(3,Tablas!$A$972:$G$974,3,TRUE)), (VLOOKUP(3,Tablas!$A$972:$G$974,3,TRUE)))))))))))), (IF($F$16=3,(IF(3-$F$18=0,0, (IF(3-$F$18=1,(VLOOKUP(1,Tablas!$A$972:$G$974,3,TRUE)), (IF(3-$F$18=2, (VLOOKUP(2,Tablas!$A$972:$G$974,3,TRUE)), (VLOOKUP(3,Tablas!$A$972:$G$974,3,TRUE)))))))), (IF($F$16=2,(IF(2-$F$18=0, 0, (IF(2-$F$18=1,(VLOOKUP(1,Tablas!$A$972:$G$974,3,TRUE)), (IF(2-$F$18=2, (VLOOKUP(2,Tablas!$A$972:$G$974,3,TRUE)), 0)))))), (IF($F$16=1,(IF(1-$F$18=0, 0, (IF(1-$F$18=1,(VLOOKUP(1,Tablas!$A$972:$G$974,3,TRUE)),0)))),0))))))))))))))))))) -> 0 | H29: =IF($F$14=1, (IF($F$16=0, 0, (IF($F$18>$F$16, (VLOOKUP($F$16,Tablas!$A$972:$G$974,4,TRUE)), (IF($F$16>4,(IF($F$18=0, (VLOOKUP(3,Tablas!$A$972:$G$974,4,TRUE)), (IF($F$18=1, (VLOOKUP(3,Tablas!$A$972:$G$974,4,TRUE)), (IF($F$18=2, (VLOOKUP(3,Tablas!$A$972:$G$974,4,TRUE)), (VLOOKUP(3,Tablas!$A$972:$G$974,4,TRUE)))))))), (IF($F$16=4,(IF(4-$F$18=0,(VLOOKUP(2,Tablas!$A$972:$G$974,4,TRUE)), (IF(4-$F$18=1,(VLOOKUP(2,Tablas!$A$972:$G$974,4,TRUE)), (IF(4-$F$18=2, (VLOOKUP(2,Tablas!$A$972:$G$974,4,TRUE)), (VLOOKUP(3,Tablas!$A$972:$G$974,4,TRUE)))))))), (IF($F$16=3,(IF(3-$F$18=0,(VLOOKUP(1,Tablas!$A$972:$G$974,4,TRUE)), (IF(3-$F$18=1,(VLOOKUP(1,Tablas!$A$972:$G$974,4,TRUE)), (IF(3-$F$18=2, (VLOOKUP(2,Tablas!$A$972:$G$974,4,TRUE)), (VLOOKUP(3,Tablas!$A$972:$G$974,4,TRUE)))))))), (IF($F$16=2,(IF(2-$F$18=0, 0, (IF(2-$F$18=1,(VLOOKUP(1,Tablas!$A$972:$G$974,4,TRUE)), (IF(2-$F$18=2, (VLOOKUP(2,Tablas!$A$972:$G$974,4,TRUE)), 0)))))), (IF($F$16=1,(IF(1-$F$18=0, 0, (IF(1-$F$18=1,(VLOOKUP(1,Tablas!$A$972:$G$974,4,TRUE)),0)))),0)))))))))))))), (IF($F$16=0, 0, (IF($F$18>$F$16, (VLOOKUP($F$16,Tablas!$A$972:$G$974,4,TRUE)), (IF($F$16=4,(IF(4-$F$18=0, 0, (IF(4-$F$18=1, (VLOOKUP(1,Tablas!$A$972:$G$974,4,TRUE)), (IF(4-$F$18=2, (VLOOKUP(2,Tablas!$A$972:$G$974,4,TRUE)), (IF(4-$F$18=3, (VLOOKUP(3,Tablas!$A$972:$G$974,4,TRUE)), (IF(4-$F$18=4, (VLOOKUP(3,Tablas!$A$972:$G$974,4,TRUE)), 0)))))))))), (IF($F$16=5,(IF(5-$F$18=0, (VLOOKUP(1,Tablas!$A$972:$G$974,4,TRUE)), (IF(5-$F$18=1, (VLOOKUP(1,Tablas!$A$972:$G$974,4,TRUE)), (IF(5-$F$18=2, (VLOOKUP(2,Tablas!$A$972:$G$974,4,TRUE)), (IF(5-$F$18=3, (VLOOKUP(3,Tablas!$A$972:$G$974,4,TRUE)), (IF(5-$F$18=4, (VLOOKUP(3,Tablas!$A$972:$G$974,4,TRUE)), (VLOOKUP(3,Tablas!$A$972:$G$974,4,TRUE)))))))))))), (IF($F$16=6,(IF(6-$F$18=0, (VLOOKUP(2,Tablas!$A$972:$G$974,4,TRUE)), (IF(6-$F$18=1, (VLOOKUP(2,Tablas!$A$972:$G$974,4,TRUE)), (IF(6-$F$18=2, (VLOOKUP(2,Tablas!$A$972:$G$974,4,TRUE)), (IF(6-$F$18=3, (VLOOKUP(3,Tablas!$A$972:$G$974,4,TRUE)), (IF(6-$F$18=4, (VLOOKUP(3,Tablas!$A$972:$G$974,4,TRUE)), (VLOOKUP(3,Tablas!$A$972:$G$974,4,TRUE)))))))))))), (IF($F$16>6,(IF(7-$F$18=0, (VLOOKUP(3,Tablas!$A$972:$G$974,4,TRUE)), (IF(7-$F$18=1, (VLOOKUP(3,Tablas!$A$972:$G$974,4,TRUE)), (IF(7-$F$18=2, (VLOOKUP(3,Tablas!$A$972:$G$974,4,TRUE)), (IF(7-$F$18=3, (VLOOKUP(3,Tablas!$A$972:$G$974,4,TRUE)), (IF(7-$F$18=4, (VLOOKUP(3,Tablas!$A$972:$G$974,4,TRUE)), (VLOOKUP(3,Tablas!$A$972:$G$974,4,TRUE)))))))))))), (IF($F$16=3,(IF(3-$F$18=0,0, (IF(3-$F$18=1,(VLOOKUP(1,Tablas!$A$972:$G$974,4,TRUE)), (IF(3-$F$18=2, (VLOOKUP(2,Tablas!$A$972:$G$974,4,TRUE)), (VLOOKUP(3,Tablas!$A$972:$G$974,4,TRUE)))))))), (IF($F$16=2,(IF(2-$F$18=0, 0, (IF(2-$F$18=1,(VLOOKUP(1,Tablas!$A$972:$G$974,4,TRUE)), (IF(2-$F$18=2, (VLOOKUP(2,Tablas!$A$972:$G$974,4,TRUE)), 0)))))), (IF($F$16=1,(IF(1-$F$18=0, 0, (IF(1-$F$18=1,(VLOOKUP(1,Tablas!$A$972:$G$974,4,TRUE)),0)))),0))))))))))))))))))) -> 0
E30: Total de Prima neta | G30: =SUM(G27:G29) -> 69913 | H30: =SUM(H27:H29) -> 45131
E31: Tarifa administrativa anual | G31: 0 | H31: 0
E32: Contribución 3.5% Superintendencia de Bancos Contribución 0.5% Seguro Social Campesino | G32: =(G30)*4% -> 2796.52 | H32: =(H30)*4% -> 1805.24
E33: TOTAL ANUAL | G33: =SUM(G30:G32) -> 72709.52 | H33: =SUM(H30:H32) -> 46936.24
E34: Ahorros en tarifas de prima para niños | G34: =IF($F$14=1,IF($F$16=0,0,IF($F$18=0,0,IF($F$18=1,(VLOOKUP(1,Tablas!$A$972:$G$974,3,TRUE)),(VLOOKUP(2,Tablas!$A$972:$G$974,3,TRUE))))), IF($F$16=0,0,IF($F$18=0,0,IF($F$18=1,(VLOOKUP(1,Tablas!$A$972:$G$974,3,TRUE)),IF($F$18=2,(VLOOKUP(2,Tablas!$A$972:$G$974,3,TRUE)), (VLOOKUP(3,Tablas!$A$972:$G$974,3,TRUE))))))) -> 17359 | H34: =IF($F$14=1,IF($F$16=0,0,IF($F$18=0,0,IF($F$18=1,(VLOOKUP(1,Tablas!$A$972:$G$974,4,TRUE)),(VLOOKUP(2,Tablas!$A$972:$G$974,4,TRUE))))), IF($F$16=0,0,IF($F$18=0,0,IF($F$18=1,(VLOOKUP(1,Tablas!$A$972:$G$974,4,TRUE)),IF($F$18=2,(VLOOKUP(2,Tablas!$A$972:$G$974,4,TRUE)), (VLOOKUP(3,Tablas!$A$972:$G$974,4,TRUE))))))) -> 11198
E36: Tarifas Semianuales
E37: Prima para Asegurado Titular | G37: =VLOOKUP($I$14,Tablas!$A$1428:$G$1494,3,TRUE)+75 -> 15474.68 | H37: =VLOOKUP($I$14,Tablas!$A$1428:$G$1494,4,TRUE)+75 -> 10008.79
E38: Prima para conyuge | G38: =IF($F$14=1,0,(VLOOKUP($I$16,Tablas!$A$1428:$G$1494,3,TRUE))) -> 21614.46 | H38: =IF($F$14=1,0,(VLOOKUP($I$16,Tablas!$A$1428:$G$1494,4,TRUE))) -> 13945.89
E39: Prima para hijo (s) | G39: =IF($F$14=1, (IF($F$16=0, 0, (IF($F$18>$F$16, (VLOOKUP($F$16,Tablas!$A$1495:$G$1497,3,TRUE)), (IF($F$16>4,(IF($F$18=0, (VLOOKUP(3,Tablas!$A$1495:$G$1497,3,TRUE)), (IF($F$18=1, (VLOOKUP(3,Tablas!$A$1495:$G$1497,3,TRUE)), (IF($F$18=2, (VLOOKUP(3,Tablas!$A$1495:$G$1497,3,TRUE)), (VLOOKUP(3,Tablas!$A$1495:$G$1497,3,TRUE)))))))), (IF($F$16=4,(IF(4-$F$18=0,(VLOOKUP(2,Tablas!$A$1495:$G$1497,3,TRUE)), (IF(4-$F$18=1,(VLOOKUP(2,Tablas!$A$1495:$G$1497,3,TRUE)), (IF(4-$F$18=2, (VLOOKUP(2,Tablas!$A$1495:$G$1497,3,TRUE)), (VLOOKUP(3,Tablas!$A$1495:$G$1497,3,TRUE)))))))), (IF($F$16=3,(IF(3-$F$18=0,(VLOOKUP(1,Tablas!$A$1495:$G$1497,3,TRUE)), (IF(3-$F$18=1,(VLOOKUP(1,Tablas!$A$1495:$G$1497,3,TRUE)), (IF(3-$F$18=2, (VLOOKUP(2,Tablas!$A$1495:$G$1497,3,TRUE)), (VLOOKUP(3,Tablas!$A$1495:$G$1497,3,TRUE)))))))), (IF($F$16=2,(IF(2-$F$18=0, 0, (IF(2-$F$18=1,(VLOOKUP(1,Tablas!$A$1495:$G$1497,3,TRUE)), (IF(2-$F$18=2, (VLOOKUP(2,Tablas!$A$1495:$G$1497,3,TRUE)), 0)))))), (IF($F$16=1,(IF(1-$F$18=0, 0, (IF(1-$F$18=1,(VLOOKUP(1,Tablas!$A$1495:$G$1497,3,TRUE)),0)))),0)))))))))))))), (IF($F$16=0, 0, (IF($F$18>$F$16, (VLOOKUP($F$16,Tablas!$A$1495:$G$1497,3,TRUE)), (IF($F$16=4,(IF(4-$F$18=0, 0, (IF(4-$F$18=1, (VLOOKUP(1,Tablas!$A$1495:$G$1497,3,TRUE)), (IF(4-$F$18=2, (VLOOKUP(2,Tablas!$A$1495:$G$1497,3,TRUE)), (IF(4-$F$18=3, (VLOOKUP(3,Tablas!$A$1495:$G$1497,3,TRUE)), (IF(4-$F$18=4, (VLOOKUP(3,Tablas!$A$1495:$G$1497,3,TRUE)), 0)))))))))), (IF($F$16=5,(IF(5-$F$18=0, (VLOOKUP(1,Tablas!$A$1495:$G$1497,3,TRUE)), (IF(5-$F$18=1, (VLOOKUP(1,Tablas!$A$1495:$G$1497,3,TRUE)), (IF(5-$F$18=2, (VLOOKUP(2,Tablas!$A$1495:$G$1497,3,TRUE)), (IF(5-$F$18=3, (VLOOKUP(3,Tablas!$A$1495:$G$1497,3,TRUE)), (IF(5-$F$18=4, (VLOOKUP(3,Tablas!$A$1495:$G$1497,3,TRUE)), (VLOOKUP(3,Tablas!$A$1495:$G$1497,3,TRUE)))))))))))), (IF($F$16=6,(IF(6-$F$18=0, (VLOOKUP(2,Tablas!$A$1495:$G$1497,3,TRUE)), (IF(6-$F$18=1, (VLOOKUP(2,Tablas!$A$1495:$G$1497,3,TRUE)), (IF(6-$F$18=2, (VLOOKUP(2,Tablas!$A$1495:$G$1497,3,TRUE)), (IF(6-$F$18=3, (VLOOKUP(3,Tablas!$A$1495:$G$1497,3,TRUE)), (IF(6-$F$18=4, (VLOOKUP(3,Tablas!$A$1495:$G$1497,3,TRUE)), (VLOOKUP(3,Tablas!$A$1495:$G$1497,3,TRUE)))))))))))), (IF($F$16>6,(IF(7-$F$18=0, (VLOOKUP(3,Tablas!$A$1495:$G$1497,3,TRUE)), (IF(7-$F$18=1, (VLOOKUP(3,Tablas!$A$1495:$G$1497,3,TRUE)), (IF(7-$F$18=2, (VLOOKUP(3,Tablas!$A$1495:$G$1497,3,TRUE)), (IF(7-$F$18=3, (VLOOKUP(3,Tablas!$A$1495:$G$1497,3,TRUE)), (IF(7-$F$18=4, (VLOOKUP(3,Tablas!$A$1495:$G$1497,3,TRUE)), (VLOOKUP(3,Tablas!$A$1495:$G$1497,3,TRUE)))))))))))), (IF($F$16=3,(IF(3-$F$18=0,0, (IF(3-$F$18=1,(VLOOKUP(1,Tablas!$A$1495:$G$1497,3,TRUE)), (IF(3-$F$18=2, (VLOOKUP(2,Tablas!$A$1495:$G$1497,3,TRUE)), (VLOOKUP(3,Tablas!$A$1495:$G$1497,3,TRUE)))))))), (IF($F$16=2,(IF(2-$F$18=0, 0, (IF(2-$F$18=1,(VLOOKUP(1,Tablas!$A$1495:$G$1497,3,TRUE)), (IF(2-$F$18=2, (VLOOKUP(2,Tablas!$A$1495:$G$1497,3,TRUE)), 0)))))), (IF($F$16=1,(IF(1-$F$18=0, 0, (IF(1-$F$18=1,(VLOOKUP(1,Tablas!$A$1495:$G$1497,3,TRUE)),0)))),0))))))))))))))))))) -> 0 | H39: =IF($F$14=1, (IF($F$16=0, 0, (IF($F$18>$F$16, (VLOOKUP($F$16,Tablas!$A$1495:$G$1497,4,TRUE)), (IF($F$16>4,(IF($F$18=0, (VLOOKUP(3,Tablas!$A$1495:$G$1497,4,TRUE)), (IF($F$18=1, (VLOOKUP(3,Tablas!$A$1495:$G$1497,4,TRUE)), (IF($F$18=2, (VLOOKUP(3,Tablas!$A$1495:$G$1497,4,TRUE)), (VLOOKUP(3,Tablas!$A$1495:$G$1497,4,TRUE)))))))), (IF($F$16=4,(IF(4-$F$18=0,(VLOOKUP(2,Tablas!$A$1495:$G$1497,4,TRUE)), (IF(4-$F$18=1,(VLOOKUP(2,Tablas!$A$1495:$G$1497,4,TRUE)), (IF(4-$F$18=2, (VLOOKUP(2,Tablas!$A$1495:$G$1497,4,TRUE)), (VLOOKUP(3,Tablas!$A$1495:$G$1497,4,TRUE)))))))), (IF($F$16=3,(IF(3-$F$18=0,(VLOOKUP(1,Tablas!$A$1495:$G$1497,4,TRUE)), (IF(3-$F$18=1,(VLOOKUP(1,Tablas!$A$1495:$G$1497,4,TRUE)), (IF(3-$F$18=2, (VLOOKUP(2,Tablas!$A$1495:$G$1497,4,TRUE)), (VLOOKUP(3,Tablas!$A$1495:$G$1497,4,TRUE)))))))), (IF($F$16=2,(IF(2-$F$18=0, 0, (IF(2-$F$18=1,(VLOOKUP(1,Tablas!$A$1495:$G$1497,4,TRUE)), (IF(2-$F$18=2, (VLOOKUP(2,Tablas!$A$1495:$G$1497,4,TRUE)), 0)))))), (IF($F$16=1,(IF(1-$F$18=0, 0, (IF(1-$F$18=1,(VLOOKUP(1,Tablas!$A$1495:$G$1497,4,TRUE)),0)))),0)))))))))))))), (IF($F$16=0, 0, (IF($F$18>$F$16, (VLOOKUP($F$16,Tablas!$A$1495:$G$1497,4,TRUE)), (IF($F$16=4,(IF(4-$F$18=0, 0, (IF(4-$F$18=1, (VLOOKUP(1,Tablas!$A$1495:$G$1497,4,TRUE)), (IF(4-$F$18=2, (VLOOKUP(2,Tablas!$A$1495:$G$1497,4,TRUE)), (IF(4-$F$18=3, (VLOOKUP(3,Tablas!$A$1495:$G$1497,4,TRUE)), (IF(4-$F$18=4, (VLOOKUP(3,Tablas!$A$1495:$G$1497,4,TRUE)), 0)))))))))), (IF($F$16=5,(IF(5-$F$18=0, (VLOOKUP(1,Tablas!$A$1495:$G$1497,4,TRUE)), (IF(5-$F$18=1, (VLOOKUP(1,Tablas!$A$1495:$G$1497,4,TRUE)), (IF(5-$F$18=2, (VLOOKUP(2,Tablas!$A$1495:$G$1497,4,TRUE)), (IF(5-$F$18=3, (VLOOKUP(3,Tablas!$A$1495:$G$1497,4,TRUE)), (IF(5-$F$18=4, (VLOOKUP(3,Tablas!$A$1495:$G$1497,4,TRUE)), (VLOOKUP(3,Tablas!$A$1495:$G$1497,4,TRUE)))))))))))), (IF($F$16=6,(IF(6-$F$18=0, (VLOOKUP(2,Tablas!$A$1495:$G$1497,4,TRUE)), (IF(6-$F$18=1, (VLOOKUP(2,Tablas!$A$1495:$G$1497,4,TRUE)), (IF(6-$F$18=2, (VLOOKUP(2,Tablas!$A$1495:$G$1497,4,TRUE)), (IF(6-$F$18=3, (VLOOKUP(3,Tablas!$A$1495:$G$1497,4,TRUE)), (IF(6-$F$18=4, (VLOOKUP(3,Tablas!$A$1495:$G$1497,4,TRUE)), (VLOOKUP(3,Tablas!$A$1495:$G$1497,4,TRUE)))))))))))), (IF($F$16>6,(IF(7-$F$18=0, (VLOOKUP(3,Tablas!$A$1495:$G$1497,4,TRUE)), (IF(7-$F$18=1, (VLOOKUP(3,Tablas!$A$1495:$G$1497,4,TRUE)), (IF(7-$F$18=2, (VLOOKUP(3,Tablas!$A$1495:$G$1497,4,TRUE)), (IF(7-$F$18=3, (VLOOKUP(3,Tablas!$A$1495:$G$1497,4,TRUE)), (IF(7-$F$18=4, (VLOOKUP(3,Tablas!$A$1495:$G$1497,4,TRUE)), (VLOOKUP(3,Tablas!$A$1495:$G$1497,4,TRUE)))))))))))), (IF($F$16=3,(IF(3-$F$18=0,0, (IF(3-$F$18=1,(VLOOKUP(1,Tablas!$A$1495:$G$1497,4,TRUE)), (IF(3-$F$18=2, (VLOOKUP(2,Tablas!$A$1495:$G$1497,4,TRUE)), (VLOOKUP(3,Tablas!$A$1495:$G$1497,4,TRUE)))))))), (IF($F$16=2,(IF(2-$F$18=0, 0, (IF(2-$F$18=1,(VLOOKUP(1,Tablas!$A$1495:$G$1497,4,TRUE)), (IF(2-$F$18=2, (VLOOKUP(2,Tablas!$A$1495:$G$1497,4,TRUE)), 0)))))), (IF($F$16=1,(IF(1-$F$18=0, 0, (IF(1-$F$18=1,(VLOOKUP(1,Tablas!$A$1495:$G$1497,4,TRUE)),0)))),0))))))))))))))))))) -> 0
E40: Total de Prima neta | G40: =SUM(G37:G39) -> 37089.14 | H40: =SUM(H37:H39) -> 23954.68
E41: Tarifa administrativa anual | G41: 0 | H41: 0
E42: Contribución 3.5% Superintendencia de Bancos Contribución 0.5% Seguro Social Campesino | G42: =(G40)*4% -> 1483.5656 | H42: =(H40)*4% -> 958.1872
E43: TOTAL de primera cuota | G43: =SUM(G40:G42) -> 38572.7056 | H43: =SUM(H40:H42) -> 24912.8672
E44: Costo de segunda cuota | G44: =(G40+G42)-78 -> 38494.7056 | H44: =H40+H42-78 -> 24834.8672
E45: TOTAL ANUAL | G45: =G43+G44 -> 77067.4112 | H45: =H43+H44 -> 49747.7344
E46: Ahorros en tarifas de prima para niños | G46: =IF($F$14=1,IF($F$16=0,0,IF($F$18=0,0,IF($F$18=1,(VLOOKUP(1,Tablas!$A$1495:$G$1497,3,TRUE)),(VLOOKUP(2,Tablas!$A$1495:$G$1497,3,TRUE))))), IF($F$16=0,0,IF($F$18=0,0,IF($F$18=1,(VLOOKUP(1,Tablas!$A$1495:$G$1497,3,TRUE)),IF($F$18=2,(VLOOKUP(2,Tablas!$A$1495:$G$1497,3,TRUE)), (VLOOKUP(3,Tablas!$A$1495:$G$1497,3,TRUE))))))) -> 9200.27 | H46: =IF($F$14=1,IF($F$16=0,0,IF($F$18=0,0,IF($F$18=1,(VLOOKUP(1,Tablas!$A$1495:$G$1497,4,TRUE)),(VLOOKUP(2,Tablas!$A$1495:$G$1497,4,TRUE))))), IF($F$16=0,0,IF($F$18=0,0,IF($F$18=1,(VLOOKUP(1,Tablas!$A$1495:$G$1497,4,TRUE)),IF($F$18=2,(VLOOKUP(2,Tablas!$A$1495:$G$1497,4,TRUE)), (VLOOKUP(3,Tablas!$A$1495:$G$1497,4,TRUE))))))) -> 5934.94
E48: Tarifas Trimestrales
E49: Prima para Asegurado Titular | G49: =VLOOKUP($I$14,Tablas!$A$1054:$G$1120,3,TRUE)+75 -> 8065.4 | H49: =VLOOKUP($I$14,Tablas!$A$1054:$G$1120,4,TRUE)+75 -> 5229.325
E50: Prima para conyuge | G50: =IF($F$14=1,0,(VLOOKUP($I$16,Tablas!$A$1054:$G$1120,3,TRUE))) -> 11215.05 | H50: =IF($F$14=1,0,(VLOOKUP($I$16,Tablas!$A$1054:$G$1120,4,TRUE))) -> 7236.075
E51: Prima para hijo (s) | G51: =IF($F$14=1, (IF($F$16=0, 0, (IF($F$18>$F$16, (VLOOKUP($F$16,Tablas!$A$1121:$G$1123,3,TRUE)), (IF($F$16>4,(IF($F$18=0, (VLOOKUP(3,Tablas!$A$1121:$G$1123,3,TRUE)), (IF($F$18=1, (VLOOKUP(3,Tablas!$A$1121:$G$1123,3,TRUE)), (IF($F$18=2, (VLOOKUP(3,Tablas!$A$1121:$G$1123,3,TRUE)), (VLOOKUP(3,Tablas!$A$1121:$G$1123,3,TRUE)))))))), (IF($F$16=4,(IF(4-$F$18=0,(VLOOKUP(2,Tablas!$A$1121:$G$1123,3,TRUE)), (IF(4-$F$18=1,(VLOOKUP(2,Tablas!$A$1121:$G$1123,3,TRUE)), (IF(4-$F$18=2, (VLOOKUP(2,Tablas!$A$1121:$G$1123,3,TRUE)), (VLOOKUP(3,Tablas!$A$1121:$G$1123,3,TRUE)))))))), (IF($F$16=3,(IF(3-$F$18=0,(VLOOKUP(1,Tablas!$A$1121:$G$1123,3,TRUE)), (IF(3-$F$18=1,(VLOOKUP(1,Tablas!$A$1121:$G$1123,3,TRUE)), (IF(3-$F$18=2, (VLOOKUP(2,Tablas!$A$1121:$G$1123,3,TRUE)), (VLOOKUP(3,Tablas!$A$1121:$G$1123,3,TRUE)))))))), (IF($F$16=2,(IF(2-$F$18=0, 0, (IF(2-$F$18=1,(VLOOKUP(1,Tablas!$A$1121:$G$1123,3,TRUE)), (IF(2-$F$18=2, (VLOOKUP(2,Tablas!$A$1121:$G$1123,3,TRUE)), 0)))))), (IF($F$16=1,(IF(1-$F$18=0, 0, (IF(1-$F$18=1,(VLOOKUP(1,Tablas!$A$1121:$G$1123,3,TRUE)),0)))),0)))))))))))))), (IF($F$16=0, 0, (IF($F$18>$F$16, (VLOOKUP($F$16,Tablas!$A$1121:$G$1123,3,TRUE)), (IF($F$16=4,(IF(4-$F$18=0, 0, (IF(4-$F$18=1, (VLOOKUP(1,Tablas!$A$1121:$G$1123,3,TRUE)), (IF(4-$F$18=2, (VLOOKUP(2,Tablas!$A$1121:$G$1123,3,TRUE)), (IF(4-$F$18=3, (VLOOKUP(3,Tablas!$A$1121:$G$1123,3,TRUE)), (IF(4-$F$18=4, (VLOOKUP(3,Tablas!$A$1121:$G$1123,3,TRUE)), 0)))))))))), (IF($F$16=5,(IF(5-$F$18=0, (VLOOKUP(1,Tablas!$A$1121:$G$1123,3,TRUE)), (IF(5-$F$18=1, (VLOOKUP(1,Tablas!$A$1121:$G$1123,3,TRUE)), (IF(5-$F$18=2, (VLOOKUP(2,Tablas!$A$1121:$G$1123,3,TRUE)), (IF(5-$F$18=3, (VLOOKUP(3,Tablas!$A$1121:$G$1123,3,TRUE)), (IF(5-$F$18=4, (VLOOKUP(3,Tablas!$A$1121:$G$1123,3,TRUE)), (VLOOKUP(3,Tablas!$A$1121:$G$1123,3,TRUE)))))))))))), (IF($F$16=6,(IF(6-$F$18=0, (VLOOKUP(2,Tablas!$A$1121:$G$1123,3,TRUE)), (IF(6-$F$18=1, (VLOOKUP(2,Tablas!$A$1121:$G$1123,3,TRUE)), (IF(6-$F$18=2, (VLOOKUP(2,Tablas!$A$1121:$G$1123,3,TRUE)), (IF(6-$F$18=3, (VLOOKUP(3,Tablas!$A$1121:$G$1123,3,TRUE)), (IF(6-$F$18=4, (VLOOKUP(3,Tablas!$A$1121:$G$1123,3,TRUE)), (VLOOKUP(3,Tablas!$A$1121:$G$1123,3,TRUE)))))))))))), (IF($F$16>6,(IF(7-$F$18=0, (VLOOKUP(3,Tablas!$A$1121:$G$1123,3,TRUE)), (IF(7-$F$18=1, (VLOOKUP(3,Tablas!$A$1121:$G$1123,3,TRUE)), (IF(7-$F$18=2, (VLOOKUP(3,Tablas!$A$1121:$G$1123,3,TRUE)), (IF(7-$F$18=3, (VLOOKUP(3,Tablas!$A$1121:$G$1123,3,TRUE)), (IF(7-$F$18=4, (VLOOKUP(3,Tablas!$A$1121:$G$1123,3,TRUE)), (VLOOKUP(3,Tablas!$A$1121:$G$1123,3,TRUE)))))))))))), (IF($F$16=3,(IF(3-$F$18=0,0, (IF(3-$F$18=1,(VLOOKUP(1,Tablas!$A$1121:$G$1123,3,TRUE)), (IF(3-$F$18=2, (VLOOKUP(2,Tablas!$A$1121:$G$1123,3,TRUE)), (VLOOKUP(3,Tablas!$A$1121:$G$1123,3,TRUE)))))))), (IF($F$16=2,(IF(2-$F$18=0, 0, (IF(2-$F$18=1,(VLOOKUP(1,Tablas!$A$1121:$G$1123,3,TRUE)), (IF(2-$F$18=2, (VLOOKUP(2,Tablas!$A$1121:$G$1123,3,TRUE)), 0)))))), (IF($F$16=1,(IF(1-$F$18=0, 0, (IF(1-$F$18=1,(VLOOKUP(1,Tablas!$A$1121:$G$1123,3,TRUE)),0)))),0))))))))))))))))))) -> 0 | H51: =IF($F$14=1, (IF($F$16=0, 0, (IF($F$18>$F$16, (VLOOKUP($F$16,Tablas!$A$1121:$G$1123,4,TRUE)), (IF($F$16>4,(IF($F$18=0, (VLOOKUP(3,Tablas!$A$1121:$G$1123,4,TRUE)), (IF($F$18=1, (VLOOKUP(3,Tablas!$A$1121:$G$1123,4,TRUE)), (IF($F$18=2, (VLOOKUP(3,Tablas!$A$1121:$G$1123,4,TRUE)), (VLOOKUP(3,Tablas!$A$1121:$G$1123,4,TRUE)))))))), (IF($F$16=4,(IF(4-$F$18=0,(VLOOKUP(2,Tablas!$A$1121:$G$1123,4,TRUE)), (IF(4-$F$18=1,(VLOOKUP(2,Tablas!$A$1121:$G$1123,4,TRUE)), (IF(4-$F$18=2, (VLOOKUP(2,Tablas!$A$1121:$G$1123,4,TRUE)), (VLOOKUP(3,Tablas!$A$1121:$G$1123,4,TRUE)))))))), (IF($F$16=3,(IF(3-$F$18=0,(VLOOKUP(1,Tablas!$A$1121:$G$1123,4,TRUE)), (IF(3-$F$18=1,(VLOOKUP(1,Tablas!$A$1121:$G$1123,4,TRUE)), (IF(3-$F$18=2, (VLOOKUP(2,Tablas!$A$1121:$G$1123,4,TRUE)), (VLOOKUP(3,Tablas!$A$1121:$G$1123,4,TRUE)))))))), (IF($F$16=2,(IF(2-$F$18=0, 0, (IF(2-$F$18=1,(VLOOKUP(1,Tablas!$A$1121:$G$1123,4,TRUE)), (IF(2-$F$18=2, (VLOOKUP(2,Tablas!$A$1121:$G$1123,4,TRUE)), 0)))))), (IF($F$16=1,(IF(1-$F$18=0, 0, (IF(1-$F$18=1,(VLOOKUP(1,Tablas!$A$1121:$G$1123,4,TRUE)),0)))),0)))))))))))))), (IF($F$16=0, 0, (IF($F$18>$F$16, (VLOOKUP($F$16,Tablas!$A$1121:$G$1123,4,TRUE)), (IF($F$16=4,(IF(4-$F$18=0, 0, (IF(4-$F$18=1, (VLOOKUP(1,Tablas!$A$1121:$G$1123,4,TRUE)), (IF(4-$F$18=2, (VLOOKUP(2,Tablas!$A$1121:$G$1123,4,TRUE)), (IF(4-$F$18=3, (VLOOKUP(3,Tablas!$A$1121:$G$1123,4,TRUE)), (IF(4-$F$18=4, (VLOOKUP(3,Tablas!$A$1121:$G$1123,4,TRUE)), 0)))))))))), (IF($F$16=5,(IF(5-$F$18=0, (VLOOKUP(1,Tablas!$A$1121:$G$1123,4,TRUE)), (IF(5-$F$18=1, (VLOOKUP(1,Tablas!$A$1121:$G$1123,4,TRUE)), (IF(5-$F$18=2, (VLOOKUP(2,Tablas!$A$1121:$G$1123,4,TRUE)), (IF(5-$F$18=3, (VLOOKUP(3,Tablas!$A$1121:$G$1123,4,TRUE)), (IF(5-$F$18=4, (VLOOKUP(3,Tablas!$A$1121:$G$1123,4,TRUE)), (VLOOKUP(3,Tablas!$A$1121:$G$1123,4,TRUE)))))))))))), (IF($F$16=6,(IF(6-$F$18=0, (VLOOKUP(2,Tablas!$A$1121:$G$1123,4,TRUE)), (IF(6-$F$18=1, (VLOOKUP(2,Tablas!$A$1121:$G$1123,4,TRUE)), (IF(6-$F$18=2, (VLOOKUP(2,Tablas!$A$1121:$G$1123,4,TRUE)), (IF(6-$F$18=3, (VLOOKUP(3,Tablas!$A$1121:$G$1123,4,TRUE)), (IF(6-$F$18=4, (VLOOKUP(3,Tablas!$A$1121:$G$1123,4,TRUE)), (VLOOKUP(3,Tablas!$A$1121:$G$1123,4,TRUE)))))))))))), (IF($F$16>6,(IF(7-$F$18=0, (VLOOKUP(3,Tablas!$A$1121:$G$1123,4,TRUE)), (IF(7-$F$18=1, (VLOOKUP(3,Tablas!$A$1121:$G$1123,4,TRUE)), (IF(7-$F$18=2, (VLOOKUP(3,Tablas!$A$1121:$G$1123,4,TRUE)), (IF(7-$F$18=3, (VLOOKUP(3,Tablas!$A$1121:$G$1123,4,TRUE)), (IF(7-$F$18=4, (VLOOKUP(3,Tablas!$A$1121:$G$1123,4,TRUE)), (VLOOKUP(3,Tablas!$A$1121:$G$1123,4,TRUE)))))))))))), (IF($F$16=3,(IF(3-$F$18=0,0, (IF(3-$F$18=1,(VLOOKUP(1,Tablas!$A$1121:$G$1123,4,TRUE)), (IF(3-$F$18=2, (VLOOKUP(2,Tablas!$A$1121:$G$1123,4,TRUE)), (VLOOKUP(3,Tablas!$A$1121:$G$1123,4,TRUE)))))))), (IF($F$16=2,(IF(2-$F$18=0, 0, (IF(2-$F$18=1,(VLOOKUP(1,Tablas!$A$1121:$G$1123,4,TRUE)), (IF(2-$F$18=2, (VLOOKUP(2,Tablas!$A$1121:$G$1123,4,TRUE)), 0)))))), (IF($F$16=1,(IF(1-$F$18=0, 0, (IF(1-$F$18=1,(VLOOKUP(1,Tablas!$A$1121:$G$1123,4,TRUE)),0)))),0))))))))))))))))))) -> 0
E52: Total de Prima neta | G52: =SUM(G49:G51) -> 19280.45 | H52: =SUM(H49:H51) -> 12465.4
E53: Tarifa administrativa anual | G53: 0 | H53: 0
E54: Contribución 3.5% Superintendencia de Bancos Contribución 0.5% Seguro Social Campesino | G54: =(G52)*4% -> 771.218 | H54: =(H52)*4% -> 498.616
E55: TOTAL de primera cuota | G55: =SUM(G52:G54) -> 20051.668 | H55: =SUM(H52:H54) -> 12964.016
E56: Tres (3) cuotas adicionales, cada una de: | G56: =G52+G54-78 -> 19973.668 | H56: =H52+H54-78 -> 12886.016
E57: TOTAL ANUAL | G57: =G55+(G56*3) -> 79972.672 | H57: =H55+(H56*3) -> 51622.064
E58: Ahorros en tarifas de prima para niños | G58: =IF($F$14=1,IF($F$16=0,0,IF($F$18=0,0,IF($F$18=1,(VLOOKUP(1,Tablas!$A$1121:$G$1123,3,TRUE)),(VLOOKUP(2,Tablas!$A$1121:$G$1123,3,TRUE))))), IF($F$16=0,0,IF($F$18=0,0,IF($F$18=1,(VLOOKUP(1,Tablas!$A$1121:$G$1123,3,TRUE)),IF($F$18=2,(VLOOKUP(2,Tablas!$A$1121:$G$1123,3,TRUE)), (VLOOKUP(3,Tablas!$A$1121:$G$1123,3,TRUE))))))) -> 4773.725 | H58: =IF($F$14=1,IF($F$16=0,0,IF($F$18=0,0,IF($F$18=1,(VLOOKUP(1,Tablas!$A$1121:$G$1123,4,TRUE)),(VLOOKUP(2,Tablas!$A$1121:$G$1123,4,TRUE))))), IF($F$16=0,0,IF($F$18=0,0,IF($F$18=1,(VLOOKUP(1,Tablas!$A$1121:$G$1123,4,TRUE)),IF($F$18=2,(VLOOKUP(2,Tablas!$A$1121:$G$1123,4,TRUE)), (VLOOKUP(3,Tablas!$A$1121:$G$1123,4,TRUE))))))) -> 3079.45
E60: Tarifas en US$ - Efectivas a partir del 1ro. de enero de 2022
E61: Este presupuesto solamente tiene carácter informativo y en ningún momento expresa compromiso legal para suministrarle cobertura de seguro. La emisión de una póliza de seguro Bupa está sujeta a todas las evaluaciones de riesgo por parte de Bupa y a la recepción de todos los pagos de prima requeridos.

Sheet Global Health Elite
A12: RESUMEN DE BENEFICIOS | D12: Nombre del Asegurado Titular | F12: =+'INGRESO DE DATOS'!$D$15 -> Nombre Completo
D14: Número de adultos en la póliza | F14: =+'INGRESO DE DATOS'!$D$17 -> 2 | H14: Edad del Asegurado Titular | I14: =+'INGRESO DE DATOS'!$D$19 -> 32
D16: Número de niños en la póliza | F16: =+'INGRESO DE DATOS'!$H$17 -> 2 | H16: Edad del/la conyuge | I16: =+'INGRESO DE DATOS'!$H$19 -> 46
E18: Número de niños menores de 10 años | F18: =+'INGRESO DE DATOS'!$D$29 -> 1 | H18: Fecha de la cotización : | I18: =NOW() -> 2022-08-02T16:29:34.620
H19: FALSE
E20: Zona de cotización: | F20: ='INGRESO DE DATOS'!D21 -> Guayas/Santa Elena
E22: Deducibles | G22: PLAN 1 | H22: PLAN 2 | I22: PLAN 3 | J22: PLAN 4 | K22: PLAN 5
E23: En el país de residencia | G23: 250 | H23: 2000 | I23: 3500 | J23: 5000 | K23: 10000
E24: Fuera del país de residencia | G24: 5000 | H24: 2000 | I24: 3500 | J24: 5000 | K24: 10000
E26: Tarifas Anuales
E27: Prima para Asegurado Titular | G27: =VLOOKUP($I$14,Tablas!$A$6:$G$72,3,TRUE)+75 -> 10392.3 | H27: =VLOOKUP($I$14,Tablas!$A$6:$G$72,4,TRUE)+75 -> 9119.85 | I27: =VLOOKUP($I$14,Tablas!$A$6:$G$72,5,TRUE)+75 -> 7298.3 | J27: =VLOOKUP($I$14,Tablas!$A$6:$G$72,6,TRUE)+75 -> 6338.65 | K27: =VLOOKUP($I$14,Tablas!$A$6:$G$72,7,TRUE)+75 -> 4744.9
E28: Prima para conyuge | G28: =IF($F$14=1,0,(VLOOKUP($I$16,Tablas!$A$6:$G$72,3,TRUE))) -> 14441.5 | H28: =IF($F$14=1,0,(VLOOKUP($I$16,Tablas!$A$6:$G$72,4,TRUE))) -> 12660.75 | I28: =IF($F$14=1,0,(VLOOKUP($I$16,Tablas!$A$6:$G$72,5,TRUE))) -> 9976.45 | J28: =IF($F$14=1,0,(VLOOKUP($I$16,Tablas!$A$6:$G$72,6,TRUE))) -> 8650.45 | K28: =IF($F$14=1,0,(VLOOKUP($I$16,Tablas!$A$6:$G$72,7,TRUE))) -> 6449.8
E29: Prima para hijo (s) | G29: =IF($F$14=1, (IF($F$16=0, 0, (IF($F$18>$F$16, (VLOOKUP($F$16,Tablas!$A$73:$G$75,3,TRUE)), (IF($F$16>4,(IF($F$18=0, (VLOOKUP(3,Tablas!$A$73:$G$75,3,TRUE)), (IF($F$18=1, (VLOOKUP(3,Tablas!$A$73:$G$75,3,TRUE)), (IF($F$18=2, (VLOOKUP(3,Tablas!$A$73:$G$75,3,TRUE)), (VLOOKUP(3,Tablas!$A$73:$G$75,3,TRUE)))))))), (IF($F$16=4,(IF(4-$F$18=0,(VLOOKUP(2,Tablas!$A$73:$G$75,3,TRUE)), (IF(4-$F$18=1,(VLOOKUP(2,Tablas!$A$73:$G$75,3,TRUE)), (IF(4-$F$18=2, (VLOOKUP(2,Tablas!$A$73:$G$75,3,TRUE)), (VLOOKUP(3,Tablas!$A$73:$G$75,3,TRUE)))))))), (IF($F$16=3,(IF(3-$F$18=0,(VLOOKUP(1,Tablas!$A$73:$G$75,3,TRUE)), (IF(3-$F$18=1,(VLOOKUP(1,Tablas!$A$73:$G$75,3,TRUE)), (IF(3-$F$18=2, (VLOOKUP(2,Tablas!$A$73:$G$75,3,TRUE)), (VLOOKUP(3,Tablas!$A$73:$G$75,3,TRUE)))))))), (IF($F$16=2,(IF(2-$F$18=0, 0, (IF(2-$F$18=1,(VLOOKUP(1,Tablas!$A$73:$G$75,3,TRUE)), (IF(2-$F$18=2, (VLOOKUP(2,Tablas!$A$73:$G$75,3,TRUE)), 0)))))), (IF($F$16=1,(IF(1-$F$18=0, 0, (IF(1-$F$18=1,(VLOOKUP(1,Tablas!$A$73:$G$75,3,TRUE)),0)))),0)))))))))))))), (IF($F$16=0, 0, (IF($F$18>$F$16, (VLOOKUP($F$16,Tablas!$A$73:$G$75,3,TRUE)), (IF($F$16=4,(IF(4-$F$18=0, 0, (IF(4-$F$18=1, (VLOOKUP(1,Tablas!$A$73:$G$75,3,TRUE)), (IF(4-$F$18=2, (VLOOKUP(2,Tablas!$A$73:$G$75,3,TRUE)), (IF(4-$F$18=3, (VLOOKUP(3,Tablas!$A$73:$G$75,3,TRUE)), (IF(4-$F$18=4, (VLOOKUP(3,Tablas!$A$73:$G$75,3,TRUE)), 0)))))))))), (IF($F$16=5,(IF(5-$F$18=0, (VLOOKUP(1,Tablas!$A$73:$G$75,3,TRUE)), (IF(5-$F$18=1, (VLOOKUP(1,Tablas!$A$73:$G$75,3,TRUE)), (IF(5-$F$18=2, (VLOOKUP(2,Tablas!$A$73:$G$75,3,TRUE)), (IF(5-$F$18=3, (VLOOKUP(3,Tablas!$A$73:$G$75,3,TRUE)), (IF(5-$F$18=4, (VLOOKUP(3,Tablas!$A$73:$G$75,3,TRUE)), (VLOOKUP(3,Tablas!$A$73:$G$75,3,TRUE)))))))))))), (IF($F$16=6,(IF(6-$F$18=0, (VLOOKUP(2,Tablas!$A$73:$G$75,3,TRUE)), (IF(6-$F$18=1, (VLOOKUP(2,Tablas!$A$73:$G$75,3,TRUE)), (IF(6-$F$18=2, (VLOOKUP(2,Tablas!$A$73:$G$75,3,TRUE)), (IF(6-$F$18=3, (VLOOKUP(3,Tablas!$A$73:$G$75,3,TRUE)), (IF(6-$F$18=4, (VLOOKUP(3,Tablas!$A$73:$G$75,3,TRUE)), (VLOOKUP(3,Tablas!$A$73:$G$75,3,TRUE)))))))))))), (IF($F$16>6,(IF(7-$F$18=0, (VLOOKUP(3,Tablas!$A$73:$G$75,3,TRUE)), (IF(7-$F$18=1, (VLOOKUP(3,Tablas!$A$73:$G$75,3,TRUE)), (IF(7-$F$18=2, (VLOOKUP(3,Tablas!$A$73:$G$75,3,TRUE)), (IF(7-$F$18=3, (VLOOKUP(3,Tablas!$A$73:$G$75,3,TRUE)), (IF(7-$F$18=4, (VLOOKUP(3,Tablas!$A$73:$G$75,3,TRUE)), (VLOOKUP(3,Tablas!$A$73:$G$75,3,TRUE)))))))))))), (IF($F$16=3,(IF(3-$F$18=0,0, (IF(3-$F$18=1,(VLOOKUP(1,Tablas!$A$73:$G$75,3,TRUE)), (IF(3-$F$18=2, (VLOOKUP(2,Tablas!$A$73:$G$75,3,TRUE)), (VLOOKUP(3,Tablas!$A$73:$G$75,3,TRUE)))))))), (IF($F$16=2,(IF(2-$F$18=0, 0, (IF(2-$F$18=1,(VLOOKUP(1,Tablas!$A$73:$G$75,3,TRUE)), (IF(2-$F$18=2, (VLOOKUP(2,Tablas!$A$73:$G$75,3,TRUE)), 0)))))), (IF($F$16=1,(IF(1-$F$18=0, 0, (IF(1-$F$18=1,(VLOOKUP(1,Tablas!$A$73:$G$75,3,TRUE)),0)))),0))))))))))))))))))) -> 3667.75 | H29: =IF($F$14=1, (IF($F$16=0, 0, (IF($F$18>$F$16, (VLOOKUP($F$16,Tablas!$A$73:$G$75,4,TRUE)), (IF($F$16>4,(IF($F$18=0, (VLOOKUP(3,Tablas!$A$73:$G$75,4,TRUE)), (IF($F$18=1, (VLOOKUP(3,Tablas!$A$73:$G$75,4,TRUE)), (IF($F$18=2, (VLOOKUP(3,Tablas!$A$73:$G$75,4,TRUE)), (VLOOKUP(3,Tablas!$A$73:$G$75,4,TRUE)))))))), (IF($F$16=4,(IF(4-$F$18=0,(VLOOKUP(2,Tablas!$A$73:$G$75,4,TRUE)), (IF(4-$F$18=1,(VLOOKUP(2,Tablas!$A$73:$G$75,4,TRUE)), (IF(4-$F$18=2, (VLOOKUP(2,Tablas!$A$73:$G$75,4,TRUE)), (VLOOKUP(3,Tablas!$A$73:$G$75,4,TRUE)))))))), (IF($F$16=3,(IF(3-$F$18=0,(VLOOKUP(1,Tablas!$A$73:$G$75,4,TRUE)), (IF(3-$F$18=1,(VLOOKUP(1,Tablas!$A$73:$G$75,4,TRUE)), (IF(3-$F$18=2, (VLOOKUP(2,Tablas!$A$73:$G$75,4,TRUE)), (VLOOKUP(3,Tablas!$A$73:$G$75,4,TRUE)))))))), (IF($F$16=2,(IF(2-$F$18=0, 0, (IF(2-$F$18=1,(VLOOKUP(1,Tablas!$A$73:$G$75,4,TRUE)), (IF(2-$F$18=2, (VLOOKUP(2,Tablas!$A$73:$G$75,4,TRUE)), 0)))))), (IF($F$16=1,(IF(1-$F$18=0, 0, (IF(1-$F$18=1,(VLOOKUP(1,Tablas!$A$73:$G$75,4,TRUE)),0)))),0)))))))))))))), (IF($F$16=0, 0, (IF($F$18>$F$16, (VLOOKUP($F$16,Tablas!$A$73:$G$75,4,TRUE)), (IF($F$16=4,(IF(4-$F$18=0, 0, (IF(4-$F$18=1, (VLOOKUP(1,Tablas!$A$73:$G$75,4,TRUE)), (IF(4-$F$18=2, (VLOOKUP(2,Tablas!$A$73:$G$75,4,TRUE)), (IF(4-$F$18=3, (VLOOKUP(3,Tablas!$A$73:$G$75,4,TRUE)), (IF(4-$F$18=4, (VLOOKUP(3,Tablas!$A$73:$G$75,4,TRUE)), 0)))))))))), (IF($F$16=5,(IF(5-$F$18=0, (VLOOKUP(1,Tablas!$A$73:$G$75,4,TRUE)), (IF(5-$F$18=1, (VLOOKUP(1,Tablas!$A$73:$G$75,4,TRUE)), (IF(5-$F$18=2, (VLOOKUP(2,Tablas!$A$73:$G$75,4,TRUE)), (IF(5-$F$18=3, (VLOOKUP(3,Tablas!$A$73:$G$75,4,TRUE)), (IF(5-$F$18=4, (VLOOKUP(3,Tablas!$A$73:$G$75,4,TRUE)), (VLOOKUP(3,Tablas!$A$73:$G$75,4,TRUE)))))))))))), (IF($F$16=6,(IF(6-$F$18=0, (VLOOKUP(2,Tablas!$A$73:$G$75,4,TRUE)), (IF(6-$F$18=1, (VLOOKUP(2,Tablas!$A$73:$G$75,4,TRUE)), (IF(6-$F$18=2, (VLOOKUP(2,Tablas!$A$73:$G$75,4,TRUE)), (IF(6-$F$18=3, (VLOOKUP(3,Tablas!$A$73:$G$75,4,TRUE)), (IF(6-$F$18=4, (VLOOKUP(3,Tablas!$A$73:$G$75,4,TRUE)), (VLOOKUP(3,Tablas!$A$73:$G$75,4,TRUE)))))))))))), (IF($F$16>6,(IF(7-$F$18=0, (VLOOKUP(3,Tablas!$A$73:$G$75,4,TRUE)), (IF(7-$F$18=1, (VLOOKUP(3,Tablas!$A$73:$G$75,4,TRUE)), (IF(7-$F$18=2, (VLOOKUP(3,Tablas!$A$73:$G$75,4,TRUE)), (IF(7-$F$18=3, (VLOOKUP(3,Tablas!$A$73:$G$75,4,TRUE)), (IF(7-$F$18=4, (VLOOKUP(3,Tablas!$A$73:$G$75,4,TRUE)), (VLOOKUP(3,Tablas!$A$73:$G$75,4,TRUE)))))))))))), (IF($F$16=3,(IF(3-$F$18=0,0, (IF(3-$F$18=1,(VLOOKUP(1,Tablas!$A$73:$G$75,4,TRUE)), (IF(3-$F$18=2, (VLOOKUP(2,Tablas!$A$73:$G$75,4,TRUE)), (VLOOKUP(3,Tablas!$A$73:$G$75,4,TRUE)))))))), (IF($F$16=2,(IF(2-$F$18=0, 0, (IF(2-$F$18=1,(VLOOKUP(1,Tablas!$A$73:$G$75,4,TRUE)), (IF(2-$F$18=2, (VLOOKUP(2,Tablas!$A$73:$G$75,4,TRUE)), 0)))))), (IF($F$16=1,(IF(1-$F$18=0, 0, (IF(1-$F$18=1,(VLOOKUP(1,Tablas!$A$73:$G$75,4,TRUE)),0)))),0))))))))))))))))))) -> 3218.1 | I29: =IF($F$14=1, (IF($F$16=0, 0, (IF($F$18>$F$16, (VLOOKUP($F$16,Tablas!$A$73:$G$75,5,TRUE)), (IF($F$16>4,(IF($F$18=0, (VLOOKUP(3,Tablas!$A$73:$G$75,5,TRUE)), (IF($F$18=1, (VLOOKUP(3,Tablas!$A$73:$G$75,5,TRUE)), (IF($F$18=2, (VLOOKUP(3,Tablas!$A$73:$G$75,5,TRUE)), (VLOOKUP(3,Tablas!$A$73:$G$75,5,TRUE)))))))), (IF($F$16=4,(IF(4-$F$18=0,(VLOOKUP(2,Tablas!$A$73:$G$75,5,TRUE)), (IF(4-$F$18=1,(VLOOKUP(2,Tablas!$A$73:$G$75,5,TRUE)), (IF(4-$F$18=2, (VLOOKUP(2,Tablas!$A$73:$G$75,5,TRUE)), (VLOOKUP(3,Tablas!$A$73:$G$75,5,TRUE)))))))), (IF($F$16=3,(IF(3-$F$18=0,(VLOOKUP(1,Tablas!$A$73:$G$75,5,TRUE)), (IF(3-$F$18=1,(VLOOKUP(1,Tablas!$A$73:$G$75,5,TRUE)), (IF(3-$F$18=2, (VLOOKUP(2,Tablas!$A$73:$G$75,5,TRUE)), (VLOOKUP(3,Tablas!$A$73:$G$75,5,TRUE)))))))), (IF($F$16=2,(IF(2-$F$18=0, 0, (IF(2-$F$18=1,(VLOOKUP(1,Tablas!$A$73:$G$75,5,TRUE)), (IF(2-$F$18=2, (VLOOKUP(2,Tablas!$A$73:$G$75,5,TRUE)), 0)))))), (IF($F$16=1,(IF(1-$F$18=0, 0, (IF(1-$F$18=1,(VLOOKUP(1,Tablas!$A$73:$G$75,5,TRUE)),0)))),0)))))))))))))), (IF($F$16=0, 0, (IF($F$18>$F$16, (VLOOKUP($F$16,Tablas!$A$73:$G$75,5,TRUE)), (IF($F$16=4,(IF(4-$F$18=0, 0, (IF(4-$F$18=1, (VLOOKUP(1,Tablas!$A$73:$G$75,5,TRUE)), (IF(4-$F$18=2, (VLOOKUP(2,Tablas!$A$73:$G$75,5,TRUE)), (IF(4-$F$18=3, (VLOOKUP(3,Tablas!$A$73:$G$75,5,TRUE)), (IF(4-$F$18=4, (VLOOKUP(3,Tablas!$A$73:$G$75,5,TRUE)), 0)))))))))), (IF($F$16=5,(IF(5-$F$18=0, (VLOOKUP(1,Tablas!$A$73:$G$75,5,TRUE)), (IF(5-$F$18=1, (VLOOKUP(1,Tablas!$A$73:$G$75,5,TRUE)), (IF(5-$F$18=2, (VLOOKUP(2,Tablas!$A$73:$G$75,5,TRUE)), (IF(5-$F$18=3, (VLOOKUP(3,Tablas!$A$73:$G$75,5,TRUE)), (IF(5-$F$18=4, (VLOOKUP(3,Tablas!$A$73:$G$75,5,TRUE)), (VLOOKUP(3,Tablas!$A$73:$G$75,5,TRUE)))))))))))), (IF($F$16=6,(IF(6-$F$18=0, (VLOOKUP(2,Tablas!$A$73:$G$75,5,TRUE)), (IF(6-$F$18=1, (VLOOKUP(2,Tablas!$A$73:$G$75,5,TRUE)), (IF(6-$F$18=2, (VLOOKUP(2,Tablas!$A$73:$G$75,5,TRUE)), (IF(6-$F$18=3, (VLOOKUP(3,Tablas!$A$73:$G$75,5,TRUE)), (IF(6-$F$18=4, (VLOOKUP(3,Tablas!$A$73:$G$75,5,TRUE)), (VLOOKUP(3,Tablas!$A$73:$G$75,5,TRUE)))))))))))), (IF($F$16>6,(IF(7-$F$18=0, (VLOOKUP(3,Tablas!$A$73:$G$75,5,TRUE)), (IF(7-$F$18=1, (VLOOKUP(3,Tablas!$A$73:$G$75,5,TRUE)), (IF(7-$F$18=2, (VLOOKUP(3,Tablas!$A$73:$G$75,5,TRUE)), (IF(7-$F$18=3, (VLOOKUP(3,Tablas!$A$73:$G$75,5,TRUE)), (IF(7-$F$18=4, (VLOOKUP(3,Tablas!$A$73:$G$75,5,TRUE)), (VLOOKUP(3,Tablas!$A$73:$G$75,5,TRUE)))))))))))), (IF($F$16=3,(IF(3-$F$18=0,0, (IF(3-$F$18=1,(VLOOKUP(1,Tablas!$A$73:$G$75,5,TRUE)), (IF(3-$F$18=2, (VLOOKUP(2,Tablas!$A$73:$G$75,5,TRUE)), (VLOOKUP(3,Tablas!$A$73:$G$75,5,TRUE)))))))), (IF($F$16=2,(IF(2-$F$18=0, 0, (IF(2-$F$18=1,(VLOOKUP(1,Tablas!$A$73:$G$75,5,TRUE)), (IF(2-$F$18=2, (VLOOKUP(2,Tablas!$A$73:$G$75,5,TRUE)), 0)))))), (IF($F$16=1,(IF(1-$F$18=0, 0, (IF(1-$F$18=1,(VLOOKUP(1,Tablas!$A$73:$G$75,5,TRUE)),0)))),0))))))))))))))))))) -> 2623.1 | J29: =IF($F$14=1, (IF($F$16=0, 0, (IF($F$18>$F$16, (VLOOKUP($F$16,Tablas!$A$73:$G$75,6,TRUE)), (IF($F$16>4,(IF($F$18=0, (VLOOKUP(3,Tablas!$A$73:$G$75,6,TRUE)), (IF($F$18=1, (VLOOKUP(3,Tablas!$A$73:$G$75,6,TRUE)), (IF($F$18=2, (VLOOKUP(3,Tablas!$A$73:$G$75,6,TRUE)), (VLOOKUP(3,Tablas!$A$73:$G$75,6,TRUE)))))))), (IF($F$16=4,(IF(4-$F$18=0,(VLOOKUP(2,Tablas!$A$73:$G$75,6,TRUE)), (IF(4-$F$18=1,(VLOOKUP(2,Tablas!$A$73:$G$75,6,TRUE)), (IF(4-$F$18=2, (VLOOKUP(2,Tablas!$A$73:$G$75,6,TRUE)), (VLOOKUP(3,Tablas!$A$73:$G$75,6,TRUE)))))))), (IF($F$16=3,(IF(3-$F$18=0,(VLOOKUP(1,Tablas!$A$73:$G$75,6,TRUE)), (IF(3-$F$18=1,(VLOOKUP(1,Tablas!$A$73:$G$75,6,TRUE)), (IF(3-$F$18=2, (VLOOKUP(2,Tablas!$A$73:$G$75,6,TRUE)), (VLOOKUP(3,Tablas!$A$73:$G$75,6,TRUE)))))))), (IF($F$16=2,(IF(2-$F$18=0, 0, (IF(2-$F$18=1,(VLOOKUP(1,Tablas!$A$73:$G$75,6,TRUE)), (IF(2-$F$18=2, (VLOOKUP(2,Tablas!$A$73:$G$75,6,TRUE)), 0)))))), (IF($F$16=1,(IF(1-$F$18=0, 0, (IF(1-$F$18=1,(VLOOKUP(1,Tablas!$A$73:$G$75,6,TRUE)),0)))),0)))))))))))))), (IF($F$16=0, 0, (IF($F$18>$F$16, (VLOOKUP($F$16,Tablas!$A$73:$G$75,6,TRUE)), (IF($F$16=4,(IF(4-$F$18=0, 0, (IF(4-$F$18=1, (VLOOKUP(1,Tablas!$A$73:$G$75,6,TRUE)), (IF(4-$F$18=2, (VLOOKUP(2,Tablas!$A$73:$G$75,6,TRUE)), (IF(4-$F$18=3, (VLOOKUP(3,Tablas!$A$73:$G$75,6,TRUE)), (IF(4-$F$18=4, (VLOOKUP(3,Tablas!$A$73:$G$75,6,TRUE)), 0)))))))))), (IF($F$16=5,(IF(5-$F$18=0, (VLOOKUP(1,Tablas!$A$73:$G$75,6,TRUE)), (IF(5-$F$18=1, (VLOOKUP(1,Tablas!$A$73:$G$75,6,TRUE)), (IF(5-$F$18=2, (VLOOKUP(2,Tablas!$A$73:$G$75,6,TRUE)), (IF(5-$F$18=3, (VLOOKUP(3,Tablas!$A$73:$G$75,6,TRUE)), (IF(5-$F$18=4, (VLOOKUP(3,Tablas!$A$73:$G$75,6,TRUE)), (VLOOKUP(3,Tablas!$A$73:$G$75,6,TRUE)))))))))))), (IF($F$16=6,(IF(6-$F$18=0, (VLOOKUP(2,Tablas!$A$73:$G$75,6,TRUE)), (IF(6-$F$18=1, (VLOOKUP(2,Tablas!$A$73:$G$75,6,TRUE)), (IF(6-$F$18=2, (VLOOKUP(2,Tablas!$A$73:$G$75,6,TRUE)), (IF(6-$F$18=3, (VLOOKUP(3,Tablas!$A$73:$G$75,6,TRUE)), (IF(6-$F$18=4, (VLOOKUP(3,Tablas!$A$73:$G$75,6,TRUE)), (VLOOKUP(3,Tablas!$A$73:$G$75,6,TRUE)))))))))))), (IF($F$16>6,(IF(7-$F$18=0, (VLOOKUP(3,Tablas!$A$73:$G$75,6,TRUE)), (IF(7-$F$18=1, (VLOOKUP(3,Tablas!$A$73:$G$75,6,TRUE)), (IF(7-$F$18=2, (VLOOKUP(3,Tablas!$A$73:$G$75,6,TRUE)), (IF(7-$F$18=3, (VLOOKUP(3,Tablas!$A$73:$G$75,6,TRUE)), (IF(7-$F$18=4, (VLOOKUP(3,Tablas!$A$73:$G$75,6,TRUE)), (VLOOKUP(3,Tablas!$A$73:$G$75,6,TRUE)))))))))))), (IF($F$16=3,(IF(3-$F$18=0,0, (IF(3-$F$18=1,(VLOOKUP(1,Tablas!$A$73:$G$75,6,TRUE)), (IF(3-$F$18=2, (VLOOKUP(2,Tablas!$A$73:$G$75,6,TRUE)), (VLOOKUP(3,Tablas!$A$73:$G$75,6,TRUE)))))))), (IF($F$16=2,(IF(2-$F$18=0, 0, (IF(2-$F$18=1,(VLOOKUP(1,Tablas!$A$73:$G$75,6,TRUE)), (IF(2-$F$18=2, (VLOOKUP(2,Tablas!$A$73:$G$75,6,TRUE)), 0)))))), (IF($F$16=1,(IF(1-$F$18=0, 0, (IF(1-$F$18=1,(VLOOKUP(1,Tablas!$A$73:$G$75,6,TRUE)),0)))),0))))))))))))))))))) -> 2275.45 | K29: =IF($F$14=1, (IF($F$16=0, 0, (IF($F$18>$F$16, (VLOOKUP($F$16,Tablas!$A$73:$G$75,7,TRUE)), (IF($F$16>4,(IF($F$18=0, (VLOOKUP(3,Tablas!$A$73:$G$75,7,TRUE)), (IF($F$18=1, (VLOOKUP(3,Tablas!$A$73:$G$75,7,TRUE)), (IF($F$18=2, (VLOOKUP(3,Tablas!$A$73:$G$75,7,TRUE)), (VLOOKUP(3,Tablas!$A$73:$G$75,7,TRUE)))))))), (IF($F$16=4,(IF(4-$F$18=0,(VLOOKUP(2,Tablas!$A$73:$G$75,7,TRUE)), (IF(4-$F$18=1,(VLOOKUP(2,Tablas!$A$73:$G$75,7,TRUE)), (IF(4-$F$18=2, (VLOOKUP(2,Tablas!$A$73:$G$75,7,TRUE)), (VLOOKUP(3,Tablas!$A$73:$G$75,7,TRUE)))))))), (IF($F$16=3,(IF(3-$F$18=0,(VLOOKUP(1,Tablas!$A$73:$G$75,7,TRUE)), (IF(3-$F$18=1,(VLOOKUP(1,Tablas!$A$73:$G$75,7,TRUE)), (IF(3-$F$18=2, (VLOOKUP(2,Tablas!$A$73:$G$75,7,TRUE)), (VLOOKUP(3,Tablas!$A$73:$G$75,7,TRUE)))))))), (IF($F$16=2,(IF(2-$F$18=0, 0, (IF(2-$F$18=1,(VLOOKUP(1,Tablas!$A$73:$G$75,7,TRUE)), (IF(2-$F$18=2, (VLOOKUP(2,Tablas!$A$73:$G$75,7,TRUE)), 0)))))), (IF($F$16=1,(IF(1-$F$18=0, 0, (IF(1-$F$18=1,(VLOOKUP(1,Tablas!$A$73:$G$75,7,TRUE)),0)))),0)))))))))))))), (IF($F$16=0, 0, (IF($F$18>$F$16, (VLOOKUP($F$16,Tablas!$A$73:$G$75,7,TRUE)), (IF($F$16=4,(IF(4-$F$18=0, 0, (IF(4-$F$18=1, (VLOOKUP(1,Tablas!$A$73:$G$75,7,TRUE)), (IF(4-$F$18=2, (VLOOKUP(2,Tablas!$A$73:$G$75,7,TRUE)), (IF(4-$F$18=3, (VLOOKUP(3,Tablas!$A$73:$G$75,7,TRUE)), (IF(4-$F$18=4, (VLOOKUP(3,Tablas!$A$73:$G$75,7,TRUE)), 0)))))))))), (IF($F$16=5,(IF(5-$F$18=0, (VLOOKUP(1,Tablas!$A$73:$G$75,7,TRUE)), (IF(5-$F$18=1, (VLOOKUP(1,Tablas!$A$73:$G$75,7,TRUE)), (IF(5-$F$18=2, (VLOOKUP(2,Tablas!$A$73:$G$75,7,TRUE)), (IF(5-$F$18=3, (VLOOKUP(3,Tablas!$A$73:$G$75,7,TRUE)), (IF(5-$F$18=4, (VLOOKUP(3,Tablas!$A$73:$G$75,7,TRUE)), (VLOOKUP(3,Tablas!$A$73:$G$75,7,TRUE)))))))))))), (IF($F$16=6,(IF(6-$F$18=0, (VLOOKUP(2,Tablas!$A$73:$G$75,7,TRUE)), (IF(6-$F$18=1, (VLOOKUP(2,Tablas!$A$73:$G$75,7,TRUE)), (IF(6-$F$18=2, (VLOOKUP(2,Tablas!$A$73:$G$75,7,TRUE)), (IF(6-$F$18=3, (VLOOKUP(3,Tablas!$A$73:$G$75,7,TRUE)), (IF(6-$F$18=4, (VLOOKUP(3,Tablas!$A$73:$G$75,7,TRUE)), (VLOOKUP(3,Tablas!$A$73:$G$75,7,TRUE)))))))))))), (IF($F$16>6,(IF(7-$F$18=0, (VLOOKUP(3,Tablas!$A$73:$G$75,7,TRUE)), (IF(7-$F$18=1, (VLOOKUP(3,Tablas!$A$73:$G$75,7,TRUE)), (IF(7-$F$18=2, (VLOOKUP(3,Tablas!$A$73:$G$75,7,TRUE)), (IF(7-$F$18=3, (VLOOKUP(3,Tablas!$A$73:$G$75,7,TRUE)), (IF(7-$F$18=4, (VLOOKUP(3,Tablas!$A$73:$G$75,7,TRUE)), (VLOOKUP(3,Tablas!$A$73:$G$75,7,TRUE)))))))))))), (IF($F$16=3,(IF(3-$F$18=0,0, (IF(3-$F$18=1,(VLOOKUP(1,Tablas!$A$73:$G$75,7,TRUE)), (IF(3-$F$18=2, (VLOOKUP(2,Tablas!$A$73:$G$75,7,TRUE)), (VLOOKUP(3,Tablas!$A$73:$G$75,7,TRUE)))))))), (IF($F$16=2,(IF(2-$F$18=0, 0, (IF(2-$F$18=1,(VLOOKUP(1,Tablas!$A$73:$G$75,7,TRUE)), (IF(2-$F$18=2, (VLOOKUP(2,Tablas!$A$73:$G$75,7,TRUE)), 0)))))), (IF($F$16=1,(IF(1-$F$18=0, 0, (IF(1-$F$18=1,(VLOOKUP(1,Tablas!$A$73:$G$75,7,TRUE)),0)))),0))))))))))))))))))) -> 1697.45
E30: Total de Prima neta | G30: =SUM(G27:G29) -> 28501.55 | H30: =SUM(H27:H29) -> 24998.7 | I30: 19897.85 | J30: =SUM(J27:J29) -> 17264.55 | K30: 12892.15
E31: Tarifa administrativa anual | G31: 0 | H31: 0 | I31: 0 | J31: 0 | K31: 0
E32: Contribución 3.5% Superintendencia de Bancos Contribución 0.5% Seguro Social Campesino | G32: =(G30)*4% -> 1140.062 | H32: =(H30)*4% -> 999.948 | I32: =(I30)*4% -> 795.914 | J32: =(J30)*4% -> 690.582 | K32: =(K30)*4% -> 515.686
E33: TOTAL ANUAL | G33: =SUM(G30:G32) -> 29641.612 | H33: =SUM(H30:H32) -> 25998.648 | I33: =SUM(I30:I32) -> 20693.764 | J33: =SUM(J30:J32) -> 17955.132 | K33: =SUM(K30:K32) -> 13407.836
E34: Ahorros en tarifas de prima para niños | G34: =IF($F$14=1,IF($F$16=0,0,IF($F$18=0,0,IF($F$18=1,(VLOOKUP(1,Tablas!$A$73:$G$75,3,TRUE)),(VLOOKUP(2,Tablas!$A$73:$G$75,3,TRUE))))), IF($F$16=0,0,IF($F$18=0,0,IF($F$18=1,(VLOOKUP(1,Tablas!$A$73:$G$75,3,TRUE)),IF($F$18=2,(VLOOKUP(2,Tablas!$A$73:$G$75,3,TRUE)), (VLOOKUP(3,Tablas!$A$73:$G$75,3,TRUE))))))) -> 3667.75 | H34: =IF($F$14=1,IF($F$16=0,0,IF($F$18=0,0,IF($F$18=1,(VLOOKUP(1,Tablas!$A$73:$G$75,4,TRUE)),(VLOOKUP(2,Tablas!$A$73:$G$75,4,TRUE))))), IF($F$16=0,0,IF($F$18=0,0,IF($F$18=1,(VLOOKUP(1,Tablas!$A$73:$G$75,4,TRUE)),IF($F$18=2,(VLOOKUP(2,Tablas!$A$73:$G$75,4,TRUE)), (VLOOKUP(3,Tablas!$A$73:$G$75,4,TRUE))))))) -> 3218.1 | I34: =IF($F$14=1,IF($F$16=0,0,IF($F$18=0,0,IF($F$18=1,(VLOOKUP(1,Tablas!$A$73:$G$75,5,TRUE)),(VLOOKUP(2,Tablas!$A$73:$G$75,5,TRUE))))), IF($F$16=0,0,IF($F$18=0,0,IF($F$18=1,(VLOOKUP(1,Tablas!$A$73:$G$75,5,TRUE)),IF($F$18=2,(VLOOKUP(2,Tablas!$A$73:$G$75,5,TRUE)), (VLOOKUP(3,Tablas!$A$73:$G$75,5,TRUE))))))) -> 2623.1 | J34: =IF($F$14=1,IF($F$16=0,0,IF($F$18=0,0,IF($F$18=1,(VLOOKUP(1,Tablas!$A$73:$G$75,6,TRUE)),(VLOOKUP(2,Tablas!$A$73:$G$75,6,TRUE))))), IF($F$16=0,0,IF($F$18=0,0,IF($F$18=1,(VLOOKUP(1,Tablas!$A$73:$G$75,6,TRUE)),IF($F$18=2,(VLOOKUP(2,Tablas!$A$73:$G$75,6,TRUE)), (VLOOKUP(3,Tablas!$A$73:$G$75,6,TRUE))))))) -> 2275.45 | K34: =IF($F$14=1,IF($F$16=0,0,IF($F$18=0,0,IF($F$18=1,(VLOOKUP(1,Tablas!$A$73:$G$75,5,TRUE)),(VLOOKUP(2,Tablas!$A$73:$G$75,5,TRUE))))), IF($F$16=0,0,IF($F$18=0,0,IF($F$18=1,(VLOOKUP(1,Tablas!$A$73:$G$75,5,TRUE)),IF($F$18=2,(VLOOKUP(2,Tablas!$A$73:$G$75,5,TRUE)), (VLOOKUP(3,Tablas!$A$73:$G$75,5,TRUE))))))) -> 2623.1
E36: Tarifas Semianuales
E37: Prima para Asegurado Titular | G37: =VLOOKUP($I$14,Tablas!$A$455:$G$521,3,TRUE)+75 -> 5543.169 | H37: =VLOOKUP($I$14,Tablas!$A$455:$G$521,4,TRUE)+75 -> 4868.7705 | I37: =VLOOKUP($I$14,Tablas!$A$455:$G$521,5,TRUE)+75 -> 3903.349 | J37: =VLOOKUP($I$14,Tablas!$A$455:$G$521,6,TRUE)+75 -> 3394.7345 | K37: =VLOOKUP($I$14,Tablas!$A$455:$G$521,7,TRUE)+75 -> 2550.047
E38: Prima para conyuge | G38: =IF($F$14=1,0,(VLOOKUP($I$16,Tablas!$A$455:$G$521,3,TRUE))) -> 7653.995 | H38: =IF($F$14=1,0,(VLOOKUP($I$16,Tablas!$A$455:$G$521,4,TRUE))) -> 6710.1975 | I38: =IF($F$14=1,0,(VLOOKUP($I$16,Tablas!$A$455:$G$521,5,TRUE))) -> 5287.5185 | J38: =IF($F$14=1,0,(VLOOKUP($I$16,Tablas!$A$455:$G$521,6,TRUE))) -> 4584.7385 | K38: =IF($F$14=1,0,(VLOOKUP($I$16,Tablas!$A$455:$G$521,7,TRUE))) -> 3418.394
E39: Prima para hijo (s) | G39: =IF($F$14=1, (IF($F$16=0, 0, (IF($F$18>$F$16, (VLOOKUP($F$16,Tablas!$A$522:$G$524,3,TRUE)), (IF($F$16>4,(IF($F$18=0, (VLOOKUP(3,Tablas!$A$522:$G$524,3,TRUE)), (IF($F$18=1, (VLOOKUP(3,Tablas!$A$522:$G$524,3,TRUE)), (IF($F$18=2, (VLOOKUP(3,Tablas!$A$522:$G$524,3,TRUE)), (VLOOKUP(3,Tablas!$A$522:$G$524,3,TRUE)))))))), (IF($F$16=4,(IF(4-$F$18=0,(VLOOKUP(2,Tablas!$A$522:$G$524,3,TRUE)), (IF(4-$F$18=1,(VLOOKUP(2,Tablas!$A$522:$G$524,3,TRUE)), (IF(4-$F$18=2, (VLOOKUP(2,Tablas!$A$522:$G$524,3,TRUE)), (VLOOKUP(3,Tablas!$A$522:$G$524,3,TRUE)))))))), (IF($F$16=3,(IF(3-$F$18=0,(VLOOKUP(1,Tablas!$A$522:$G$524,3,TRUE)), (IF(3-$F$18=1,(VLOOKUP(1,Tablas!$A$522:$G$524,3,TRUE)), (IF(3-$F$18=2, (VLOOKUP(2,Tablas!$A$522:$G$524,3,TRUE)), (VLOOKUP(3,Tablas!$A$522:$G$524,3,TRUE)))))))), (IF($F$16=2,(IF(2-$F$18=0, 0, (IF(2-$F$18=1,(VLOOKUP(1,Tablas!$A$522:$G$524,3,TRUE)), (IF(2-$F$18=2, (VLOOKUP(2,Tablas!$A$522:$G$524,3,TRUE)), 0)))))), (IF($F$16=1,(IF(1-$F$18=0, 0, (IF(1-$F$18=1,(VLOOKUP(1,Tablas!$A$522:$G$524,3,TRUE)),0)))),0)))))))))))))), (IF($F$16=0, 0, (IF($F$18>$F$16, (VLOOKUP($F$16,Tablas!$A$522:$G$524,3,TRUE)), (IF($F$16=4,(IF(4-$F$18=0, 0, (IF(4-$F$18=1, (VLOOKUP(1,Tablas!$A$522:$G$524,3,TRUE)), (IF(4-$F$18=2, (VLOOKUP(2,Tablas!$A$522:$G$524,3,TRUE)), (IF(4-$F$18=3, (VLOOKUP(3,Tablas!$A$522:$G$524,3,TRUE)), (IF(4-$F$18=4, (VLOOKUP(3,Tablas!$A$522:$G$524,3,TRUE)), 0)))))))))), (IF($F$16=5,(IF(5-$F$18=0, (VLOOKUP(1,Tablas!$A$522:$G$524,3,TRUE)), (IF(5-$F$18=1, (VLOOKUP(1,Tablas!$A$522:$G$524,3,TRUE)), (IF(5-$F$18=2, (VLOOKUP(2,Tablas!$A$522:$G$524,3,TRUE)), (IF(5-$F$18=3, (VLOOKUP(3,Tablas!$A$522:$G$524,3,TRUE)), (IF(5-$F$18=4, (VLOOKUP(3,Tablas!$A$522:$G$524,3,TRUE)), (VLOOKUP(3,Tablas!$A$522:$G$524,3,TRUE)))))))))))), (IF($F$16=6,(IF(6-$F$18=0, (VLOOKUP(2,Tablas!$A$522:$G$524,3,TRUE)), (IF(6-$F$18=1, (VLOOKUP(2,Tablas!$A$522:$G$524,3,TRUE)), (IF(6-$F$18=2, (VLOOKUP(2,Tablas!$A$522:$G$524,3,TRUE)), (IF(6-$F$18=3, (VLOOKUP(3,Tablas!$A$522:$G$524,3,TRUE)), (IF(6-$F$18=4, (VLOOKUP(3,Tablas!$A$522:$G$524,3,TRUE)), (VLOOKUP(3,Tablas!$A$522:$G$524,3,TRUE)))))))))))), (IF($F$16>6,(IF(7-$F$18=0, (VLOOKUP(3,Tablas!$A$522:$G$524,3,TRUE)), (IF(7-$F$18=1, (VLOOKUP(3,Tablas!$A$522:$G$524,3,TRUE)), (IF(7-$F$18=2, (VLOOKUP(3,Tablas!$A$522:$G$524,3,TRUE)), (IF(7-$F$18=3, (VLOOKUP(3,Tablas!$A$522:$G$524,3,TRUE)), (IF(7-$F$18=4, (VLOOKUP(3,Tablas!$A$522:$G$524,3,TRUE)), (VLOOKUP(3,Tablas!$A$522:$G$524,3,TRUE)))))))))))), (IF($F$16=3,(IF(3-$F$18=0,0, (IF(3-$F$18=1,(VLOOKUP(1,Tablas!$A$522:$G$524,3,TRUE)), (IF(3-$F$18=2, (VLOOKUP(2,Tablas!$A$522:$G$524,3,TRUE)), (VLOOKUP(3,Tablas!$A$522:$G$524,3,TRUE)))))))), (IF($F$16=2,(IF(2-$F$18=0, 0, (IF(2-$F$18=1,(VLOOKUP(1,Tablas!$A$522:$G$524,3,TRUE)), (IF(2-$F$18=2, (VLOOKUP(2,Tablas!$A$522:$G$524,3,TRUE)), 0)))))), (IF($F$16=1,(IF(1-$F$18=0, 0, (IF(1-$F$18=1,(VLOOKUP(1,Tablas!$A$522:$G$524,3,TRUE)),0)))),0))))))))))))))))))) -> 1943.9075 | H39: =IF($F$14=1, (IF($F$16=0, 0, (IF($F$18>$F$16, (VLOOKUP($F$16,Tablas!$A$522:$G$524,4,TRUE)), (IF($F$16>4,(IF($F$18=0, (VLOOKUP(3,Tablas!$A$522:$G$524,4,TRUE)), (IF($F$18=1, (VLOOKUP(3,Tablas!$A$522:$G$524,4,TRUE)), (IF($F$18=2, (VLOOKUP(3,Tablas!$A$522:$G$524,4,TRUE)), (VLOOKUP(3,Tablas!$A$522:$G$524,4,TRUE)))))))), (IF($F$16=4,(IF(4-$F$18=0,(VLOOKUP(2,Tablas!$A$522:$G$524,4,TRUE)), (IF(4-$F$18=1,(VLOOKUP(2,Tablas!$A$522:$G$524,4,TRUE)), (IF(4-$F$18=2, (VLOOKUP(2,Tablas!$A$522:$G$524,4,TRUE)), (VLOOKUP(3,Tablas!$A$522:$G$524,4,TRUE)))))))), (IF($F$16=3,(IF(3-$F$18=0,(VLOOKUP(1,Tablas!$A$522:$G$524,4,TRUE)), (IF(3-$F$18=1,(VLOOKUP(1,Tablas!$A$522:$G$524,4,TRUE)), (IF(3-$F$18=2, (VLOOKUP(2,Tablas!$A$522:$G$524,4,TRUE)), (VLOOKUP(3,Tablas!$A$522:$G$524,4,TRUE)))))))), (IF($F$16=2,(IF(2-$F$18=0, 0, (IF(2-$F$18=1,(VLOOKUP(1,Tablas!$A$522:$G$524,4,TRUE)), (IF(2-$F$18=2, (VLOOKUP(2,Tablas!$A$522:$G$524,4,TRUE)), 0)))))), (IF($F$16=1,(IF(1-$F$18=0, 0, (IF(1-$F$18=1,(VLOOKUP(1,Tablas!$A$522:$G$524,4,TRUE)),0)))),0)))))))))))))), (IF($F$16=0, 0, (IF($F$18>$F$16, (VLOOKUP($F$16,Tablas!$A$522:$G$524,4,TRUE)), (IF($F$16=4,(IF(4-$F$18=0, 0, (IF(4-$F$18=1, (VLOOKUP(1,Tablas!$A$522:$G$524,4,TRUE)), (IF(4-$F$18=2, (VLOOKUP(2,Tablas!$A$522:$G$524,4,TRUE)), (IF(4-$F$18=3, (VLOOKUP(3,Tablas!$A$522:$G$524,4,TRUE)), (IF(4-$F$18=4, (VLOOKUP(3,Tablas!$A$522:$G$524,4,TRUE)), 0)))))))))), (IF($F$16=5,(IF(5-$F$18=0, (VLOOKUP(1,Tablas!$A$522:$G$524,4,TRUE)), (IF(5-$F$18=1, (VLOOKUP(1,Tablas!$A$522:$G$524,4,TRUE)), (IF(5-$F$18=2, (VLOOKUP(2,Tablas!$A$522:$G$524,4,TRUE)), (IF(5-$F$18=3, (VLOOKUP(3,Tablas!$A$522:$G$524,4,TRUE)), (IF(5-$F$18=4, (VLOOKUP(3,Tablas!$A$522:$G$524,4,TRUE)), (VLOOKUP(3,Tablas!$A$522:$G$524,4,TRUE)))))))))))), (IF($F$16=6,(IF(6-$F$18=0, (VLOOKUP(2,Tablas!$A$522:$G$524,4,TRUE)), (IF(6-$F$18=1, (VLOOKUP(2,Tablas!$A$522:$G$524,4,TRUE)), (IF(6-$F$18=2, (VLOOKUP(2,Tablas!$A$522:$G$524,4,TRUE)), (IF(6-$F$18=3, (VLOOKUP(3,Tablas!$A$522:$G$524,4,TRUE)), (IF(6-$F$18=4, (VLOOKUP(3,Tablas!$A$522:$G$524,4,TRUE)), (VLOOKUP(3,Tablas!$A$522:$G$524,4,TRUE)))))))))))), (IF($F$16>6,(IF(7-$F$18=0, (VLOOKUP(3,Tablas!$A$522:$G$524,4,TRUE)), (IF(7-$F$18=1, (VLOOKUP(3,Tablas!$A$522:$G$524,4,TRUE)), (IF(7-$F$18=2, (VLOOKUP(3,Tablas!$A$522:$G$524,4,TRUE)), (IF(7-$F$18=3, (VLOOKUP(3,Tablas!$A$522:$G$524,4,TRUE)), (IF(7-$F$18=4, (VLOOKUP(3,Tablas!$A$522:$G$524,4,TRUE)), (VLOOKUP(3,Tablas!$A$522:$G$524,4,TRUE)))))))))))), (IF($F$16=3,(IF(3-$F$18=0,0, (IF(3-$F$18=1,(VLOOKUP(1,Tablas!$A$522:$G$524,4,TRUE)), (IF(3-$F$18=2, (VLOOKUP(2,Tablas!$A$522:$G$524,4,TRUE)), (VLOOKUP(3,Tablas!$A$522:$G$524,4,TRUE)))))))), (IF($F$16=2,(IF(2-$F$18=0, 0, (IF(2-$F$18=1,(VLOOKUP(1,Tablas!$A$522:$G$524,4,TRUE)), (IF(2-$F$18=2, (VLOOKUP(2,Tablas!$A$522:$G$524,4,TRUE)), 0)))))), (IF($F$16=1,(IF(1-$F$18=0, 0, (IF(1-$F$18=1,(VLOOKUP(1,Tablas!$A$522:$G$524,4,TRUE)),0)))),0))))))))))))))))))) -> 1705.593 | I39: =IF($F$14=1, (IF($F$16=0, 0, (IF($F$18>$F$16, (VLOOKUP($F$16,Tablas!$A$522:$G$524,5,TRUE)), (IF($F$16>4,(IF($F$18=0, (VLOOKUP(3,Tablas!$A$522:$G$524,5,TRUE)), (IF($F$18=1, (VLOOKUP(3,Tablas!$A$522:$G$524,5,TRUE)), (IF($F$18=2, (VLOOKUP(3,Tablas!$A$522:$G$524,5,TRUE)), (VLOOKUP(3,Tablas!$A$522:$G$524,5,TRUE)))))))), (IF($F$16=4,(IF(4-$F$18=0,(VLOOKUP(2,Tablas!$A$522:$G$524,5,TRUE)), (IF(4-$F$18=1,(VLOOKUP(2,Tablas!$A$522:$G$524,5,TRUE)), (IF(4-$F$18=2, (VLOOKUP(2,Tablas!$A$522:$G$524,5,TRUE)), (VLOOKUP(3,Tablas!$A$522:$G$524,5,TRUE)))))))), (IF($F$16=3,(IF(3-$F$18=0,(VLOOKUP(1,Tablas!$A$522:$G$524,5,TRUE)), (IF(3-$F$18=1,(VLOOKUP(1,Tablas!$A$522:$G$524,5,TRUE)), (IF(3-$F$18=2, (VLOOKUP(2,Tablas!$A$522:$G$524,5,TRUE)), (VLOOKUP(3,Tablas!$A$522:$G$524,5,TRUE)))))))), (IF($F$16=2,(IF(2-$F$18=0, 0, (IF(2-$F$18=1,(VLOOKUP(1,Tablas!$A$522:$G$524,5,TRUE)), (IF(2-$F$18=2, (VLOOKUP(2,Tablas!$A$522:$G$524,5,TRUE)), 0)))))), (IF($F$16=1,(IF(1-$F$18=0, 0, (IF(1-$F$18=1,(VLOOKUP(1,Tablas!$A$522:$G$524,5,TRUE)),0)))),0)))))))))))))), (IF($F$16=0, 0, (IF($F$18>$F$16, (VLOOKUP($F$16,Tablas!$A$522:$G$524,5,TRUE)), (IF($F$16=4,(IF(4-$F$18=0, 0, (IF(4-$F$18=1, (VLOOKUP(1,Tablas!$A$522:$G$524,5,TRUE)), (IF(4-$F$18=2, (VLOOKUP(2,Tablas!$A$522:$G$524,5,TRUE)), (IF(4-$F$18=3, (VLOOKUP(3,Tablas!$A$522:$G$524,5,TRUE)), (IF(4-$F$18=4, (VLOOKUP(3,Tablas!$A$522:$G$524,5,TRUE)), 0)))))))))), (IF($F$16=5,(IF(5-$F$18=0, (VLOOKUP(1,Tablas!$A$522:$G$524,5,TRUE)), (IF(5-$F$18=1, (VLOOKUP(1,Tablas!$A$522:$G$524,5,TRUE)), (IF(5-$F$18=2, (VLOOKUP(2,Tablas!$A$522:$G$524,5,TRUE)), (IF(5-$F$18=3, (VLOOKUP(3,Tablas!$A$522:$G$524,5,TRUE)), (IF(5-$F$18=4, (VLOOKUP(3,Tablas!$A$522:$G$524,5,TRUE)), (VLOOKUP(3,Tablas!$A$522:$G$524,5,TRUE)))))))))))), (IF($F$16=6,(IF(6-$F$18=0, (VLOOKUP(2,Tablas!$A$522:$G$524,5,TRUE)), (IF(6-$F$18=1, (VLOOKUP(2,Tablas!$A$522:$G$524,5,TRUE)), (IF(6-$F$18=2, (VLOOKUP(2,Tablas!$A$522:$G$524,5,TRUE)), (IF(6-$F$18=3, (VLOOKUP(3,Tablas!$A$522:$G$524,5,TRUE)), (IF(6-$F$18=4, (VLOOKUP(3,Tablas!$A$522:$G$524,5,TRUE)), (VLOOKUP(3,Tablas!$A$522:$G$524,5,TRUE)))))))))))), (IF($F$16>6,(IF(7-$F$18=0, (VLOOKUP(3,Tablas!$A$522:$G$524,5,TRUE)), (IF(7-$F$18=1, (VLOOKUP(3,Tablas!$A$522:$G$524,5,TRUE)), (IF(7-$F$18=2, (VLOOKUP(3,Tablas!$A$522:$G$524,5,TRUE)), (IF(7-$F$18=3, (VLOOKUP(3,Tablas!$A$522:$G$524,5,TRUE)), (IF(7-$F$18=4, (VLOOKUP(3,Tablas!$A$522:$G$524,5,TRUE)), (VLOOKUP(3,Tablas!$A$522:$G$524,5,TRUE)))))))))))), (IF($F$16=3,(IF(3-$F$18=0,0, (IF(3-$F$18=1,(VLOOKUP(1,Tablas!$A$522:$G$524,5,TRUE)), (IF(3-$F$18=2, (VLOOKUP(2,Tablas!$A$522:$G$524,5,TRUE)), (VLOOKUP(3,Tablas!$A$522:$G$524,5,TRUE)))))))), (IF($F$16=2,(IF(2-$F$18=0, 0, (IF(2-$F$18=1,(VLOOKUP(1,Tablas!$A$522:$G$524,5,TRUE)), (IF(2-$F$18=2, (VLOOKUP(2,Tablas!$A$522:$G$524,5,TRUE)), 0)))))), (IF($F$16=1,(IF(1-$F$18=0, 0, (IF(1-$F$18=1,(VLOOKUP(1,Tablas!$A$522:$G$524,5,TRUE)),0)))),0))))))))))))))))))) -> 1390.243 | J39: =IF($F$14=1, (IF($F$16=0, 0, (IF($F$18>$F$16, (VLOOKUP($F$16,Tablas!$A$522:$G$524,6,TRUE)), (IF($F$16>4,(IF($F$18=0, (VLOOKUP(3,Tablas!$A$522:$G$524,6,TRUE)), (IF($F$18=1, (VLOOKUP(3,Tablas!$A$522:$G$524,6,TRUE)), (IF($F$18=2, (VLOOKUP(3,Tablas!$A$522:$G$524,6,TRUE)), (VLOOKUP(3,Tablas!$A$522:$G$524,6,TRUE)))))))), (IF($F$16=4,(IF(4-$F$18=0,(VLOOKUP(2,Tablas!$A$522:$G$524,6,TRUE)), (IF(4-$F$18=1,(VLOOKUP(2,Tablas!$A$522:$G$524,6,TRUE)), (IF(4-$F$18=2, (VLOOKUP(2,Tablas!$A$522:$G$524,6,TRUE)), (VLOOKUP(3,Tablas!$A$522:$G$524,6,TRUE)))))))), (IF($F$16=3,(IF(3-$F$18=0,(VLOOKUP(1,Tablas!$A$522:$G$524,6,TRUE)), (IF(3-$F$18=1,(VLOOKUP(1,Tablas!$A$522:$G$524,6,TRUE)), (IF(3-$F$18=2, (VLOOKUP(2,Tablas!$A$522:$G$524,6,TRUE)), (VLOOKUP(3,Tablas!$A$522:$G$524,6,TRUE)))))))), (IF($F$16=2,(IF(2-$F$18=0, 0, (IF(2-$F$18=1,(VLOOKUP(1,Tablas!$A$522:$G$524,6,TRUE)), (IF(2-$F$18=2, (VLOOKUP(2,Tablas!$A$522:$G$524,6,TRUE)), 0)))))), (IF($F$16=1,(IF(1-$F$18=0, 0, (IF(1-$F$18=1,(VLOOKUP(1,Tablas!$A$522:$G$524,6,TRUE)),0)))),0)))))))))))))), (IF($F$16=0, 0, (IF($F$18>$F$16, (VLOOKUP($F$16,Tablas!$A$522:$G$524,6,TRUE)), (IF($F$16=4,(IF(4-$F$18=0, 0, (IF(4-$F$18=1, (VLOOKUP(1,Tablas!$A$522:$G$524,6,TRUE)), (IF(4-$F$18=2, (VLOOKUP(2,Tablas!$A$522:$G$524,6,TRUE)), (IF(4-$F$18=3, (VLOOKUP(3,Tablas!$A$522:$G$524,6,TRUE)), (IF(4-$F$18=4, (VLOOKUP(3,Tablas!$A$522:$G$524,6,TRUE)), 0)))))))))), (IF($F$16=5,(IF(5-$F$18=0, (VLOOKUP(1,Tablas!$A$522:$G$524,6,TRUE)), (IF(5-$F$18=1, (VLOOKUP(1,Tablas!$A$522:$G$524,6,TRUE)), (IF(5-$F$18=2, (VLOOKUP(2,Tablas!$A$522:$G$524,6,TRUE)), (IF(5-$F$18=3, (VLOOKUP(3,Tablas!$A$522:$G$524,6,TRUE)), (IF(5-$F$18=4, (VLOOKUP(3,Tablas!$A$522:$G$524,6,TRUE)), (VLOOKUP(3,Tablas!$A$522:$G$524,6,TRUE)))))))))))), (IF($F$16=6,(IF(6-$F$18=0, (VLOOKUP(2,Tablas!$A$522:$G$524,6,TRUE)), (IF(6-$F$18=1, (VLOOKUP(2,Tablas!$A$522:$G$524,6,TRUE)), (IF(6-$F$18=2, (VLOOKUP(2,Tablas!$A$522:$G$524,6,TRUE)), (IF(6-$F$18=3, (VLOOKUP(3,Tablas!$A$522:$G$524,6,TRUE)), (IF(6-$F$18=4, (VLOOKUP(3,Tablas!$A$522:$G$524,6,TRUE)), (VLOOKUP(3,Tablas!$A$522:$G$524,6,TRUE)))))))))))), (IF($F$16>6,(IF(7-$F$18=0, (VLOOKUP(3,Tablas!$A$522:$G$524,6,TRUE)), (IF(7-$F$18=1, (VLOOKUP(3,Tablas!$A$522:$G$524,6,TRUE)), (IF(7-$F$18=2, (VLOOKUP(3,Tablas!$A$522:$G$524,6,TRUE)), (IF(7-$F$18=3, (VLOOKUP(3,Tablas!$A$522:$G$524,6,TRUE)), (IF(7-$F$18=4, (VLOOKUP(3,Tablas!$A$522:$G$524,6,TRUE)), (VLOOKUP(3,Tablas!$A$522:$G$524,6,TRUE)))))))))))), (IF($F$16=3,(IF(3-$F$18=0,0, (IF(3-$F$18=1,(VLOOKUP(1,Tablas!$A$522:$G$524,6,TRUE)), (IF(3-$F$18=2, (VLOOKUP(2,Tablas!$A$522:$G$524,6,TRUE)), (VLOOKUP(3,Tablas!$A$522:$G$524,6,TRUE)))))))), (IF($F$16=2,(IF(2-$F$18=0, 0, (IF(2-$F$18=1,(VLOOKUP(1,Tablas!$A$522:$G$524,6,TRUE)), (IF(2-$F$18=2, (VLOOKUP(2,Tablas!$A$522:$G$524,6,TRUE)), 0)))))), (IF($F$16=1,(IF(1-$F$18=0, 0, (IF(1-$F$18=1,(VLOOKUP(1,Tablas!$A$522:$G$524,6,TRUE)),0)))),0))))))))))))))))))) -> 1205.9885 | K39: =IF($F$14=1, (IF($F$16=0, 0, (IF($F$18>$F$16, (VLOOKUP($F$16,Tablas!$A$522:$G$524,7,TRUE)), (IF($F$16>4,(IF($F$18=0, (VLOOKUP(3,Tablas!$A$522:$G$524,7,TRUE)), (IF($F$18=1, (VLOOKUP(3,Tablas!$A$522:$G$524,7,TRUE)), (IF($F$18=2, (VLOOKUP(3,Tablas!$A$522:$G$524,7,TRUE)), (VLOOKUP(3,Tablas!$A$522:$G$524,7,TRUE)))))))), (IF($F$16=4,(IF(4-$F$18=0,(VLOOKUP(2,Tablas!$A$522:$G$524,7,TRUE)), (IF(4-$F$18=1,(VLOOKUP(2,Tablas!$A$522:$G$524,7,TRUE)), (IF(4-$F$18=2, (VLOOKUP(2,Tablas!$A$522:$G$524,7,TRUE)), (VLOOKUP(3,Tablas!$A$522:$G$524,7,TRUE)))))))), (IF($F$16=3,(IF(3-$F$18=0,(VLOOKUP(1,Tablas!$A$522:$G$524,7,TRUE)), (IF(3-$F$18=1,(VLOOKUP(1,Tablas!$A$522:$G$524,7,TRUE)), (IF(3-$F$18=2, (VLOOKUP(2,Tablas!$A$522:$G$524,7,TRUE)), (VLOOKUP(3,Tablas!$A$522:$G$524,7,TRUE)))))))), (IF($F$16=2,(IF(2-$F$18=0, 0, (IF(2-$F$18=1,(VLOOKUP(1,Tablas!$A$522:$G$524,7,TRUE)), (IF(2-$F$18=2, (VLOOKUP(2,Tablas!$A$522:$G$524,7,TRUE)), 0)))))), (IF($F$16=1,(IF(1-$F$18=0, 0, (IF(1-$F$18=1,(VLOOKUP(1,Tablas!$A$522:$G$524,7,TRUE)),0)))),0)))))))))))))), (IF($F$16=0, 0, (IF($F$18>$F$16, (VLOOKUP($F$16,Tablas!$A$522:$G$524,7,TRUE)), (IF($F$16=4,(IF(4-$F$18=0, 0, (IF(4-$F$18=1, (VLOOKUP(1,Tablas!$A$522:$G$524,7,TRUE)), (IF(4-$F$18=2, (VLOOKUP(2,Tablas!$A$522:$G$524,7,TRUE)), (IF(4-$F$18=3, (VLOOKUP(3,Tablas!$A$522:$G$524,7,TRUE)), (IF(4-$F$18=4, (VLOOKUP(3,Tablas!$A$522:$G$524,7,TRUE)), 0)))))))))), (IF($F$16=5,(IF(5-$F$18=0, (VLOOKUP(1,Tablas!$A$522:$G$524,7,TRUE)), (IF(5-$F$18=1, (VLOOKUP(1,Tablas!$A$522:$G$524,7,TRUE)), (IF(5-$F$18=2, (VLOOKUP(2,Tablas!$A$522:$G$524,7,TRUE)), (IF(5-$F$18=3, (VLOOKUP(3,Tablas!$A$522:$G$524,7,TRUE)), (IF(5-$F$18=4, (VLOOKUP(3,Tablas!$A$522:$G$524,7,TRUE)), (VLOOKUP(3,Tablas!$A$522:$G$524,7,TRUE)))))))))))), (IF($F$16=6,(IF(6-$F$18=0, (VLOOKUP(2,Tablas!$A$522:$G$524,7,TRUE)), (IF(6-$F$18=1, (VLOOKUP(2,Tablas!$A$522:$G$524,7,TRUE)), (IF(6-$F$18=2, (VLOOKUP(2,Tablas!$A$522:$G$524,7,TRUE)), (IF(6-$F$18=3, (VLOOKUP(3,Tablas!$A$522:$G$524,7,TRUE)), (IF(6-$F$18=4, (VLOOKUP(3,Tablas!$A$522:$G$524,7,TRUE)), (VLOOKUP(3,Tablas!$A$522:$G$524,7,TRUE)))))))))))), (IF($F$16>6,(IF(7-$F$18=0, (VLOOKUP(3,Tablas!$A$522:$G$524,7,TRUE)), (IF(7-$F$18=1, (VLOOKUP(3,Tablas!$A$522:$G$524,7,TRUE)), (IF(7-$F$18=2, (VLOOKUP(3,Tablas!$A$522:$G$524,7,TRUE)), (IF(7-$F$18=3, (VLOOKUP(3,Tablas!$A$522:$G$524,7,TRUE)), (IF(7-$F$18=4, (VLOOKUP(3,Tablas!$A$522:$G$524,7,TRUE)), (VLOOKUP(3,Tablas!$A$522:$G$524,7,TRUE)))))))))))), (IF($F$16=3,(IF(3-$F$18=0,0, (IF(3-$F$18=1,(VLOOKUP(1,Tablas!$A$522:$G$524,7,TRUE)), (IF(3-$F$18=2, (VLOOKUP(2,Tablas!$A$522:$G$524,7,TRUE)), (VLOOKUP(3,Tablas!$A$522:$G$524,7,TRUE)))))))), (IF($F$16=2,(IF(2-$F$18=0, 0, (IF(2-$F$18=1,(VLOOKUP(1,Tablas!$A$522:$G$524,7,TRUE)), (IF(2-$F$18=2, (VLOOKUP(2,Tablas!$A$522:$G$524,7,TRUE)), 0)))))), (IF($F$16=1,(IF(1-$F$18=0, 0, (IF(1-$F$18=1,(VLOOKUP(1,Tablas!$A$522:$G$524,7,TRUE)),0)))),0))))))))))))))))))) -> 899.6485
E40: Total de Prima neta | G40: =SUM(G37:G39) -> 15141.0715 | H40: =SUM(H37:H39) -> 13284.561 | I40: =SUM(I37:I39) -> 10581.1105 | J40: =SUM(J37:J39) -> 9185.4615 | K40: =SUM(K37:K39) -> 6868.0895
E41: Tarifa administrativa anual | G41: 0 | H41: 0 | I41: 0 | J41: 0 | K41: 0
E42: Contribución 3.5% Superintendencia de Bancos Contribución 0.5% Seguro Social Campesino | G42: =(G40)*4% -> 605.64286 | H42: =(H40)*4% -> 531.38244 | I42: =(I40)*4% -> 423.24442 | J42: =(J40)*4% -> 367.41846 | K42: =(K40)*4% -> 274.72358
E43: TOTAL de primera cuota | G43: =SUM(G40:G42) -> 15746.71436 | H43: =SUM(H40:H42) -> 13815.94344 | I43: =SUM(I40:I42) -> 11004.35492 | J43: =SUM(J40:J42) -> 9552.87996 | K43: =SUM(K40:K42) -> 7142.81308
E44: Costo de segunda cuota | G44: =G40+G42-78 -> 15668.71436 | H44: =H40+H42-78 -> 13737.94344 | I44: =I40+I42-78 -> 10926.35492 | J44: =J40+J42-78 -> 9474.87996 | K44: =K40+K42-78 -> 7064.81308
E45: TOTAL ANUAL | G45: =G43+G44 -> 31415.42872 | H45: =H43+H44 -> 27553.88688 | I45: 21930.70984 | J45: =J43+J44 -> 19027.75992 | K45: 14207.62616
E46: Ahorros en tarifas de prima para niños | G46: =IF($F$14=1,IF($F$16=0,0,IF($F$18=0,0,IF($F$18=1,(VLOOKUP(1,Tablas!$A$522:$G$524,3,TRUE)),(VLOOKUP(2,Tablas!$A$522:$G$524,3,TRUE))))), IF($F$16=0,0,IF($F$18=0,0,IF($F$18=1,(VLOOKUP(1,Tablas!$A$522:$G$524,3,TRUE)),IF($F$18=2,(VLOOKUP(2,Tablas!$A$522:$G$524,3,TRUE)), (VLOOKUP(3,Tablas!$A$522:$G$524,3,TRUE))))))) -> 1943.9075 | H46: =IF($F$14=1,IF($F$16=0,0,IF($F$18=0,0,IF($F$18=1,(VLOOKUP(1,Tablas!$A$522:$G$524,4,TRUE)),(VLOOKUP(2,Tablas!$A$522:$G$524,4,TRUE))))), IF($F$16=0,0,IF($F$18=0,0,IF($F$18=1,(VLOOKUP(1,Tablas!$A$522:$G$524,4,TRUE)),IF($F$18=2,(VLOOKUP(2,Tablas!$A$522:$G$524,4,TRUE)), (VLOOKUP(3,Tablas!$A$522:$G$524,4,TRUE))))))) -> 1705.593 | I46: =IF($F$14=1,IF($F$16=0,0,IF($F$18=0,0,IF($F$18=1,(VLOOKUP(1,Tablas!$A$522:$G$524,5,TRUE)),(VLOOKUP(2,Tablas!$A$522:$G$524,5,TRUE))))), IF($F$16=0,0,IF($F$18=0,0,IF($F$18=1,(VLOOKUP(1,Tablas!$A$522:$G$524,5,TRUE)),IF($F$18=2,(VLOOKUP(2,Tablas!$A$522:$G$524,5,TRUE)), (VLOOKUP(3,Tablas!$A$522:$G$524,5,TRUE))))))) -> 1390.243 | J46: =IF($F$14=1,IF($F$16=0,0,IF($F$18=0,0,IF($F$18=1,(VLOOKUP(1,Tablas!$A$522:$G$524,6,TRUE)),(VLOOKUP(2,Tablas!$A$522:$G$524,6,TRUE))))), IF($F$16=0,0,IF($F$18=0,0,IF($F$18=1,(VLOOKUP(1,Tablas!$A$522:$G$524,6,TRUE)),IF($F$18=2,(VLOOKUP(2,Tablas!$A$522:$G$524,6,TRUE)), (VLOOKUP(3,Tablas!$A$522:$G$524,6,TRUE))))))) -> 1205.9885 | K46: =IF($F$14=1,IF($F$16=0,0,IF($F$18=0,0,IF($F$18=1,(VLOOKUP(1,Tablas!$A$522:$G$524,7,TRUE)),(VLOOKUP(2,Tablas!$A$522:$G$524,7,TRUE))))), IF($F$16=0,0,IF($F$18=0,0,IF($F$18=1,(VLOOKUP(1,Tablas!$A$522:$G$524,7,TRUE)),IF($F$18=2,(VLOOKUP(2,Tablas!$A$522:$G$524,7,TRUE)), (VLOOKUP(3,Tablas!$A$522:$G$524,7,TRUE))))))) -> 899.6485
E48: Tarifas Trimestrales
E49: Prima para Asegurado Titular | G49: =VLOOKUP($I$14,Tablas!$A$680:$G$746,3,TRUE)+75 -> 2912.2575 | H49: =VLOOKUP($I$14,Tablas!$A$680:$G$746,4,TRUE)+75 -> 2562.33375 | I49: =VLOOKUP($I$14,Tablas!$A$680:$G$746,5,TRUE)+75 -> 2061.4075 | J49: =VLOOKUP($I$14,Tablas!$A$680:$G$746,6,TRUE)+75 -> 1797.50375 | K49: =VLOOKUP($I$14,Tablas!$A$680:$G$746,7,TRUE)+75 -> 1359.2225
E50: Prima para conyuge | G50: =IF($F$14=1,0,(VLOOKUP($I$16,Tablas!$A$680:$G$746,3,TRUE))) -> 3971.4125 | H50: =IF($F$14=1,0,(VLOOKUP($I$16,Tablas!$A$680:$G$746,4,TRUE))) -> 3481.70625 | I50: =IF($F$14=1,0,(VLOOKUP($I$16,Tablas!$A$680:$G$746,5,TRUE))) -> 2743.52375 | J50: =IF($F$14=1,0,(VLOOKUP($I$16,Tablas!$A$680:$G$746,6,TRUE))) -> 2378.87375 | K50: =IF($F$14=1,0,(VLOOKUP($I$16,Tablas!$A$680:$G$746,7,TRUE))) -> 1773.695
E51: Prima para hijo (s) | G51: =IF($F$14=1, (IF($F$16=0, 0, (IF($F$18>$F$16, (VLOOKUP($F$16,Tablas!$A$747:$G$749,3,TRUE)), (IF($F$16>4,(IF($F$18=0, (VLOOKUP(3,Tablas!$A$747:$G$749,3,TRUE)), (IF($F$18=1, (VLOOKUP(3,Tablas!$A$747:$G$749,3,TRUE)), (IF($F$18=2, (VLOOKUP(3,Tablas!$A$747:$G$749,3,TRUE)), (VLOOKUP(3,Tablas!$A$747:$G$749,3,TRUE)))))))), (IF($F$16=4,(IF(4-$F$18=0,(VLOOKUP(2,Tablas!$A$747:$G$749,3,TRUE)), (IF(4-$F$18=1,(VLOOKUP(2,Tablas!$A$747:$G$749,3,TRUE)), (IF(4-$F$18=2, (VLOOKUP(2,Tablas!$A$747:$G$749,3,TRUE)), (VLOOKUP(3,Tablas!$A$747:$G$749,3,TRUE)))))))), (IF($F$16=3,(IF(3-$F$18=0,(VLOOKUP(1,Tablas!$A$747:$G$749,3,TRUE)), (IF(3-$F$18=1,(VLOOKUP(1,Tablas!$A$747:$G$749,3,TRUE)), (IF(3-$F$18=2, (VLOOKUP(2,Tablas!$A$747:$G$749,3,TRUE)), (VLOOKUP(3,Tablas!$A$747:$G$749,3,TRUE)))))))), (IF($F$16=2,(IF(2-$F$18=0, 0, (IF(2-$F$18=1,(VLOOKUP(1,Tablas!$A$747:$G$749,3,TRUE)), (IF(2-$F$18=2, (VLOOKUP(2,Tablas!$A$747:$G$749,3,TRUE)), 0)))))), (IF($F$16=1,(IF(1-$F$18=0, 0, (IF(1-$F$18=1,(VLOOKUP(1,Tablas!$A$747:$G$749,3,TRUE)),0)))),0)))))))))))))), (IF($F$16=0, 0, (IF($F$18>$F$16, (VLOOKUP($F$16,Tablas!$A$747:$G$749,3,TRUE)), (IF($F$16=4,(IF(4-$F$18=0, 0, (IF(4-$F$18=1, (VLOOKUP(1,Tablas!$A$747:$G$749,3,TRUE)), (IF(4-$F$18=2, (VLOOKUP(2,Tablas!$A$747:$G$749,3,TRUE)), (IF(4-$F$18=3, (VLOOKUP(3,Tablas!$A$747:$G$749,3,TRUE)), (IF(4-$F$18=4, (VLOOKUP(3,Tablas!$A$747:$G$749,3,TRUE)), 0)))))))))), (IF($F$16=5,(IF(5-$F$18=0, (VLOOKUP(1,Tablas!$A$747:$G$749,3,TRUE)), (IF(5-$F$18=1, (VLOOKUP(1,Tablas!$A$747:$G$749,3,TRUE)), (IF(5-$F$18=2, (VLOOKUP(2,Tablas!$A$747:$G$749,3,TRUE)), (IF(5-$F$18=3, (VLOOKUP(3,Tablas!$A$747:$G$749,3,TRUE)), (IF(5-$F$18=4, (VLOOKUP(3,Tablas!$A$747:$G$749,3,TRUE)), (VLOOKUP(3,Tablas!$A$747:$G$749,3,TRUE)))))))))))), (IF($F$16=6,(IF(6-$F$18=0, (VLOOKUP(2,Tablas!$A$747:$G$749,3,TRUE)), (IF(6-$F$18=1, (VLOOKUP(2,Tablas!$A$747:$G$749,3,TRUE)), (IF(6-$F$18=2, (VLOOKUP(2,Tablas!$A$747:$G$749,3,TRUE)), (IF(6-$F$18=3, (VLOOKUP(3,Tablas!$A$747:$G$749,3,TRUE)), (IF(6-$F$18=4, (VLOOKUP(3,Tablas!$A$747:$G$749,3,TRUE)), (VLOOKUP(3,Tablas!$A$747:$G$749,3,TRUE)))))))))))), (IF($F$16>6,(IF(7-$F$18=0, (VLOOKUP(3,Tablas!$A$747:$G$749,3,TRUE)), (IF(7-$F$18=1, (VLOOKUP(3,Tablas!$A$747:$G$749,3,TRUE)), (IF(7-$F$18=2, (VLOOKUP(3,Tablas!$A$747:$G$749,3,TRUE)), (IF(7-$F$18=3, (VLOOKUP(3,Tablas!$A$747:$G$749,3,TRUE)), (IF(7-$F$18=4, (VLOOKUP(3,Tablas!$A$747:$G$749,3,TRUE)), (VLOOKUP(3,Tablas!$A$747:$G$749,3,TRUE)))))))))))), (IF($F$16=3,(IF(3-$F$18=0,0, (IF(3-$F$18=1,(VLOOKUP(1,Tablas!$A$747:$G$749,3,TRUE)), (IF(3-$F$18=2, (VLOOKUP(2,Tablas!$A$747:$G$749,3,TRUE)), (VLOOKUP(3,Tablas!$A$747:$G$749,3,TRUE)))))))), (IF($F$16=2,(IF(2-$F$18=0, 0, (IF(2-$F$18=1,(VLOOKUP(1,Tablas!$A$747:$G$749,3,TRUE)), (IF(2-$F$18=2, (VLOOKUP(2,Tablas!$A$747:$G$749,3,TRUE)), 0)))))), (IF($F$16=1,(IF(1-$F$18=0, 0, (IF(1-$F$18=1,(VLOOKUP(1,Tablas!$A$747:$G$749,3,TRUE)),0)))),0))))))))))))))))))) -> 1008.63125 | H51: =IF($F$14=1, (IF($F$16=0, 0, (IF($F$18>$F$16, (VLOOKUP($F$16,Tablas!$A$747:$G$749,4,TRUE)), (IF($F$16>4,(IF($F$18=0, (VLOOKUP(3,Tablas!$A$747:$G$749,4,TRUE)), (IF($F$18=1, (VLOOKUP(3,Tablas!$A$747:$G$749,4,TRUE)), (IF($F$18=2, (VLOOKUP(3,Tablas!$A$747:$G$749,4,TRUE)), (VLOOKUP(3,Tablas!$A$747:$G$749,4,TRUE)))))))), (IF($F$16=4,(IF(4-$F$18=0,(VLOOKUP(2,Tablas!$A$747:$G$749,4,TRUE)), (IF(4-$F$18=1,(VLOOKUP(2,Tablas!$A$747:$G$749,4,TRUE)), (IF(4-$F$18=2, (VLOOKUP(2,Tablas!$A$747:$G$749,4,TRUE)), (VLOOKUP(3,Tablas!$A$747:$G$749,4,TRUE)))))))), (IF($F$16=3,(IF(3-$F$18=0,(VLOOKUP(1,Tablas!$A$747:$G$749,4,TRUE)), (IF(3-$F$18=1,(VLOOKUP(1,Tablas!$A$747:$G$749,4,TRUE)), (IF(3-$F$18=2, (VLOOKUP(2,Tablas!$A$747:$G$749,4,TRUE)), (VLOOKUP(3,Tablas!$A$747:$G$749,4,TRUE)))))))), (IF($F$16=2,(IF(2-$F$18=0, 0, (IF(2-$F$18=1,(VLOOKUP(1,Tablas!$A$747:$G$749,4,TRUE)), (IF(2-$F$18=2, (VLOOKUP(2,Tablas!$A$747:$G$749,4,TRUE)), 0)))))), (IF($F$16=1,(IF(1-$F$18=0, 0, (IF(1-$F$18=1,(VLOOKUP(1,Tablas!$A$747:$G$749,4,TRUE)),0)))),0)))))))))))))), (IF($F$16=0, 0, (IF($F$18>$F$16, (VLOOKUP($F$16,Tablas!$A$747:$G$749,4,TRUE)), (IF($F$16=4,(IF(4-$F$18=0, 0, (IF(4-$F$18=1, (VLOOKUP(1,Tablas!$A$747:$G$749,4,TRUE)), (IF(4-$F$18=2, (VLOOKUP(2,Tablas!$A$747:$G$749,4,TRUE)), (IF(4-$F$18=3, (VLOOKUP(3,Tablas!$A$747:$G$749,4,TRUE)), (IF(4-$F$18=4, (VLOOKUP(3,Tablas!$A$747:$G$749,4,TRUE)), 0)))))))))), (IF($F$16=5,(IF(5-$F$18=0, (VLOOKUP(1,Tablas!$A$747:$G$749,4,TRUE)), (IF(5-$F$18=1, (VLOOKUP(1,Tablas!$A$747:$G$749,4,TRUE)), (IF(5-$F$18=2, (VLOOKUP(2,Tablas!$A$747:$G$749,4,TRUE)), (IF(5-$F$18=3, (VLOOKUP(3,Tablas!$A$747:$G$749,4,TRUE)), (IF(5-$F$18=4, (VLOOKUP(3,Tablas!$A$747:$G$749,4,TRUE)), (VLOOKUP(3,Tablas!$A$747:$G$749,4,TRUE)))))))))))), (IF($F$16=6,(IF(6-$F$18=0, (VLOOKUP(2,Tablas!$A$747:$G$749,4,TRUE)), (IF(6-$F$18=1, (VLOOKUP(2,Tablas!$A$747:$G$749,4,TRUE)), (IF(6-$F$18=2, (VLOOKUP(2,Tablas!$A$747:$G$749,4,TRUE)), (IF(6-$F$18=3, (VLOOKUP(3,Tablas!$A$747:$G$749,4,TRUE)), (IF(6-$F$18=4, (VLOOKUP(3,Tablas!$A$747:$G$749,4,TRUE)), (VLOOKUP(3,Tablas!$A$747:$G$749,4,TRUE)))))))))))), (IF($F$16>6,(IF(7-$F$18=0, (VLOOKUP(3,Tablas!$A$747:$G$749,4,TRUE)), (IF(7-$F$18=1, (VLOOKUP(3,Tablas!$A$747:$G$749,4,TRUE)), (IF(7-$F$18=2, (VLOOKUP(3,Tablas!$A$747:$G$749,4,TRUE)), (IF(7-$F$18=3, (VLOOKUP(3,Tablas!$A$747:$G$749,4,TRUE)), (IF(7-$F$18=4, (VLOOKUP(3,Tablas!$A$747:$G$749,4,TRUE)), (VLOOKUP(3,Tablas!$A$747:$G$749,4,TRUE)))))))))))), (IF($F$16=3,(IF(3-$F$18=0,0, (IF(3-$F$18=1,(VLOOKUP(1,Tablas!$A$747:$G$749,4,TRUE)), (IF(3-$F$18=2, (VLOOKUP(2,Tablas!$A$747:$G$749,4,TRUE)), (VLOOKUP(3,Tablas!$A$747:$G$749,4,TRUE)))))))), (IF($F$16=2,(IF(2-$F$18=0, 0, (IF(2-$F$18=1,(VLOOKUP(1,Tablas!$A$747:$G$749,4,TRUE)), (IF(2-$F$18=2, (VLOOKUP(2,Tablas!$A$747:$G$749,4,TRUE)), 0)))))), (IF($F$16=1,(IF(1-$F$18=0, 0, (IF(1-$F$18=1,(VLOOKUP(1,Tablas!$A$747:$G$749,4,TRUE)),0)))),0))))))))))))))))))) -> 884.9775 | I51: =IF($F$14=1, (IF($F$16=0, 0, (IF($F$18>$F$16, (VLOOKUP($F$16,Tablas!$A$747:$G$749,5,TRUE)), (IF($F$16>4,(IF($F$18=0, (VLOOKUP(3,Tablas!$A$747:$G$749,5,TRUE)), (IF($F$18=1, (VLOOKUP(3,Tablas!$A$747:$G$749,5,TRUE)), (IF($F$18=2, (VLOOKUP(3,Tablas!$A$747:$G$749,5,TRUE)), (VLOOKUP(3,Tablas!$A$747:$G$749,5,TRUE)))))))), (IF($F$16=4,(IF(4-$F$18=0,(VLOOKUP(2,Tablas!$A$747:$G$749,5,TRUE)), (IF(4-$F$18=1,(VLOOKUP(2,Tablas!$A$747:$G$749,5,TRUE)), (IF(4-$F$18=2, (VLOOKUP(2,Tablas!$A$747:$G$749,5,TRUE)), (VLOOKUP(3,Tablas!$A$747:$G$749,5,TRUE)))))))), (IF($F$16=3,(IF(3-$F$18=0,(VLOOKUP(1,Tablas!$A$747:$G$749,5,TRUE)), (IF(3-$F$18=1,(VLOOKUP(1,Tablas!$A$747:$G$749,5,TRUE)), (IF(3-$F$18=2, (VLOOKUP(2,Tablas!$A$747:$G$749,5,TRUE)), (VLOOKUP(3,Tablas!$A$747:$G$749,5,TRUE)))))))), (IF($F$16=2,(IF(2-$F$18=0, 0, (IF(2-$F$18=1,(VLOOKUP(1,Tablas!$A$747:$G$749,5,TRUE)), (IF(2-$F$18=2, (VLOOKUP(2,Tablas!$A$747:$G$749,5,TRUE)), 0)))))), (IF($F$16=1,(IF(1-$F$18=0, 0, (IF(1-$F$18=1,(VLOOKUP(1,Tablas!$A$747:$G$749,5,TRUE)),0)))),0)))))))))))))), (IF($F$16=0, 0, (IF($F$18>$F$16, (VLOOKUP($F$16,Tablas!$A$747:$G$749,5,TRUE)), (IF($F$16=4,(IF(4-$F$18=0, 0, (IF(4-$F$18=1, (VLOOKUP(1,Tablas!$A$747:$G$749,5,TRUE)), (IF(4-$F$18=2, (VLOOKUP(2,Tablas!$A$747:$G$749,5,TRUE)), (IF(4-$F$18=3, (VLOOKUP(3,Tablas!$A$747:$G$749,5,TRUE)), (IF(4-$F$18=4, (VLOOKUP(3,Tablas!$A$747:$G$749,5,TRUE)), 0)))))))))), (IF($F$16=5,(IF(5-$F$18=0, (VLOOKUP(1,Tablas!$A$747:$G$749,5,TRUE)), (IF(5-$F$18=1, (VLOOKUP(1,Tablas!$A$747:$G$749,5,TRUE)), (IF(5-$F$18=2, (VLOOKUP(2,Tablas!$A$747:$G$749,5,TRUE)), (IF(5-$F$18=3, (VLOOKUP(3,Tablas!$A$747:$G$749,5,TRUE)), (IF(5-$F$18=4, (VLOOKUP(3,Tablas!$A$747:$G$749,5,TRUE)), (VLOOKUP(3,Tablas!$A$747:$G$749,5,TRUE)))))))))))), (IF($F$16=6,(IF(6-$F$18=0, (VLOOKUP(2,Tablas!$A$747:$G$749,5,TRUE)), (IF(6-$F$18=1, (VLOOKUP(2,Tablas!$A$747:$G$749,5,TRUE)), (IF(6-$F$18=2, (VLOOKUP(2,Tablas!$A$747:$G$749,5,TRUE)), (IF(6-$F$18=3, (VLOOKUP(3,Tablas!$A$747:$G$749,5,TRUE)), (IF(6-$F$18=4, (VLOOKUP(3,Tablas!$A$747:$G$749,5,TRUE)), (VLOOKUP(3,Tablas!$A$747:$G$749,5,TRUE)))))))))))), (IF($F$16>6,(IF(7-$F$18=0, (VLOOKUP(3,Tablas!$A$747:$G$749,5,TRUE)), (IF(7-$F$18=1, (VLOOKUP(3,Tablas!$A$747:$G$749,5,TRUE)), (IF(7-$F$18=2, (VLOOKUP(3,Tablas!$A$747:$G$749,5,TRUE)), (IF(7-$F$18=3, (VLOOKUP(3,Tablas!$A$747:$G$749,5,TRUE)), (IF(7-$F$18=4, (VLOOKUP(3,Tablas!$A$747:$G$749,5,TRUE)), (VLOOKUP(3,Tablas!$A$747:$G$749,5,TRUE)))))))))))), (IF($F$16=3,(IF(3-$F$18=0,0, (IF(3-$F$18=1,(VLOOKUP(1,Tablas!$A$747:$G$749,5,TRUE)), (IF(3-$F$18=2, (VLOOKUP(2,Tablas!$A$747:$G$749,5,TRUE)), (VLOOKUP(3,Tablas!$A$747:$G$749,5,TRUE)))))))), (IF($F$16=2,(IF(2-$F$18=0, 0, (IF(2-$F$18=1,(VLOOKUP(1,Tablas!$A$747:$G$749,5,TRUE)), (IF(2-$F$18=2, (VLOOKUP(2,Tablas!$A$747:$G$749,5,TRUE)), 0)))))), (IF($F$16=1,(IF(1-$F$18=0, 0, (IF(1-$F$18=1,(VLOOKUP(1,Tablas!$A$747:$G$749,5,TRUE)),0)))),0))))))))))))))))))) -> 721.3525 | J51: =IF($F$14=1, (IF($F$16=0, 0, (IF($F$18>$F$16, (VLOOKUP($F$16,Tablas!$A$747:$G$749,6,TRUE)), (IF($F$16>4,(IF($F$18=0, (VLOOKUP(3,Tablas!$A$747:$G$749,6,TRUE)), (IF($F$18=1, (VLOOKUP(3,Tablas!$A$747:$G$749,6,TRUE)), (IF($F$18=2, (VLOOKUP(3,Tablas!$A$747:$G$749,6,TRUE)), (VLOOKUP(3,Tablas!$A$747:$G$749,6,TRUE)))))))), (IF($F$16=4,(IF(4-$F$18=0,(VLOOKUP(2,Tablas!$A$747:$G$749,6,TRUE)), (IF(4-$F$18=1,(VLOOKUP(2,Tablas!$A$747:$G$749,6,TRUE)), (IF(4-$F$18=2, (VLOOKUP(2,Tablas!$A$747:$G$749,6,TRUE)), (VLOOKUP(3,Tablas!$A$747:$G$749,6,TRUE)))))))), (IF($F$16=3,(IF(3-$F$18=0,(VLOOKUP(1,Tablas!$A$747:$G$749,6,TRUE)), (IF(3-$F$18=1,(VLOOKUP(1,Tablas!$A$747:$G$749,6,TRUE)), (IF(3-$F$18=2, (VLOOKUP(2,Tablas!$A$747:$G$749,6,TRUE)), (VLOOKUP(3,Tablas!$A$747:$G$749,6,TRUE)))))))), (IF($F$16=2,(IF(2-$F$18=0, 0, (IF(2-$F$18=1,(VLOOKUP(1,Tablas!$A$747:$G$749,6,TRUE)), (IF(2-$F$18=2, (VLOOKUP(2,Tablas!$A$747:$G$749,6,TRUE)), 0)))))), (IF($F$16=1,(IF(1-$F$18=0, 0, (IF(1-$F$18=1,(VLOOKUP(1,Tablas!$A$747:$G$749,6,TRUE)),0)))),0)))))))))))))), (IF($F$16=0, 0, (IF($F$18>$F$16, (VLOOKUP($F$16,Tablas!$A$747:$G$749,6,TRUE)), (IF($F$16=4,(IF(4-$F$18=0, 0, (IF(4-$F$18=1, (VLOOKUP(1,Tablas!$A$747:$G$749,6,TRUE)), (IF(4-$F$18=2, (VLOOKUP(2,Tablas!$A$747:$G$749,6,TRUE)), (IF(4-$F$18=3, (VLOOKUP(3,Tablas!$A$747:$G$749,6,TRUE)), (IF(4-$F$18=4, (VLOOKUP(3,Tablas!$A$747:$G$749,6,TRUE)), 0)))))))))), (IF($F$16=5,(IF(5-$F$18=0, (VLOOKUP(1,Tablas!$A$747:$G$749,6,TRUE)), (IF(5-$F$18=1, (VLOOKUP(1,Tablas!$A$747:$G$749,6,TRUE)), (IF(5-$F$18=2, (VLOOKUP(2,Tablas!$A$747:$G$749,6,TRUE)), (IF(5-$F$18=3, (VLOOKUP(3,Tablas!$A$747:$G$749,6,TRUE)), (IF(5-$F$18=4, (VLOOKUP(3,Tablas!$A$747:$G$749,6,TRUE)), (VLOOKUP(3,Tablas!$A$747:$G$749,6,TRUE)))))))))))), (IF($F$16=6,(IF(6-$F$18=0, (VLOOKUP(2,Tablas!$A$747:$G$749,6,TRUE)), (IF(6-$F$18=1, (VLOOKUP(2,Tablas!$A$747:$G$749,6,TRUE)), (IF(6-$F$18=2, (VLOOKUP(2,Tablas!$A$747:$G$749,6,TRUE)), (IF(6-$F$18=3, (VLOOKUP(3,Tablas!$A$747:$G$749,6,TRUE)), (IF(6-$F$18=4, (VLOOKUP(3,Tablas!$A$747:$G$749,6,TRUE)), (VLOOKUP(3,Tablas!$A$747:$G$749,6,TRUE)))))))))))), (IF($F$16>6,(IF(7-$F$18=0, (VLOOKUP(3,Tablas!$A$747:$G$749,6,TRUE)), (IF(7-$F$18=1, (VLOOKUP(3,Tablas!$A$747:$G$749,6,TRUE)), (IF(7-$F$18=2, (VLOOKUP(3,Tablas!$A$747:$G$749,6,TRUE)), (IF(7-$F$18=3, (VLOOKUP(3,Tablas!$A$747:$G$749,6,TRUE)), (IF(7-$F$18=4, (VLOOKUP(3,Tablas!$A$747:$G$749,6,TRUE)), (VLOOKUP(3,Tablas!$A$747:$G$749,6,TRUE)))))))))))), (IF($F$16=3,(IF(3-$F$18=0,0, (IF(3-$F$18=1,(VLOOKUP(1,Tablas!$A$747:$G$749,6,TRUE)), (IF(3-$F$18=2, (VLOOKUP(2,Tablas!$A$747:$G$749,6,TRUE)), (VLOOKUP(3,Tablas!$A$747:$G$749,6,TRUE)))))))), (IF($F$16=2,(IF(2-$F$18=0, 0, (IF(2-$F$18=1,(VLOOKUP(1,Tablas!$A$747:$G$749,6,TRUE)), (IF(2-$F$18=2, (VLOOKUP(2,Tablas!$A$747:$G$749,6,TRUE)), 0)))))), (IF($F$16=1,(IF(1-$F$18=0, 0, (IF(1-$F$18=1,(VLOOKUP(1,Tablas!$A$747:$G$749,6,TRUE)),0)))),0))))))))))))))))))) -> 625.74875 | K51: =IF($F$14=1, (IF($F$16=0, 0, (IF($F$18>$F$16, (VLOOKUP($F$16,Tablas!$A$747:$G$749,7,TRUE)), (IF($F$16>4,(IF($F$18=0, (VLOOKUP(3,Tablas!$A$747:$G$749,7,TRUE)), (IF($F$18=1, (VLOOKUP(3,Tablas!$A$747:$G$749,7,TRUE)), (IF($F$18=2, (VLOOKUP(3,Tablas!$A$747:$G$749,7,TRUE)), (VLOOKUP(3,Tablas!$A$747:$G$749,7,TRUE)))))))), (IF($F$16=4,(IF(4-$F$18=0,(VLOOKUP(2,Tablas!$A$747:$G$749,7,TRUE)), (IF(4-$F$18=1,(VLOOKUP(2,Tablas!$A$747:$G$749,7,TRUE)), (IF(4-$F$18=2, (VLOOKUP(2,Tablas!$A$747:$G$749,7,TRUE)), (VLOOKUP(3,Tablas!$A$747:$G$749,7,TRUE)))))))), (IF($F$16=3,(IF(3-$F$18=0,(VLOOKUP(1,Tablas!$A$747:$G$749,7,TRUE)), (IF(3-$F$18=1,(VLOOKUP(1,Tablas!$A$747:$G$749,7,TRUE)), (IF(3-$F$18=2, (VLOOKUP(2,Tablas!$A$747:$G$749,7,TRUE)), (VLOOKUP(3,Tablas!$A$747:$G$749,7,TRUE)))))))), (IF($F$16=2,(IF(2-$F$18=0, 0, (IF(2-$F$18=1,(VLOOKUP(1,Tablas!$A$747:$G$749,7,TRUE)), (IF(2-$F$18=2, (VLOOKUP(2,Tablas!$A$747:$G$749,7,TRUE)), 0)))))), (IF($F$16=1,(IF(1-$F$18=0, 0, (IF(1-$F$18=1,(VLOOKUP(1,Tablas!$A$747:$G$749,7,TRUE)),0)))),0)))))))))))))), (IF($F$16=0, 0, (IF($F$18>$F$16, (VLOOKUP($F$16,Tablas!$A$747:$G$749,7,TRUE)), (IF($F$16=4,(IF(4-$F$18=0, 0, (IF(4-$F$18=1, (VLOOKUP(1,Tablas!$A$747:$G$749,7,TRUE)), (IF(4-$F$18=2, (VLOOKUP(2,Tablas!$A$747:$G$749,7,TRUE)), (IF(4-$F$18=3, (VLOOKUP(3,Tablas!$A$747:$G$749,7,TRUE)), (IF(4-$F$18=4, (VLOOKUP(3,Tablas!$A$747:$G$749,7,TRUE)), 0)))))))))), (IF($F$16=5,(IF(5-$F$18=0, (VLOOKUP(1,Tablas!$A$747:$G$749,7,TRUE)), (IF(5-$F$18=1, (VLOOKUP(1,Tablas!$A$747:$G$749,7,TRUE)), (IF(5-$F$18=2, (VLOOKUP(2,Tablas!$A$747:$G$749,7,TRUE)), (IF(5-$F$18=3, (VLOOKUP(3,Tablas!$A$747:$G$749,7,TRUE)), (IF(5-$F$18=4, (VLOOKUP(3,Tablas!$A$747:$G$749,7,TRUE)), (VLOOKUP(3,Tablas!$A$747:$G$749,7,TRUE)))))))))))), (IF($F$16=6,(IF(6-$F$18=0, (VLOOKUP(2,Tablas!$A$747:$G$749,7,TRUE)), (IF(6-$F$18=1, (VLOOKUP(2,Tablas!$A$747:$G$749,7,TRUE)), (IF(6-$F$18=2, (VLOOKUP(2,Tablas!$A$747:$G$749,7,TRUE)), (IF(6-$F$18=3, (VLOOKUP(3,Tablas!$A$747:$G$749,7,TRUE)), (IF(6-$F$18=4, (VLOOKUP(3,Tablas!$A$747:$G$749,7,TRUE)), (VLOOKUP(3,Tablas!$A$747:$G$749,7,TRUE)))))))))))), (IF($F$16>6,(IF(7-$F$18=0, (VLOOKUP(3,Tablas!$A$747:$G$749,7,TRUE)), (IF(7-$F$18=1, (VLOOKUP(3,Tablas!$A$747:$G$749,7,TRUE)), (IF(7-$F$18=2, (VLOOKUP(3,Tablas!$A$747:$G$749,7,TRUE)), (IF(7-$F$18=3, (VLOOKUP(3,Tablas!$A$747:$G$749,7,TRUE)), (IF(7-$F$18=4, (VLOOKUP(3,Tablas!$A$747:$G$749,7,TRUE)), (VLOOKUP(3,Tablas!$A$747:$G$749,7,TRUE)))))))))))), (IF($F$16=3,(IF(3-$F$18=0,0, (IF(3-$F$18=1,(VLOOKUP(1,Tablas!$A$747:$G$749,7,TRUE)), (IF(3-$F$18=2, (VLOOKUP(2,Tablas!$A$747:$G$749,7,TRUE)), (VLOOKUP(3,Tablas!$A$747:$G$749,7,TRUE)))))))), (IF($F$16=2,(IF(2-$F$18=0, 0, (IF(2-$F$18=1,(VLOOKUP(1,Tablas!$A$747:$G$749,7,TRUE)), (IF(2-$F$18=2, (VLOOKUP(2,Tablas!$A$747:$G$749,7,TRUE)), 0)))))), (IF($F$16=1,(IF(1-$F$18=0, 0, (IF(1-$F$18=1,(VLOOKUP(1,Tablas!$A$747:$G$749,7,TRUE)),0)))),0))))))))))))))))))) -> 466.79875
E52: Total de Prima neta | G52: =SUM(G49:G51) -> 7892.30125 | H52: =SUM(H49:H51) -> 6929.0175 | I52: =SUM(I49:I51) -> 5526.28375 | J52: =SUM(J49:J51) -> 4802.12625 | K52: =SUM(K49:K51) -> 3599.71625
E53: Tarifa administrativa anual | G53: 0 | H53: 0 | I53: 0 | J53: 0 | K53: 0
E54: Contribución 3.5% Superintendencia de Bancos Contribución 0.5% Seguro Social Campesino | G54: =(G52)*4% -> 315.69205 | H54: =(H52)*4% -> 277.1607 | I54: =(I52)*4% -> 221.05135 | J54: =(J52)*4% -> 192.08505 | K54: =(K52)*4% -> 143.98865
E55: TOTAL de primera cuota | G55: =SUM(G52:G54) -> 8207.9933 | H55: =SUM(H52:H54) -> 7206.1782 | I55: =SUM(I52:I54) -> 5747.3351 | J55: =SUM(J52:J54) -> 4994.2113 | K55: =SUM(K52:K54) -> 3743.7049
E56: Tres (3) cuotas adicionales, cada una de: | G56: =G52+G54-78 -> 8129.9933 | H56: =H52+H54-78 -> 7128.1782 | I56: =I52+I54-78 -> 5669.3351 | J56: =J52+J54-78 -> 4916.2113 | K56: =K52+K54-78 -> 3665.7049
E57: TOTAL ANUAL | G57: =G55+(G56*3) -> 32597.9732 | H57: =H55+(H56*3) -> 28590.7128 | I57: 22755.3404 | J57: =J55+(J56*3) -> 19742.8452 | K57: 14740.8196
E58: Ahorros en tarifas de prima para niños | G58: =IF($F$14=1,IF($F$16=0,0,IF($F$18=0,0,IF($F$18=1,(VLOOKUP(1,Tablas!$A$747:$G$749,3,TRUE)),(VLOOKUP(2,Tablas!$A$747:$G$749,3,TRUE))))), IF($F$16=0,0,IF($F$18=0,0,IF($F$18=1,(VLOOKUP(1,Tablas!$A$747:$G$749,3,TRUE)),IF($F$18=2,(VLOOKUP(2,Tablas!$A$747:$G$749,3,TRUE)), (VLOOKUP(3,Tablas!$A$747:$G$749,3,TRUE))))))) -> 1008.63125 | H58: =IF($F$14=1,IF($F$16=0,0,IF($F$18=0,0,IF($F$18=1,(VLOOKUP(1,Tablas!$A$747:$G$749,4,TRUE)),(VLOOKUP(2,Tablas!$A$747:$G$749,4,TRUE))))), IF($F$16=0,0,IF($F$18=0,0,IF($F$18=1,(VLOOKUP(1,Tablas!$A$747:$G$749,4,TRUE)),IF($F$18=2,(VLOOKUP(2,Tablas!$A$747:$G$749,4,TRUE)), (VLOOKUP(3,Tablas!$A$747:$G$749,4,TRUE))))))) -> 884.9775 | I58: =IF($F$14=1,IF($F$16=0,0,IF($F$18=0,0,IF($F$18=1,(VLOOKUP(1,Tablas!$A$747:$G$749,5,TRUE)),(VLOOKUP(2,Tablas!$A$747:$G$749,5,TRUE))))), IF($F$16=0,0,IF($F$18=0,0,IF($F$18=1,(VLOOKUP(1,Tablas!$A$747:$G$749,5,TRUE)),IF($F$18=2,(VLOOKUP(2,Tablas!$A$747:$G$749,5,TRUE)), (VLOOKUP(3,Tablas!$A$747:$G$749,5,TRUE))))))) -> 721.3525 | J58: =IF($F$14=1,IF($F$16=0,0,IF($F$18=0,0,IF($F$18=1,(VLOOKUP(1,Tablas!$A$747:$G$749,6,TRUE)),(VLOOKUP(2,Tablas!$A$747:$G$749,6,TRUE))))), IF($F$16=0,0,IF($F$18=0,0,IF($F$18=1,(VLOOKUP(1,Tablas!$A$747:$G$749,6,TRUE)),IF($F$18=2,(VLOOKUP(2,Tablas!$A$747:$G$749,6,TRUE)), (VLOOKUP(3,Tablas!$A$747:$G$749,6,TRUE))))))) -> 625.74875 | K58: =IF($F$14=1,IF($F$16=0,0,IF($F$18=0,0,IF($F$18=1,(VLOOKUP(1,Tablas!$A$747:$G$749,7,TRUE)),(VLOOKUP(2,Tablas!$A$747:$G$749,7,TRUE))))), IF($F$16=0,0,IF($F$18=0,0,IF($F$18=1,(VLOOKUP(1,Tablas!$A$747:$G$749,7,TRUE)),IF($F$18=2,(VLOOKUP(2,Tablas!$A$747:$G$749,7,TRUE)), (VLOOKUP(3,Tablas!$A$747:$G$749,7,TRUE))))))) -> 466.79875
E60: Tarifas en US$ - Efectivas a partir del 1ro. de enero de 2022
E61: Este presupuesto solamente tiene carácter informativo y en ningún momento expresa compromiso legal para suministrarle cobertura de seguro. La emisión de una póliza de seguro Bupa está sujeta a todas las evaluaciones de riesgo por parte de Bupa y a la recepción de todos los pagos de prima requeridos.

Sheet Global Health Premier
A14: RESUMEN DE BENEFICIOS | D14: Nombre del Asegurado Titular | F14: =+'INGRESO DE DATOS'!$D$15 -> Nombre Completo
D16: Número de adultos en la póliza | F16: =+'INGRESO DE DATOS'!$D$17 -> 2 | H16: Edad del Asegurado Titular | I16: =+'INGRESO DE DATOS'!$D$19 -> 32
D18: Número de niños en la póliza | F18: =+'INGRESO DE DATOS'!$H$17 -> 2 | H18: Edad del/la conyuge | I18: =+'INGRESO DE DATOS'!$H$19 -> 46
F20: Fecha de la cotización: | G20: =NOW() -> 2022-08-02T16:29:34.620
H21: FALSE
E22: Zona de cotización: | F22: ='INGRESO DE DATOS'!D21 -> Guayas/Santa Elena
E24: Deducibles | G24: PLAN 1 | H24: PLAN 2 | I24: PLAN 3 | J24: PLAN 4 | K24: PLAN 5
E25: En el país de residencia | G25: 250 | H25: 2000 | I25: 5000 | J25: 10000 | K25: 20000
E26: Fuera del país de residencia | G26: 5000 | H26: 2000 | I26: 5000 | J26: 10000 | K26: 20000
E28: Tarifas Anuales
E29: Prima para Asegurado Titular | G29: =VLOOKUP($I$16,Tablas!$A$155:$G$221,3,TRUE)+75 -> 6799.35 | H29: =VLOOKUP($I$16,Tablas!$A$155:$G$221,4,TRUE)+75 -> 6176.3 | I29: =VLOOKUP($I$16,Tablas!$A$155:$G$221,5,TRUE)+75 -> 4425.3 | J29: =VLOOKUP($I$16,Tablas!$A$155:$G$221,6,TRUE)+75 -> 3186.85 | K29: =VLOOKUP($I$16,Tablas!$A$155:$G$221,7,TRUE)+75 -> 2515.35
E30: Prima para conyuge | G30: =IF($F$16=1,0,(VLOOKUP($I$18,Tablas!$A$155:$G$221,3,TRUE))) -> 9407.8 | H30: =IF($F$16=1,0,(VLOOKUP($I$18,Tablas!$A$155:$G$221,4,TRUE))) -> 8538.25 | I30: =IF($F$16=1,0,(VLOOKUP($I$18,Tablas!$A$155:$G$221,5,TRUE))) -> 5949.15 | J30: =IF($F$16=1,0,(VLOOKUP($I$18,Tablas!$A$155:$G$221,6,TRUE))) -> 4254.25 | K30: =IF($F$16=1,0,(VLOOKUP($I$18,Tablas!$A$155:$G$221,7,TRUE))) -> 3337.1
E31: Prima para hijo (s) | G31: =IF($F$18=0,0,(VLOOKUP($F$18,Tablas!$A$222:$G$224,3,TRUE))) -> 4063 | H31: =IF($F$18=0,0,(VLOOKUP($F$18,Tablas!$A$222:$G$224,4,TRUE))) -> 3688.15 | I31: =IF($F$18=0,0,(VLOOKUP($F$18,Tablas!$A$222:$G$224,5,TRUE))) -> 2725.95 | J31: =IF($F$18=0,0,(VLOOKUP($F$18,Tablas!$A$222:$G$224,6,TRUE))) -> 1951.6 | K31: =IF($F$18=0,0,(VLOOKUP($F$18,Tablas!$A$222:$G$224,7,TRUE))) -> 1530
E32: Total de Prima neta | G32: =SUM(G29:G31) -> 20270.15 | H32: =SUM(H29:H31) -> 18402.7 | I32: 13100.4 | J32: =SUM(J29:J31) -> 9392.7 | K32: 7382.45
E33: Tarifa administrativa anual | G33: 0 | H33: 0 | I33: 0 | J33: 0 | K33: 0
E34: Contribución 3.5% Superintendencia de Bancos Contribución 0.5% Seguro Social Campesino | G34: =(G32)*4% -> 810.806 | H34: =(H32)*4% -> 736.108 | I34: =(I32)*4% -> 524.016 | J34: =(J32)*4% -> 375.708 | K34: =(K32)*4% -> 295.298
E35: TOTAL ANUAL | G35: =SUM(G32:G34) -> 21080.956 | H35: =SUM(H32:H34) -> 19138.808 | I35: =SUM(I32:I34) -> 13624.416 | J35: =SUM(J32:J34) -> 9768.408 | K35: =SUM(K32:K34) -> 7677.748
E37: Tarifas Semianuales
E38: Prima para Asegurado Titular | G38: =VLOOKUP($I$16,Tablas!$A$530:$G$596,3,TRUE)+75 -> 3638.9055 | H38: =VLOOKUP($I$16,Tablas!$A$530:$G$596,4,TRUE)+75 -> 3308.689 | I38: =VLOOKUP($I$16,Tablas!$A$530:$G$596,5,TRUE)+75 -> 2380.659 | J38: =VLOOKUP($I$16,Tablas!$A$530:$G$596,6,TRUE)+75 -> 1724.2805 | K38: =VLOOKUP($I$16,Tablas!$A$530:$G$596,7,TRUE)+75 -> 1368.3855
E39: Prima para conyuge | G39: =IF($F$16=1,0,(VLOOKUP($I$18,Tablas!$A$530:$G$596,3,TRUE))) -> 4986.134 | H39: =IF($F$16=1,0,(VLOOKUP($I$18,Tablas!$A$530:$G$596,4,TRUE))) -> 4525.2725 | I39: =IF($F$16=1,0,(VLOOKUP($I$18,Tablas!$A$530:$G$596,5,TRUE))) -> 3153.0495 | J39: =IF($F$16=1,0,(VLOOKUP($I$18,Tablas!$A$530:$G$596,6,TRUE))) -> 2254.7525 | K39: =IF($F$16=1,0,(VLOOKUP($I$18,Tablas!$A$530:$G$596,7,TRUE))) -> 1768.663
E40: Prima para hijo (s) | G40: =IF($F$18=0,0,(VLOOKUP($F$18,Tablas!$A$597:$G$599,3,TRUE))) -> 2153.39 | H40: =IF($F$18=0,0,(VLOOKUP($F$18,Tablas!$A$597:$G$599,4,TRUE))) -> 1954.7195 | I40: =IF($F$18=0,0,(VLOOKUP($F$18,Tablas!$A$597:$G$599,5,TRUE))) -> 1444.7535 | J40: =IF($F$18=0,0,(VLOOKUP($F$18,Tablas!$A$597:$G$599,6,TRUE))) -> 1034.348 | K40: =IF($F$18=0,0,(VLOOKUP($F$18,Tablas!$A$597:$G$599,7,TRUE))) -> 810.9
E41: Total de Prima neta | G41: =SUM(G38:G40) -> 10778.4295 | H41: =SUM(H38:H40) -> 9788.681 | I41: =SUM(I38:I40) -> 6978.462 | J41: =SUM(J38:J40) -> 5013.381 | K41: =SUM(K38:K40) -> 3947.9485
E42: Tarifa administrativa anual | G42: 0 | H42: 0 | I42: 0 | J42: 0 | K42: 0
E43: Contribución 3.5% Superintendencia de Bancos Contribución 0.5% Seguro Social Campesino | G43: =(G41)*4% -> 431.13718 | H43: =(H41)*4% -> 391.54724 | I43: =(I41)*4% -> 279.13848 | J43: =(J41)*4% -> 200.53524 | K43: =(K41)*4% -> 157.91794
E44: TOTAL de primera cuota | G44: =SUM(G41:G43) -> 11209.56668 | H44: =SUM(H41:H43) -> 10180.22824 | I44: =SUM(I41:I43) -> 7257.60048 | J44: =SUM(J41:J43) -> 5213.91624 | K44: =SUM(K41:K43) -> 4105.86644
E45: Costo de segunda cuota | G45: =G41+G43-78 -> 11131.56668 | H45: =H41+H43-78 -> 10102.22824 | I45: =I41+I43-78 -> 7179.60048 | J45: =J41+J43-78 -> 5135.91624 | K45: =K41+K43-78 -> 4027.86644
E46: TOTAL ANUAL | G46: =G44+G45 -> 22341.13336 | H46: =H44+H45 -> 20282.45648 | I46: 14437.20096 | J46: =J44+J45 -> 10349.83248 | K46: 8133.73288
E48: Tarifas Trimestrales
E49: Prima para Asegurado Titular | G49: =VLOOKUP($I$16,Tablas!$A$755:$G$821,3,TRUE)+75 -> 1924.19625 | H49: =VLOOKUP($I$16,Tablas!$A$755:$G$821,4,TRUE)+75 -> 1752.8575 | I49: =VLOOKUP($I$16,Tablas!$A$755:$G$821,5,TRUE)+75 -> 1271.3325 | J49: =VLOOKUP($I$16,Tablas!$A$755:$G$821,6,TRUE)+75 -> 930.75875 | K49: =VLOOKUP($I$16,Tablas!$A$755:$G$821,7,TRUE)+75 -> 746.09625
E50: Prima para conyuge | G50: =IF($F$16=1,0,(VLOOKUP($I$18,Tablas!$A$755:$G$821,3,TRUE))) -> 2587.145 | H50: =IF($F$16=1,0,(VLOOKUP($I$18,Tablas!$A$755:$G$821,4,TRUE))) -> 2348.01875 | I50: =IF($F$16=1,0,(VLOOKUP($I$18,Tablas!$A$755:$G$821,5,TRUE))) -> 1636.01625 | J50: =IF($F$16=1,0,(VLOOKUP($I$18,Tablas!$A$755:$G$821,6,TRUE))) -> 1169.91875 | K50: =IF($F$16=1,0,(VLOOKUP($I$18,Tablas!$A$755:$G$821,7,TRUE))) -> 917.7025
E51: Prima para hijo (s) | G51: =IF($F$18=0,0,(VLOOKUP($F$18,Tablas!$A$822:$G$824,3,TRUE))) -> 1117.325 | H51: =IF($F$18=0,0,(VLOOKUP($F$18,Tablas!$A$822:$G$824,4,TRUE))) -> 1014.24125 | I51: =IF($F$18=0,0,(VLOOKUP($F$18,Tablas!$A$822:$G$824,5,TRUE))) -> 749.63625 | J51: =IF($F$18=0,0,(VLOOKUP($F$18,Tablas!$A$822:$G$824,6,TRUE))) -> 536.69 | K51: =IF($F$18=0,0,(VLOOKUP($F$18,Tablas!$A$822:$G$824,7,TRUE))) -> 420.75
E52: Total de Prima neta | G52: =SUM(G49:G51) -> 5628.66625 | H52: =SUM(H49:H51) -> 5115.1175 | I52: =SUM(I49:I51) -> 3656.985 | J52: =SUM(J49:J51) -> 2637.3675 | K52: =SUM(K49:K51) -> 2084.54875
E53: Tarifa administrativa anual | G53: 0 | H53: 0 | I53: 0 | J53: 0 | K53: 0
E54: Contribución 3.5% Superintendencia de Bancos Contribución 0.5% Seguro Social Campesino | G54: =(G52)*4% -> 225.14665 | H54: =(H52)*4% -> 204.6047 | I54: =(I52)*4% -> 146.2794 | J54: =(J52)*4% -> 105.4947 | K54: =(K52)*4% -> 83.38195
E55: TOTAL de primera cuota | G55: =SUM(G52:G54) -> 5853.8129 | H55: =SUM(H52:H54) -> 5319.7222 | I55: =SUM(I52:I54) -> 3803.2644 | J55: =SUM(J52:J54) -> 2742.8622 | K55: =SUM(K52:K54) -> 2167.9307
E56: Tres (3) cuotas adicionales, cada una de: | G56: =G52+G54-78 -> 5775.8129 | H56: =H52+H54-78 -> 5241.7222 | I56: =I52+I54-78 -> 3725.2644 | J56: =J52+J54-78 -> 2664.8622 | K56: =K52+K54-78 -> 2089.9307
E57: TOTAL ANUAL | G57: =G55+(G56*3) -> 23181.2516 | H57: =H55+(H56*3) -> 21044.8888 | I57: 14979.0576 | J57: =J55+(J56*3) -> 10737.4488 | K57: 8437.7228
E59: Tarifas en US$ - Efectivas a partir del 1ro. de enero de 2022
E60: Este presupuesto solamente tiene carácter informativo y en ningún momento expresa compromiso legal para suministrarle cobertura de seguro. La emisión de una póliza de seguro Bupa está sujeta a todas las evaluaciones de riesgo por parte de Bupa y a la recepción de todos los pagos de prima requeridos.

Sheet Global Health Select
A13: RESUMEN DE BENEFICIOS | D13: Nombre del Asegurado Titular | F13: =+'INGRESO DE DATOS'!$D$15 -> Nombre Completo
D15: Número de adultos en la póliza | F15: =+'INGRESO DE DATOS'!$D$17 -> 2 | H15: Edad del Asegurado Titular | I15: =+'INGRESO DE DATOS'!$D$19 -> 32
D17: Número de niños en la póliza | F17: =+'INGRESO DE DATOS'!$H$17 -> 2 | H17: Edad del/la conyuge | I17: =+'INGRESO DE DATOS'!$H$19 -> 46
F19: Fecha de la cotización: | G19: =NOW() -> 2022-08-02T16:29:34.620
H20: FALSE
E21: Zona de cotización: | F21: ='INGRESO DE DATOS'!D21 -> Guayas/Santa Elena
E23: Deducibles | G23: PLAN 1 | H23: PLAN 2 | I23: PLAN 3 | J23: PLAN 4 | K23: PLAN 5
E24: En el país de residencia | G24: 250 | H24: 2000 | I24: 5000 | J24: 10000 | K24: 20000
E25: Fuera del país de residencia | G25: 5000 | H25: 2000 | I25: 5000 | J25: 10000 | K25: 20000
E27: Tarifas Anuales
E28: Prima para Asegurado Titular | G28: =VLOOKUP($I$15,Tablas!$A$305:$G$371,3,TRUE)+75 -> 4394.7 | H28: =VLOOKUP($I$15,Tablas!$A$305:$G$371,4,TRUE)+75 -> 4220.45 | I28: =VLOOKUP($I$15,Tablas!$A$305:$G$371,5,TRUE)+75 -> 3034.7 | J28: =VLOOKUP($I$15,Tablas!$A$305:$G$371,6,TRUE)+75 -> 2189.8 | K28: =VLOOKUP($I$15,Tablas!$A$305:$G$371,7,TRUE)+75 -> 1735.05
E29: Prima para conyuge | G29: =IF($F$15=1,0,(VLOOKUP($I$17,Tablas!$A$305:$G$371,3,TRUE))) -> 6276.4 | H29: =IF($F$15=1,0,(VLOOKUP($I$17,Tablas!$A$305:$G$371,4,TRUE))) -> 6022.25 | I29: =IF($F$15=1,0,(VLOOKUP($I$17,Tablas!$A$305:$G$371,5,TRUE))) -> 4198.15 | J29: =IF($F$15=1,0,(VLOOKUP($I$17,Tablas!$A$305:$G$371,6,TRUE))) -> 2998.8 | K29: =IF($F$15=1,0,(VLOOKUP($I$17,Tablas!$A$305:$G$371,7,TRUE))) -> 2354.5
E30: Prima para hijo (s) | G30: =IF($F$17=0,0,(VLOOKUP($F$17,Tablas!$A$372:$G$374,3,TRUE))) -> 2817.75 | H30: =IF($F$17=0,0,(VLOOKUP($F$17,Tablas!$A$372:$G$374,4,TRUE))) -> 2702.15 | I30: =IF($F$17=0,0,(VLOOKUP($F$17,Tablas!$A$372:$G$374,5,TRUE))) -> 2007.7 | J30: =IF($F$17=0,0,(VLOOKUP($F$17,Tablas!$A$372:$G$374,6,TRUE))) -> 1435.65 | K30: =IF($F$17=0,0,(VLOOKUP($F$17,Tablas!$A$372:$G$374,7,TRUE))) -> 1124.55
E31: Total de Prima neta | G31: =SUM(G28:G30) -> 13488.85 | H31: =SUM(H28:H30) -> 12944.85 | I31: =SUM(I28:I30) -> 9240.55 | J31: =SUM(J28:J30) -> 6624.25 | K31: =SUM(K28:K30) -> 5214.1
E32: Tarifa administrativa anual | G32: 0 | H32: 0 | I32: 0 | J32: 0 | K32: 0
E33: Contribución 3.5% Superintendencia de Bancos Contribución 0.5% Seguro Social Campesino | G33: =(G31)*4% -> 539.554 | H33: =(H31)*4% -> 517.794 | I33: =(I31)*4% -> 369.622 | J33: =(J31)*4% -> 264.97 | K33: =(K31)*4% -> 208.564
E34: TOTAL ANUAL | G34: =SUM(G31:G33) -> 14028.404 | H34: =SUM(H31:H33) -> 13462.644 | I34: =SUM(I31:I33) -> 9610.172 | J34: =SUM(J31:J33) -> 6889.22 | K34: =SUM(K31:K33) -> 5422.664
E36: Tarifas Semianuales
E37: Prima para Asegurado Titular | G37: =VLOOKUP($I$15,Tablas!$A$605:$G$671,3,TRUE)+75 -> 2364.441 | H37: =VLOOKUP($I$15,Tablas!$A$605:$G$671,4,TRUE)+75 -> 2272.0885 | I37: =VLOOKUP($I$15,Tablas!$A$605:$G$671,5,TRUE)+75 -> 1643.641 | J37: =VLOOKUP($I$15,Tablas!$A$605:$G$671,6,TRUE)+75 -> 1195.844 | K37: =VLOOKUP($I$15,Tablas!$A$605:$G$671,7,TRUE)+75 -> 954.8265
E38: Prima para conyuge | G38: =IF($F$15=1,0,(VLOOKUP($I$17,Tablas!$A$605:$G$671,3,TRUE))) -> 3326.492 | H38: =IF($F$15=1,0,(VLOOKUP($I$17,Tablas!$A$605:$G$671,4,TRUE))) -> 3191.7925 | I38: =IF($F$15=1,0,(VLOOKUP($I$17,Tablas!$A$605:$G$671,5,TRUE))) -> 2225.0195 | J38: =IF($F$15=1,0,(VLOOKUP($I$17,Tablas!$A$605:$G$671,6,TRUE))) -> 1589.364 | K38: =IF($F$15=1,0,(VLOOKUP($I$17,Tablas!$A$605:$G$671,7,TRUE))) -> 1247.885
E39: Prima para hijo (s) | G39: =IF($F$17=0,0,(VLOOKUP($F$17,Tablas!$A$672:$G$674,3,TRUE))) -> 1493.4075 | H39: =IF($F$17=0,0,(VLOOKUP($F$17,Tablas!$A$672:$G$674,4,TRUE))) -> 1432.1395 | I39: =IF($F$17=0,0,(VLOOKUP($F$17,Tablas!$A$672:$G$674,5,TRUE))) -> 1064.081 | J39: =IF($F$17=0,0,(VLOOKUP($F$17,Tablas!$A$672:$G$674,6,TRUE))) -> 760.8945 | K39: =IF($F$17=0,0,(VLOOKUP($F$17,Tablas!$A$672:$G$674,7,TRUE))) -> 596.0115
E40: Total de Prima neta | G40: =SUM(G37:G39) -> 7184.3405 | H40: =SUM(H37:H39) -> 6896.0205 | I40: =SUM(I37:I39) -> 4932.7415 | J40: =SUM(J37:J39) -> 3546.1025 | K40: =SUM(K37:K39) -> 2798.723
E41: Tarifa administrativa anual | G41: 0 | H41: 0 | I41: 0 | J41: 0 | K41: 0
E42: Contribución 3.5% Superintendencia de Bancos Contribución 0.5% Seguro Social Campesino | G42: =(G40)*4% -> 287.37362 | H42: =(H40)*4% -> 275.84082 | I42: =(I40)*4% -> 197.30966 | J42: =(J40)*4% -> 141.8441 | K42: =(K40)*4% -> 111.94892
E43: TOTAL de primera cuota | G43: =SUM(G40:G42) -> 7471.71412 | H43: =SUM(H40:H42) -> 7171.86132 | I43: =SUM(I40:I42) -> 5130.05116 | J43: =SUM(J40:J42) -> 3687.9466 | K43: =SUM(K40:K42) -> 2910.67192
E44: Costo de segunda cuota | G44: =G40+G42-78 -> 7393.71412 | H44: =H40+H42-78 -> 7093.86132 | I44: =I40+I42-78 -> 5052.05116 | J44: =J40+J42-78 -> 3609.9466 | K44: =K40+K42-78 -> 2832.67192
E45: TOTAL ANUAL | G45: =G43+G44 -> 14865.42824 | H45: =H43+H44 -> 14265.72264 | I45: 10182.10232 | J45: =J43+J44 -> 7297.8932 | K45: 5743.34384
E47: Tarifas Trimestrales
E48: Prima para Asegurado Titular | G48: =VLOOKUP($I$15,Tablas!$A$830:$G$896,3,TRUE)+75 -> 1262.9175 | H48: =VLOOKUP($I$15,Tablas!$A$830:$G$896,4,TRUE)+75 -> 1214.99875 | I48: =VLOOKUP($I$15,Tablas!$A$830:$G$896,5,TRUE)+75 -> 888.9175 | J48: =VLOOKUP($I$15,Tablas!$A$830:$G$896,6,TRUE)+75 -> 656.57 | K48: =VLOOKUP($I$15,Tablas!$A$830:$G$896,7,TRUE)+75 -> 531.51375
E49: Prima para conyuge | G49: =IF($F$15=1,0,(VLOOKUP($I$17,Tablas!$A$830:$G$896,3,TRUE))) -> 1726.01 | H49: =IF($F$15=1,0,(VLOOKUP($I$17,Tablas!$A$830:$G$896,4,TRUE))) -> 1656.11875 | I49: =IF($F$15=1,0,(VLOOKUP($I$17,Tablas!$A$830:$G$896,5,TRUE))) -> 1154.49125 | J49: =IF($F$15=1,0,(VLOOKUP($I$17,Tablas!$A$830:$G$896,6,TRUE))) -> 824.67 | K49: =IF($F$15=1,0,(VLOOKUP($I$17,Tablas!$A$830:$G$896,7,TRUE))) -> 647.4875
E50: Prima para hijo (s) | G50: =IF($F$17=0,0,(VLOOKUP($F$17,Tablas!$A$897:$G$899,3,TRUE))) -> 774.88125 | H50: =IF($F$17=0,0,(VLOOKUP($F$17,Tablas!$A$897:$G$899,4,TRUE))) -> 743.09125 | I50: =IF($F$17=0,0,(VLOOKUP($F$17,Tablas!$A$897:$G$899,5,TRUE))) -> 552.1175 | J50: =IF($F$17=0,0,(VLOOKUP($F$17,Tablas!$A$897:$G$899,6,TRUE))) -> 394.80375 | K50: =IF($F$17=0,0,(VLOOKUP($F$17,Tablas!$A$897:$G$899,7,TRUE))) -> 309.25125
E51: Total de Prima neta | G51: =SUM(G48:G50) -> 3763.80875 | H51: =SUM(H48:H50) -> 3614.20875 | I51: =SUM(I48:I50) -> 2595.52625 | J51: =SUM(J48:J50) -> 1876.04375 | K51: =SUM(K48:K50) -> 1488.2525
E52: Tarifa administrativa anual | G52: 0 | H52: 0 | I52: 0 | J52: 0 | K52: 0
E53: Contribución 3.5% Superintendencia de Bancos Contribución 0.5% Seguro Social Campesino | G53: =(G51)*4% -> 150.55235 | H53: =(H51)*4% -> 144.56835 | I53: =(I51)*4% -> 103.82105 | J53: =(J51)*4% -> 75.04175 | K53: =(K51)*4% -> 59.5301
E54: TOTAL de primera cuota | G54: =SUM(G51:G53) -> 3914.3611 | H54: =SUM(H51:H53) -> 3758.7771 | I54: =SUM(I51:I53) -> 2699.3473 | J54: =SUM(J51:J53) -> 1951.0855 | K54: =SUM(K51:K53) -> 1547.7826
E55: Tres (3) cuotas adicionales, cada una de: | G55: =G51+G53-78 -> 3836.3611 | H55: =H51+H53-78 -> 3680.7771 | I55: =I51+I53-78 -> 2621.3473 | J55: =J51+J53-78 -> 1873.0855 | K55: =K51+K53-78 -> 1469.7826
E56: TOTAL ANUAL | G56: =G54+(G55*3) -> 15423.4444 | H56: =H54+(H55*3) -> 14801.1084 | I56: 10563.3892 | J56: =J54+(J55*3) -> 7570.342 | K56: 5957.1304
E58: Tarifas en US$ - Efectivas a partir del 1ro. de enero de 2022
E59: Este presupuesto solamente tiene carácter informativo y en ningún momento expresa compromiso legal para suministrarle cobertura de seguro. La emisión de una póliza de seguro Bupa está sujeta a todas las evaluaciones de riesgo por parte de Bupa y a la recepción de todos los pagos de prima requeridos.

Sheet — (hidden)
A23: Global Major Medical Health Plan | D23: Nombre del Asegurado Titular | F23: =+'INGRESO DE DATOS'!$D$15 -> Nombre Completo
A24: Cobertura geográfica | B24: Mundial
A25: Red de proveedores | B25: En Latinoamérica: Abierta En estados Unidos: BCBS En el resto del Mundo: Red Global Bupa | D25: Número de adultos en la póliza | F25: =+'INGRESO DE DATOS'!$D$17 -> 2 | H25: Edad del Asegurado Titular | I25: =+'INGRESO DE DATOS'!$D$19 -> 32
A26: Opción fuera de la red de proveedores | B26: N/A
A27: Cobertura máxima annual | B27: US$5,000,000 | D27: Número de niños en la póliza | F27: =+'INGRESO DE DATOS'!$H$17 -> 2 | H27: Edad del/la conyuge | I27: =+'INGRESO DE DATOS'!$H$19 -> 46
A28: Cobertura extendida para dependientes elegibles | B28: 1 año
A29: Inclusión de niños sin costo | B29: Tarifas con descuentos para 1, 2 y 3 o más hijos | F29: Fecha de la cotización: | H29: =NOW() -> 2022-08-02T16:29:34.620
A30: TRATAMIENTOS AMBULATORIOS | H30: FALSE
A31: Cirugía ambulatoria | B31: 1 | E31: Deducibles | G31: PLAN 1 | H31: PLAN 2
A32: Exámenes de patología, radiología y diagnóstico | B32: 1 | E32: En el país de residencia | G32: 10000 | H32: 20000
A33: Honorarios médicos | B33: N/A | E33: Fuera del país de residencia | G33: 10000 | H33: 20000
A34: Enfermeros profesionales | B34: N/A
A35: Salud mental | B35: N/A | E35: Tarifas Anuales
A36: Fisioterapeutas, osteópatas y quiroprácticos | B36: N/A | E36: Prima para Asegurado Titular | G36: =VLOOKUP($I$25,Tablas!$A$1129:$G$1195,3,TRUE) -> 3114 | H36: =VLOOKUP($I$25,Tablas!$A$1129:$G$1195,4,TRUE) -> 2371
A37: Terapeuta ocupacional y ortóptico | B37: N/A | E37: Prima para conyuge | G37: =IF($F$25=1,0,(VLOOKUP($I$27,Tablas!$A$1129:$G$1195,3,TRUE))) -> 4367 | H37: =IF($F$25=1,0,(VLOOKUP($I$27,Tablas!$A$1129:$G$1195,4,TRUE))) -> 3315
A38: Podología | B38: N/A | E38: Prima para hijo (s) | G38: =IF($F$27=0,0,(VLOOKUP($F$27,Tablas!$A$1196:$G$1198,3,TRUE))) -> 1870 | H38: =IF($F$27=0,0,(VLOOKUP($F$27,Tablas!$A$1196:$G$1198,4,TRUE))) -> 1467
A39: Terapias complementarias | B39: N/A | E39: Total de Prima neta | G39: =SUM(G36:G38) -> 9351 | H39: =SUM(H36:H38) -> 7153
A40: Consultas medicina alternativa | B40: N/A | E40: Tarifa administrativa anual | G40: 75 | H40: 75
A41: Medicamentos y materiales de curación con receta médica | B41: 1 | E41: IVA (14.49%) | G41: =(G40)*14.49% -> 10.8675 | H41: =(H40)*14.49% -> 10.8675
A42: Equipo médico durable | B42: 1 | E42: TOTAL ANUAL | G42: =SUM(G39:G41) -> 9436.8675 | H42: =SUM(H39:H41) -> 7238.8675
A43: Asesoría nutricional | B43: N/A
A44: TRATAMIENTO DENTAL | E44: Tarifas Semianuales
A45: Tratamiento dental relacionado con un accidente cubierto | B45: 1 | E45: Prima para Asegurado Titular | G45: =VLOOKUP($I$25,Tablas!$A$1353:$G$1419,3,TRUE) -> 1650.42 | H45: =VLOOKUP($I$25,Tablas!$A$1353:$G$1419,4,TRUE) -> 1256.63
A46: Tratamiento dental : rellenos, tratamiento del conducto radicular, radiografia, extraccion dental, limpieza dental, anestecia | B46: N/A | E46: Prima para conyuge | G46: =IF($F$25=1,0,(VLOOKUP($I$27,Tablas!$A$1353:$G$1419,3,TRUE))) -> 2314.51 | H46: =IF($F$25=1,0,(VLOOKUP($I$27,Tablas!$A$1353:$G$1419,4,TRUE))) -> 1756.95
A47: Restauración mayor no estética : puentes, coronas, implantes dentales, dentaduras postizas | B47: N/A | E47: Prima para hijo (s) | G47: =IF($F$27=0,0,(VLOOKUP($F$27,Tablas!$A$1420:$G$1422,3,TRUE))) -> 991.1 | H47: =IF($F$27=0,0,(VLOOKUP($F$27,Tablas!$A$1420:$G$1422,4,TRUE))) -> 777.51
A48: Ortodoncia no estética | B48: N/A | E48: Total de Prima neta | G48: =SUM(G45:G47) -> 4956.03 | H48: =SUM(H45:H47) -> 3791.09
A49: HOSPITALIZACIÓN Y TRATAMIENTO EN EL HOSPITAL | E49: Tarifa administrativa anual | G49: 75 | H49: 75
A50: Alojamiento en el hospital y alimentos | B50: 100% habitación privada | E50: IVA (14.49%) | G50: =(G49)*14.49% -> 10.8675 | H50: =(H49)*14.49% -> 10.8675
E51: TOTAL de primera cuota | G51: =SUM(G48:G50) -> 5041.8975 | H51: =SUM(H48:H50) -> 3876.9575
A52: Gastos de alojamiento para acompañantes en caso de hospitalización | B52: N/A | E52: Costo de segunda cuota | G52: =G48+G50 - G49*14.49% -> 4956.03 | H52: =H48+H50 - H49*14.49% -> 3791.09
A53: Cama extra en el hospital para acompañante | B53: 100%, 1 persona | E53: TOTAL ANUAL | G53: =G51+G52 -> 9997.9275 | H53: =H51+H52 -> 7668.0475
A54: Derecho a sala, insumos, materiales clínicos y medicamentos | B54: 1
A55: Cuidados intensivos | B55: 1 | E55: Tarifas Trimestrales
A56: Cirugía, incluyendo honorarios de equipo médico quirúrgico | B56: 1 | E56: Prima para Asegurado Titular | G56: =VLOOKUP($I$25,Tablas!$A$1278:$G$1344,3,TRUE) -> 856.35 | H56: =VLOOKUP($I$25,Tablas!$A$1278:$G$1344,4,TRUE) -> 652.025
A57: Exámenes de patología, radiología y diagnóstico | B57: 1 | E57: Prima para conyuge | G57: =IF($F$25=1,0,(VLOOKUP($I$27,Tablas!$A$1278:$G$1344,3,TRUE))) -> 1200.925 | H57: =IF($F$25=1,0,(VLOOKUP($I$27,Tablas!$A$1278:$G$1344,4,TRUE))) -> 911.625
A58: Fisioterapeutas, terapeutas ocupacionales, quinesiólogos, fonoaudiólogos y nutricionistas | B58: 1 | E58: Prima para hijo (s) | G58: =IF($F$27=0,0,(VLOOKUP($F$27,Tablas!$A$1345:$G$1347,3,TRUE))) -> 514.25 | H58: =IF($F$27=0,0,(VLOOKUP($F$27,Tablas!$A$1345:$G$1347,4,TRUE))) -> 403.425
A59: Cirugía por obesidad | B59: 100% (Período de espera de 24 meses) | E59: Total de Prima neta | G59: =SUM(G56:G58) -> 2571.525 | H59: =SUM(H56:H58) -> 1967.075
A60: Cirugía preventiva | B60: 1 | E60: Tarifa administrativa anual | G60: 75 | H60: 75
A61: Prótesis | B61: US$ 5,000 | E61: IVA (14.49%) | G61: =(G60)*14.49% -> 10.8675 | H61: =(H60)*14.49% -> 10.8675
A62: Implantes prostéticos y órtesis | B62: 1 | E62: TOTAL de primera cuota | G62: =SUM(G59:G61) -> 2657.3925 | H62: =SUM(H59:H61) -> 2052.9425
A63: Cirugía reconstructiva | B63: 1 | E63: Tres (3) cuotas adicionales, cada una de: | G63: =G59+G61 - G60*14.49% -> 2571.525 | H63: =H59+H61 - H60*14.49% -> 1967.075
A64: Salud Mental (durante hospitalización) | B64: 100% maximo 90 visitas de por vida | E64: TOTAL ANUAL | G64: =G62+(G63*3) -> 10371.9675 | H64: =H62+(H63*3) -> 7954.1675
A65: REHABILITACION Y CUIDADO PALIATIVOS
A66: Cuidados en el hogar | B66: US$ 300 por día, máximo 60 días | E66: Tarifas Mensuales
A67: Cuidados paliativos y centro para enfermeros terminales | B67: 1 | E67: Prima para Asegurado Titular | G67: =VLOOKUP($I$25,Tablas!$A$1203:$G$1269,3,TRUE) -> 290.64 | H67: =VLOOKUP($I$25,Tablas!$A$1203:$G$1269,4,TRUE) -> 221.2933333
A68: Rehabilitación (multidisciplinaria) | B68: 100% hasta 60 días | E68: Prima para conyuge | G68: =IF($F$25=1,0,(VLOOKUP($I$27,Tablas!$A$1203:$G$112694,3,TRUE))) -> 407.5866667 | H68: =IF($F$25=1,0,(VLOOKUP($I$27,Tablas!$A$1203:$G$1269,4,TRUE))) -> 309.4
A69: CUIDADOS PARA PACIENTES INTERNADOS Y/O PACIENTES AMBULATORIOS | E69: Prima para hijo (s) | G69: =IF($F$27=0,0,(VLOOKUP($F$27,Tablas!$A$1270:$G$1272,3,TRUE))) -> 174.5333333 | H69: =IF($F$27=0,0,(VLOOKUP($F$27,Tablas!$A$1270:$G$1272,4,TRUE))) -> 136.92
A70: Imagenología avanzada | B70: 1 | E70: Total de Prima neta | G70: =SUM(G67:G69) -> 872.76 | H70: =SUM(H67:H69) -> 667.6133333
A71: Condiciones congénitas | E71: Tarifa administrativa anual | G71: 75 | H71: 75
A72: 1. Diagnosticado antes de los 18 años de edad | B72: 1. US$500,000 de por vida | E72: IVA (14.49%) | G72: =(G71)*14.49% -> 10.8675 | H72: =(H71)*14.49% -> 10.8675
A73: 2. Diagnosticado al cumplir los 18 años de edad o después | B73: 2. 100% | E73: TOTAL de primera cuota | G73: =SUM(G70:G72) -> 958.6275 | H73: =SUM(H70:H72) -> 753.4808333
A74: Tratamiento contra el cáncer | B74: 1 | E74: Once (11) cuotas mensuales cada una de: | G74: =G70+G72 - G71*14.49% -> 872.76 | H74: =H70+H72 - H71*14.49% -> 667.6133333
A75: Servicio de trasplantes | B75: US$1,000,000 por diagnóstico, de por vida | E75: TOTAL ANUAL | G75: =G73+(G74*11) -> 10558.9875 | H75: =H73+(H74*11) -> 8097.2275
A76: Diálisis renal | B76: 1
A77: Síndrome de inmunodeficiencia adquirida (SIDA) (período de espera de 1 año) | B77: US$500,000 de por vida
A78: Cobertura para actividades y deportes peligrosos (Tanto de forma amateur como profesional o por compensación) | B78: 1
A79: EMBARAZO Y PARTO
A80: Parto normal y cesárea | B80: N/A
A81: Tratamiento pre y post parto | B81: N/A
A82: Complicaciones del embarazo y parto | B82: N/A
A83: TRANSPORTE Y VIAJES | E83: Tarifas en US$ - Efectivas a partir del 01 de Enero, 2017 hasta Julio 1, 2017
A84: Evacuación médica hospitalaria | B84: 1 | E84: Este presupuesto solamente tiene carácter informativo y en ningún momento expresa compromiso legal para suministrarle cobertura de seguro. La emisión de una póliza de seguro Bupa está sujeta a todas las evaluaciones de riesgo por parte de Bupa y a la recepción de todos los pagos de prima requeridos.
A85: Repatriación médica | B85: 1
A86: Ambulancia aérea local | B86: 1
A87: Ambulancia terrestre local | B87: 1
A88: Costos de viaje de traslado para un acompañante (por evacuación o repatriación)) | B88: 1
A89: Costos de alimentación y transporte para acompañante | B89: US$150 por día; maximo 10 días por año políza
A90: Costos de viaje de traslado de niños | B90: 1
A91: Costos de viaje de traslado, alimentación y trasporte para visita compasiva | B91: N/A
A92: Repatriación de restos mortales | B92: 1
A93: TRATAMIENTO PREVENTIVO
A94: Examen de salud general (período de espera de 10 meses) | B94: N/A
A95: Vacunas para niños, VPH, e Influenza | B95: N/A
A96: Examen dental preventivo (período de espera de 6 meses) (no deducible) | B96: N/A
A97: Exámen de la vista (no deducible) | B97: N/A
A98: Aparatos auditivos | B98: N/A
A99: Anteojos y lentes de contacto | B99: N/A
A100: Cirugía refractiva (1 por ojo, de por vida) | B100: N/A
A101: Prueba genética de cáncer | B101: N/A

Sheet Resumen tarifas
A17: Cotizador de Seguro Médico - Global Health Plans
A19: Nombre del Asegurado Titular | C19: =+'INGRESO DE DATOS'!$D$15 -> Nombre Completo
A21: Número de adultos en la póliza | C21: =+'INGRESO DE DATOS'!$D$17 -> 2 | E21: Edad del Asegurado Titular | G21: =+'INGRESO DE DATOS'!$D$19 -> 32
A23: Número de niños en la póliza | C23: =+'INGRESO DE DATOS'!$H$17 -> 2 | E23: Edad del/la cónyuge | G23: =+'INGRESO DE DATOS'!$H$19 -> 46
B25: Fecha de la cotización: | C25: =NOW() -> 2022-08-02T16:29:34.620 | F25: Zona de cotización: | G25: ='INGRESO DE DATOS'!D21 -> Guayas/Santa Elena
A27: Global Ultimtate Health Plan
A28: Deducibles | C28: PLAN 1 | D28: PLAN 2
A29: En el país de residencia | C29: 0 | D29: 1000
A30: Fuera del país de residencia | C30: 0 | D30: 1000
C31: Tarifas anuales
C32: ='Global Health Ultimate'!G33 -> 72709.52 | D32: ='Global Health Ultimate'!H33 -> 46936.24
C33: Tarifas semi anuales
C34: ='Global Health Ultimate'!G44 -> 38494.7056 | D34: ='Global Health Ultimate'!H44 -> 24834.8672
C35: Tarifas trimestrales
C36: ='Global Health Ultimate'!G56 -> 19973.668 | D36: ='Global Health Ultimate'!H56 -> 12886.016
A37: Ahorros en tarifas de prima para niños* | C37: ='Global Health Ultimate'!G34 -> 17359 | D37: ='Global Health Ultimate'!H34 -> 11198
A39: Global Elite Health Plan
A40: Deducibles | D40: PLAN 1 | E40: PLAN 2 | F40: PLAN 3 | G40: PLAN 4 | H40: PLAN 5
A41: En el país de residencia | D41: 250 | E41: 2000 | F41: 3500 | G41: 5000 | H41: 10000
A42: Fuera del país de residencia | D42: 5000 | E42: 2000 | F42: 3500 | G42: 5000 | H42: 10000
D43: Tarifas anuales
D44: =+'Global Health Elite'!G33 -> 29641.612 | E44: =+'Global Health Elite'!H33 -> 25998.648 | F44: =+'Global Health Elite'!I33 -> 20693.764 | G44: =+'Global Health Elite'!J33 -> 17955.132 | H44: =+'Global Health Elite'!K33 -> 13407.836
D45: Tarifas semi anuales
D46: =+'Global Health Elite'!G44 -> 15668.71436 | E46: =+'Global Health Elite'!H44 -> 13737.94344 | F46: =+'Global Health Elite'!I44 -> 10926.35492 | G46: =+'Global Health Elite'!J44 -> 9474.87996 | H46: =+'Global Health Elite'!K44 -> 7064.81308
D47: Tarifas trimestrales
D48: =+'Global Health Elite'!G56 -> 8129.9933 | E48: =+'Global Health Elite'!H56 -> 7128.1782 | F48: =+'Global Health Elite'!I56 -> 5669.3351 | G48: =+'Global Health Elite'!J56 -> 4916.2113 | H48: =+'Global Health Elite'!K56 -> 3665.7049
A49: Ahorros en tarifas de prima para niños* | D49: =+'Global Health Elite'!G34 -> 3667.75 | E49: =+'Global Health Elite'!H34 -> 3218.1 | F49: =+'Global Health Elite'!I34 -> 2623.1 | G49: =+'Global Health Elite'!J34 -> 2275.45 | H49: =+'Global Health Elite'!K34 -> 2623.1
A51: Global Premier Health Plan
A52: Deducibles | E52: PLAN 1 | F52: PLAN 2 | G52: PLAN 3 | H52: PLAN 4 | I52: PLAN 5
A53: En el país de residencia | E53: 250 | F53: 2000 | G53: 5000 | H53: 10000 | I53: 20000
A54: Fuera del país de residencia | E54: 5000 | F54: 2000 | G54: 5000 | H54: 10000 | I54: 20000
E55: Tarifas anuales
E56: =+'Global Health Premier'!G35 -> 21080.956 | F56: =+'Global Health Premier'!H35 -> 19138.808 | G56: =+'Global Health Premier'!I35 -> 13624.416 | H56: =+'Global Health Premier'!J35 -> 9768.408 | I56: =+'Global Health Premier'!K35 -> 7677.748
E57: Tarifas semi anuales
E58: =+'Global Health Premier'!G45 -> 11131.56668 | F58: =+'Global Health Premier'!H45 -> 10102.22824 | G58: =+'Global Health Premier'!I45 -> 7179.60048 | H58: =+'Global Health Premier'!J45 -> 5135.91624 | I58: =+'Global Health Premier'!K45 -> 4027.86644
E59: Tarifas trimestrales
E60: =+'Global Health Premier'!G56 -> 5775.8129 | F60: =+'Global Health Premier'!H56 -> 5241.7222 | G60: =+'Global Health Premier'!I56 -> 3725.2644 | H60: =+'Global Health Premier'!J56 -> 2664.8622 | I60: =+'Global Health Premier'!K56 -> 2089.9307
A62: Global Select Health Plan
A63: Deducibles | E63: PLAN 1 | F63: PLAN 2 | G63: PLAN 3 | H63: PLAN 4 | I63: PLAN 5
A64: En el país de residencia | E64: 250 | F64: 2000 | G64: 5000 | H64: 10000 | I64: 20000
A65: Fuera del país de residencia | E65: 5000 | F65: 2000 | G65: 5000 | H65: 10000 | I65: 20000
E66: Tarifas anuales
E67: =+'Global Health Select'!G34 -> 14028.404 | F67: =+'Global Health Select'!H34 -> 13462.644 | G67: =+'Global Health Select'!I34 -> 9610.172 | H67: =+'Global Health Select'!J34 -> 6889.22 | I67: =+'Global Health Select'!K34 -> 5422.664
E68: Tarifas semi anuales
E69: =+'Global Health Select'!G44 -> 7393.71412 | F69: =+'Global Health Select'!H44 -> 7093.86132 | G69: =+'Global Health Select'!I44 -> 5052.05116 | H69: =+'Global Health Select'!J44 -> 3609.9466 | I69: =+'Global Health Select'!K44 -> 2832.67192
E70: Tarifas trimestrales
E71: =+'Global Health Select'!G55 -> 3836.3611 | F71: =+'Global Health Select'!H55 -> 3680.7771 | G71: =+'Global Health Select'!I55 -> 2621.3473 | H71: =+'Global Health Select'!J55 -> 1873.0855 | I71: =+'Global Health Select'!K55 -> 1469.7826
A73: Bupa Global Major Medical Health Plan
A74: Deducibles | C74: PLAN 1 | D74: PLAN 2
A75: En el país de residencia | C75: 10000 | D75: 20000
A76: Fuera del país de residencia | C76: 10000 | D76: 20000
C77: Tarifas anuales
C78: =—!G42 -> 9436.8675 | D78: =—!H42 -> 7238.8675
C79: Tarifas semi anuales
C80: =—!G52 -> 4956.03 | D80: =—!H52 -> 3791.09
C81: Tarifas trimestrales
C82: =—!G63 -> 2571.525 | D82: =—!H63 -> 1967.075
A85: *Basado en un modo de pago anual
A87: Tarifas en US$ - Efectivas a partir del 1ro. de enero de 2022
A88: Este presupuesto solamente tiene carácter informativo y en ningún momento expresa compromiso legal para suministrarle cobertura de seguro. La emisión de una póliza de seguro Bupa está sujeta a todas las evaluaciones de riesgo por parte de Bupa y a la recepción de todos los pagos de prima requeridos.

Sheet Tablas (hidden)
A2: BUPA GLOBAL ELITE | I2: FACTOR MENSUAL: | K2: =1.12/12 -> 0.09333333333 | N2: Zonas
A3: TARIFAS ANUALES | I3: FACTOR TRIMESTRAL: | K3: =1.1/4 -> 0.275 | N3: Guayas/Santa Elena
A4: EDAD | I4: FACTOR SEMIANUAL: | K4: =1.06/2 -> 0.53 | N4: Resto de Ecuador
C5: 250 | D5: 2000 | E5: 3500 | F5: 5000 | G5: 10000
A6: 18 | C6: =O6 -> 8681.9 | D6: =P6 -> 7610.9 | E6: 6160.8 | F6: 5344.8 | G6: 3985.65 | I6: =IF('INGRESO DE DATOS'!$D$21="Guayas/Santa Elena",'Tablas Guayaquil'!C6,'Tablas Resto de Ecuador'!C6) -> 10214 | J6: =IF('INGRESO DE DATOS'!$D$21="Guayas/Santa Elena",'Tablas Guayaquil'!D6,'Tablas Resto de Ecuador'!D6) -> 8954 | K6: =IF('INGRESO DE DATOS'!$D$21="Guayas/Santa Elena",'Tablas Guayaquil'!E6,'Tablas Resto de Ecuador'!E6) -> 7248 | L6: =IF('INGRESO DE DATOS'!$D$21="Guayas/Santa Elena",'Tablas Guayaquil'!F6,'Tablas Resto de Ecuador'!F6) -> 6288 | M6: =IF('INGRESO DE DATOS'!$D$21="Guayas/Santa Elena",'Tablas Guayaquil'!G6,'Tablas Resto de Ecuador'!G6) -> 4689 | O6: =I6*0.85 -> 8681.9 | P6: =J6*0.85 -> 7610.9 | Q6: 6160.8 | R6: 5344.8 | S6: 3985.65
A7: 19 | C7: =O7 -> 8681.9 | D7: =P7 -> 7610.9 | E7: =Q7 -> 6160.8 | F7: =R7 -> 5344.8 | G7: =S7 -> 3985.65 | I7: =IF('INGRESO DE DATOS'!$D$21="Guayas/Santa Elena",'Tablas Guayaquil'!C7,'Tablas Resto de Ecuador'!C7) -> 10214 | J7: =IF('INGRESO DE DATOS'!$D$21="Guayas/Santa Elena",'Tablas Guayaquil'!D7,'Tablas Resto de Ecuador'!D7) -> 8954 | K7: =IF('INGRESO DE DATOS'!$D$21="Guayas/Santa Elena",'Tablas Guayaquil'!E7,'Tablas Resto de Ecuador'!E7) -> 7248 | L7: =IF('INGRESO DE DATOS'!$D$21="Guayas/Santa Elena",'Tablas Guayaquil'!F7,'Tablas Resto de Ecuador'!F7) -> 6288 | M7: =IF('INGRESO DE DATOS'!$D$21="Guayas/Santa Elena",'Tablas Guayaquil'!G7,'Tablas Resto de Ecuador'!G7) -> 4689 | O7: =I7*0.85 -> 8681.9 | P7: =J7*0.85 -> 7610.9 | Q7: =K7*0.85 -> 6160.8 | R7: =L7*0.85 -> 5344.8 | S7: =M7*0.85 -> 3985.65
A8: 20 | C8: 8681.9 | D8: 7610.9 | E8: 6160.8 | F8: 5344.8 | G8: 3985.65 | I8: =IF('INGRESO DE DATOS'!$D$21="Guayas/Santa Elena",'Tablas Guayaquil'!C8,'Tablas Resto de Ecuador'!C8) -> 10214 | J8: =IF('INGRESO DE DATOS'!$D$21="Guayas/Santa Elena",'Tablas Guayaquil'!D8,'Tablas Resto de Ecuador'!D8) -> 8954 | K8: =IF('INGRESO DE DATOS'!$D$21="Guayas/Santa Elena",'Tablas Guayaquil'!E8,'Tablas Resto de Ecuador'!E8) -> 7248 | L8: =IF('INGRESO DE DATOS'!$D$21="Guayas/Santa Elena",'Tablas Guayaquil'!F8,'Tablas Resto de Ecuador'!F8) -> 6288 | M8: =IF('INGRESO DE DATOS'!$D$21="Guayas/Santa Elena",'Tablas Guayaquil'!G8,'Tablas Resto de Ecuador'!G8) -> 4689 | O8: 8681.9 | P8: 7610.9 | Q8: 6160.8 | R8: 5344.8 | S8: 3985.65
A9: 21 | C9: 8681.9 | D9: 7610.9 | E9: 6160.8 | F9: 5344.8 | G9: 3985.65 | I9: =IF('INGRESO DE DATOS'!$D$21="Guayas/Santa Elena",'Tablas Guayaquil'!C9,'Tablas Resto de Ecuador'!C9) -> 10214 | J9: =IF('INGRESO DE DATOS'!$D$21="Guayas/Santa Elena",'Tablas Guayaquil'!D9,'Tablas Resto de Ecuador'!D9) -> 8954 | K9: =IF('INGRESO DE DATOS'!$D$21="Guayas/Santa Elena",'Tablas Guayaquil'!E9,'Tablas Resto de Ecuador'!E9) -> 7248 | L9: =IF('INGRESO DE DATOS'!$D$21="Guayas/Santa Elena",'Tablas Guayaquil'!F9,'Tablas Resto de Ecuador'!F9) -> 6288 | M9: =IF('INGRESO DE DATOS'!$D$21="Guayas/Santa Elena",'Tablas Guayaquil'!G9,'Tablas Resto de Ecuador'!G9) -> 4689 | O9: 8681.9 | P9: 7610.9 | Q9: 6160.8 | R9: 5344.8 | S9: 3985.65
A10: 22 | C10: 8681.9 | D10: 7610.9 | E10: 6160.8 | F10: 5344.8 | G10: 3985.65 | I10: =IF('INGRESO DE DATOS'!$D$21="Guayas/Santa Elena",'Tablas Guayaquil'!C10,'Tablas Resto de Ecuador'!C10) -> 10214 | J10: =IF('INGRESO DE DATOS'!$D$21="Guayas/Santa Elena",'Tablas Guayaquil'!D10,'Tablas Resto de Ecuador'!D10) -> 8954 | K10: =IF('INGRESO DE DATOS'!$D$21="Guayas/Santa Elena",'Tablas Guayaquil'!E10,'Tablas Resto de Ecuador'!E10) -> 7248 | L10: =IF('INGRESO DE DATOS'!$D$21="Guayas/Santa Elena",'Tablas Guayaquil'!F10,'Tablas Resto de Ecuador'!F10) -> 6288 | M10: =IF('INGRESO DE DATOS'!$D$21="Guayas/Santa Elena",'Tablas Guayaquil'!G10,'Tablas Resto de Ecuador'!G10) -> 4689 | O10: 8681.9 | P10: 7610.9 | Q10: 6160.8 | R10: 5344.8 | S10: 3985.65
A11: 23 | C11: 8681.9 | D11: 7610.9 | E11: 6160.8 | F11: 5344.8 | G11: 3985.65 | I11: =IF('INGRESO DE DATOS'!$D$21="Guayas/Santa Elena",'Tablas Guayaquil'!C11,'Tablas Resto de Ecuador'!C11) -> 10214 | J11: =IF('INGRESO DE DATOS'!$D$21="Guayas/Santa Elena",'Tablas Guayaquil'!D11,'Tablas Resto de Ecuador'!D11) -> 8954 | K11: =IF('INGRESO DE DATOS'!$D$21="Guayas/Santa Elena",'Tablas Guayaquil'!E11,'Tablas Resto de Ecuador'!E11) -> 7248 | L11: =IF('INGRESO DE DATOS'!$D$21="Guayas/Santa Elena",'Tablas Guayaquil'!F11,'Tablas Resto de Ecuador'!F11) -> 6288 | M11: =IF('INGRESO DE DATOS'!$D$21="Guayas/Santa Elena",'Tablas Guayaquil'!G11,'Tablas Resto de Ecuador'!G11) -> 4689 | O11: 8681.9 | P11: 7610.9 | Q11: 6160.8 | R11: 5344.8 | S11: 3985.65
A12: 24 | C12: 8681.9 | D12: 7610.9 | E12: 6160.8 | F12: 5344.8 | G12: 3985.65 | I12: =IF('INGRESO DE DATOS'!$D$21="Guayas/Santa Elena",'Tablas Guayaquil'!C12,'Tablas Resto de Ecuador'!C12) -> 10214 | J12: =IF('INGRESO DE DATOS'!$D$21="Guayas/Santa Elena",'Tablas Guayaquil'!D12,'Tablas Resto de Ecuador'!D12) -> 8954 | K12: =IF('INGRESO DE DATOS'!$D$21="Guayas/Santa Elena",'Tablas Guayaquil'!E12,'Tablas Resto de Ecuador'!E12) -> 7248 | L12: =IF('INGRESO DE DATOS'!$D$21="Guayas/Santa Elena",'Tablas Guayaquil'!F12,'Tablas Resto de Ecuador'!F12) -> 6288 | M12: =IF('INGRESO DE DATOS'!$D$21="Guayas/Santa Elena",'Tablas Guayaquil'!G12,'Tablas Resto de Ecuador'!G12) -> 4689 | O12: 8681.9 | P12: 7610.9 | Q12: 6160.8 | R12: 5344.8 | S12: 3985.65
A13: 25 | C13: 9278.6 | D13: 8132.8 | E13: 6544.15 | F13: 5676.3 | G13: 4231.3 | I13: =IF('INGRESO DE DATOS'!$D$21="Guayas/Santa Elena",'Tablas Guayaquil'!C13,'Tablas Resto de Ecuador'!C13) -> 10916 | J13: =IF('INGRESO DE DATOS'!$D$21="Guayas/Santa Elena",'Tablas Guayaquil'!D13,'Tablas Resto de Ecuador'!D13) -> 9568 | K13: =IF('INGRESO DE DATOS'!$D$21="Guayas/Santa Elena",'Tablas Guayaquil'!E13,'Tablas Resto de Ecuador'!E13) -> 7699 | L13: =IF('INGRESO DE DATOS'!$D$21="Guayas/Santa Elena",'Tablas Guayaquil'!F13,'Tablas Resto de Ecuador'!F13) -> 6678 | M13: =IF('INGRESO DE DATOS'!$D$21="Guayas/Santa Elena",'Tablas Guayaquil'!G13,'Tablas Resto de Ecuador'!G13) -> 4978 | O13: 9278.6 | P13: 8132.8 | Q13: 6544.15 | R13: 5676.3 | S13: 4231.3
A14: 26 | C14: 9278.6 | D14: 8132.8 | E14: 6544.15 | F14: 5676.3 | G14: 4231.3 | I14: =IF('INGRESO DE DATOS'!$D$21="Guayas/Santa Elena",'Tablas Guayaquil'!C14,'Tablas Resto de Ecuador'!C14) -> 10916 | J14: =IF('INGRESO DE DATOS'!$D$21="Guayas/Santa Elena",'Tablas Guayaquil'!D14,'Tablas Resto de Ecuador'!D14) -> 9568 | K14: =IF('INGRESO DE DATOS'!$D$21="Guayas/Santa Elena",'Tablas Guayaquil'!E14,'Tablas Resto de Ecuador'!E14) -> 7699 | L14: =IF('INGRESO DE DATOS'!$D$21="Guayas/Santa Elena",'Tablas Guayaquil'!F14,'Tablas Resto de Ecuador'!F14) -> 6678 | M14: =IF('INGRESO DE DATOS'!$D$21="Guayas/Santa Elena",'Tablas Guayaquil'!G14,'Tablas Resto de Ecuador'!G14) -> 4978 | O14: 9278.6 | P14: 8132.8 | Q14: 6544.15 | R14: 5676.3 | S14: 4231.3
A15: 27 | C15: 9278.6 | D15: 8132.8 | E15: 6544.15 | F15: 5676.3 | G15: 4231.3 | I15: =IF('INGRESO DE DATOS'!$D$21="Guayas/Santa Elena",'Tablas Guayaquil'!C15,'Tablas Resto de Ecuador'!C15) -> 10916 | J15: =IF('INGRESO DE DATOS'!$D$21="Guayas/Santa Elena",'Tablas Guayaquil'!D15,'Tablas Resto de Ecuador'!D15) -> 9568 | K15: =IF('INGRESO DE DATOS'!$D$21="Guayas/Santa Elena",'Tablas Guayaquil'!E15,'Tablas Resto de Ecuador'!E15) -> 7699 | L15: =IF('INGRESO DE DATOS'!$D$21="Guayas/Santa Elena",'Tablas Guayaquil'!F15,'Tablas Resto de Ecuador'!F15) -> 6678 | M15: =IF('INGRESO DE DATOS'!$D$21="Guayas/Santa Elena",'Tablas Guayaquil'!G15,'Tablas Resto de Ecuador'!G15) -> 4978 | O15: 9278.6 | P15: 8132.8 | Q15: 6544.15 | R15: 5676.3 | S15: 4231.3
A16: 28 | C16: 9278.6 | D16: 8132.8 | E16: 6544.15 | F16: 5676.3 | G16: 4231.3 | I16: =IF('INGRESO DE DATOS'!$D$21="Guayas/Santa Elena",'Tablas Guayaquil'!C16,'Tablas Resto de Ecuador'!C16) -> 10916 | J16: =IF('INGRESO DE DATOS'!$D$21="Guayas/Santa Elena",'Tablas Guayaquil'!D16,'Tablas Resto de Ecuador'!D16) -> 9568 | K16: =IF('INGRESO DE DATOS'!$D$21="Guayas/Santa Elena",'Tablas Guayaquil'!E16,'Tablas Resto de Ecuador'!E16) -> 7699 | L16: =IF('INGRESO DE DATOS'!$D$21="Guayas/Santa Elena",'Tablas Guayaquil'!F16,'Tablas Resto de Ecuador'!F16) -> 6678 | M16: =IF('INGRESO DE DATOS'!$D$21="Guayas/Santa Elena",'Tablas Guayaquil'!G16,'Tablas Resto de Ecuador'!G16) -> 4978 | O16: 9278.6 | P16: 8132.8 | Q16: 6544.15 | R16: 5676.3 | S16: 4231.3
A17: 29 | C17: 9278.6 | D17: 8132.8 | E17: 6544.15 | F17: 5676.3 | G17: 4231.3 | I17: =IF('INGRESO DE DATOS'!$D$21="Guayas/Santa Elena",'Tablas Guayaquil'!C17,'Tablas Resto de Ecuador'!C17) -> 10916 | J17: =IF('INGRESO DE DATOS'!$D$21="Guayas/Santa Elena",'Tablas Guayaquil'!D17,'Tablas Resto de Ecuador'!D17) -> 9568 | K17: =IF('INGRESO DE DATOS'!$D$21="Guayas/Santa Elena",'Tablas Guayaquil'!E17,'Tablas Resto de Ecuador'!E17) -> 7699 | L17: =IF('INGRESO DE DATOS'!$D$21="Guayas/Santa Elena",'Tablas Guayaquil'!F17,'Tablas Resto de Ecuador'!F17) -> 6678 | M17: =IF('INGRESO DE DATOS'!$D$21="Guayas/Santa Elena",'Tablas Guayaquil'!G17,'Tablas Resto de Ecuador'!G17) -> 4978 | O17: 9278.6 | P17: 8132.8 | Q17: 6544.15 | R17: 5676.3 | S17: 4231.3
A18: 30 | C18: 10317.3 | D18: 9044.85 | E18: 7223.3 | F18: 6263.65 | G18: 4669.9 | I18: =IF('INGRESO DE DATOS'!$D$21="Guayas/Santa Elena",'Tablas Guayaquil'!C18,'Tablas Resto de Ecuador'!C18) -> 12138 | J18: =IF('INGRESO DE DATOS'!$D$21="Guayas/Santa Elena",'Tablas Guayaquil'!D18,'Tablas Resto de Ecuador'!D18) -> 10641 | K18: =IF('INGRESO DE DATOS'!$D$21="Guayas/Santa Elena",'Tablas Guayaquil'!E18,'Tablas Resto de Ecuador'!E18) -> 8498 | L18: =IF('INGRESO DE DATOS'!$D$21="Guayas/Santa Elena",'Tablas Guayaquil'!F18,'Tablas Resto de Ecuador'!F18) -> 7369 | M18: =IF('INGRESO DE DATOS'!$D$21="Guayas/Santa Elena",'Tablas Guayaquil'!G18,'Tablas Resto de Ecuador'!G18) -> 5494 | O18: 10317.3 | P18: 9044.85 | Q18: 7223.3 | R18: 6263.65 | S18: 4669.9
A19: 31 | C19: 10317.3 | D19: 9044.85 | E19: 7223.3 | F19: 6263.65 | G19: 4669.9 | I19: =IF('INGRESO DE DATOS'!$D$21="Guayas/Santa Elena",'Tablas Guayaquil'!C19,'Tablas Resto de Ecuador'!C19) -> 12138 | J19: =IF('INGRESO DE DATOS'!$D$21="Guayas/Santa Elena",'Tablas Guayaquil'!D19,'Tablas Resto de Ecuador'!D19) -> 10641 | K19: =IF('INGRESO DE DATOS'!$D$21="Guayas/Santa Elena",'Tablas Guayaquil'!E19,'Tablas Resto de Ecuador'!E19) -> 8498 | L19: =IF('INGRESO DE DATOS'!$D$21="Guayas/Santa Elena",'Tablas Guayaquil'!F19,'Tablas Resto de Ecuador'!F19) -> 7369 | M19: =IF('INGRESO DE DATOS'!$D$21="Guayas/Santa Elena",'Tablas Guayaquil'!G19,'Tablas Resto de Ecuador'!G19) -> 5494 | O19: 10317.3 | P19: 9044.85 | Q19: 7223.3 | R19: 6263.65 | S19: 4669.9
A20: 32 | C20: 10317.3 | D20: 9044.85 | E20: 7223.3 | F20: 6263.65 | G20: 4669.9 | I20: =IF('INGRESO DE DATOS'!$D$21="Guayas/Santa Elena",'Tablas Guayaquil'!C20,'Tablas Resto de Ecuador'!C20) -> 12138 | J20: =IF('INGRESO DE DATOS'!$D$21="Guayas/Santa Elena",'Tablas Guayaquil'!D20,'Tablas Resto de Ecuador'!D20) -> 10641 | K20: =IF('INGRESO DE DATOS'!$D$21="Guayas/Santa Elena",'Tablas Guayaquil'!E20,'Tablas Resto de Ecuador'!E20) -> 8498 | L20: =IF('INGRESO DE DATOS'!$D$21="Guayas/Santa Elena",'Tablas Guayaquil'!F20,'Tablas Resto de Ecuador'!F20) -> 7369 | M20: =IF('INGRESO DE DATOS'!$D$21="Guayas/Santa Elena",'Tablas Guayaquil'!G20,'Tablas Resto de Ecuador'!G20) -> 5494 | O20: 10317.3 | P20: 9044.85 | Q20: 7223.3 | R20: 6263.65 | S20: 4669.9
A21: 33 | C21: 10317.3 | D21: 9044.85 | E21: 7223.3 | F21: 6263.65 | G21: 4669.9 | I21: =IF('INGRESO DE DATOS'!$D$21="Guayas/Santa Elena",'Tablas Guayaquil'!C21,'Tablas Resto de Ecuador'!C21) -> 12138 | J21: =IF('INGRESO DE DATOS'!$D$21="Guayas/Santa Elena",'Tablas Guayaquil'!D21,'Tablas Resto de Ecuador'!D21) -> 10641 | K21: =IF('INGRESO DE DATOS'!$D$21="Guayas/Santa Elena",'Tablas Guayaquil'!E21,'Tablas Resto de Ecuador'!E21) -> 8498 | L21: =IF('INGRESO DE DATOS'!$D$21="Guayas/Santa Elena",'Tablas Guayaquil'!F21,'Tablas Resto de Ecuador'!F21) -> 7369 | M21: =IF('INGRESO DE DATOS'!$D$21="Guayas/Santa Elena",'Tablas Guayaquil'!G21,'Tablas Resto de Ecuador'!G21) -> 5494 | O21: 10317.3 | P21: 9044.85 | Q21: 7223.3 | R21: 6263.65 | S21: 4669.9
A22: 34 | C22: 10317.3 | D22: 9044.85 | E22: 7223.3 | F22: 6263.65 | G22: 4669.9 | I22: =IF('INGRESO DE DATOS'!$D$21="Guayas/Santa Elena",'Tablas Guayaquil'!C22,'Tablas Resto de Ecuador'!C22) -> 12138 | J22: =IF('INGRESO DE DATOS'!$D$21="Guayas/Santa Elena",'Tablas Guayaquil'!D22,'Tablas Resto de Ecuador'!D22) -> 10641 | K22: =IF('INGRESO DE DATOS'!$D$21="Guayas/Santa Elena",'Tablas Guayaquil'!E22,'Tablas Resto de Ecuador'!E22) -> 8498 | L22: =IF('INGRESO DE DATOS'!$D$21="Guayas/Santa Elena",'Tablas Guayaquil'!F22,'Tablas Resto de Ecuador'!F22) -> 7369 | M22: =IF('INGRESO DE DATOS'!$D$21="Guayas/Santa Elena",'Tablas Guayaquil'!G22,'Tablas Resto de Ecuador'!G22) -> 5494 | O22: 10317.3 | P22: 9044.85 | Q22: 7223.3 | R22: 6263.65 | S22: 4669.9
A23: 35 | C23: 11521.75 | D23: 10096.3 | E23: 8017.2 | F23: 6952.15 | G23: 5185 | I23: =IF('INGRESO DE DATOS'!$D$21="Guayas/Santa Elena",'Tablas Guayaquil'!C23,'Tablas Resto de Ecuador'!C23) -> 13555 | J23: =IF('INGRESO DE DATOS'!$D$21="Guayas/Santa Elena",'Tablas Guayaquil'!D23,'Tablas Resto de Ecuador'!D23) -> 11878 | K23: =IF('INGRESO DE DATOS'!$D$21="Guayas/Santa Elena",'Tablas Guayaquil'!E23,'Tablas Resto de Ecuador'!E23) -> 9432 | L23: =IF('INGRESO DE DATOS'!$D$21="Guayas/Santa Elena",'Tablas Guayaquil'!F23,'Tablas Resto de Ecuador'!F23) -> 8179 | M23: =IF('INGRESO DE DATOS'!$D$21="Guayas/Santa Elena",'Tablas Guayaquil'!G23,'Tablas Resto de Ecuador'!G23) -> 6100 | O23: 11521.75 | P23: 10096.3 | Q23: 8017.2 | R23: 6952.15 | S23: 5185
A24: 36 | C24: 11521.75 | D24: 10096.3 | E24: 8017.2 | F24: 6952.15 | G24: 5185 | I24: =IF('INGRESO DE DATOS'!$D$21="Guayas/Santa Elena",'Tablas Guayaquil'!C24,'Tablas Resto de Ecuador'!C24) -> 13555 | J24: =IF('INGRESO DE DATOS'!$D$21="Guayas/Santa Elena",'Tablas Guayaquil'!D24,'Tablas Resto de Ecuador'!D24) -> 11878 | K24: =IF('INGRESO DE DATOS'!$D$21="Guayas/Santa Elena",'Tablas Guayaquil'!E24,'Tablas Resto de Ecuador'!E24) -> 9432 | L24: =IF('INGRESO DE DATOS'!$D$21="Guayas/Santa Elena",'Tablas Guayaquil'!F24,'Tablas Resto de Ecuador'!F24) -> 8179 | M24: =IF('INGRESO DE DATOS'!$D$21="Guayas/Santa Elena",'Tablas Guayaquil'!G24,'Tablas Resto de Ecuador'!G24) -> 6100 | O24: 11521.75 | P24: 10096.3 | Q24: 8017.2 | R24: 6952.15 | S24: 5185
A25: 37 | C25: 11521.75 | D25: 10096.3 | E25: 8017.2 | F25: 6952.15 | G25: 5185 | I25: =IF('INGRESO DE DATOS'!$D$21="Guayas/Santa Elena",'Tablas Guayaquil'!C25,'Tablas Resto de Ecuador'!C25) -> 13555 | J25: =IF('INGRESO DE DATOS'!$D$21="Guayas/Santa Elena",'Tablas Guayaquil'!D25,'Tablas Resto de Ecuador'!D25) -> 11878 | K25: =IF('INGRESO DE DATOS'!$D$21="Guayas/Santa Elena",'Tablas Guayaquil'!E25,'Tablas Resto de Ecuador'!E25) -> 9432 | L25: =IF('INGRESO DE DATOS'!$D$21="Guayas/Santa Elena",'Tablas Guayaquil'!F25,'Tablas Resto de Ecuador'!F25) -> 8179 | M25: =IF('INGRESO DE DATOS'!$D$21="Guayas/Santa Elena",'Tablas Guayaquil'!G25,'Tablas Resto de Ecuador'!G25) -> 6100 | O25: 11521.75 | P25: 10096.3 | Q25: 8017.2 | R25: 6952.15 | S25: 5185
A26: 38 | C26: 11521.75 | D26: 10096.3 | E26: 8017.2 | F26: 6952.15 | G26: 5185 | I26: =IF('INGRESO DE DATOS'!$D$21="Guayas/Santa Elena",'Tablas Guayaquil'!C26,'Tablas Resto de Ecuador'!C26) -> 13555 | J26: =IF('INGRESO DE DATOS'!$D$21="Guayas/Santa Elena",'Tablas Guayaquil'!D26,'Tablas Resto de Ecuador'!D26) -> 11878 | K26: =IF('INGRESO DE DATOS'!$D$21="Guayas/Santa Elena",'Tablas Guayaquil'!E26,'Tablas Resto de Ecuador'!E26) -> 9432 | L26: =IF('INGRESO DE DATOS'!$D$21="Guayas/Santa Elena",'Tablas Guayaquil'!F26,'Tablas Resto de Ecuador'!F26) -> 8179 | M26: =IF('INGRESO DE DATOS'!$D$21="Guayas/Santa Elena",'Tablas Guayaquil'!G26,'Tablas Resto de Ecuador'!G26) -> 6100 | O26: 11521.75 | P26: 10096.3 | Q26: 8017.2 | R26: 6952.15 | S26: 5185
A27: 39 | C27: 11521.75 | D27: 10096.3 | E27: 8017.2 | F27: 6952.15 | G27: 5185 | I27: =IF('INGRESO DE DATOS'!$D$21="Guayas/Santa Elena",'Tablas Guayaquil'!C27,'Tablas Resto de Ecuador'!C27) -> 13555 | J27: =IF('INGRESO DE DATOS'!$D$21="Guayas/Santa Elena",'Tablas Guayaquil'!D27,'Tablas Resto de Ecuador'!D27) -> 11878 | K27: =IF('INGRESO DE DATOS'!$D$21="Guayas/Santa Elena",'Tablas Guayaquil'!E27,'Tablas Resto de Ecuador'!E27) -> 9432 | L27: =IF('INGRESO DE DATOS'!$D$21="Guayas/Santa Elena",'Tablas Guayaquil'!F27,'Tablas Resto de Ecuador'!F27) -> 8179 | M27: =IF('INGRESO DE DATOS'!$D$21="Guayas/Santa Elena",'Tablas Guayaquil'!G27,'Tablas Resto de Ecuador'!G27) -> 6100 | O27: 11521.75 | P27: 10096.3 | Q27: 8017.2 | R27: 6952.15 | S27: 5185
A28: 40 | C28: 12903.85 | D28: 11311.8 | E28: 8941.15 | F28: 7753.7 | G28: 5780.85 | I28: =IF('INGRESO DE DATOS'!$D$21="Guayas/Santa Elena",'Tablas Guayaquil'!C28,'Tablas Resto de Ecuador'!C28) -> 15181 | J28: =IF('INGRESO DE DATOS'!$D$21="Guayas/Santa Elena",'Tablas Guayaquil'!D28,'Tablas Resto de Ecuador'!D28) -> 13308 | K28: =IF('INGRESO DE DATOS'!$D$21="Guayas/Santa Elena",'Tablas Guayaquil'!E28,'Tablas Resto de Ecuador'!E28) -> 10519 | L28: =IF('INGRESO DE DATOS'!$D$21="Guayas/Santa Elena",'Tablas Guayaquil'!F28,'Tablas Resto de Ecuador'!F28) -> 9122 | M28: =IF('INGRESO DE DATOS'!$D$21="Guayas/Santa Elena",'Tablas Guayaquil'!G28,'Tablas Resto de Ecuador'!G28) -> 6801 | O28: 12903.85 | P28: 11311.8 | Q28: 8941.15 | R28: 7753.7 | S28: 5780.85
A29: 41 | C29: 12903.85 | D29: 11311.8 | E29: 8941.15 | F29: 7753.7 | G29: 5780.85 | I29: =IF('INGRESO DE DATOS'!$D$21="Guayas/Santa Elena",'Tablas Guayaquil'!C29,'Tablas Resto de Ecuador'!C29) -> 15181 | J29: =IF('INGRESO DE DATOS'!$D$21="Guayas/Santa Elena",'Tablas Guayaquil'!D29,'Tablas Resto de Ecuador'!D29) -> 13308 | K29: =IF('INGRESO DE DATOS'!$D$21="Guayas/Santa Elena",'Tablas Guayaquil'!E29,'Tablas Resto de Ecuador'!E29) -> 10519 | L29: =IF('INGRESO DE DATOS'!$D$21="Guayas/Santa Elena",'Tablas Guayaquil'!F29,'Tablas Resto de Ecuador'!F29) -> 9122 | M29: =IF('INGRESO DE DATOS'!$D$21="Guayas/Santa Elena",'Tablas Guayaquil'!G29,'Tablas Resto de Ecuador'!G29) -> 6801 | O29: 12903.85 | P29: 11311.8 | Q29: 8941.15 | R29: 7753.7 | S29: 5780.85
A30: 42 | C30: 12903.85 | D30: 11311.8 | E30: 8941.15 | F30: 7753.7 | G30: 5780.85 | I30: =IF('INGRESO DE DATOS'!$D$21="Guayas/Santa Elena",'Tablas Guayaquil'!C30,'Tablas Resto de Ecuador'!C30) -> 15181 | J30: =IF('INGRESO DE DATOS'!$D$21="Guayas/Santa Elena",'Tablas Guayaquil'!D30,'Tablas Resto de Ecuador'!D30) -> 13308 | K30: =IF('INGRESO DE DATOS'!$D$21="Guayas/Santa Elena",'Tablas Guayaquil'!E30,'Tablas Resto de Ecuador'!E30) -> 10519 | L30: =IF('INGRESO DE DATOS'!$D$21="Guayas/Santa Elena",'Tablas Guayaquil'!F30,'Tablas Resto de Ecuador'!F30) -> 9122 | M30: =IF('INGRESO DE DATOS'!$D$21="Guayas/Santa Elena",'Tablas Guayaquil'!G30,'Tablas Resto de Ecuador'!G30) -> 6801 | O30: 12903.85 | P30: 11311.8 | Q30: 8941.15 | R30: 7753.7 | S30: 5780.85
A31: 43 | C31: 12903.85 | D31: 11311.8 | E31: 8941.15 | F31: 7753.7 | G31: 5780.85 | I31: =IF('INGRESO DE DATOS'!$D$21="Guayas/Santa Elena",'Tablas Guayaquil'!C31,'Tablas Resto de Ecuador'!C31) -> 15181 | J31: =IF('INGRESO DE DATOS'!$D$21="Guayas/Santa Elena",'Tablas Guayaquil'!D31,'Tablas Resto de Ecuador'!D31) -> 13308 | K31: =IF('INGRESO DE DATOS'!$D$21="Guayas/Santa Elena",'Tablas Guayaquil'!E31,'Tablas Resto de Ecuador'!E31) -> 10519 | L31: =IF('INGRESO DE DATOS'!$D$21="Guayas/Santa Elena",'Tablas Guayaquil'!F31,'Tablas Resto de Ecuador'!F31) -> 9122 | M31: =IF('INGRESO DE DATOS'!$D$21="Guayas/Santa Elena",'Tablas Guayaquil'!G31,'Tablas Resto de Ecuador'!G31) -> 6801 | O31: 12903.85 | P31: 11311.8 | Q31: 8941.15 | R31: 7753.7 | S31: 5780.85
A32: 44 | C32: 12903.85 | D32: 11311.8 | E32: 8941.15 | F32: 7753.7 | G32: 5780.85 | I32: =IF('INGRESO DE DATOS'!$D$21="Guayas/Santa Elena",'Tablas Guayaquil'!C32,'Tablas Resto de Ecuador'!C32) -> 15181 | J32: =IF('INGRESO DE DATOS'!$D$21="Guayas/Santa Elena",'Tablas Guayaquil'!D32,'Tablas Resto de Ecuador'!D32) -> 13308 | K32: =IF('INGRESO DE DATOS'!$D$21="Guayas/Santa Elena",'Tablas Guayaquil'!E32,'Tablas Resto de Ecuador'!E32) -> 10519 | L32: =IF('INGRESO DE DATOS'!$D$21="Guayas/Santa Elena",'Tablas Guayaquil'!F32,'Tablas Resto de Ecuador'!F32) -> 9122 | M32: =IF('INGRESO DE DATOS'!$D$21="Guayas/Santa Elena",'Tablas Guayaquil'!G32,'Tablas Resto de Ecuador'!G32) -> 6801 | O32: 12903.85 | P32: 11311.8 | Q32: 8941.15 | R32: 7753.7 | S32: 5780.85
A33: 45 | C33: 14441.5 | D33: 12660.75 | E33: 9976.45 | F33: 8650.45 | G33: 6449.8 | I33: =IF('INGRESO DE DATOS'!$D$21="Guayas/Santa Elena",'Tablas Guayaquil'!C33,'Tablas Resto de Ecuador'!C33) -> 16990 | J33: =IF('INGRESO DE DATOS'!$D$21="Guayas/Santa Elena",'Tablas Guayaquil'!D33,'Tablas Resto de Ecuador'!D33) -> 14895 | K33: =IF('INGRESO DE DATOS'!$D$21="Guayas/Santa Elena",'Tablas Guayaquil'!E33,'Tablas Resto de Ecuador'!E33) -> 11737 | L33: =IF('INGRESO DE DATOS'!$D$21="Guayas/Santa Elena",'Tablas Guayaquil'!F33,'Tablas Resto de Ecuador'!F33) -> 10177 | M33: =IF('INGRESO DE DATOS'!$D$21="Guayas/Santa Elena",'Tablas Guayaquil'!G33,'Tablas Resto de Ecuador'!G33) -> 7588 | O33: 14441.5 | P33: 12660.75 | Q33: 9976.45 | R33: 8650.45 | S33: 6449.8
A34: 46 | C34: 14441.5 | D34: 12660.75 | E34: 9976.45 | F34: 8650.45 | G34: 6449.8 | I34: =IF('INGRESO DE DATOS'!$D$21="Guayas/Santa Elena",'Tablas Guayaquil'!C34,'Tablas Resto de Ecuador'!C34) -> 16990 | J34: =IF('INGRESO DE DATOS'!$D$21="Guayas/Santa Elena",'Tablas Guayaquil'!D34,'Tablas Resto de Ecuador'!D34) -> 14895 | K34: =IF('INGRESO DE DATOS'!$D$21="Guayas/Santa Elena",'Tablas Guayaquil'!E34,'Tablas Resto de Ecuador'!E34) -> 11737 | L34: =IF('INGRESO DE DATOS'!$D$21="Guayas/Santa Elena",'Tablas Guayaquil'!F34,'Tablas Resto de Ecuador'!F34) -> 10177 | M34: =IF('INGRESO DE DATOS'!$D$21="Guayas/Santa Elena",'Tablas Guayaquil'!G34,'Tablas Resto de Ecuador'!G34) -> 7588 | O34: 14441.5 | P34: 12660.75 | Q34: 9976.45 | R34: 8650.45 | S34: 6449.8
A35: 47 | C35: 14441.5 | D35: 12660.75 | E35: 9976.45 | F35: 8650.45 | G35: 6449.8 | I35: =IF('INGRESO DE DATOS'!$D$21="Guayas/Santa Elena",'Tablas Guayaquil'!C35,'Tablas Resto de Ecuador'!C35) -> 16990 | J35: =IF('INGRESO DE DATOS'!$D$21="Guayas/Santa Elena",'Tablas Guayaquil'!D35,'Tablas Resto de Ecuador'!D35) -> 14895 | K35: =IF('INGRESO DE DATOS'!$D$21="Guayas/Santa Elena",'Tablas Guayaquil'!E35,'Tablas Resto de Ecuador'!E35) -> 11737 | L35: =IF('INGRESO DE DATOS'!$D$21="Guayas/Santa Elena",'Tablas Guayaquil'!F35,'Tablas Resto de Ecuador'!F35) -> 10177 | M35: =IF('INGRESO DE DATOS'!$D$21="Guayas/Santa Elena",'Tablas Guayaquil'!G35,'Tablas Resto de Ecuador'!G35) -> 7588 | O35: 14441.5 | P35: 12660.75 | Q35: 9976.45 | R35: 8650.45 | S35: 6449.8
A36: 48 | C36: 14441.5 | D36: 12660.75 | E36: 9976.45 | F36: 8650.45 | G36: 6449.8 | I36: =IF('INGRESO DE DATOS'!$D$21="Guayas/Santa Elena",'Tablas Guayaquil'!C36,'Tablas Resto de Ecuador'!C36) -> 16990 | J36: =IF('INGRESO DE DATOS'!$D$21="Guayas/Santa Elena",'Tablas Guayaquil'!D36,'Tablas Resto de Ecuador'!D36) -> 14895 | K36: =IF('INGRESO DE DATOS'!$D$21="Guayas/Santa Elena",'Tablas Guayaquil'!E36,'Tablas Resto de Ecuador'!E36) -> 11737 | L36: =IF('INGRESO DE DATOS'!$D$21="Guayas/Santa Elena",'Tablas Guayaquil'!F36,'Tablas Resto de Ecuador'!F36) -> 10177 | M36: =IF('INGRESO DE DATOS'!$D$21="Guayas/Santa Elena",'Tablas Guayaquil'!G36,'Tablas Resto de Ecuador'!G36) -> 7588 | O36: 14441.5 | P36: 12660.75 | Q36: 9976.45 | R36: 8650.45 | S36: 6449.8
A37: 49 | C37: 14441.5 | D37: 12660.75 | E37: 9976.45 | F37: 8650.45 | G37: 6449.8 | I37: =IF('INGRESO DE DATOS'!$D$21="Guayas/Santa Elena",'Tablas Guayaquil'!C37,'Tablas Resto de Ecuador'!C37) -> 16990 | J37: =IF('INGRESO DE DATOS'!$D$21="Guayas/Santa Elena",'Tablas Guayaquil'!D37,'Tablas Resto de Ecuador'!D37) -> 14895 | K37: =IF('INGRESO DE DATOS'!$D$21="Guayas/Santa Elena",'Tablas Guayaquil'!E37,'Tablas Resto de Ecuador'!E37) -> 11737 | L37: =IF('INGRESO DE DATOS'!$D$21="Guayas/Santa Elena",'Tablas Guayaquil'!F37,'Tablas Resto de Ecuador'!F37) -> 10177 | M37: =IF('INGRESO DE DATOS'!$D$21="Guayas/Santa Elena",'Tablas Guayaquil'!G37,'Tablas Resto de Ecuador'!G37) -> 7588 | O37: 14441.5 | P37: 12660.75 | Q37: 9976.45 | R37: 8650.45 | S37: 6449.8
A38: 50 | C38: 16173.8 | D38: 14178.85 | E38: 11147.75 | F38: 9667.05 | G38: 7206.3 | I38: =IF('INGRESO DE DATOS'!$D$21="Guayas/Santa Elena",'Tablas Guayaquil'!C38,'Tablas Resto de Ecuador'!C38) -> 19028 | J38: =IF('INGRESO DE DATOS'!$D$21="Guayas/Santa Elena",'Tablas Guayaquil'!D38,'Tablas Resto de Ecuador'!D38) -> 16681 | K38: =IF('INGRESO DE DATOS'!$D$21="Guayas/Santa Elena",'Tablas Guayaquil'!E38,'Tablas Resto de Ecuador'!E38) -> 13115 | L38: =IF('INGRESO DE DATOS'!$D$21="Guayas/Santa Elena",'Tablas Guayaquil'!F38,'Tablas Resto de Ecuador'!F38) -> 11373 | M38: =IF('INGRESO DE DATOS'!$D$21="Guayas/Santa Elena",'Tablas Guayaquil'!G38,'Tablas Resto de Ecuador'!G38) -> 8478 | O38: 16173.8 | P38: 14178.85 | Q38: 11147.75 | R38: 9667.05 | S38: 7206.3
A39: 51 | C39: 16173.8 | D39: 14178.85 | E39: 11147.75 | F39: 9667.05 | G39: 7206.3 | I39: =IF('INGRESO DE DATOS'!$D$21="Guayas/Santa Elena",'Tablas Guayaquil'!C39,'Tablas Resto de Ecuador'!C39) -> 19028 | J39: =IF('INGRESO DE DATOS'!$D$21="Guayas/Santa Elena",'Tablas Guayaquil'!D39,'Tablas Resto de Ecuador'!D39) -> 16681 | K39: =IF('INGRESO DE DATOS'!$D$21="Guayas/Santa Elena",'Tablas Guayaquil'!E39,'Tablas Resto de Ecuador'!E39) -> 13115 | L39: =IF('INGRESO DE DATOS'!$D$21="Guayas/Santa Elena",'Tablas Guayaquil'!F39,'Tablas Resto de Ecuador'!F39) -> 11373 | M39: =IF('INGRESO DE DATOS'!$D$21="Guayas/Santa Elena",'Tablas Guayaquil'!G39,'Tablas Resto de Ecuador'!G39) -> 8478 | O39: 16173.8 | P39: 14178.85 | Q39: 11147.75 | R39: 9667.05 | S39: 7206.3
A40: 52 | C40: 16173.8 | D40: 14178.85 | E40: 11147.75 | F40: 9667.05 | G40: 7206.3 | I40: =IF('INGRESO DE DATOS'!$D$21="Guayas/Santa Elena",'Tablas Guayaquil'!C40,'Tablas Resto de Ecuador'!C40) -> 19028 | J40: =IF('INGRESO DE DATOS'!$D$21="Guayas/Santa Elena",'Tablas Guayaquil'!D40,'Tablas Resto de Ecuador'!D40) -> 16681 | K40: =IF('INGRESO DE DATOS'!$D$21="Guayas/Santa Elena",'Tablas Guayaquil'!E40,'Tablas Resto de Ecuador'!E40) -> 13115 | L40: =IF('INGRESO DE DATOS'!$D$21="Guayas/Santa Elena",'Tablas Guayaquil'!F40,'Tablas Resto de Ecuador'!F40) -> 11373 | M40: =IF('INGRESO DE DATOS'!$D$21="Guayas/Santa Elena",'Tablas Guayaquil'!G40,'Tablas Resto de Ecuador'!G40) -> 8478 | O40: 16173.8 | P40: 14178.85 | Q40: 11147.75 | R40: 9667.05 | S40: 7206.3
A41: 53 | C41: 16173.8 | D41: 14178.85 | E41: 11147.75 | F41: 9667.05 | G41: 7206.3 | I41: =IF('INGRESO DE DATOS'!$D$21="Guayas/Santa Elena",'Tablas Guayaquil'!C41,'Tablas Resto de Ecuador'!C41) -> 19028 | J41: =IF('INGRESO DE DATOS'!$D$21="Guayas/Santa Elena",'Tablas Guayaquil'!D41,'Tablas Resto de Ecuador'!D41) -> 16681 | K41: =IF('INGRESO DE DATOS'!$D$21="Guayas/Santa Elena",'Tablas Guayaquil'!E41,'Tablas Resto de Ecuador'!E41) -> 13115 | L41: =IF('INGRESO DE DATOS'!$D$21="Guayas/Santa Elena",'Tablas Guayaquil'!F41,'Tablas Resto de Ecuador'!F41) -> 11373 | M41: =IF('INGRESO DE DATOS'!$D$21="Guayas/Santa Elena",'Tablas Guayaquil'!G41,'Tablas Resto de Ecuador'!G41) -> 8478 | O41: 16173.8 | P41: 14178.85 | Q41: 11147.75 | R41: 9667.05 | S41: 7206.3
A42: 54 | C42: 16173.8 | D42: 14178.85 | E42: 11147.75 | F42: 9667.05 | G42: 7206.3 | I42: =IF('INGRESO DE DATOS'!$D$21="Guayas/Santa Elena",'Tablas Guayaquil'!C42,'Tablas Resto de Ecuador'!C42) -> 19028 | J42: =IF('INGRESO DE DATOS'!$D$21="Guayas/Santa Elena",'Tablas Guayaquil'!D42,'Tablas Resto de Ecuador'!D42) -> 16681 | K42: =IF('INGRESO DE DATOS'!$D$21="Guayas/Santa Elena",'Tablas Guayaquil'!E42,'Tablas Resto de Ecuador'!E42) -> 13115 | L42: =IF('INGRESO DE DATOS'!$D$21="Guayas/Santa Elena",'Tablas Guayaquil'!F42,'Tablas Resto de Ecuador'!F42) -> 11373 | M42: =IF('INGRESO DE DATOS'!$D$21="Guayas/Santa Elena",'Tablas Guayaquil'!G42,'Tablas Resto de Ecuador'!G42) -> 8478 | O42: 16173.8 | P42: 14178.85 | Q42: 11147.75 | R42: 9667.05 | S42: 7206.3
A43: 55 | C43: 18081.2 | D43: 15849.95 | E43: 12442.3 | F43: 10790.75 | G43: 8045.25 | I43: =IF('INGRESO DE DATOS'!$D$21="Guayas/Santa Elena",'Tablas Guayaquil'!C43,'Tablas Resto de Ecuador'!C43) -> 21272 | J43: =IF('INGRESO DE DATOS'!$D$21="Guayas/Santa Elena",'Tablas Guayaquil'!D43,'Tablas Resto de Ecuador'!D43) -> 18647 | K43: =IF('INGRESO DE DATOS'!$D$21="Guayas/Santa Elena",'Tablas Guayaquil'!E43,'Tablas Resto de Ecuador'!E43) -> 14638 | L43: =IF('INGRESO DE DATOS'!$D$21="Guayas/Santa Elena",'Tablas Guayaquil'!F43,'Tablas Resto de Ecuador'!F43) -> 12695 | M43: =IF('INGRESO DE DATOS'!$D$21="Guayas/Santa Elena",'Tablas Guayaquil'!G43,'Tablas Resto de Ecuador'!G43) -> 9465 | O43: 18081.2 | P43: 15849.95 | Q43: 12442.3 | R43: 10790.75 | S43: 8045.25
A44: 56 | C44: 18081.2 | D44: 15849.95 | E44: 12442.3 | F44: 10790.75 | G44: 8045.25 | I44: =IF('INGRESO DE DATOS'!$D$21="Guayas/Santa Elena",'Tablas Guayaquil'!C44,'Tablas Resto de Ecuador'!C44) -> 21272 | J44: =IF('INGRESO DE DATOS'!$D$21="Guayas/Santa Elena",'Tablas Guayaquil'!D44,'Tablas Resto de Ecuador'!D44) -> 18647 | K44: =IF('INGRESO DE DATOS'!$D$21="Guayas/Santa Elena",'Tablas Guayaquil'!E44,'Tablas Resto de Ecuador'!E44) -> 14638 | L44: =IF('INGRESO DE DATOS'!$D$21="Guayas/Santa Elena",'Tablas Guayaquil'!F44,'Tablas Resto de Ecuador'!F44) -> 12695 | M44: =IF('INGRESO DE DATOS'!$D$21="Guayas/Santa Elena",'Tablas Guayaquil'!G44,'Tablas Resto de Ecuador'!G44) -> 9465 | O44: 18081.2 | P44: 15849.95 | Q44: 12442.3 | R44: 10790.75 | S44: 8045.25
A45: 57 | C45: 18081.2 | D45: 15849.95 | E45: 12442.3 | F45: 10790.75 | G45: 8045.25 | I45: =IF('INGRESO DE DATOS'!$D$21="Guayas/Santa Elena",'Tablas Guayaquil'!C45,'Tablas Resto de Ecuador'!C45) -> 21272 | J45: =IF('INGRESO DE DATOS'!$D$21="Guayas/Santa Elena",'Tablas Guayaquil'!D45,'Tablas Resto de Ecuador'!D45) -> 18647 | K45: =IF('INGRESO DE DATOS'!$D$21="Guayas/Santa Elena",'Tablas Guayaquil'!E45,'Tablas Resto de Ecuador'!E45) -> 14638 | L45: =IF('INGRESO DE DATOS'!$D$21="Guayas/Santa Elena",'Tablas Guayaquil'!F45,'Tablas Resto de Ecuador'!F45) -> 12695 | M45: =IF('INGRESO DE DATOS'!$D$21="Guayas/Santa Elena",'Tablas Guayaquil'!G45,'Tablas Resto de Ecuador'!G45) -> 9465 | O45: 18081.2 | P45: 15849.95 | Q45: 12442.3 | R45: 10790.75 | S45: 8045.25
A46: 58 | C46: 18081.2 | D46: 15849.95 | E46: 12442.3 | F46: 10790.75 | G46: 8045.25 | I46: =IF('INGRESO DE DATOS'!$D$21="Guayas/Santa Elena",'Tablas Guayaquil'!C46,'Tablas Resto de Ecuador'!C46) -> 21272 | J46: =IF('INGRESO DE DATOS'!$D$21="Guayas/Santa Elena",'Tablas Guayaquil'!D46,'Tablas Resto de Ecuador'!D46) -> 18647 | K46: =IF('INGRESO DE DATOS'!$D$21="Guayas/Santa Elena",'Tablas Guayaquil'!E46,'Tablas Resto de Ecuador'!E46) -> 14638 | L46: =IF('INGRESO DE DATOS'!$D$21="Guayas/Santa Elena",'Tablas Guayaquil'!F46,'Tablas Resto de Ecuador'!F46) -> 12695 | M46: =IF('INGRESO DE DATOS'!$D$21="Guayas/Santa Elena",'Tablas Guayaquil'!G46,'Tablas Resto de Ecuador'!G46) -> 9465 | O46: 18081.2 | P46: 15849.95 | Q46: 12442.3 | R46: 10790.75 | S46: 8045.25
A47: 59 | C47: 18081.2 | D47: 15849.95 | E47: 12442.3 | F47: 10790.75 | G47: 8045.25 | I47: =IF('INGRESO DE DATOS'!$D$21="Guayas/Santa Elena",'Tablas Guayaquil'!C47,'Tablas Resto de Ecuador'!C47) -> 21272 | J47: =IF('INGRESO DE DATOS'!$D$21="Guayas/Santa Elena",'Tablas Guayaquil'!D47,'Tablas Resto de Ecuador'!D47) -> 18647 | K47: =IF('INGRESO DE DATOS'!$D$21="Guayas/Santa Elena",'Tablas Guayaquil'!E47,'Tablas Resto de Ecuador'!E47) -> 14638 | L47: =IF('INGRESO DE DATOS'!$D$21="Guayas/Santa Elena",'Tablas Guayaquil'!F47,'Tablas Resto de Ecuador'!F47) -> 12695 | M47: =IF('INGRESO DE DATOS'!$D$21="Guayas/Santa Elena",'Tablas Guayaquil'!G47,'Tablas Resto de Ecuador'!G47) -> 9465 | O47: 18081.2 | P47: 15849.95 | Q47: 12442.3 | R47: 10790.75 | S47: 8045.25
A48: 60 | C48: 19351.95 | D48: 16962.6 | E48: 13310.15 | F48: 11539.6 | G48: 8605.4 | I48: =IF('INGRESO DE DATOS'!$D$21="Guayas/Santa Elena",'Tablas Guayaquil'!C48,'Tablas Resto de Ecuador'!C48) -> 22767 | J48: =IF('INGRESO DE DATOS'!$D$21="Guayas/Santa Elena",'Tablas Guayaquil'!D48,'Tablas Resto de Ecuador'!D48) -> 19956 | K48: =IF('INGRESO DE DATOS'!$D$21="Guayas/Santa Elena",'Tablas Guayaquil'!E48,'Tablas Resto de Ecuador'!E48) -> 15659 | L48: =IF('INGRESO DE DATOS'!$D$21="Guayas/Santa Elena",'Tablas Guayaquil'!F48,'Tablas Resto de Ecuador'!F48) -> 13576 | M48: =IF('INGRESO DE DATOS'!$D$21="Guayas/Santa Elena",'Tablas Guayaquil'!G48,'Tablas Resto de Ecuador'!G48) -> 10124 | O48: 19351.95 | P48: 16962.6 | Q48: 13310.15 | R48: 11539.6 | S48: 8605.4
A49: 61 | C49: 21567.05 | D49: 18902.3 | E49: 14820.6 | F49: 12852.85 | G49: 9582.05 | I49: =IF('INGRESO DE DATOS'!$D$21="Guayas/Santa Elena",'Tablas Guayaquil'!C49,'Tablas Resto de Ecuador'!C49) -> 25373 | J49: =IF('INGRESO DE DATOS'!$D$21="Guayas/Santa Elena",'Tablas Guayaquil'!D49,'Tablas Resto de Ecuador'!D49) -> 22238 | K49: =IF('INGRESO DE DATOS'!$D$21="Guayas/Santa Elena",'Tablas Guayaquil'!E49,'Tablas Resto de Ecuador'!E49) -> 17436 | L49: =IF('INGRESO DE DATOS'!$D$21="Guayas/Santa Elena",'Tablas Guayaquil'!F49,'Tablas Resto de Ecuador'!F49) -> 15121 | M49: =IF('INGRESO DE DATOS'!$D$21="Guayas/Santa Elena",'Tablas Guayaquil'!G49,'Tablas Resto de Ecuador'!G49) -> 11273 | O49: 21567.05 | P49: 18902.3 | Q49: 14820.6 | R49: 12852.85 | S49: 9582.05
A50: 62 | C50: 23958.95 | D50: 21000.1 | E50: 16461.1 | F50: 14274.9 | G50: 10642 | I50: =IF('INGRESO DE DATOS'!$D$21="Guayas/Santa Elena",'Tablas Guayaquil'!C50,'Tablas Resto de Ecuador'!C50) -> 28187 | J50: =IF('INGRESO DE DATOS'!$D$21="Guayas/Santa Elena",'Tablas Guayaquil'!D50,'Tablas Resto de Ecuador'!D50) -> 24706 | K50: =IF('INGRESO DE DATOS'!$D$21="Guayas/Santa Elena",'Tablas Guayaquil'!E50,'Tablas Resto de Ecuador'!E50) -> 19366 | L50: =IF('INGRESO DE DATOS'!$D$21="Guayas/Santa Elena",'Tablas Guayaquil'!F50,'Tablas Resto de Ecuador'!F50) -> 16794 | M50: =IF('INGRESO DE DATOS'!$D$21="Guayas/Santa Elena",'Tablas Guayaquil'!G50,'Tablas Resto de Ecuador'!G50) -> 12520 | O50: 23958.95 | P50: 21000.1 | Q50: 16461.1 | R50: 14274.9 | S50: 10642
A51: 63 | C51: 26533.6 | D51: 23256.85 | E51: 18230.8 | F51: 15810 | G51: 11786.95 | I51: =IF('INGRESO DE DATOS'!$D$21="Guayas/Santa Elena",'Tablas Guayaquil'!C51,'Tablas Resto de Ecuador'!C51) -> 31216 | J51: =IF('INGRESO DE DATOS'!$D$21="Guayas/Santa Elena",'Tablas Guayaquil'!D51,'Tablas Resto de Ecuador'!D51) -> 27361 | K51: =IF('INGRESO DE DATOS'!$D$21="Guayas/Santa Elena",'Tablas Guayaquil'!E51,'Tablas Resto de Ecuador'!E51) -> 21448 | L51: =IF('INGRESO DE DATOS'!$D$21="Guayas/Santa Elena",'Tablas Guayaquil'!F51,'Tablas Resto de Ecuador'!F51) -> 18600 | M51: =IF('INGRESO DE DATOS'!$D$21="Guayas/Santa Elena",'Tablas Guayaquil'!G51,'Tablas Resto de Ecuador'!G51) -> 13867 | O51: 26533.6 | P51: 23256.85 | Q51: 18230.8 | R51: 15810 | S51: 11786.95
A52: 64 | C52: 29290.15 | D52: 25670.85 | E52: 20128.85 | F52: 17454.75 | G52: 13013.5 | I52: =IF('INGRESO DE DATOS'!$D$21="Guayas/Santa Elena",'Tablas Guayaquil'!C52,'Tablas Resto de Ecuador'!C52) -> 34459 | J52: =IF('INGRESO DE DATOS'!$D$21="Guayas/Santa Elena",'Tablas Guayaquil'!D52,'Tablas Resto de Ecuador'!D52) -> 30201 | K52: =IF('INGRESO DE DATOS'!$D$21="Guayas/Santa Elena",'Tablas Guayaquil'!E52,'Tablas Resto de Ecuador'!E52) -> 23681 | L52: =IF('INGRESO DE DATOS'!$D$21="Guayas/Santa Elena",'Tablas Guayaquil'!F52,'Tablas Resto de Ecuador'!F52) -> 20535 | M52: =IF('INGRESO DE DATOS'!$D$21="Guayas/Santa Elena",'Tablas Guayaquil'!G52,'Tablas Resto de Ecuador'!G52) -> 15310 | O52: 29290.15 | P52: 25670.85 | Q52: 20128.85 | R52: 17454.75 | S52: 13013.5
A53: 65 | C53: 32226.05 | D53: 28246.35 | E53: 22154.4 | F53: 19212.55 | G53: 14322.5 | I53: =IF('INGRESO DE DATOS'!$D$21="Guayas/Santa Elena",'Tablas Guayaquil'!C53,'Tablas Resto de Ecuador'!C53) -> 37913 | J53: =IF('INGRESO DE DATOS'!$D$21="Guayas/Santa Elena",'Tablas Guayaquil'!D53,'Tablas Resto de Ecuador'!D53) -> 33231 | K53: =IF('INGRESO DE DATOS'!$D$21="Guayas/Santa Elena",'Tablas Guayaquil'!E53,'Tablas Resto de Ecuador'!E53) -> 26064 | L53: =IF('INGRESO DE DATOS'!$D$21="Guayas/Santa Elena",'Tablas Guayaquil'!F53,'Tablas Resto de Ecuador'!F53) -> 22603 | M53: =IF('INGRESO DE DATOS'!$D$21="Guayas/Santa Elena",'Tablas Guayaquil'!G53,'Tablas Resto de Ecuador'!G53) -> 16850 | O53: 32226.05 | P53: 28246.35 | Q53: 22154.4 | R53: 19212.55 | S53: 14322.5
A54: 66 | C54: 35340.45 | D54: 30977.4 | E54: 24307.45 | F54: 21079.15 | G54: 15712.25 | I54: =IF('INGRESO DE DATOS'!$D$21="Guayas/Santa Elena",'Tablas Guayaquil'!C54,'Tablas Resto de Ecuador'!C54) -> 41577 | J54: =IF('INGRESO DE DATOS'!$D$21="Guayas/Santa Elena",'Tablas Guayaquil'!D54,'Tablas Resto de Ecuador'!D54) -> 36444 | K54: =IF('INGRESO DE DATOS'!$D$21="Guayas/Santa Elena",'Tablas Guayaquil'!E54,'Tablas Resto de Ecuador'!E54) -> 28597 | L54: =IF('INGRESO DE DATOS'!$D$21="Guayas/Santa Elena",'Tablas Guayaquil'!F54,'Tablas Resto de Ecuador'!F54) -> 24799 | M54: =IF('INGRESO DE DATOS'!$D$21="Guayas/Santa Elena",'Tablas Guayaquil'!G54,'Tablas Resto de Ecuador'!G54) -> 18485 | O54: 35340.45 | P54: 30977.4 | Q54: 24307.45 | R54: 21079.15 | S54: 15712.25
A55: 67 | C55: 38638.45 | D55: 33867.4 | E55: 26589.7 | F55: 23055.4 | G55: 17187.85 | I55: =IF('INGRESO DE DATOS'!$D$21="Guayas/Santa Elena",'Tablas Guayaquil'!C55,'Tablas Resto de Ecuador'!C55) -> 45457 | J55: =IF('INGRESO DE DATOS'!$D$21="Guayas/Santa Elena",'Tablas Guayaquil'!D55,'Tablas Resto de Ecuador'!D55) -> 39844 | K55: =IF('INGRESO DE DATOS'!$D$21="Guayas/Santa Elena",'Tablas Guayaquil'!E55,'Tablas Resto de Ecuador'!E55) -> 31282 | L55: =IF('INGRESO DE DATOS'!$D$21="Guayas/Santa Elena",'Tablas Guayaquil'!F55,'Tablas Resto de Ecuador'!F55) -> 27124 | M55: =IF('INGRESO DE DATOS'!$D$21="Guayas/Santa Elena",'Tablas Guayaquil'!G55,'Tablas Resto de Ecuador'!G55) -> 20221 | O55: 38638.45 | P55: 33867.4 | Q55: 26589.7 | R55: 23055.4 | S55: 17187.85
A56: 68 | C56: 42114.1 | D56: 36918.05 | E56: 28999.45 | F56: 25147.25 | G56: 18747.6 | I56: =IF('INGRESO DE DATOS'!$D$21="Guayas/Santa Elena",'Tablas Guayaquil'!C56,'Tablas Resto de Ecuador'!C56) -> 49546 | J56: =IF('INGRESO DE DATOS'!$D$21="Guayas/Santa Elena",'Tablas Guayaquil'!D56,'Tablas Resto de Ecuador'!D56) -> 43433 | K56: =IF('INGRESO DE DATOS'!$D$21="Guayas/Santa Elena",'Tablas Guayaquil'!E56,'Tablas Resto de Ecuador'!E56) -> 34117 | L56: =IF('INGRESO DE DATOS'!$D$21="Guayas/Santa Elena",'Tablas Guayaquil'!F56,'Tablas Resto de Ecuador'!F56) -> 29585 | M56: =IF('INGRESO DE DATOS'!$D$21="Guayas/Santa Elena",'Tablas Guayaquil'!G56,'Tablas Resto de Ecuador'!G56) -> 22056 | O56: 42114.1 | P56: 36918.05 | Q56: 28999.45 | R56: 25147.25 | S56: 18747.6
A57: 69 | C57: 45775.9 | D57: 40122.55 | E57: 31539.25 | F57: 27349.6 | G57: 20388.95 | I57: =IF('INGRESO DE DATOS'!$D$21="Guayas/Santa Elena",'Tablas Guayaquil'!C57,'Tablas Resto de Ecuador'!C57) -> 53854 | J57: =IF('INGRESO DE DATOS'!$D$21="Guayas/Santa Elena",'Tablas Guayaquil'!D57,'Tablas Resto de Ecuador'!D57) -> 47203 | K57: =IF('INGRESO DE DATOS'!$D$21="Guayas/Santa Elena",'Tablas Guayaquil'!E57,'Tablas Resto de Ecuador'!E57) -> 37105 | L57: =IF('INGRESO DE DATOS'!$D$21="Guayas/Santa Elena",'Tablas Guayaquil'!F57,'Tablas Resto de Ecuador'!F57) -> 32176 | M57: =IF('INGRESO DE DATOS'!$D$21="Guayas/Santa Elena",'Tablas Guayaquil'!G57,'Tablas Resto de Ecuador'!G57) -> 23987 | O57: 45775.9 | P57: 40122.55 | Q57: 31539.25 | R57: 27349.6 | S57: 20388.95
A58: 70 | C58: 49614.5 | D58: 43487.7 | E58: 34204.85 | F58: 29660.75 | G58: 22111.05 | I58: =IF('INGRESO DE DATOS'!$D$21="Guayas/Santa Elena",'Tablas Guayaquil'!C58,'Tablas Resto de Ecuador'!C58) -> 58370 | J58: =IF('INGRESO DE DATOS'!$D$21="Guayas/Santa Elena",'Tablas Guayaquil'!D58,'Tablas Resto de Ecuador'!D58) -> 51162 | K58: =IF('INGRESO DE DATOS'!$D$21="Guayas/Santa Elena",'Tablas Guayaquil'!E58,'Tablas Resto de Ecuador'!E58) -> 40241 | L58: =IF('INGRESO DE DATOS'!$D$21="Guayas/Santa Elena",'Tablas Guayaquil'!F58,'Tablas Resto de Ecuador'!F58) -> 34895 | M58: =IF('INGRESO DE DATOS'!$D$21="Guayas/Santa Elena",'Tablas Guayaquil'!G58,'Tablas Resto de Ecuador'!G58) -> 26013 | O58: 49614.5 | P58: 43487.7 | Q58: 34204.85 | R58: 29660.75 | S58: 22111.05
A59: 71 | C59: 53633.3 | D59: 47011.8 | E59: 37002.2 | F59: 32084.1 | G59: 23919 | I59: =IF('INGRESO DE DATOS'!$D$21="Guayas/Santa Elena",'Tablas Guayaquil'!C59,'Tablas Resto de Ecuador'!C59) -> 63098 | J59: =IF('INGRESO DE DATOS'!$D$21="Guayas/Santa Elena",'Tablas Guayaquil'!D59,'Tablas Resto de Ecuador'!D59) -> 55308 | K59: =IF('INGRESO DE DATOS'!$D$21="Guayas/Santa Elena",'Tablas Guayaquil'!E59,'Tablas Resto de Ecuador'!E59) -> 43532 | L59: =IF('INGRESO DE DATOS'!$D$21="Guayas/Santa Elena",'Tablas Guayaquil'!F59,'Tablas Resto de Ecuador'!F59) -> 37746 | M59: =IF('INGRESO DE DATOS'!$D$21="Guayas/Santa Elena",'Tablas Guayaquil'!G59,'Tablas Resto de Ecuador'!G59) -> 28140 | O59: 53633.3 | P59: 47011.8 | Q59: 37002.2 | R59: 32084.1 | S59: 23919
A60: 72 | C60: 57834 | D60: 50691.45 | E60: 39922.8 | F60: 34618.8 | G60: 25806.85 | I60: =IF('INGRESO DE DATOS'!$D$21="Guayas/Santa Elena",'Tablas Guayaquil'!C60,'Tablas Resto de Ecuador'!C60) -> 68040 | J60: =IF('INGRESO DE DATOS'!$D$21="Guayas/Santa Elena",'Tablas Guayaquil'!D60,'Tablas Resto de Ecuador'!D60) -> 59637 | K60: =IF('INGRESO DE DATOS'!$D$21="Guayas/Santa Elena",'Tablas Guayaquil'!E60,'Tablas Resto de Ecuador'!E60) -> 46968 | L60: =IF('INGRESO DE DATOS'!$D$21="Guayas/Santa Elena",'Tablas Guayaquil'!F60,'Tablas Resto de Ecuador'!F60) -> 40728 | M60: =IF('INGRESO DE DATOS'!$D$21="Guayas/Santa Elena",'Tablas Guayaquil'!G60,'Tablas Resto de Ecuador'!G60) -> 30361 | O60: 57834 | P60: 50691.45 | Q60: 39922.8 | R60: 34618.8 | S60: 25806.85
A61: 73 | C61: 62214.05 | D61: 54532.6 | E61: 42975.15 | F61: 37264.85 | G61: 27781.4 | I61: =IF('INGRESO DE DATOS'!$D$21="Guayas/Santa Elena",'Tablas Guayaquil'!C61,'Tablas Resto de Ecuador'!C61) -> 73193 | J61: =IF('INGRESO DE DATOS'!$D$21="Guayas/Santa Elena",'Tablas Guayaquil'!D61,'Tablas Resto de Ecuador'!D61) -> 64156 | K61: =IF('INGRESO DE DATOS'!$D$21="Guayas/Santa Elena",'Tablas Guayaquil'!E61,'Tablas Resto de Ecuador'!E61) -> 50559 | L61: =IF('INGRESO DE DATOS'!$D$21="Guayas/Santa Elena",'Tablas Guayaquil'!F61,'Tablas Resto de Ecuador'!F61) -> 43841 | M61: =IF('INGRESO DE DATOS'!$D$21="Guayas/Santa Elena",'Tablas Guayaquil'!G61,'Tablas Resto de Ecuador'!G61) -> 32684 | O61: 62214.05 | P61: 54532.6 | Q61: 42975.15 | R61: 37264.85 | S61: 27781.4
A62: 74 | C62: 66776.85 | D62: 58530.15 | E62: 46155 | F62: 40022.25 | G62: 29836.7 | I62: =IF('INGRESO DE DATOS'!$D$21="Guayas/Santa Elena",'Tablas Guayaquil'!C62,'Tablas Resto de Ecuador'!C62) -> 78561 | J62: =IF('INGRESO DE DATOS'!$D$21="Guayas/Santa Elena",'Tablas Guayaquil'!D62,'Tablas Resto de Ecuador'!D62) -> 68859 | K62: =IF('INGRESO DE DATOS'!$D$21="Guayas/Santa Elena",'Tablas Guayaquil'!E62,'Tablas Resto de Ecuador'!E62) -> 54300 | L62: =IF('INGRESO DE DATOS'!$D$21="Guayas/Santa Elena",'Tablas Guayaquil'!F62,'Tablas Resto de Ecuador'!F62) -> 47085 | M62: =IF('INGRESO DE DATOS'!$D$21="Guayas/Santa Elena",'Tablas Guayaquil'!G62,'Tablas Resto de Ecuador'!G62) -> 35102 | O62: 66776.85 | P62: 58530.15 | Q62: 46155 | R62: 40022.25 | S62: 29836.7
A63: 75 | C63: 71518.15 | D63: 62690.05 | E63: 49462.35 | F63: 42890.15 | G63: 31972.75 | I63: =IF('INGRESO DE DATOS'!$D$21="Guayas/Santa Elena",'Tablas Guayaquil'!C63,'Tablas Resto de Ecuador'!C63) -> 84139 | J63: =IF('INGRESO DE DATOS'!$D$21="Guayas/Santa Elena",'Tablas Guayaquil'!D63,'Tablas Resto de Ecuador'!D63) -> 73753 | K63: =IF('INGRESO DE DATOS'!$D$21="Guayas/Santa Elena",'Tablas Guayaquil'!E63,'Tablas Resto de Ecuador'!E63) -> 58191 | L63: =IF('INGRESO DE DATOS'!$D$21="Guayas/Santa Elena",'Tablas Guayaquil'!F63,'Tablas Resto de Ecuador'!F63) -> 50459 | M63: =IF('INGRESO DE DATOS'!$D$21="Guayas/Santa Elena",'Tablas Guayaquil'!G63,'Tablas Resto de Ecuador'!G63) -> 37615 | O63: 71518.15 | P63: 62690.05 | Q63: 49462.35 | R63: 42890.15 | S63: 31972.75
A64: 76 | C64: 71518.15 | D64: 62690.05 | E64: 49462.35 | F64: 42890.15 | G64: 31972.75 | I64: =IF('INGRESO DE DATOS'!$D$21="Guayas/Santa Elena",'Tablas Guayaquil'!C64,'Tablas Resto de Ecuador'!C64) -> 84139 | J64: =IF('INGRESO DE DATOS'!$D$21="Guayas/Santa Elena",'Tablas Guayaquil'!D64,'Tablas Resto de Ecuador'!D64) -> 73753 | K64: =IF('INGRESO DE DATOS'!$D$21="Guayas/Santa Elena",'Tablas Guayaquil'!E64,'Tablas Resto de Ecuador'!E64) -> 58191 | L64: =IF('INGRESO DE DATOS'!$D$21="Guayas/Santa Elena",'Tablas Guayaquil'!F64,'Tablas Resto de Ecuador'!F64) -> 50459 | M64: =IF('INGRESO DE DATOS'!$D$21="Guayas/Santa Elena",'Tablas Guayaquil'!G64,'Tablas Resto de Ecuador'!G64) -> 37615 | O64: 71518.15 | P64: 62690.05 | Q64: 49462.35 | R64: 42890.15 | S64: 31972.75
A65: 77 | C65: 71518.15 | D65: 62690.05 | E65: 49462.35 | F65: 42890.15 | G65: 31972.75 | I65: =IF('INGRESO DE DATOS'!$D$21="Guayas/Santa Elena",'Tablas Guayaquil'!C65,'Tablas Resto de Ecuador'!C65) -> 84139 | J65: =IF('INGRESO DE DATOS'!$D$21="Guayas/Santa Elena",'Tablas Guayaquil'!D65,'Tablas Resto de Ecuador'!D65) -> 73753 | K65: =IF('INGRESO DE DATOS'!$D$21="Guayas/Santa Elena",'Tablas Guayaquil'!E65,'Tablas Resto de Ecuador'!E65) -> 58191 | L65: =IF('INGRESO DE DATOS'!$D$21="Guayas/Santa Elena",'Tablas Guayaquil'!F65,'Tablas Resto de Ecuador'!F65) -> 50459 | M65: =IF('INGRESO DE DATOS'!$D$21="Guayas/Santa Elena",'Tablas Guayaquil'!G65,'Tablas Resto de Ecuador'!G65) -> 37615 | O65: 71518.15 | P65: 62690.05 | Q65: 49462.35 | R65: 42890.15 | S65: 31972.75
A66: 78 | C66: 71518.15 | D66: 62690.05 | E66: 49462.35 | F66: 42890.15 | G66: 31972.75 | I66: =IF('INGRESO DE DATOS'!$D$21="Guayas/Santa Elena",'Tablas Guayaquil'!C66,'Tablas Resto de Ecuador'!C66) -> 84139 | J66: =IF('INGRESO DE DATOS'!$D$21="Guayas/Santa Elena",'Tablas Guayaquil'!D66,'Tablas Resto de Ecuador'!D66) -> 73753 | K66: =IF('INGRESO DE DATOS'!$D$21="Guayas/Santa Elena",'Tablas Guayaquil'!E66,'Tablas Resto de Ecuador'!E66) -> 58191 | L66: =IF('INGRESO DE DATOS'!$D$21="Guayas/Santa Elena",'Tablas Guayaquil'!F66,'Tablas Resto de Ecuador'!F66) -> 50459 | M66: =IF('INGRESO DE DATOS'!$D$21="Guayas/Santa Elena",'Tablas Guayaquil'!G66,'Tablas Resto de Ecuador'!G66) -> 37615 | O66: 71518.15 | P66: 62690.05 | Q66: 49462.35 | R66: 42890.15 | S66: 31972.75
A67: 79 | C67: 71518.15 | D67: 62690.05 | E67: 49462.35 | F67: 42890.15 | G67: 31972.75 | I67: =IF('INGRESO DE DATOS'!$D$21="Guayas/Santa Elena",'Tablas Guayaquil'!C67,'Tablas Resto de Ecuador'!C67) -> 84139 | J67: =IF('INGRESO DE DATOS'!$D$21="Guayas/Santa Elena",'Tablas Guayaquil'!D67,'Tablas Resto de Ecuador'!D67) -> 73753 | K67: =IF('INGRESO DE DATOS'!$D$21="Guayas/Santa Elena",'Tablas Guayaquil'!E67,'Tablas Resto de Ecuador'!E67) -> 58191 | L67: =IF('INGRESO DE DATOS'!$D$21="Guayas/Santa Elena",'Tablas Guayaquil'!F67,'Tablas Resto de Ecuador'!F67) -> 50459 | M67: =IF('INGRESO DE DATOS'!$D$21="Guayas/Santa Elena",'Tablas Guayaquil'!G67,'Tablas Resto de Ecuador'!G67) -> 37615 | O67: 71518.15 | P67: 62690.05 | Q67: 49462.35 | R67: 42890.15 | S67: 31972.75
A68: 80 | C68: 71518.15 | D68: 62690.05 | E68: 49462.35 | F68: 42890.15 | G68: 31972.75 | I68: =IF('INGRESO DE DATOS'!$D$21="Guayas/Santa Elena",'Tablas Guayaquil'!C68,'Tablas Resto de Ecuador'!C68) -> 84139 | J68: =IF('INGRESO DE DATOS'!$D$21="Guayas/Santa Elena",'Tablas Guayaquil'!D68,'Tablas Resto de Ecuador'!D68) -> 73753 | K68: =IF('INGRESO DE DATOS'!$D$21="Guayas/Santa Elena",'Tablas Guayaquil'!E68,'Tablas Resto de Ecuador'!E68) -> 58191 | L68: =IF('INGRESO DE DATOS'!$D$21="Guayas/Santa Elena",'Tablas Guayaquil'!F68,'Tablas Resto de Ecuador'!F68) -> 50459 | M68: =IF('INGRESO DE DATOS'!$D$21="Guayas/Santa Elena",'Tablas Guayaquil'!G68,'Tablas Resto de Ecuador'!G68) -> 37615 | O68: 71518.15 | P68: 62690.05 | Q68: 49462.35 | R68: 42890.15 | S68: 31972.75
A69: 81 | C69: 71518.15 | D69: 62690.05 | E69: 49462.35 | F69: 42890.15 | G69: 31972.75 | I69: =IF('INGRESO DE DATOS'!$D$21="Guayas/Santa Elena",'Tablas Guayaquil'!C69,'Tablas Resto de Ecuador'!C69) -> 84139 | J69: =IF('INGRESO DE DATOS'!$D$21="Guayas/Santa Elena",'Tablas Guayaquil'!D69,'Tablas Resto de Ecuador'!D69) -> 73753 | K69: =IF('INGRESO DE DATOS'!$D$21="Guayas/Santa Elena",'Tablas Guayaquil'!E69,'Tablas Resto de Ecuador'!E69) -> 58191 | L69: =IF('INGRESO DE DATOS'!$D$21="Guayas/Santa Elena",'Tablas Guayaquil'!F69,'Tablas Resto de Ecuador'!F69) -> 50459 | M69: =IF('INGRESO DE DATOS'!$D$21="Guayas/Santa Elena",'Tablas Guayaquil'!G69,'Tablas Resto de Ecuador'!G69) -> 37615 | O69: 71518.15 | P69: 62690.05 | Q69: 49462.35 | R69: 42890.15 | S69: 31972.75
A70: 82 | C70: 71518.15 | D70: 62690.05 | E70: 49462.35 | F70: 42890.15 | G70: 31972.75 | I70: =IF('INGRESO DE DATOS'!$D$21="Guayas/Santa Elena",'Tablas Guayaquil'!C70,'Tablas Resto de Ecuador'!C70) -> 84139 | J70: =IF('INGRESO DE DATOS'!$D$21="Guayas/Santa Elena",'Tablas Guayaquil'!D70,'Tablas Resto de Ecuador'!D70) -> 73753 | K70: =IF('INGRESO DE DATOS'!$D$21="Guayas/Santa Elena",'Tablas Guayaquil'!E70,'Tablas Resto de Ecuador'!E70) -> 58191 | L70: =IF('INGRESO DE DATOS'!$D$21="Guayas/Santa Elena",'Tablas Guayaquil'!F70,'Tablas Resto de Ecuador'!F70) -> 50459 | M70: =IF('INGRESO DE DATOS'!$D$21="Guayas/Santa Elena",'Tablas Guayaquil'!G70,'Tablas Resto de Ecuador'!G70) -> 37615 | O70: 71518.15 | P70: 62690.05 | Q70: 49462.35 | R70: 42890.15 | S70: 31972.75
A71: 83 | C71: =O71 -> 71518.15 | D71: =P71 -> 62690.05 | E71: =Q71 -> 49462.35 | F71: =R71 -> 42890.15 | G71: =S71 -> 31972.75 | I71: =IF('INGRESO DE DATOS'!$D$21="Guayas/Santa Elena",'Tablas Guayaquil'!C71,'Tablas Resto de Ecuador'!C71) -> 84139 | J71: =IF('INGRESO DE DATOS'!$D$21="Guayas/Santa Elena",'Tablas Guayaquil'!D71,'Tablas Resto de Ecuador'!D71) -> 73753 | K71: =IF('INGRESO DE DATOS'!$D$21="Guayas/Santa Elena",'Tablas Guayaquil'!E71,'Tablas Resto de Ecuador'!E71) -> 58191 | L71: =IF('INGRESO DE DATOS'!$D$21="Guayas/Santa Elena",'Tablas Guayaquil'!F71,'Tablas Resto de Ecuador'!F71) -> 50459 | M71: =IF('INGRESO DE DATOS'!$D$21="Guayas/Santa Elena",'Tablas Guayaquil'!G71,'Tablas Resto de Ecuador'!G71) -> 37615 | O71: =I71*0.85 -> 71518.15 | P71: =J71*0.85 -> 62690.05 | Q71: =K71*0.85 -> 49462.35 | R71: =L71*0.85 -> 42890.15 | S71: =M71*0.85 -> 31972.75
A72: 84 | B72: o más | C72: 71518.15 | D72: 62690.05 | E72: 49462.35 | F72: 42890.15 | G72: 31972.75 | I72: =IF('INGRESO DE DATOS'!$D$21="Guayas/Santa Elena",'Tablas Guayaquil'!C72,'Tablas Resto de Ecuador'!C72) -> 84139 | J72: =IF('INGRESO DE DATOS'!$D$21="Guayas/Santa Elena",'Tablas Guayaquil'!D72,'Tablas Resto de Ecuador'!D72) -> 73753 | K72: =IF('INGRESO DE DATOS'!$D$21="Guayas/Santa Elena",'Tablas Guayaquil'!E72,'Tablas Resto de Ecuador'!E72) -> 58191 | L72: =IF('INGRESO DE DATOS'!$D$21="Guayas/Santa Elena",'Tablas Guayaquil'!F72,'Tablas Resto de Ecuador'!F72) -> 50459 | M72: =IF('INGRESO DE DATOS'!$D$21="Guayas/Santa Elena",'Tablas Guayaquil'!G72,'Tablas Resto de Ecuador'!G72) -> 37615 | O72: 71518.15 | P72: 62690.05 | Q72: 49462.35 | R72: 42890.15 | S72: 31972.75
A73: 1 | B73: Hijo | C73: 3667.75 | D73: 3218.1 | E73: 2623.1 | F73: 2275.45 | G73: 1697.45 | I73: =IF('INGRESO DE DATOS'!$D$21="Guayas/Santa Elena",'Tablas Guayaquil'!C73,'Tablas Resto de Ecuador'!C73) -> 4315 | J73: =IF('INGRESO DE DATOS'!$D$21="Guayas/Santa Elena",'Tablas Guayaquil'!D73,'Tablas Resto de Ecuador'!D73) -> 3786 | K73: =IF('INGRESO DE DATOS'!$D$21="Guayas/Santa Elena",'Tablas Guayaquil'!E73,'Tablas Resto de Ecuador'!E73) -> 3086 | L73: =IF('INGRESO DE DATOS'!$D$21="Guayas/Santa Elena",'Tablas Guayaquil'!F73,'Tablas Resto de Ecuador'!F73) -> 2677 | M73: =IF('INGRESO DE DATOS'!$D$21="Guayas/Santa Elena",'Tablas Guayaquil'!G73,'Tablas Resto de Ecuador'!G73) -> 1997 | O73: 3667.75 | P73: 3218.1 | Q73: 2623.1 | R73: 2275.45 | S73: 1697.45
A74: 2 | B74: Hijos | C74: 6237.3 | D74: 5467.2 | E74: 4455.7 | F74: 3864.1 | G74: 2882.35 | I74: =IF('INGRESO DE DATOS'!$D$21="Guayas/Santa Elena",'Tablas Guayaquil'!C74,'Tablas Resto de Ecuador'!C74) -> 7338 | J74: =IF('INGRESO DE DATOS'!$D$21="Guayas/Santa Elena",'Tablas Guayaquil'!D74,'Tablas Resto de Ecuador'!D74) -> 6432 | K74: =IF('INGRESO DE DATOS'!$D$21="Guayas/Santa Elena",'Tablas Guayaquil'!E74,'Tablas Resto de Ecuador'!E74) -> 5242 | L74: =IF('INGRESO DE DATOS'!$D$21="Guayas/Santa Elena",'Tablas Guayaquil'!F74,'Tablas Resto de Ecuador'!F74) -> 4546 | M74: =IF('INGRESO DE DATOS'!$D$21="Guayas/Santa Elena",'Tablas Guayaquil'!G74,'Tablas Resto de Ecuador'!G74) -> 3391 | O74: 6237.3 | P74: 5467.2 | Q74: 4455.7 | R74: 3864.1 | S74: 2882.35
A75: 3 | B75: Hijos o más | C75: 8803.45 | D75: 7719.7 | E75: 6292.55 | F75: 5455.3 | G75: 4068.1 | I75: =IF('INGRESO DE DATOS'!$D$21="Guayas/Santa Elena",'Tablas Guayaquil'!C75,'Tablas Resto de Ecuador'!C75) -> 10357 | J75: =IF('INGRESO DE DATOS'!$D$21="Guayas/Santa Elena",'Tablas Guayaquil'!D75,'Tablas Resto de Ecuador'!D75) -> 9082 | K75: =IF('INGRESO DE DATOS'!$D$21="Guayas/Santa Elena",'Tablas Guayaquil'!E75,'Tablas Resto de Ecuador'!E75) -> 7403 | L75: =IF('INGRESO DE DATOS'!$D$21="Guayas/Santa Elena",'Tablas Guayaquil'!F75,'Tablas Resto de Ecuador'!F75) -> 6418 | M75: =IF('INGRESO DE DATOS'!$D$21="Guayas/Santa Elena",'Tablas Guayaquil'!G75,'Tablas Resto de Ecuador'!G75) -> 4786 | O75: 8803.45 | P75: 7719.7 | Q75: 6292.55 | R75: 5455.3 | S75: 4068.1
A77: BUPA GLOBAL ELITE - MENSUALES
A78: EDAD
C79: 1000 | D79: 2000 | E79: 3500 | F79: 5000 | G79: 10000
A80: 18 | C80: =+C6*$K$2 -> 810.3106667 | D80: =+D6*$K$2 -> 710.3506667 | E80: 575.008 | F80: 498.848 | G80: 371.994
A81: 19 | C81: =+C7*$K$2 -> 810.3106667 | D81: 710.3506667 | E81: 575.008 | F81: 498.848 | G81: 371.994
A82: 20 | C82: =+C8*$K$2 -> 810.3106667 | D82: 710.3506667 | E82: 575.008 | F82: 498.848 | G82: 371.994
A83: 21 | C83: =+C9*$K$2 -> 810.3106667 | D83: 710.3506667 | E83: 575.008 | F83: 498.848 | G83: 371.994
A84: 22 | C84: =+C10*$K$2 -> 810.3106667 | D84: 710.3506667 | E84: 575.008 | F84: 498.848 | G84: 371.994
A85: 23 | C85: =+C11*$K$2 -> 810.3106667 | D85: 710.3506667 | E85: 575.008 | F85: 498.848 | G85: 371.994
A86: 24 | C86: =+C12*$K$2 -> 810.3106667 | D86: 710.3506667 | E86: 575.008 | F86: 498.848 | G86: 371.994
A87: 25 | C87: =+C13*$K$2 -> 866.0026667 | D87: 759.0613333 | E87: 610.7873333 | F87: 529.788 | G87: 394.9213333
A88: 26 | C88: =+C14*$K$2 -> 866.0026667 | D88: 759.0613333 | E88: 610.7873333 | F88: 529.788 | G88: 394.9213333
A89: 27 | C89: =+C15*$K$2 -> 866.0026667 | D89: 759.0613333 | E89: 610.7873333 | F89: 529.788 | G89: 394.9213333
A90: 28 | C90: =+C16*$K$2 -> 866.0026667 | D90: 759.0613333 | E90: 610.7873333 | F90: 529.788 | G90: 394.9213333
A91: 29 | C91: =+C17*$K$2 -> 866.0026667 | D91: 759.0613333 | E91: 610.7873333 | F91: 529.788 | G91: 394.9213333
A92: 30 | C92: =+C18*$K$2 -> 962.948 | D92: 844.186 | E92: 674.1746667 | F92: 584.6073333 | G92: 435.8573333
A93: 31 | C93: =+C19*$K$2 -> 962.948 | D93: 844.186 | E93: 674.1746667 | F93: 584.6073333 | G93: 435.8573333
A94: 32 | C94: =+C20*$K$2 -> 962.948 | D94: 844.186 | E94: 674.1746667 | F94: 584.6073333 | G94: 435.8573333
A95: 33 | C95: =+C21*$K$2 -> 962.948 | D95: 844.186 | E95: 674.1746667 | F95: 584.6073333 | G95: 435.8573333
A96: 34 | C96: =+C22*$K$2 -> 962.948 | D96: 844.186 | E96: 674.1746667 | F96: 584.6073333 | G96: 435.8573333
A97: 35 | C97: =+C23*$K$2 -> 1075.363333 | D97: 942.3213333 | E97: 748.272 | F97: 648.8673333 | G97: 483.9333333
A98: 36 | C98: =+C24*$K$2 -> 1075.363333 | D98: 942.3213333 | E98: 748.272 | F98: 648.8673333 | G98: 483.9333333
A99: 37 | C99: =+C25*$K$2 -> 1075.363333 | D99: 942.3213333 | E99: 748.272 | F99: 648.8673333 | G99: 483.9333333
A100: 38 | C100: =+C26*$K$2 -> 1075.363333 | D100: 942.3213333 | E100: 748.272 | F100: 648.8673333 | G100: 483.9333333
A101: 39 | C101: =+C27*$K$2 -> 1075.363333 | D101: 942.3213333 | E101: 748.272 | F101: 648.8673333 | G101: 483.9333333
A102: 40 | C102: =+C28*$K$2 -> 1204.359333 | D102: 1055.768 | E102: 834.5073333 | F102: 723.6786667 | G102: 539.546
A103: 41 | C103: =+C29*$K$2 -> 1204.359333 | D103: 1055.768 | E103: 834.5073333 | F103: 723.6786667 | G103: 539.546
A104: 42 | C104: =+C30*$K$2 -> 1204.359333 | D104: 1055.768 | E104: 834.5073333 | F104: 723.6786667 | G104: 539.546
A105: 43 | C105: =+C31*$K$2 -> 1204.359333 | D105: 1055.768 | E105: 834.5073333 | F105: 723.6786667 | G105: 539.546
A106: 44 | C106: =+C32*$K$2 -> 1204.359333 | D106: 1055.768 | E106: 834.5073333 | F106: 723.6786667 | G106: 539.546
A107: 45 | C107: =+C33*$K$2 -> 1347.873333 | D107: 1181.67 | E107: 931.1353333 | F107: 807.3753333 | G107: 601.9813333
A108: 46 | C108: =+C34*$K$2 -> 1347.873333 | D108: 1181.67 | E108: 931.1353333 | F108: 807.3753333 | G108: 601.9813333
A109: 47 | C109: =+C35*$K$2 -> 1347.873333 | D109: 1181.67 | E109: 931.1353333 | F109: 807.3753333 | G109: 601.9813333
A110: 48 | C110: =+C36*$K$2 -> 1347.873333 | D110: 1181.67 | E110: 931.1353333 | F110: 807.3753333 | G110: 601.9813333
A111: 49 | C111: =+C37*$K$2 -> 1347.873333 | D111: 1181.67 | E111: 931.1353333 | F111: 807.3753333 | G111: 601.9813333
A112: 50 | C112: =+C38*$K$2 -> 1509.554667 | D112: 1323.359333 | E112: 1040.456667 | F112: 902.258 | G112: 672.588
A113: 51 | C113: =+C39*$K$2 -> 1509.554667 | D113: 1323.359333 | E113: 1040.456667 | F113: 902.258 | G113: 672.588
A114: 52 | C114: =+C40*$K$2 -> 1509.554667 | D114: 1323.359333 | E114: 1040.456667 | F114: 902.258 | G114: 672.588
A115: 53 | C115: =+C41*$K$2 -> 1509.554667 | D115: 1323.359333 | E115: 1040.456667 | F115: 902.258 | G115: 672.588
A116: 54 | C116: =+C42*$K$2 -> 1509.554667 | D116: 1323.359333 | E116: 1040.456667 | F116: 902.258 | G116: 672.588
A117: 55 | C117: =+C43*$K$2 -> 1687.578667 | D117: 1479.328667 | E117: 1161.281333 | F117: 1007.136667 | G117: 750.89
A118: 56 | C118: =+C44*$K$2 -> 1687.578667 | D118: 1479.328667 | E118: 1161.281333 | F118: 1007.136667 | G118: 750.89
A119: 57 | C119: =+C45*$K$2 -> 1687.578667 | D119: 1479.328667 | E119: 1161.281333 | F119: 1007.136667 | G119: 750.89
A120: 58 | C120: =+C46*$K$2 -> 1687.578667 | D120: 1479.328667 | E120: 1161.281333 | F120: 1007.136667 | G120: 750.89
A121: 59 | C121: =+C47*$K$2 -> 1687.578667 | D121: 1479.328667 | E121: 1161.281333 | F121: 1007.136667 | G121: 750.89
A122: 60 | C122: =+C48*$K$2 -> 1806.182 | D122: 1583.176 | E122: 1242.280667 | F122: 1077.029333 | G122: 803.1706667
A123: 61 | C123: =+C49*$K$2 -> 2012.924667 | D123: 1764.214667 | E123: 1383.256 | F123: 1199.599333 | G123: 894.3246667
A124: 62 | C124: =+C50*$K$2 -> 2236.168667 | D124: 1960.009333 | E124: 1536.369333 | F124: 1332.324 | G124: 993.2533333
A125: 63 | C125: =+C51*$K$2 -> 2476.469333 | D125: 2170.639333 | E125: 1701.541333 | F125: 1475.6 | G125: 1100.115333
A126: 64 | C126: =+C52*$K$2 -> 2733.747333 | D126: 2395.946 | E126: 1878.692667 | F126: 1629.11 | G126: 1214.593333
A127: 65 | C127: =+C53*$K$2 -> 3007.764667 | D127: 2636.326 | E127: 2067.744 | F127: 1793.171333 | G127: 1336.766667
A128: 66 | C128: =+C54*$K$2 -> 3298.442 | D128: 2891.224 | E128: 2268.695333 | F128: 1967.387333 | G128: 1466.476667
A129: 67 | C129: =+C55*$K$2 -> 3606.255333 | D129: 3160.957333 | E129: 2481.705333 | F129: 2151.837333 | G129: 1604.199333
A130: 68 | C130: =+C56*$K$2 -> 3930.649333 | D130: 3445.684667 | E130: 2706.615333 | F130: 2347.076667 | G130: 1749.776
A131: 69 | C131: =+C57*$K$2 -> 4272.417333 | D131: 3744.771333 | E131: 2943.663333 | F131: 2552.629333 | G131: 1902.968667
A132: 70 | C132: =+C58*$K$2 -> 4630.686667 | D132: 4058.852 | E132: 3192.452667 | F132: 2768.336667 | G132: 2063.698
A133: 71 | C133: =+C59*$K$2 -> 5005.774667 | D133: 4387.768 | E133: 3453.538667 | F133: 2994.516 | G133: 2232.44
A134: 72 | C134: =+C60*$K$2 -> 5397.84 | D134: 4731.202 | E134: 3726.128 | F134: 3231.088 | G134: 2408.639333
A135: 73 | C135: =+C61*$K$2 -> 5806.644667 | D135: 5089.709333 | E135: 4011.014 | F135: 3478.052667 | G135: 2592.930667
A136: 74 | C136: =+C62*$K$2 -> 6232.506 | D136: 5462.814 | E136: 4307.8 | F136: 3735.41 | G136: 2784.758667
A137: 75 | C137: =+C63*$K$2 -> 6675.027333 | D137: 5851.071333 | E137: 4616.486 | F137: 4003.080667 | G137: 2984.123333
A138: 76 | C138: =+C64*$K$2 -> 6675.027333 | D138: 5851.071333 | E138: 4616.486 | F138: 4003.080667 | G138: 2984.123333
A139: 77 | C139: =+C65*$K$2 -> 6675.027333 | D139: 5851.071333 | E139: 4616.486 | F139: 4003.080667 | G139: 2984.123333
A140: 78 | C140: =+C66*$K$2 -> 6675.027333 | D140: 5851.071333 | E140: 4616.486 | F140: 4003.080667 | G140: 2984.123333
A141: 79 | C141: =+C67*$K$2 -> 6675.027333 | D141: 5851.071333 | E141: 4616.486 | F141: 4003.080667 | G141: 2984.123333
A142: 80 | C142: =+C68*$K$2 -> 6675.027333 | D142: 5851.071333 | E142: 4616.486 | F142: 4003.080667 | G142: 2984.123333
A143: 81 | C143: =+C69*$K$2 -> 6675.027333 | D143: 5851.071333 | E143: 4616.486 | F143: 4003.080667 | G143: 2984.123333
A144: 82 | C144: =+C70*$K$2 -> 6675.027333 | D144: 5851.071333 | E144: 4616.486 | F144: 4003.080667 | G144: 2984.123333
A145: 83 | C145: =+C71*$K$2 -> 6675.027333 | D145: 5851.071333 | E145: 4616.486 | F145: 4003.080667 | G145: 2984.123333
A146: 84 | B146: o más | C146: =+C72*$K$2 -> 6675.027333 | D146: 5851.071333 | E146: 4616.486 | F146: 4003.080667 | G146: 2984.123333
A147: 1 | B147: Hijo | C147: =+C73*$K$2 -> 342.3233333 | D147: 300.356 | E147: 244.8226667 | F147: 212.3753333 | G147: 158.4286667
A148: 2 | B148: Hijos | C148: =+C74*$K$2 -> 582.148 | D148: 510.272 | E148: 415.8653333 | F148: 360.6493333 | G148: 269.0193333
A149: 3 | B149: Hijos o más | C149: =+C75*$K$2 -> 821.6553333 | D149: 720.5053333 | E149: 587.3046667 | F149: 509.1613333 | G149: 379.6893333
A151: BUPA GLOBAL PREMIER
A152: TARIFAS ANUALES
A153: EDAD
C154: 250 | D154: 2000 | E154: 5000 | F154: 10000 | G154: 20000
A155: 18 | C155: =O155 -> 5657.6 | D155: =P155 -> 5134 | E155: 3748.5 | F155: 2682.6 | G155: 2104.6 | I155: =IF('INGRESO DE DATOS'!$D$21="Guayas/Santa Elena",'Tablas Guayaquil'!C155,'Tablas Resto de Ecuador'!C155) -> 6656 | J155: =IF('INGRESO DE DATOS'!$D$21="Guayas/Santa Elena",'Tablas Guayaquil'!D155,'Tablas Resto de Ecuador'!D155) -> 6040 | K155: =IF('INGRESO DE DATOS'!$D$21="Guayas/Santa Elena",'Tablas Guayaquil'!E155,'Tablas Resto de Ecuador'!E155) -> 4410 | L155: =IF('INGRESO DE DATOS'!$D$21="Guayas/Santa Elena",'Tablas Guayaquil'!F155,'Tablas Resto de Ecuador'!F155) -> 3156 | M155: =IF('INGRESO DE DATOS'!$D$21="Guayas/Santa Elena",'Tablas Guayaquil'!G155,'Tablas Resto de Ecuador'!G155) -> 2476 | O155: =I155*0.85 -> 5657.6 | P155: =J155*0.85 -> 5134 | Q155: 3748.5 | R155: 2682.6 | S155: 2104.6
A156: 19 | C156: =O156 -> 5657.6 | D156: =P156 -> 5134 | E156: =Q156 -> 3748.5 | F156: =R156 -> 2682.6 | G156: =S156 -> 2104.6 | I156: =IF('INGRESO DE DATOS'!$D$21="Guayas/Santa Elena",'Tablas Guayaquil'!C156,'Tablas Resto de Ecuador'!C156) -> 6656 | J156: =IF('INGRESO DE DATOS'!$D$21="Guayas/Santa Elena",'Tablas Guayaquil'!D156,'Tablas Resto de Ecuador'!D156) -> 6040 | K156: =IF('INGRESO DE DATOS'!$D$21="Guayas/Santa Elena",'Tablas Guayaquil'!E156,'Tablas Resto de Ecuador'!E156) -> 4410 | L156: =IF('INGRESO DE DATOS'!$D$21="Guayas/Santa Elena",'Tablas Guayaquil'!F156,'Tablas Resto de Ecuador'!F156) -> 3156 | M156: =IF('INGRESO DE DATOS'!$D$21="Guayas/Santa Elena",'Tablas Guayaquil'!G156,'Tablas Resto de Ecuador'!G156) -> 2476 | O156: =I156*0.85 -> 5657.6 | P156: =J156*0.85 -> 5134 | Q156: =K156*0.85 -> 3748.5 | R156: =L156*0.85 -> 2682.6 | S156: =M156*0.85 -> 2104.6
A157: 20 | C157: 5657.6 | D157: 5134 | E157: 3748.5 | F157: 2682.6 | G157: 2104.6 | I157: =IF('INGRESO DE DATOS'!$D$21="Guayas/Santa Elena",'Tablas Guayaquil'!C157,'Tablas Resto de Ecuador'!C157) -> 6656 | J157: =IF('INGRESO DE DATOS'!$D$21="Guayas/Santa Elena",'Tablas Guayaquil'!D157,'Tablas Resto de Ecuador'!D157) -> 6040 | K157: =IF('INGRESO DE DATOS'!$D$21="Guayas/Santa Elena",'Tablas Guayaquil'!E157,'Tablas Resto de Ecuador'!E157) -> 4410 | L157: =IF('INGRESO DE DATOS'!$D$21="Guayas/Santa Elena",'Tablas Guayaquil'!F157,'Tablas Resto de Ecuador'!F157) -> 3156 | M157: =IF('INGRESO DE DATOS'!$D$21="Guayas/Santa Elena",'Tablas Guayaquil'!G157,'Tablas Resto de Ecuador'!G157) -> 2476 | O157: 5657.6 | P157: 5134 | Q157: 3748.5 | R157: 2682.6 | S157: 2104.6
A158: 21 | C158: 5657.6 | D158: 5134 | E158: 3748.5 | F158: 2682.6 | G158: 2104.6 | I158: =IF('INGRESO DE DATOS'!$D$21="Guayas/Santa Elena",'Tablas Guayaquil'!C158,'Tablas Resto de Ecuador'!C158) -> 6656 | J158: =IF('INGRESO DE DATOS'!$D$21="Guayas/Santa Elena",'Tablas Guayaquil'!D158,'Tablas Resto de Ecuador'!D158) -> 6040 | K158: =IF('INGRESO DE DATOS'!$D$21="Guayas/Santa Elena",'Tablas Guayaquil'!E158,'Tablas Resto de Ecuador'!E158) -> 4410 | L158: =IF('INGRESO DE DATOS'!$D$21="Guayas/Santa Elena",'Tablas Guayaquil'!F158,'Tablas Resto de Ecuador'!F158) -> 3156 | M158: =IF('INGRESO DE DATOS'!$D$21="Guayas/Santa Elena",'Tablas Guayaquil'!G158,'Tablas Resto de Ecuador'!G158) -> 2476 | O158: 5657.6 | P158: 5134 | Q158: 3748.5 | R158: 2682.6 | S158: 2104.6
A159: 22 | C159: 5657.6 | D159: 5134 | E159: 3748.5 | F159: 2682.6 | G159: 2104.6 | I159: =IF('INGRESO DE DATOS'!$D$21="Guayas/Santa Elena",'Tablas Guayaquil'!C159,'Tablas Resto de Ecuador'!C159) -> 6656 | J159: =IF('INGRESO DE DATOS'!$D$21="Guayas/Santa Elena",'Tablas Guayaquil'!D159,'Tablas Resto de Ecuador'!D159) -> 6040 | K159: =IF('INGRESO DE DATOS'!$D$21="Guayas/Santa Elena",'Tablas Guayaquil'!E159,'Tablas Resto de Ecuador'!E159) -> 4410 | L159: =IF('INGRESO DE DATOS'!$D$21="Guayas/Santa Elena",'Tablas Guayaquil'!F159,'Tablas Resto de Ecuador'!F159) -> 3156 | M159: =IF('INGRESO DE DATOS'!$D$21="Guayas/Santa Elena",'Tablas Guayaquil'!G159,'Tablas Resto de Ecuador'!G159) -> 2476 | O159: 5657.6 | P159: 5134 | Q159: 3748.5 | R159: 2682.6 | S159: 2104.6
A160: 23 | C160: 5657.6 | D160: 5134 | E160: 3748.5 | F160: 2682.6 | G160: 2104.6 | I160: =IF('INGRESO DE DATOS'!$D$21="Guayas/Santa Elena",'Tablas Guayaquil'!C160,'Tablas Resto de Ecuador'!C160) -> 6656 | J160: =IF('INGRESO DE DATOS'!$D$21="Guayas/Santa Elena",'Tablas Guayaquil'!D160,'Tablas Resto de Ecuador'!D160) -> 6040 | K160: =IF('INGRESO DE DATOS'!$D$21="Guayas/Santa Elena",'Tablas Guayaquil'!E160,'Tablas Resto de Ecuador'!E160) -> 4410 | L160: =IF('INGRESO DE DATOS'!$D$21="Guayas/Santa Elena",'Tablas Guayaquil'!F160,'Tablas Resto de Ecuador'!F160) -> 3156 | M160: =IF('INGRESO DE DATOS'!$D$21="Guayas/Santa Elena",'Tablas Guayaquil'!G160,'Tablas Resto de Ecuador'!G160) -> 2476 | O160: 5657.6 | P160: 5134 | Q160: 3748.5 | R160: 2682.6 | S160: 2104.6
A161: 24 | C161: 5657.6 | D161: 5134 | E161: 3748.5 | F161: 2682.6 | G161: 2104.6 | I161: =IF('INGRESO DE DATOS'!$D$21="Guayas/Santa Elena",'Tablas Guayaquil'!C161,'Tablas Resto de Ecuador'!C161) -> 6656 | J161: =IF('INGRESO DE DATOS'!$D$21="Guayas/Santa Elena",'Tablas Guayaquil'!D161,'Tablas Resto de Ecuador'!D161) -> 6040 | K161: =IF('INGRESO DE DATOS'!$D$21="Guayas/Santa Elena",'Tablas Guayaquil'!E161,'Tablas Resto de Ecuador'!E161) -> 4410 | L161: =IF('INGRESO DE DATOS'!$D$21="Guayas/Santa Elena",'Tablas Guayaquil'!F161,'Tablas Resto de Ecuador'!F161) -> 3156 | M161: =IF('INGRESO DE DATOS'!$D$21="Guayas/Santa Elena",'Tablas Guayaquil'!G161,'Tablas Resto de Ecuador'!G161) -> 2476 | O161: 5657.6 | P161: 5134 | Q161: 3748.5 | R161: 2682.6 | S161: 2104.6
A162: 25 | C162: 6046.05 | D162: 5485.9 | E162: 3963.55 | F162: 2835.6 | G162: 2224.45 | I162: =IF('INGRESO DE DATOS'!$D$21="Guayas/Santa Elena",'Tablas Guayaquil'!C162,'Tablas Resto de Ecuador'!C162) -> 7113 | J162: =IF('INGRESO DE DATOS'!$D$21="Guayas/Santa Elena",'Tablas Guayaquil'!D162,'Tablas Resto de Ecuador'!D162) -> 6454 | K162: =IF('INGRESO DE DATOS'!$D$21="Guayas/Santa Elena",'Tablas Guayaquil'!E162,'Tablas Resto de Ecuador'!E162) -> 4663 | L162: =IF('INGRESO DE DATOS'!$D$21="Guayas/Santa Elena",'Tablas Guayaquil'!F162,'Tablas Resto de Ecuador'!F162) -> 3336 | M162: =IF('INGRESO DE DATOS'!$D$21="Guayas/Santa Elena",'Tablas Guayaquil'!G162,'Tablas Resto de Ecuador'!G162) -> 2617 | O162: 6046.05 | P162: 5485.9 | Q162: 3963.55 | R162: 2835.6 | S162: 2224.45
A163: 26 | C163: 6046.05 | D163: 5485.9 | E163: 3963.55 | F163: 2835.6 | G163: 2224.45 | I163: =IF('INGRESO DE DATOS'!$D$21="Guayas/Santa Elena",'Tablas Guayaquil'!C163,'Tablas Resto de Ecuador'!C163) -> 7113 | J163: =IF('INGRESO DE DATOS'!$D$21="Guayas/Santa Elena",'Tablas Guayaquil'!D163,'Tablas Resto de Ecuador'!D163) -> 6454 | K163: =IF('INGRESO DE DATOS'!$D$21="Guayas/Santa Elena",'Tablas Guayaquil'!E163,'Tablas Resto de Ecuador'!E163) -> 4663 | L163: =IF('INGRESO DE DATOS'!$D$21="Guayas/Santa Elena",'Tablas Guayaquil'!F163,'Tablas Resto de Ecuador'!F163) -> 3336 | M163: =IF('INGRESO DE DATOS'!$D$21="Guayas/Santa Elena",'Tablas Guayaquil'!G163,'Tablas Resto de Ecuador'!G163) -> 2617 | O163: 6046.05 | P163: 5485.9 | Q163: 3963.55 | R163: 2835.6 | S163: 2224.45
A164: 27 | C164: 6046.05 | D164: 5485.9 | E164: 3963.55 | F164: 2835.6 | G164: 2224.45 | I164: =IF('INGRESO DE DATOS'!$D$21="Guayas/Santa Elena",'Tablas Guayaquil'!C164,'Tablas Resto de Ecuador'!C164) -> 7113 | J164: =IF('INGRESO DE DATOS'!$D$21="Guayas/Santa Elena",'Tablas Guayaquil'!D164,'Tablas Resto de Ecuador'!D164) -> 6454 | K164: =IF('INGRESO DE DATOS'!$D$21="Guayas/Santa Elena",'Tablas Guayaquil'!E164,'Tablas Resto de Ecuador'!E164) -> 4663 | L164: =IF('INGRESO DE DATOS'!$D$21="Guayas/Santa Elena",'Tablas Guayaquil'!F164,'Tablas Resto de Ecuador'!F164) -> 3336 | M164: =IF('INGRESO DE DATOS'!$D$21="Guayas/Santa Elena",'Tablas Guayaquil'!G164,'Tablas Resto de Ecuador'!G164) -> 2617 | O164: 6046.05 | P164: 5485.9 | Q164: 3963.55 | R164: 2835.6 | S164: 2224.45
A165: 28 | C165: 6046.05 | D165: 5485.9 | E165: 3963.55 | F165: 2835.6 | G165: 2224.45 | I165: =IF('INGRESO DE DATOS'!$D$21="Guayas/Santa Elena",'Tablas Guayaquil'!C165,'Tablas Resto de Ecuador'!C165) -> 7113 | J165: =IF('INGRESO DE DATOS'!$D$21="Guayas/Santa Elena",'Tablas Guayaquil'!D165,'Tablas Resto de Ecuador'!D165) -> 6454 | K165: =IF('INGRESO DE DATOS'!$D$21="Guayas/Santa Elena",'Tablas Guayaquil'!E165,'Tablas Resto de Ecuador'!E165) -> 4663 | L165: =IF('INGRESO DE DATOS'!$D$21="Guayas/Santa Elena",'Tablas Guayaquil'!F165,'Tablas Resto de Ecuador'!F165) -> 3336 | M165: =IF('INGRESO DE DATOS'!$D$21="Guayas/Santa Elena",'Tablas Guayaquil'!G165,'Tablas Resto de Ecuador'!G165) -> 2617 | O165: 6046.05 | P165: 5485.9 | Q165: 3963.55 | R165: 2835.6 | S165: 2224.45
A166: 29 | C166: 6046.05 | D166: 5485.9 | E166: 3963.55 | F166: 2835.6 | G166: 2224.45 | I166: =IF('INGRESO DE DATOS'!$D$21="Guayas/Santa Elena",'Tablas Guayaquil'!C166,'Tablas Resto de Ecuador'!C166) -> 7113 | J166: =IF('INGRESO DE DATOS'!$D$21="Guayas/Santa Elena",'Tablas Guayaquil'!D166,'Tablas Resto de Ecuador'!D166) -> 6454 | K166: =IF('INGRESO DE DATOS'!$D$21="Guayas/Santa Elena",'Tablas Guayaquil'!E166,'Tablas Resto de Ecuador'!E166) -> 4663 | L166: =IF('INGRESO DE DATOS'!$D$21="Guayas/Santa Elena",'Tablas Guayaquil'!F166,'Tablas Resto de Ecuador'!F166) -> 3336 | M166: =IF('INGRESO DE DATOS'!$D$21="Guayas/Santa Elena",'Tablas Guayaquil'!G166,'Tablas Resto de Ecuador'!G166) -> 2617 | O166: 6046.05 | P166: 5485.9 | Q166: 3963.55 | R166: 2835.6 | S166: 2224.45
A167: 30 | C167: 6724.35 | D167: 6101.3 | E167: 4350.3 | F167: 3111.85 | G167: 2440.35 | I167: =IF('INGRESO DE DATOS'!$D$21="Guayas/Santa Elena",'Tablas Guayaquil'!C167,'Tablas Resto de Ecuador'!C167) -> 7911 | J167: =IF('INGRESO DE DATOS'!$D$21="Guayas/Santa Elena",'Tablas Guayaquil'!D167,'Tablas Resto de Ecuador'!D167) -> 7178 | K167: =IF('INGRESO DE DATOS'!$D$21="Guayas/Santa Elena",'Tablas Guayaquil'!E167,'Tablas Resto de Ecuador'!E167) -> 5118 | L167: =IF('INGRESO DE DATOS'!$D$21="Guayas/Santa Elena",'Tablas Guayaquil'!F167,'Tablas Resto de Ecuador'!F167) -> 3661 | M167: =IF('INGRESO DE DATOS'!$D$21="Guayas/Santa Elena",'Tablas Guayaquil'!G167,'Tablas Resto de Ecuador'!G167) -> 2871 | O167: 6724.35 | P167: 6101.3 | Q167: 4350.3 | R167: 3111.85 | S167: 2440.35
A168: 31 | C168: 6724.35 | D168: 6101.3 | E168: 4350.3 | F168: 3111.85 | G168: 2440.35 | I168: =IF('INGRESO DE DATOS'!$D$21="Guayas/Santa Elena",'Tablas Guayaquil'!C168,'Tablas Resto de Ecuador'!C168) -> 7911 | J168: =IF('INGRESO DE DATOS'!$D$21="Guayas/Santa Elena",'Tablas Guayaquil'!D168,'Tablas Resto de Ecuador'!D168) -> 7178 | K168: =IF('INGRESO DE DATOS'!$D$21="Guayas/Santa Elena",'Tablas Guayaquil'!E168,'Tablas Resto de Ecuador'!E168) -> 5118 | L168: =IF('INGRESO DE DATOS'!$D$21="Guayas/Santa Elena",'Tablas Guayaquil'!F168,'Tablas Resto de Ecuador'!F168) -> 3661 | M168: =IF('INGRESO DE DATOS'!$D$21="Guayas/Santa Elena",'Tablas Guayaquil'!G168,'Tablas Resto de Ecuador'!G168) -> 2871 | O168: 6724.35 | P168: 6101.3 | Q168: 4350.3 | R168: 3111.85 | S168: 2440.35
A169: 32 | C169: 6724.35 | D169: 6101.3 | E169: 4350.3 | F169: 3111.85 | G169: 2440.35 | I169: =IF('INGRESO DE DATOS'!$D$21="Guayas/Santa Elena",'Tablas Guayaquil'!C169,'Tablas Resto de Ecuador'!C169) -> 7911 | J169: =IF('INGRESO DE DATOS'!$D$21="Guayas/Santa Elena",'Tablas Guayaquil'!D169,'Tablas Resto de Ecuador'!D169) -> 7178 | K169: =IF('INGRESO DE DATOS'!$D$21="Guayas/Santa Elena",'Tablas Guayaquil'!E169,'Tablas Resto de Ecuador'!E169) -> 5118 | L169: =IF('INGRESO DE DATOS'!$D$21="Guayas/Santa Elena",'Tablas Guayaquil'!F169,'Tablas Resto de Ecuador'!F169) -> 3661 | M169: =IF('INGRESO DE DATOS'!$D$21="Guayas/Santa Elena",'Tablas Guayaquil'!G169,'Tablas Resto de Ecuador'!G169) -> 2871 | O169: 6724.35 | P169: 6101.3 | Q169: 4350.3 | R169: 3111.85 | S169: 2440.35
A170: 33 | C170: 6724.35 | D170: 6101.3 | E170: 4350.3 | F170: 3111.85 | G170: 2440.35 | I170: =IF('INGRESO DE DATOS'!$D$21="Guayas/Santa Elena",'Tablas Guayaquil'!C170,'Tablas Resto de Ecuador'!C170) -> 7911 | J170: =IF('INGRESO DE DATOS'!$D$21="Guayas/Santa Elena",'Tablas Guayaquil'!D170,'Tablas Resto de Ecuador'!D170) -> 7178 | K170: =IF('INGRESO DE DATOS'!$D$21="Guayas/Santa Elena",'Tablas Guayaquil'!E170,'Tablas Resto de Ecuador'!E170) -> 5118 | L170: =IF('INGRESO DE DATOS'!$D$21="Guayas/Santa Elena",'Tablas Guayaquil'!F170,'Tablas Resto de Ecuador'!F170) -> 3661 | M170: =IF('INGRESO DE DATOS'!$D$21="Guayas/Santa Elena",'Tablas Guayaquil'!G170,'Tablas Resto de Ecuador'!G170) -> 2871 | O170: 6724.35 | P170: 6101.3 | Q170: 4350.3 | R170: 3111.85 | S170: 2440.35
A171: 34 | C171: 6724.35 | D171: 6101.3 | E171: 4350.3 | F171: 3111.85 | G171: 2440.35 | I171: =IF('INGRESO DE DATOS'!$D$21="Guayas/Santa Elena",'Tablas Guayaquil'!C171,'Tablas Resto de Ecuador'!C171) -> 7911 | J171: =IF('INGRESO DE DATOS'!$D$21="Guayas/Santa Elena",'Tablas Guayaquil'!D171,'Tablas Resto de Ecuador'!D171) -> 7178 | K171: =IF('INGRESO DE DATOS'!$D$21="Guayas/Santa Elena",'Tablas Guayaquil'!E171,'Tablas Resto de Ecuador'!E171) -> 5118 | L171: =IF('INGRESO DE DATOS'!$D$21="Guayas/Santa Elena",'Tablas Guayaquil'!F171,'Tablas Resto de Ecuador'!F171) -> 3661 | M171: =IF('INGRESO DE DATOS'!$D$21="Guayas/Santa Elena",'Tablas Guayaquil'!G171,'Tablas Resto de Ecuador'!G171) -> 2871 | O171: 6724.35 | P171: 6101.3 | Q171: 4350.3 | R171: 3111.85 | S171: 2440.35
A172: 35 | C172: 7503.8 | D172: 6811.9 | E172: 4807.6 | F172: 3440.8 | G172: 2698.75 | I172: =IF('INGRESO DE DATOS'!$D$21="Guayas/Santa Elena",'Tablas Guayaquil'!C172,'Tablas Resto de Ecuador'!C172) -> 8828 | J172: =IF('INGRESO DE DATOS'!$D$21="Guayas/Santa Elena",'Tablas Guayaquil'!D172,'Tablas Resto de Ecuador'!D172) -> 8014 | K172: =IF('INGRESO DE DATOS'!$D$21="Guayas/Santa Elena",'Tablas Guayaquil'!E172,'Tablas Resto de Ecuador'!E172) -> 5656 | L172: =IF('INGRESO DE DATOS'!$D$21="Guayas/Santa Elena",'Tablas Guayaquil'!F172,'Tablas Resto de Ecuador'!F172) -> 4048 | M172: =IF('INGRESO DE DATOS'!$D$21="Guayas/Santa Elena",'Tablas Guayaquil'!G172,'Tablas Resto de Ecuador'!G172) -> 3175 | O172: 7503.8 | P172: 6811.9 | Q172: 4807.6 | R172: 3440.8 | S172: 2698.75
A173: 36 | C173: 7503.8 | D173: 6811.9 | E173: 4807.6 | F173: 3440.8 | G173: 2698.75 | I173: =IF('INGRESO DE DATOS'!$D$21="Guayas/Santa Elena",'Tablas Guayaquil'!C173,'Tablas Resto de Ecuador'!C173) -> 8828 | J173: =IF('INGRESO DE DATOS'!$D$21="Guayas/Santa Elena",'Tablas Guayaquil'!D173,'Tablas Resto de Ecuador'!D173) -> 8014 | K173: =IF('INGRESO DE DATOS'!$D$21="Guayas/Santa Elena",'Tablas Guayaquil'!E173,'Tablas Resto de Ecuador'!E173) -> 5656 | L173: =IF('INGRESO DE DATOS'!$D$21="Guayas/Santa Elena",'Tablas Guayaquil'!F173,'Tablas Resto de Ecuador'!F173) -> 4048 | M173: =IF('INGRESO DE DATOS'!$D$21="Guayas/Santa Elena",'Tablas Guayaquil'!G173,'Tablas Resto de Ecuador'!G173) -> 3175 | O173: 7503.8 | P173: 6811.9 | Q173: 4807.6 | R173: 3440.8 | S173: 2698.75
A174: 37 | C174: 7503.8 | D174: 6811.9 | E174: 4807.6 | F174: 3440.8 | G174: 2698.75 | I174: =IF('INGRESO DE DATOS'!$D$21="Guayas/Santa Elena",'Tablas Guayaquil'!C174,'Tablas Resto de Ecuador'!C174) -> 8828 | J174: =IF('INGRESO DE DATOS'!$D$21="Guayas/Santa Elena",'Tablas Guayaquil'!D174,'Tablas Resto de Ecuador'!D174) -> 8014 | K174: =IF('INGRESO DE DATOS'!$D$21="Guayas/Santa Elena",'Tablas Guayaquil'!E174,'Tablas Resto de Ecuador'!E174) -> 5656 | L174: =IF('INGRESO DE DATOS'!$D$21="Guayas/Santa Elena",'Tablas Guayaquil'!F174,'Tablas Resto de Ecuador'!F174) -> 4048 | M174: =IF('INGRESO DE DATOS'!$D$21="Guayas/Santa Elena",'Tablas Guayaquil'!G174,'Tablas Resto de Ecuador'!G174) -> 3175 | O174: 7503.8 | P174: 6811.9 | Q174: 4807.6 | R174: 3440.8 | S174: 2698.75
A175: 38 | C175: 7503.8 | D175: 6811.9 | E175: 4807.6 | F175: 3440.8 | G175: 2698.75 | I175: =IF('INGRESO DE DATOS'!$D$21="Guayas/Santa Elena",'Tablas Guayaquil'!C175,'Tablas Resto de Ecuador'!C175) -> 8828 | J175: =IF('INGRESO DE DATOS'!$D$21="Guayas/Santa Elena",'Tablas Guayaquil'!D175,'Tablas Resto de Ecuador'!D175) -> 8014 | K175: =IF('INGRESO DE DATOS'!$D$21="Guayas/Santa Elena",'Tablas Guayaquil'!E175,'Tablas Resto de Ecuador'!E175) -> 5656 | L175: =IF('INGRESO DE DATOS'!$D$21="Guayas/Santa Elena",'Tablas Guayaquil'!F175,'Tablas Resto de Ecuador'!F175) -> 4048 | M175: =IF('INGRESO DE DATOS'!$D$21="Guayas/Santa Elena",'Tablas Guayaquil'!G175,'Tablas Resto de Ecuador'!G175) -> 3175 | O175: 7503.8 | P175: 6811.9 | Q175: 4807.6 | R175: 3440.8 | S175: 2698.75
A176: 39 | C176: 7503.8 | D176: 6811.9 | E176: 4807.6 | F176: 3440.8 | G176: 2698.75 | I176: =IF('INGRESO DE DATOS'!$D$21="Guayas/Santa Elena",'Tablas Guayaquil'!C176,'Tablas Resto de Ecuador'!C176) -> 8828 | J176: =IF('INGRESO DE DATOS'!$D$21="Guayas/Santa Elena",'Tablas Guayaquil'!D176,'Tablas Resto de Ecuador'!D176) -> 8014 | K176: =IF('INGRESO DE DATOS'!$D$21="Guayas/Santa Elena",'Tablas Guayaquil'!E176,'Tablas Resto de Ecuador'!E176) -> 5656 | L176: =IF('INGRESO DE DATOS'!$D$21="Guayas/Santa Elena",'Tablas Guayaquil'!F176,'Tablas Resto de Ecuador'!F176) -> 4048 | M176: =IF('INGRESO DE DATOS'!$D$21="Guayas/Santa Elena",'Tablas Guayaquil'!G176,'Tablas Resto de Ecuador'!G176) -> 3175 | O176: 7503.8 | P176: 6811.9 | Q176: 4807.6 | R176: 3440.8 | S176: 2698.75
A177: 40 | C177: 8407.35 | D177: 7627.9 | E177: 5344.8 | F177: 3823.3 | G177: 2998.8 | I177: =IF('INGRESO DE DATOS'!$D$21="Guayas/Santa Elena",'Tablas Guayaquil'!C177,'Tablas Resto de Ecuador'!C177) -> 9891 | J177: =IF('INGRESO DE DATOS'!$D$21="Guayas/Santa Elena",'Tablas Guayaquil'!D177,'Tablas Resto de Ecuador'!D177) -> 8974 | K177: =IF('INGRESO DE DATOS'!$D$21="Guayas/Santa Elena",'Tablas Guayaquil'!E177,'Tablas Resto de Ecuador'!E177) -> 6288 | L177: =IF('INGRESO DE DATOS'!$D$21="Guayas/Santa Elena",'Tablas Guayaquil'!F177,'Tablas Resto de Ecuador'!F177) -> 4498 | M177: =IF('INGRESO DE DATOS'!$D$21="Guayas/Santa Elena",'Tablas Guayaquil'!G177,'Tablas Resto de Ecuador'!G177) -> 3528 | O177: 8407.35 | P177: 7627.9 | Q177: 5344.8 | R177: 3823.3 | S177: 2998.8
A178: 41 | C178: 8407.35 | D178: 7627.9 | E178: 5344.8 | F178: 3823.3 | G178: 2998.8 | I178: =IF('INGRESO DE DATOS'!$D$21="Guayas/Santa Elena",'Tablas Guayaquil'!C178,'Tablas Resto de Ecuador'!C178) -> 9891 | J178: =IF('INGRESO DE DATOS'!$D$21="Guayas/Santa Elena",'Tablas Guayaquil'!D178,'Tablas Resto de Ecuador'!D178) -> 8974 | K178: =IF('INGRESO DE DATOS'!$D$21="Guayas/Santa Elena",'Tablas Guayaquil'!E178,'Tablas Resto de Ecuador'!E178) -> 6288 | L178: =IF('INGRESO DE DATOS'!$D$21="Guayas/Santa Elena",'Tablas Guayaquil'!F178,'Tablas Resto de Ecuador'!F178) -> 4498 | M178: =IF('INGRESO DE DATOS'!$D$21="Guayas/Santa Elena",'Tablas Guayaquil'!G178,'Tablas Resto de Ecuador'!G178) -> 3528 | O178: 8407.35 | P178: 7627.9 | Q178: 5344.8 | R178: 3823.3 | S178: 2998.8
A179: 42 | C179: 8407.35 | D179: 7627.9 | E179: 5344.8 | F179: 3823.3 | G179: 2998.8 | I179: =IF('INGRESO DE DATOS'!$D$21="Guayas/Santa Elena",'Tablas Guayaquil'!C179,'Tablas Resto de Ecuador'!C179) -> 9891 | J179: =IF('INGRESO DE DATOS'!$D$21="Guayas/Santa Elena",'Tablas Guayaquil'!D179,'Tablas Resto de Ecuador'!D179) -> 8974 | K179: =IF('INGRESO DE DATOS'!$D$21="Guayas/Santa Elena",'Tablas Guayaquil'!E179,'Tablas Resto de Ecuador'!E179) -> 6288 | L179: =IF('INGRESO DE DATOS'!$D$21="Guayas/Santa Elena",'Tablas Guayaquil'!F179,'Tablas Resto de Ecuador'!F179) -> 4498 | M179: =IF('INGRESO DE DATOS'!$D$21="Guayas/Santa Elena",'Tablas Guayaquil'!G179,'Tablas Resto de Ecuador'!G179) -> 3528 | O179: 8407.35 | P179: 7627.9 | Q179: 5344.8 | R179: 3823.3 | S179: 2998.8
A180: 43 | C180: 8407.35 | D180: 7627.9 | E180: 5344.8 | F180: 3823.3 | G180: 2998.8 | I180: =IF('INGRESO DE DATOS'!$D$21="Guayas/Santa Elena",'Tablas Guayaquil'!C180,'Tablas Resto de Ecuador'!C180) -> 9891 | J180: =IF('INGRESO DE DATOS'!$D$21="Guayas/Santa Elena",'Tablas Guayaquil'!D180,'Tablas Resto de Ecuador'!D180) -> 8974 | K180: =IF('INGRESO DE DATOS'!$D$21="Guayas/Santa Elena",'Tablas Guayaquil'!E180,'Tablas Resto de Ecuador'!E180) -> 6288 | L180: =IF('INGRESO DE DATOS'!$D$21="Guayas/Santa Elena",'Tablas Guayaquil'!F180,'Tablas Resto de Ecuador'!F180) -> 4498 | M180: =IF('INGRESO DE DATOS'!$D$21="Guayas/Santa Elena",'Tablas Guayaquil'!G180,'Tablas Resto de Ecuador'!G180) -> 3528 | O180: 8407.35 | P180: 7627.9 | Q180: 5344.8 | R180: 3823.3 | S180: 2998.8
A181: 44 | C181: 8407.35 | D181: 7627.9 | E181: 5344.8 | F181: 3823.3 | G181: 2998.8 | I181: =IF('INGRESO DE DATOS'!$D$21="Guayas/Santa Elena",'Tablas Guayaquil'!C181,'Tablas Resto de Ecuador'!C181) -> 9891 | J181: =IF('INGRESO DE DATOS'!$D$21="Guayas/Santa Elena",'Tablas Guayaquil'!D181,'Tablas Resto de Ecuador'!D181) -> 8974 | K181: =IF('INGRESO DE DATOS'!$D$21="Guayas/Santa Elena",'Tablas Guayaquil'!E181,'Tablas Resto de Ecuador'!E181) -> 6288 | L181: =IF('INGRESO DE DATOS'!$D$21="Guayas/Santa Elena",'Tablas Guayaquil'!F181,'Tablas Resto de Ecuador'!F181) -> 4498 | M181: =IF('INGRESO DE DATOS'!$D$21="Guayas/Santa Elena",'Tablas Guayaquil'!G181,'Tablas Resto de Ecuador'!G181) -> 3528 | O181: 8407.35 | P181: 7627.9 | Q181: 5344.8 | R181: 3823.3 | S181: 2998.8
A182: 45 | C182: 9407.8 | D182: 8538.25 | E182: 5949.15 | F182: 4254.25 | G182: 3337.1 | I182: =IF('INGRESO DE DATOS'!$D$21="Guayas/Santa Elena",'Tablas Guayaquil'!C182,'Tablas Resto de Ecuador'!C182) -> 11068 | J182: =IF('INGRESO DE DATOS'!$D$21="Guayas/Santa Elena",'Tablas Guayaquil'!D182,'Tablas Resto de Ecuador'!D182) -> 10045 | K182: =IF('INGRESO DE DATOS'!$D$21="Guayas/Santa Elena",'Tablas Guayaquil'!E182,'Tablas Resto de Ecuador'!E182) -> 6999 | L182: =IF('INGRESO DE DATOS'!$D$21="Guayas/Santa Elena",'Tablas Guayaquil'!F182,'Tablas Resto de Ecuador'!F182) -> 5005 | M182: =IF('INGRESO DE DATOS'!$D$21="Guayas/Santa Elena",'Tablas Guayaquil'!G182,'Tablas Resto de Ecuador'!G182) -> 3926 | O182: 9407.8 | P182: 8538.25 | Q182: 5949.15 | R182: 4254.25 | S182: 3337.1
A183: 46 | C183: 9407.8 | D183: 8538.25 | E183: 5949.15 | F183: 4254.25 | G183: 3337.1 | I183: =IF('INGRESO DE DATOS'!$D$21="Guayas/Santa Elena",'Tablas Guayaquil'!C183,'Tablas Resto de Ecuador'!C183) -> 11068 | J183: =IF('INGRESO DE DATOS'!$D$21="Guayas/Santa Elena",'Tablas Guayaquil'!D183,'Tablas Resto de Ecuador'!D183) -> 10045 | K183: =IF('INGRESO DE DATOS'!$D$21="Guayas/Santa Elena",'Tablas Guayaquil'!E183,'Tablas Resto de Ecuador'!E183) -> 6999 | L183: =IF('INGRESO DE DATOS'!$D$21="Guayas/Santa Elena",'Tablas Guayaquil'!F183,'Tablas Resto de Ecuador'!F183) -> 5005 | M183: =IF('INGRESO DE DATOS'!$D$21="Guayas/Santa Elena",'Tablas Guayaquil'!G183,'Tablas Resto de Ecuador'!G183) -> 3926 | O183: 9407.8 | P183: 8538.25 | Q183: 5949.15 | R183: 4254.25 | S183: 3337.1
A184: 47 | C184: 9407.8 | D184: 8538.25 | E184: 5949.15 | F184: 4254.25 | G184: 3337.1 | I184: =IF('INGRESO DE DATOS'!$D$21="Guayas/Santa Elena",'Tablas Guayaquil'!C184,'Tablas Resto de Ecuador'!C184) -> 11068 | J184: =IF('INGRESO DE DATOS'!$D$21="Guayas/Santa Elena",'Tablas Guayaquil'!D184,'Tablas Resto de Ecuador'!D184) -> 10045 | K184: =IF('INGRESO DE DATOS'!$D$21="Guayas/Santa Elena",'Tablas Guayaquil'!E184,'Tablas Resto de Ecuador'!E184) -> 6999 | L184: =IF('INGRESO DE DATOS'!$D$21="Guayas/Santa Elena",'Tablas Guayaquil'!F184,'Tablas Resto de Ecuador'!F184) -> 5005 | M184: =IF('INGRESO DE DATOS'!$D$21="Guayas/Santa Elena",'Tablas Guayaquil'!G184,'Tablas Resto de Ecuador'!G184) -> 3926 | O184: 9407.8 | P184: 8538.25 | Q184: 5949.15 | R184: 4254.25 | S184: 3337.1
A185: 48 | C185: 9407.8 | D185: 8538.25 | E185: 5949.15 | F185: 4254.25 | G185: 3337.1 | I185: =IF('INGRESO DE DATOS'!$D$21="Guayas/Santa Elena",'Tablas Guayaquil'!C185,'Tablas Resto de Ecuador'!C185) -> 11068 | J185: =IF('INGRESO DE DATOS'!$D$21="Guayas/Santa Elena",'Tablas Guayaquil'!D185,'Tablas Resto de Ecuador'!D185) -> 10045 | K185: =IF('INGRESO DE DATOS'!$D$21="Guayas/Santa Elena",'Tablas Guayaquil'!E185,'Tablas Resto de Ecuador'!E185) -> 6999 | L185: =IF('INGRESO DE DATOS'!$D$21="Guayas/Santa Elena",'Tablas Guayaquil'!F185,'Tablas Resto de Ecuador'!F185) -> 5005 | M185: =IF('INGRESO DE DATOS'!$D$21="Guayas/Santa Elena",'Tablas Guayaquil'!G185,'Tablas Resto de Ecuador'!G185) -> 3926 | O185: 9407.8 | P185: 8538.25 | Q185: 5949.15 | R185: 4254.25 | S185: 3337.1
A186: 49 | C186: 9407.8 | D186: 8538.25 | E186: 5949.15 | F186: 4254.25 | G186: 3337.1 | I186: =IF('INGRESO DE DATOS'!$D$21="Guayas/Santa Elena",'Tablas Guayaquil'!C186,'Tablas Resto de Ecuador'!C186) -> 11068 | J186: =IF('INGRESO DE DATOS'!$D$21="Guayas/Santa Elena",'Tablas Guayaquil'!D186,'Tablas Resto de Ecuador'!D186) -> 10045 | K186: =IF('INGRESO DE DATOS'!$D$21="Guayas/Santa Elena",'Tablas Guayaquil'!E186,'Tablas Resto de Ecuador'!E186) -> 6999 | L186: =IF('INGRESO DE DATOS'!$D$21="Guayas/Santa Elena",'Tablas Guayaquil'!F186,'Tablas Resto de Ecuador'!F186) -> 5005 | M186: =IF('INGRESO DE DATOS'!$D$21="Guayas/Santa Elena",'Tablas Guayaquil'!G186,'Tablas Resto de Ecuador'!G186) -> 3926 | O186: 9407.8 | P186: 8538.25 | Q186: 5949.15 | R186: 4254.25 | S186: 3337.1
A187: 50 | C187: 10535.75 | D187: 9564.2 | E187: 6636.8 | F187: 4746.4 | G187: 3723.85 | I187: =IF('INGRESO DE DATOS'!$D$21="Guayas/Santa Elena",'Tablas Guayaquil'!C187,'Tablas Resto de Ecuador'!C187) -> 12395 | J187: =IF('INGRESO DE DATOS'!$D$21="Guayas/Santa Elena",'Tablas Guayaquil'!D187,'Tablas Resto de Ecuador'!D187) -> 11252 | K187: =IF('INGRESO DE DATOS'!$D$21="Guayas/Santa Elena",'Tablas Guayaquil'!E187,'Tablas Resto de Ecuador'!E187) -> 7808 | L187: =IF('INGRESO DE DATOS'!$D$21="Guayas/Santa Elena",'Tablas Guayaquil'!F187,'Tablas Resto de Ecuador'!F187) -> 5584 | M187: =IF('INGRESO DE DATOS'!$D$21="Guayas/Santa Elena",'Tablas Guayaquil'!G187,'Tablas Resto de Ecuador'!G187) -> 4381 | O187: 10535.75 | P187: 9564.2 | Q187: 6636.8 | R187: 4746.4 | S187: 3723.85
A188: 51 | C188: 10535.75 | D188: 9564.2 | E188: 6636.8 | F188: 4746.4 | G188: 3723.85 | I188: =IF('INGRESO DE DATOS'!$D$21="Guayas/Santa Elena",'Tablas Guayaquil'!C188,'Tablas Resto de Ecuador'!C188) -> 12395 | J188: =IF('INGRESO DE DATOS'!$D$21="Guayas/Santa Elena",'Tablas Guayaquil'!D188,'Tablas Resto de Ecuador'!D188) -> 11252 | K188: =IF('INGRESO DE DATOS'!$D$21="Guayas/Santa Elena",'Tablas Guayaquil'!E188,'Tablas Resto de Ecuador'!E188) -> 7808 | L188: =IF('INGRESO DE DATOS'!$D$21="Guayas/Santa Elena",'Tablas Guayaquil'!F188,'Tablas Resto de Ecuador'!F188) -> 5584 | M188: =IF('INGRESO DE DATOS'!$D$21="Guayas/Santa Elena",'Tablas Guayaquil'!G188,'Tablas Resto de Ecuador'!G188) -> 4381 | O188: 10535.75 | P188: 9564.2 | Q188: 6636.8 | R188: 4746.4 | S188: 3723.85
A189: 52 | C189: 10535.75 | D189: 9564.2 | E189: 6636.8 | F189: 4746.4 | G189: 3723.85 | I189: =IF('INGRESO DE DATOS'!$D$21="Guayas/Santa Elena",'Tablas Guayaquil'!C189,'Tablas Resto de Ecuador'!C189) -> 12395 | J189: =IF('INGRESO DE DATOS'!$D$21="Guayas/Santa Elena",'Tablas Guayaquil'!D189,'Tablas Resto de Ecuador'!D189) -> 11252 | K189: =IF('INGRESO DE DATOS'!$D$21="Guayas/Santa Elena",'Tablas Guayaquil'!E189,'Tablas Resto de Ecuador'!E189) -> 7808 | L189: =IF('INGRESO DE DATOS'!$D$21="Guayas/Santa Elena",'Tablas Guayaquil'!F189,'Tablas Resto de Ecuador'!F189) -> 5584 | M189: =IF('INGRESO DE DATOS'!$D$21="Guayas/Santa Elena",'Tablas Guayaquil'!G189,'Tablas Resto de Ecuador'!G189) -> 4381 | O189: 10535.75 | P189: 9564.2 | Q189: 6636.8 | R189: 4746.4 | S189: 3723.85
A190: 53 | C190: 10535.75 | D190: 9564.2 | E190: 6636.8 | F190: 4746.4 | G190: 3723.85 | I190: =IF('INGRESO DE DATOS'!$D$21="Guayas/Santa Elena",'Tablas Guayaquil'!C190,'Tablas Resto de Ecuador'!C190) -> 12395 | J190: =IF('INGRESO DE DATOS'!$D$21="Guayas/Santa Elena",'Tablas Guayaquil'!D190,'Tablas Resto de Ecuador'!D190) -> 11252 | K190: =IF('INGRESO DE DATOS'!$D$21="Guayas/Santa Elena",'Tablas Guayaquil'!E190,'Tablas Resto de Ecuador'!E190) -> 7808 | L190: =IF('INGRESO DE DATOS'!$D$21="Guayas/Santa Elena",'Tablas Guayaquil'!F190,'Tablas Resto de Ecuador'!F190) -> 5584 | M190: =IF('INGRESO DE DATOS'!$D$21="Guayas/Santa Elena",'Tablas Guayaquil'!G190,'Tablas Resto de Ecuador'!G190) -> 4381 | O190: 10535.75 | P190: 9564.2 | Q190: 6636.8 | R190: 4746.4 | S190: 3723.85
A191: 54 | C191: 10535.75 | D191: 9564.2 | E191: 6636.8 | F191: 4746.4 | G191: 3723.85 | I191: =IF('INGRESO DE DATOS'!$D$21="Guayas/Santa Elena",'Tablas Guayaquil'!C191,'Tablas Resto de Ecuador'!C191) -> 12395 | J191: =IF('INGRESO DE DATOS'!$D$21="Guayas/Santa Elena",'Tablas Guayaquil'!D191,'Tablas Resto de Ecuador'!D191) -> 11252 | K191: =IF('INGRESO DE DATOS'!$D$21="Guayas/Santa Elena",'Tablas Guayaquil'!E191,'Tablas Resto de Ecuador'!E191) -> 7808 | L191: =IF('INGRESO DE DATOS'!$D$21="Guayas/Santa Elena",'Tablas Guayaquil'!F191,'Tablas Resto de Ecuador'!F191) -> 5584 | M191: =IF('INGRESO DE DATOS'!$D$21="Guayas/Santa Elena",'Tablas Guayaquil'!G191,'Tablas Resto de Ecuador'!G191) -> 4381 | O191: 10535.75 | P191: 9564.2 | Q191: 6636.8 | R191: 4746.4 | S191: 3723.85
A192: 55 | C192: 11781.85 | D192: 10688.75 | E192: 7399.25 | F192: 5291.25 | G192: 4152.25 | I192: =IF('INGRESO DE DATOS'!$D$21="Guayas/Santa Elena",'Tablas Guayaquil'!C192,'Tablas Resto de Ecuador'!C192) -> 13861 | J192: =IF('INGRESO DE DATOS'!$D$21="Guayas/Santa Elena",'Tablas Guayaquil'!D192,'Tablas Resto de Ecuador'!D192) -> 12575 | K192: =IF('INGRESO DE DATOS'!$D$21="Guayas/Santa Elena",'Tablas Guayaquil'!E192,'Tablas Resto de Ecuador'!E192) -> 8705 | L192: =IF('INGRESO DE DATOS'!$D$21="Guayas/Santa Elena",'Tablas Guayaquil'!F192,'Tablas Resto de Ecuador'!F192) -> 6225 | M192: =IF('INGRESO DE DATOS'!$D$21="Guayas/Santa Elena",'Tablas Guayaquil'!G192,'Tablas Resto de Ecuador'!G192) -> 4885 | O192: 11781.85 | P192: 10688.75 | Q192: 7399.25 | R192: 5291.25 | S192: 4152.25
A193: 56 | C193: 11781.85 | D193: 10688.75 | E193: 7399.25 | F193: 5291.25 | G193: 4152.25 | I193: =IF('INGRESO DE DATOS'!$D$21="Guayas/Santa Elena",'Tablas Guayaquil'!C193,'Tablas Resto de Ecuador'!C193) -> 13861 | J193: =IF('INGRESO DE DATOS'!$D$21="Guayas/Santa Elena",'Tablas Guayaquil'!D193,'Tablas Resto de Ecuador'!D193) -> 12575 | K193: =IF('INGRESO DE DATOS'!$D$21="Guayas/Santa Elena",'Tablas Guayaquil'!E193,'Tablas Resto de Ecuador'!E193) -> 8705 | L193: =IF('INGRESO DE DATOS'!$D$21="Guayas/Santa Elena",'Tablas Guayaquil'!F193,'Tablas Resto de Ecuador'!F193) -> 6225 | M193: =IF('INGRESO DE DATOS'!$D$21="Guayas/Santa Elena",'Tablas Guayaquil'!G193,'Tablas Resto de Ecuador'!G193) -> 4885 | O193: 11781.85 | P193: 10688.75 | Q193: 7399.25 | R193: 5291.25 | S193: 4152.25
A194: 57 | C194: 11781.85 | D194: 10688.75 | E194: 7399.25 | F194: 5291.25 | G194: 4152.25 | I194: =IF('INGRESO DE DATOS'!$D$21="Guayas/Santa Elena",'Tablas Guayaquil'!C194,'Tablas Resto de Ecuador'!C194) -> 13861 | J194: =IF('INGRESO DE DATOS'!$D$21="Guayas/Santa Elena",'Tablas Guayaquil'!D194,'Tablas Resto de Ecuador'!D194) -> 12575 | K194: =IF('INGRESO DE DATOS'!$D$21="Guayas/Santa Elena",'Tablas Guayaquil'!E194,'Tablas Resto de Ecuador'!E194) -> 8705 | L194: =IF('INGRESO DE DATOS'!$D$21="Guayas/Santa Elena",'Tablas Guayaquil'!F194,'Tablas Resto de Ecuador'!F194) -> 6225 | M194: =IF('INGRESO DE DATOS'!$D$21="Guayas/Santa Elena",'Tablas Guayaquil'!G194,'Tablas Resto de Ecuador'!G194) -> 4885 | O194: 11781.85 | P194: 10688.75 | Q194: 7399.25 | R194: 5291.25 | S194: 4152.25
A195: 58 | C195: 11781.85 | D195: 10688.75 | E195: 7399.25 | F195: 5291.25 | G195: 4152.25 | I195: =IF('INGRESO DE DATOS'!$D$21="Guayas/Santa Elena",'Tablas Guayaquil'!C195,'Tablas Resto de Ecuador'!C195) -> 13861 | J195: =IF('INGRESO DE DATOS'!$D$21="Guayas/Santa Elena",'Tablas Guayaquil'!D195,'Tablas Resto de Ecuador'!D195) -> 12575 | K195: =IF('INGRESO DE DATOS'!$D$21="Guayas/Santa Elena",'Tablas Guayaquil'!E195,'Tablas Resto de Ecuador'!E195) -> 8705 | L195: =IF('INGRESO DE DATOS'!$D$21="Guayas/Santa Elena",'Tablas Guayaquil'!F195,'Tablas Resto de Ecuador'!F195) -> 6225 | M195: =IF('INGRESO DE DATOS'!$D$21="Guayas/Santa Elena",'Tablas Guayaquil'!G195,'Tablas Resto de Ecuador'!G195) -> 4885 | O195: 11781.85 | P195: 10688.75 | Q195: 7399.25 | R195: 5291.25 | S195: 4152.25
A196: 59 | C196: 11781.85 | D196: 10688.75 | E196: 7399.25 | F196: 5291.25 | G196: 4152.25 | I196: =IF('INGRESO DE DATOS'!$D$21="Guayas/Santa Elena",'Tablas Guayaquil'!C196,'Tablas Resto de Ecuador'!C196) -> 13861 | J196: =IF('INGRESO DE DATOS'!$D$21="Guayas/Santa Elena",'Tablas Guayaquil'!D196,'Tablas Resto de Ecuador'!D196) -> 12575 | K196: =IF('INGRESO DE DATOS'!$D$21="Guayas/Santa Elena",'Tablas Guayaquil'!E196,'Tablas Resto de Ecuador'!E196) -> 8705 | L196: =IF('INGRESO DE DATOS'!$D$21="Guayas/Santa Elena",'Tablas Guayaquil'!F196,'Tablas Resto de Ecuador'!F196) -> 6225 | M196: =IF('INGRESO DE DATOS'!$D$21="Guayas/Santa Elena",'Tablas Guayaquil'!G196,'Tablas Resto de Ecuador'!G196) -> 4885 | O196: 11781.85 | P196: 10688.75 | Q196: 7399.25 | R196: 5291.25 | S196: 4152.25
A197: 60 | C197: 12605.5 | D197: 11441.85 | E197: 7910.95 | F197: 5658.45 | G197: 4438.7 | I197: =IF('INGRESO DE DATOS'!$D$21="Guayas/Santa Elena",'Tablas Guayaquil'!C197,'Tablas Resto de Ecuador'!C197) -> 14830 | J197: =IF('INGRESO DE DATOS'!$D$21="Guayas/Santa Elena",'Tablas Guayaquil'!D197,'Tablas Resto de Ecuador'!D197) -> 13461 | K197: =IF('INGRESO DE DATOS'!$D$21="Guayas/Santa Elena",'Tablas Guayaquil'!E197,'Tablas Resto de Ecuador'!E197) -> 9307 | L197: =IF('INGRESO DE DATOS'!$D$21="Guayas/Santa Elena",'Tablas Guayaquil'!F197,'Tablas Resto de Ecuador'!F197) -> 6657 | M197: =IF('INGRESO DE DATOS'!$D$21="Guayas/Santa Elena",'Tablas Guayaquil'!G197,'Tablas Resto de Ecuador'!G197) -> 5222 | O197: 12605.5 | P197: 11441.85 | Q197: 7910.95 | R197: 5658.45 | S197: 4438.7
A198: 61 | C198: 14047.95 | D198: 12750 | E198: 8804.3 | F198: 6297.65 | G198: 4939.35 | I198: =IF('INGRESO DE DATOS'!$D$21="Guayas/Santa Elena",'Tablas Guayaquil'!C198,'Tablas Resto de Ecuador'!C198) -> 16527 | J198: =IF('INGRESO DE DATOS'!$D$21="Guayas/Santa Elena",'Tablas Guayaquil'!D198,'Tablas Resto de Ecuador'!D198) -> 15000 | K198: =IF('INGRESO DE DATOS'!$D$21="Guayas/Santa Elena",'Tablas Guayaquil'!E198,'Tablas Resto de Ecuador'!E198) -> 10358 | L198: =IF('INGRESO DE DATOS'!$D$21="Guayas/Santa Elena",'Tablas Guayaquil'!F198,'Tablas Resto de Ecuador'!F198) -> 7409 | M198: =IF('INGRESO DE DATOS'!$D$21="Guayas/Santa Elena",'Tablas Guayaquil'!G198,'Tablas Resto de Ecuador'!G198) -> 5811 | O198: 14047.95 | P198: 12750 | Q198: 8804.3 | R198: 6297.65 | S198: 4939.35
A199: 62 | C199: 15608.55 | D199: 14166.1 | E199: 9777.55 | F199: 6991.25 | G199: 5484.2 | I199: =IF('INGRESO DE DATOS'!$D$21="Guayas/Santa Elena",'Tablas Guayaquil'!C199,'Tablas Resto de Ecuador'!C199) -> 18363 | J199: =IF('INGRESO DE DATOS'!$D$21="Guayas/Santa Elena",'Tablas Guayaquil'!D199,'Tablas Resto de Ecuador'!D199) -> 16666 | K199: =IF('INGRESO DE DATOS'!$D$21="Guayas/Santa Elena",'Tablas Guayaquil'!E199,'Tablas Resto de Ecuador'!E199) -> 11503 | L199: =IF('INGRESO DE DATOS'!$D$21="Guayas/Santa Elena",'Tablas Guayaquil'!F199,'Tablas Resto de Ecuador'!F199) -> 8225 | M199: =IF('INGRESO DE DATOS'!$D$21="Guayas/Santa Elena",'Tablas Guayaquil'!G199,'Tablas Resto de Ecuador'!G199) -> 6452 | O199: 15608.55 | P199: 14166.1 | Q199: 9777.55 | R199: 6991.25 | S199: 5484.2
A200: 63 | C200: 17284.75 | D200: 15686.75 | E200: 10829.85 | F200: 7743.5 | G200: 6074.95 | I200: =IF('INGRESO DE DATOS'!$D$21="Guayas/Santa Elena",'Tablas Guayaquil'!C200,'Tablas Resto de Ecuador'!C200) -> 20335 | J200: =IF('INGRESO DE DATOS'!$D$21="Guayas/Santa Elena",'Tablas Guayaquil'!D200,'Tablas Resto de Ecuador'!D200) -> 18455 | K200: =IF('INGRESO DE DATOS'!$D$21="Guayas/Santa Elena",'Tablas Guayaquil'!E200,'Tablas Resto de Ecuador'!E200) -> 12741 | L200: =IF('INGRESO DE DATOS'!$D$21="Guayas/Santa Elena",'Tablas Guayaquil'!F200,'Tablas Resto de Ecuador'!F200) -> 9110 | M200: =IF('INGRESO DE DATOS'!$D$21="Guayas/Santa Elena",'Tablas Guayaquil'!G200,'Tablas Resto de Ecuador'!G200) -> 7147 | O200: 17284.75 | P200: 15686.75 | Q200: 10829.85 | R200: 7743.5 | S200: 6074.95
A201: 64 | C201: 19079.95 | D201: 17317.05 | E201: 11957.8 | F201: 8549.3 | G201: 6708.2 | I201: =IF('INGRESO DE DATOS'!$D$21="Guayas/Santa Elena",'Tablas Guayaquil'!C201,'Tablas Resto de Ecuador'!C201) -> 22447 | J201: =IF('INGRESO DE DATOS'!$D$21="Guayas/Santa Elena",'Tablas Guayaquil'!D201,'Tablas Resto de Ecuador'!D201) -> 20373 | K201: =IF('INGRESO DE DATOS'!$D$21="Guayas/Santa Elena",'Tablas Guayaquil'!E201,'Tablas Resto de Ecuador'!E201) -> 14068 | L201: =IF('INGRESO DE DATOS'!$D$21="Guayas/Santa Elena",'Tablas Guayaquil'!F201,'Tablas Resto de Ecuador'!F201) -> 10058 | M201: =IF('INGRESO DE DATOS'!$D$21="Guayas/Santa Elena",'Tablas Guayaquil'!G201,'Tablas Resto de Ecuador'!G201) -> 7892 | O201: 19079.95 | P201: 17317.05 | Q201: 11957.8 | R201: 8549.3 | S201: 6708.2
A202: 65 | C202: 20990.75 | D202: 19050.2 | E202: 13164.8 | F202: 9413.75 | G202: 7386.5 | I202: =IF('INGRESO DE DATOS'!$D$21="Guayas/Santa Elena",'Tablas Guayaquil'!C202,'Tablas Resto de Ecuador'!C202) -> 24695 | J202: =IF('INGRESO DE DATOS'!$D$21="Guayas/Santa Elena",'Tablas Guayaquil'!D202,'Tablas Resto de Ecuador'!D202) -> 22412 | K202: =IF('INGRESO DE DATOS'!$D$21="Guayas/Santa Elena",'Tablas Guayaquil'!E202,'Tablas Resto de Ecuador'!E202) -> 15488 | L202: =IF('INGRESO DE DATOS'!$D$21="Guayas/Santa Elena",'Tablas Guayaquil'!F202,'Tablas Resto de Ecuador'!F202) -> 11075 | M202: =IF('INGRESO DE DATOS'!$D$21="Guayas/Santa Elena",'Tablas Guayaquil'!G202,'Tablas Resto de Ecuador'!G202) -> 8690 | O202: 20990.75 | P202: 19050.2 | Q202: 13164.8 | R202: 9413.75 | S202: 7386.5
A203: 66 | C203: 23020.55 | D203: 20893.85 | E203: 14448.3 | F203: 10332.6 | G203: 8108.15 | I203: =IF('INGRESO DE DATOS'!$D$21="Guayas/Santa Elena",'Tablas Guayaquil'!C203,'Tablas Resto de Ecuador'!C203) -> 27083 | J203: =IF('INGRESO DE DATOS'!$D$21="Guayas/Santa Elena",'Tablas Guayaquil'!D203,'Tablas Resto de Ecuador'!D203) -> 24581 | K203: =IF('INGRESO DE DATOS'!$D$21="Guayas/Santa Elena",'Tablas Guayaquil'!E203,'Tablas Resto de Ecuador'!E203) -> 16998 | L203: =IF('INGRESO DE DATOS'!$D$21="Guayas/Santa Elena",'Tablas Guayaquil'!F203,'Tablas Resto de Ecuador'!F203) -> 12156 | M203: =IF('INGRESO DE DATOS'!$D$21="Guayas/Santa Elena",'Tablas Guayaquil'!G203,'Tablas Resto de Ecuador'!G203) -> 9539 | O203: 23020.55 | P203: 20893.85 | Q203: 14448.3 | R203: 10332.6 | S203: 8108.15
... 1275 more rows

Sheet Tablas Guayaquil (hidden)
A2: BUPA GLOBAL ELITE | I2: FACTOR MENSUAL: | K2: =1.12/12 -> 0.09333333333
A3: TARIFAS ANUALES | I3: FACTOR TRIMESTRAL: | K3: =1.1/4 -> 0.275
A4: EDAD | I4: FACTOR SEMIANUAL: | K4: =1.06/2 -> 0.53
C5: 250 | D5: 2000 | E5: 3500 | F5: 5000 | G5: 10000
A6: 18 | C6: 10214 | D6: 8954 | E6: 7248 | F6: 6288 | G6: 4689
A7: 19 | C7: 10214 | D7: 8954 | E7: 7248 | F7: 6288 | G7: 4689
A8: 20 | C8: 10214 | D8: 8954 | E8: 7248 | F8: 6288 | G8: 4689
A9: 21 | C9: 10214 | D9: 8954 | E9: 7248 | F9: 6288 | G9: 4689
A10: 22 | C10: 10214 | D10: 8954 | E10: 7248 | F10: 6288 | G10: 4689
A11: 23 | C11: 10214 | D11: 8954 | E11: 7248 | F11: 6288 | G11: 4689
A12: 24 | C12: 10214 | D12: 8954 | E12: 7248 | F12: 6288 | G12: 4689
A13: 25 | C13: 10916 | D13: 9568 | E13: 7699 | F13: 6678 | G13: 4978
A14: 26 | C14: 10916 | D14: 9568 | E14: 7699 | F14: 6678 | G14: 4978
A15: 27 | C15: 10916 | D15: 9568 | E15: 7699 | F15: 6678 | G15: 4978
A16: 28 | C16: 10916 | D16: 9568 | E16: 7699 | F16: 6678 | G16: 4978
A17: 29 | C17: 10916 | D17: 9568 | E17: 7699 | F17: 6678 | G17: 4978
A18: 30 | C18: 12138 | D18: 10641 | E18: 8498 | F18: 7369 | G18: 5494
A19: 31 | C19: 12138 | D19: 10641 | E19: 8498 | F19: 7369 | G19: 5494
A20: 32 | C20: 12138 | D20: 10641 | E20: 8498 | F20: 7369 | G20: 5494
A21: 33 | C21: 12138 | D21: 10641 | E21: 8498 | F21: 7369 | G21: 5494
A22: 34 | C22: 12138 | D22: 10641 | E22: 8498 | F22: 7369 | G22: 5494
A23: 35 | C23: 13555 | D23: 11878 | E23: 9432 | F23: 8179 | G23: 6100
A24: 36 | C24: 13555 | D24: 11878 | E24: 9432 | F24: 8179 | G24: 6100
A25: 37 | C25: 13555 | D25: 11878 | E25: 9432 | F25: 8179 | G25: 6100
A26: 38 | C26: 13555 | D26: 11878 | E26: 9432 | F26: 8179 | G26: 6100
A27: 39 | C27: 13555 | D27: 11878 | E27: 9432 | F27: 8179 | G27: 6100
A28: 40 | C28: 15181 | D28: 13308 | E28: 10519 | F28: 9122 | G28: 6801
A29: 41 | C29: 15181 | D29: 13308 | E29: 10519 | F29: 9122 | G29: 6801
A30: 42 | C30: 15181 | D30: 13308 | E30: 10519 | F30: 9122 | G30: 6801
A31: 43 | C31: 15181 | D31: 13308 | E31: 10519 | F31: 9122 | G31: 6801
A32: 44 | C32: 15181 | D32: 13308 | E32: 10519 | F32: 9122 | G32: 6801
A33: 45 | C33: 16990 | D33: 14895 | E33: 11737 | F33: 10177 | G33: 7588
A34: 46 | C34: 16990 | D34: 14895 | E34: 11737 | F34: 10177 | G34: 7588
A35: 47 | C35: 16990 | D35: 14895 | E35: 11737 | F35: 10177 | G35: 7588
A36: 48 | C36: 16990 | D36: 14895 | E36: 11737 | F36: 10177 | G36: 7588
A37: 49 | C37: 16990 | D37: 14895 | E37: 11737 | F37: 10177 | G37: 7588
A38: 50 | C38: 19028 | D38: 16681 | E38: 13115 | F38: 11373 | G38: 8478
A39: 51 | C39: 19028 | D39: 16681 | E39: 13115 | F39: 11373 | G39: 8478
A40: 52 | C40: 19028 | D40: 16681 | E40: 13115 | F40: 11373 | G40: 8478
A41: 53 | C41: 19028 | D41: 16681 | E41: 13115 | F41: 11373 | G41: 8478
A42: 54 | C42: 19028 | D42: 16681 | E42: 13115 | F42: 11373 | G42: 8478
A43: 55 | C43: 21272 | D43: 18647 | E43: 14638 | F43: 12695 | G43: 9465
A44: 56 | C44: 21272 | D44: 18647 | E44: 14638 | F44: 12695 | G44: 9465
A45: 57 | C45: 21272 | D45: 18647 | E45: 14638 | F45: 12695 | G45: 9465
A46: 58 | C46: 21272 | D46: 18647 | E46: 14638 | F46: 12695 | G46: 9465
A47: 59 | C47: 21272 | D47: 18647 | E47: 14638 | F47: 12695 | G47: 9465
A48: 60 | C48: 22767 | D48: 19956 | E48: 15659 | F48: 13576 | G48: 10124
A49: 61 | C49: 25373 | D49: 22238 | E49: 17436 | F49: 15121 | G49: 11273
A50: 62 | C50: 28187 | D50: 24706 | E50: 19366 | F50: 16794 | G50: 12520
A51: 63 | C51: 31216 | D51: 27361 | E51: 21448 | F51: 18600 | G51: 13867
A52: 64 | C52: 34459 | D52: 30201 | E52: 23681 | F52: 20535 | G52: 15310
A53: 65 | C53: 37913 | D53: 33231 | E53: 26064 | F53: 22603 | G53: 16850
A54: 66 | C54: 41577 | D54: 36444 | E54: 28597 | F54: 24799 | G54: 18485
A55: 67 | C55: 45457 | D55: 39844 | E55: 31282 | F55: 27124 | G55: 20221
A56: 68 | C56: 49546 | D56: 43433 | E56: 34117 | F56: 29585 | G56: 22056
A57: 69 | C57: 53854 | D57: 47203 | E57: 37105 | F57: 32176 | G57: 23987
A58: 70 | C58: 58370 | D58: 51162 | E58: 40241 | F58: 34895 | G58: 26013
A59: 71 | C59: 63098 | D59: 55308 | E59: 43532 | F59: 37746 | G59: 28140
A60: 72 | C60: 68040 | D60: 59637 | E60: 46968 | F60: 40728 | G60: 30361
A61: 73 | C61: 73193 | D61: 64156 | E61: 50559 | F61: 43841 | G61: 32684
A62: 74 | C62: 78561 | D62: 68859 | E62: 54300 | F62: 47085 | G62: 35102
A63: 75 | C63: 84139 | D63: 73753 | E63: 58191 | F63: 50459 | G63: 37615
A64: 76 | C64: 84139 | D64: 73753 | E64: 58191 | F64: 50459 | G64: 37615
A65: 77 | C65: 84139 | D65: 73753 | E65: 58191 | F65: 50459 | G65: 37615
A66: 78 | C66: 84139 | D66: 73753 | E66: 58191 | F66: 50459 | G66: 37615
A67: 79 | C67: 84139 | D67: 73753 | E67: 58191 | F67: 50459 | G67: 37615
A68: 80 | C68: 84139 | D68: 73753 | E68: 58191 | F68: 50459 | G68: 37615
A69: 81 | C69: 84139 | D69: 73753 | E69: 58191 | F69: 50459 | G69: 37615
A70: 82 | C70: 84139 | D70: 73753 | E70: 58191 | F70: 50459 | G70: 37615
A71: 83 | C71: 84139 | D71: 73753 | E71: 58191 | F71: 50459 | G71: 37615
A72: 84 | B72: o más | C72: 84139 | D72: 73753 | E72: 58191 | F72: 50459 | G72: 37615
A73: 1 | B73: Hijo | C73: 4315 | D73: 3786 | E73: 3086 | F73: 2677 | G73: 1997
A74: 2 | B74: Hijos | C74: 7338 | D74: 6432 | E74: 5242 | F74: 4546 | G74: 3391
A75: 3 | B75: Hijos o más | C75: 10357 | D75: 9082 | E75: 7403 | F75: 6418 | G75: 4786
A77: BUPA GLOBAL ELITE - MENSUALES
A78: EDAD
C79: 1000 | D79: 2000 | E79: 3500 | F79: 5000 | G79: 10000
A80: 18 | C80: =+C6*$K$2 -> 953.3066667 | D80: =+D6*$K$2 -> 835.7066667 | E80: 676.48 | F80: 586.88 | G80: 437.64
A81: 19 | C81: =+C7*$K$2 -> 953.3066667 | D81: 835.7066667 | E81: 676.48 | F81: 586.88 | G81: 437.64
A82: 20 | C82: 953.3066667 | D82: 835.7066667 | E82: 676.48 | F82: 586.88 | G82: 437.64
A83: 21 | C83: 953.3066667 | D83: 835.7066667 | E83: 676.48 | F83: 586.88 | G83: 437.64
A84: 22 | C84: 953.3066667 | D84: 835.7066667 | E84: 676.48 | F84: 586.88 | G84: 437.64
A85: 23 | C85: 953.3066667 | D85: 835.7066667 | E85: 676.48 | F85: 586.88 | G85: 437.64
A86: 24 | C86: 953.3066667 | D86: 835.7066667 | E86: 676.48 | F86: 586.88 | G86: 437.64
A87: 25 | C87: 1018.826667 | D87: 893.0133333 | E87: 718.5733333 | F87: 623.28 | G87: 464.6133333
A88: 26 | C88: 1018.826667 | D88: 893.0133333 | E88: 718.5733333 | F88: 623.28 | G88: 464.6133333
A89: 27 | C89: 1018.826667 | D89: 893.0133333 | E89: 718.5733333 | F89: 623.28 | G89: 464.6133333
A90: 28 | C90: 1018.826667 | D90: 893.0133333 | E90: 718.5733333 | F90: 623.28 | G90: 464.6133333
A91: 29 | C91: 1018.826667 | D91: 893.0133333 | E91: 718.5733333 | F91: 623.28 | G91: 464.6133333
A92: 30 | C92: 1132.88 | D92: 993.16 | E92: 793.1466667 | F92: 687.7733333 | G92: 512.7733333
A93: 31 | C93: 1132.88 | D93: 993.16 | E93: 793.1466667 | F93: 687.7733333 | G93: 512.7733333
A94: 32 | C94: 1132.88 | D94: 993.16 | E94: 793.1466667 | F94: 687.7733333 | G94: 512.7733333
A95: 33 | C95: 1132.88 | D95: 993.16 | E95: 793.1466667 | F95: 687.7733333 | G95: 512.7733333
A96: 34 | C96: 1132.88 | D96: 993.16 | E96: 793.1466667 | F96: 687.7733333 | G96: 512.7733333
A97: 35 | C97: =+C23*$K$2 -> 1265.133333 | D97: 1108.613333 | E97: 880.32 | F97: 763.3733333 | G97: 569.3333333
A98: 36 | C98: 1265.133333 | D98: 1108.613333 | E98: 880.32 | F98: 763.3733333 | G98: 569.3333333
A99: 37 | C99: 1265.133333 | D99: 1108.613333 | E99: 880.32 | F99: 763.3733333 | G99: 569.3333333
A100: 38 | C100: 1265.133333 | D100: 1108.613333 | E100: 880.32 | F100: 763.3733333 | G100: 569.3333333
A101: 39 | C101: 1265.133333 | D101: 1108.613333 | E101: 880.32 | F101: 763.3733333 | G101: 569.3333333
A102: 40 | C102: 1416.893333 | D102: 1242.08 | E102: 981.7733333 | F102: 851.3866667 | G102: 634.76
A103: 41 | C103: 1416.893333 | D103: 1242.08 | E103: 981.7733333 | F103: 851.3866667 | G103: 634.76
A104: 42 | C104: 1416.893333 | D104: 1242.08 | E104: 981.7733333 | F104: 851.3866667 | G104: 634.76
A105: 43 | C105: 1416.893333 | D105: 1242.08 | E105: 981.7733333 | F105: 851.3866667 | G105: 634.76
A106: 44 | C106: 1416.893333 | D106: 1242.08 | E106: 981.7733333 | F106: 851.3866667 | G106: 634.76
A107: 45 | C107: 1585.733333 | D107: 1390.2 | E107: 1095.453333 | F107: 949.8533333 | G107: 708.2133333
A108: 46 | C108: 1585.733333 | D108: 1390.2 | E108: 1095.453333 | F108: 949.8533333 | G108: 708.2133333
A109: 47 | C109: 1585.733333 | D109: 1390.2 | E109: 1095.453333 | F109: 949.8533333 | G109: 708.2133333
A110: 48 | C110: 1585.733333 | D110: 1390.2 | E110: 1095.453333 | F110: 949.8533333 | G110: 708.2133333
A111: 49 | C111: 1585.733333 | D111: 1390.2 | E111: 1095.453333 | F111: 949.8533333 | G111: 708.2133333
A112: 50 | C112: 1775.946667 | D112: 1556.893333 | E112: 1224.066667 | F112: 1061.48 | G112: 791.28
A113: 51 | C113: =+C39*$K$2 -> 1775.946667 | D113: 1556.893333 | E113: 1224.066667 | F113: 1061.48 | G113: 791.28
A114: 52 | C114: 1775.946667 | D114: 1556.893333 | E114: 1224.066667 | F114: 1061.48 | G114: 791.28
A115: 53 | C115: 1775.946667 | D115: 1556.893333 | E115: 1224.066667 | F115: 1061.48 | G115: 791.28
A116: 54 | C116: 1775.946667 | D116: 1556.893333 | E116: 1224.066667 | F116: 1061.48 | G116: 791.28
A117: 55 | C117: 1985.386667 | D117: 1740.386667 | E117: 1366.213333 | F117: 1184.866667 | G117: 883.4
A118: 56 | C118: 1985.386667 | D118: 1740.386667 | E118: 1366.213333 | F118: 1184.866667 | G118: 883.4
A119: 57 | C119: 1985.386667 | D119: 1740.386667 | E119: 1366.213333 | F119: 1184.866667 | G119: 883.4
A120: 58 | C120: 1985.386667 | D120: 1740.386667 | E120: 1366.213333 | F120: 1184.866667 | G120: 883.4
A121: 59 | C121: 1985.386667 | D121: 1740.386667 | E121: 1366.213333 | F121: 1184.866667 | G121: 883.4
A122: 60 | C122: 2124.92 | D122: 1862.56 | E122: 1461.506667 | F122: 1267.093333 | G122: 944.9066667
A123: 61 | C123: 2368.146667 | D123: 2075.546667 | E123: 1627.36 | F123: 1411.293333 | G123: 1052.146667
A124: 62 | C124: 2630.786667 | D124: 2305.893333 | E124: 1807.493333 | F124: 1567.44 | G124: 1168.533333
A125: 63 | C125: 2913.493333 | D125: 2553.693333 | E125: 2001.813333 | F125: 1736 | G125: 1294.253333
A126: 64 | C126: 3216.173333 | D126: 2818.76 | E126: 2210.226667 | F126: 1916.6 | G126: 1428.933333
A127: 65 | C127: 3538.546667 | D127: 3101.56 | E127: 2432.64 | F127: 2109.613333 | G127: 1572.666667
A128: 66 | C128: 3880.52 | D128: 3401.44 | E128: 2669.053333 | F128: 2314.573333 | G128: 1725.266667
A129: 67 | C129: =+C55*$K$2 -> 4242.653333 | D129: 3718.773333 | E129: 2919.653333 | F129: 2531.573333 | G129: 1887.293333
A130: 68 | C130: 4624.293333 | D130: 4053.746667 | E130: 3184.253333 | F130: 2761.266667 | G130: 2058.56
A131: 69 | C131: 5026.373333 | D131: 4405.613333 | E131: 3463.133333 | F131: 3003.093333 | G131: 2238.786667
A132: 70 | C132: 5447.866667 | D132: 4775.12 | E132: 3755.826667 | F132: 3256.866667 | G132: 2427.88
A133: 71 | C133: 5889.146667 | D133: 5162.08 | E133: 4062.986667 | F133: 3522.96 | G133: 2626.4
A134: 72 | C134: 6350.4 | D134: 5566.12 | E134: 4383.68 | F134: 3801.28 | G134: 2833.693333
A135: 73 | C135: 6831.346667 | D135: 5987.893333 | E135: 4718.84 | F135: 4091.826667 | G135: 3050.506667
A136: 74 | C136: 7332.36 | D136: 6426.84 | E136: 5068 | F136: 4394.6 | G136: 3276.186667
A137: 75 | C137: 7852.973333 | D137: 6883.613333 | E137: 5431.16 | F137: 4709.506667 | G137: 3510.733333
A138: 76 | C138: 7852.973333 | D138: 6883.613333 | E138: 5431.16 | F138: 4709.506667 | G138: 3510.733333
A139: 77 | C139: 7852.973333 | D139: 6883.613333 | E139: 5431.16 | F139: 4709.506667 | G139: 3510.733333
A140: 78 | C140: 7852.973333 | D140: 6883.613333 | E140: 5431.16 | F140: 4709.506667 | G140: 3510.733333
A141: 79 | C141: 7852.973333 | D141: 6883.613333 | E141: 5431.16 | F141: 4709.506667 | G141: 3510.733333
A142: 80 | C142: 7852.973333 | D142: 6883.613333 | E142: 5431.16 | F142: 4709.506667 | G142: 3510.733333
A143: 81 | C143: 7852.973333 | D143: 6883.613333 | E143: 5431.16 | F143: 4709.506667 | G143: 3510.733333
A144: 82 | C144: 7852.973333 | D144: 6883.613333 | E144: 5431.16 | F144: 4709.506667 | G144: 3510.733333
A145: 83 | C145: =+C71*$K$2 -> 7852.973333 | D145: 6883.613333 | E145: 5431.16 | F145: 4709.506667 | G145: 3510.733333
A146: 84 | B146: o más | C146: 7852.973333 | D146: 6883.613333 | E146: 5431.16 | F146: 4709.506667 | G146: 3510.733333
A147: 1 | B147: Hijo | C147: 402.7333333 | D147: 353.36 | E147: 288.0266667 | F147: 249.8533333 | G147: 186.3866667
A148: 2 | B148: Hijos | C148: 684.88 | D148: 600.32 | E148: 489.2533333 | F148: 424.2933333 | G148: 316.4933333
A149: 3 | B149: Hijos o más | C149: 966.6533333 | D149: 847.6533333 | E149: 690.9466667 | F149: 599.0133333 | G149: 446.6933333
A151: BUPA GLOBAL PREMIER
A152: TARIFAS ANUALES
A153: EDAD
C154: 250 | D154: 2000 | E154: 5000 | F154: 10000 | G154: 20000
A155: 18 | C155: 6656 | D155: 6040 | E155: 4410 | F155: 3156 | G155: 2476
A156: 19 | C156: 6656 | D156: 6040 | E156: 4410 | F156: 3156 | G156: 2476
A157: 20 | C157: 6656 | D157: 6040 | E157: 4410 | F157: 3156 | G157: 2476
A158: 21 | C158: 6656 | D158: 6040 | E158: 4410 | F158: 3156 | G158: 2476
A159: 22 | C159: 6656 | D159: 6040 | E159: 4410 | F159: 3156 | G159: 2476
A160: 23 | C160: 6656 | D160: 6040 | E160: 4410 | F160: 3156 | G160: 2476
A161: 24 | C161: 6656 | D161: 6040 | E161: 4410 | F161: 3156 | G161: 2476
A162: 25 | C162: 7113 | D162: 6454 | E162: 4663 | F162: 3336 | G162: 2617
A163: 26 | C163: 7113 | D163: 6454 | E163: 4663 | F163: 3336 | G163: 2617
A164: 27 | C164: 7113 | D164: 6454 | E164: 4663 | F164: 3336 | G164: 2617
A165: 28 | C165: 7113 | D165: 6454 | E165: 4663 | F165: 3336 | G165: 2617
A166: 29 | C166: 7113 | D166: 6454 | E166: 4663 | F166: 3336 | G166: 2617
A167: 30 | C167: 7911 | D167: 7178 | E167: 5118 | F167: 3661 | G167: 2871
A168: 31 | C168: 7911 | D168: 7178 | E168: 5118 | F168: 3661 | G168: 2871
A169: 32 | C169: 7911 | D169: 7178 | E169: 5118 | F169: 3661 | G169: 2871
A170: 33 | C170: 7911 | D170: 7178 | E170: 5118 | F170: 3661 | G170: 2871
A171: 34 | C171: 7911 | D171: 7178 | E171: 5118 | F171: 3661 | G171: 2871
A172: 35 | C172: 8828 | D172: 8014 | E172: 5656 | F172: 4048 | G172: 3175
A173: 36 | C173: 8828 | D173: 8014 | E173: 5656 | F173: 4048 | G173: 3175
A174: 37 | C174: 8828 | D174: 8014 | E174: 5656 | F174: 4048 | G174: 3175
A175: 38 | C175: 8828 | D175: 8014 | E175: 5656 | F175: 4048 | G175: 3175
A176: 39 | C176: 8828 | D176: 8014 | E176: 5656 | F176: 4048 | G176: 3175
A177: 40 | C177: 9891 | D177: 8974 | E177: 6288 | F177: 4498 | G177: 3528
A178: 41 | C178: 9891 | D178: 8974 | E178: 6288 | F178: 4498 | G178: 3528
A179: 42 | C179: 9891 | D179: 8974 | E179: 6288 | F179: 4498 | G179: 3528
A180: 43 | C180: 9891 | D180: 8974 | E180: 6288 | F180: 4498 | G180: 3528
A181: 44 | C181: 9891 | D181: 8974 | E181: 6288 | F181: 4498 | G181: 3528
A182: 45 | C182: 11068 | D182: 10045 | E182: 6999 | F182: 5005 | G182: 3926
A183: 46 | C183: 11068 | D183: 10045 | E183: 6999 | F183: 5005 | G183: 3926
A184: 47 | C184: 11068 | D184: 10045 | E184: 6999 | F184: 5005 | G184: 3926
A185: 48 | C185: 11068 | D185: 10045 | E185: 6999 | F185: 5005 | G185: 3926
A186: 49 | C186: 11068 | D186: 10045 | E186: 6999 | F186: 5005 | G186: 3926
A187: 50 | C187: 12395 | D187: 11252 | E187: 7808 | F187: 5584 | G187: 4381
A188: 51 | C188: 12395 | D188: 11252 | E188: 7808 | F188: 5584 | G188: 4381
A189: 52 | C189: 12395 | D189: 11252 | E189: 7808 | F189: 5584 | G189: 4381
A190: 53 | C190: 12395 | D190: 11252 | E190: 7808 | F190: 5584 | G190: 4381
A191: 54 | C191: 12395 | D191: 11252 | E191: 7808 | F191: 5584 | G191: 4381
A192: 55 | C192: 13861 | D192: 12575 | E192: 8705 | F192: 6225 | G192: 4885
A193: 56 | C193: 13861 | D193: 12575 | E193: 8705 | F193: 6225 | G193: 4885
A194: 57 | C194: 13861 | D194: 12575 | E194: 8705 | F194: 6225 | G194: 4885
A195: 58 | C195: 13861 | D195: 12575 | E195: 8705 | F195: 6225 | G195: 4885
A196: 59 | C196: 13861 | D196: 12575 | E196: 8705 | F196: 6225 | G196: 4885
A197: 60 | C197: 14830 | D197: 13461 | E197: 9307 | F197: 6657 | G197: 5222
A198: 61 | C198: 16527 | D198: 15000 | E198: 10358 | F198: 7409 | G198: 5811
A199: 62 | C199: 18363 | D199: 16666 | E199: 11503 | F199: 8225 | G199: 6452
A200: 63 | C200: 20335 | D200: 18455 | E200: 12741 | F200: 9110 | G200: 7147
A201: 64 | C201: 22447 | D201: 20373 | E201: 14068 | F201: 10058 | G201: 7892
A202: 65 | C202: 24695 | D202: 22412 | E202: 15488 | F202: 11075 | G202: 8690
A203: 66 | C203: 27083 | D203: 24581 | E203: 16998 | F203: 12156 | G203: 9539
... 1275 more rows

Sheet Tablas Resto de Ecuador (hidden)
A2: BUPA GLOBAL ELITE | I2: FACTOR MENSUAL: | K2: =1.12/12 -> 0.09333333333
A3: TARIFAS ANUALES | I3: FACTOR TRIMESTRAL: | K3: =1.1/4 -> 0.275
A4: EDAD | I4: FACTOR SEMIANUAL: | K4: =1.06/2 -> 0.53
C5: 250 | D5: 2000 | E5: 3500 | F5: 5000 | G5: 10000
A6: 18 | C6: =O6 -> 8664.6484 | D6: =P6 -> 7595.7762 | E6: 6129.0562 | F6: 5317.7767 | G6: 3951.8937 | I6: 9452 | J6: 8286 | K6: 6686 | L6: 5801 | M6: 4311 | O6: =I6*0.9167 -> 8664.6484 | P6: =J6*0.9167 -> 7595.7762 | Q6: 6129.0562 | R6: 5317.7767 | S6: 3951.8937
A7: 19 | C7: =O7 -> 8664.6484 | D7: =P7 -> 7595.7762 | E7: =Q7 -> 6129.0562 | F7: =R7 -> 5317.7767 | G7: =S7 -> 3951.8937 | I7: 9452 | J7: 8286 | K7: 6686 | L7: 5801 | M7: 4311 | O7: =I7*0.9167 -> 8664.6484 | P7: =J7*0.9167 -> 7595.7762 | Q7: =K7*0.9167 -> 6129.0562 | R7: =L7*0.9167 -> 5317.7767 | S7: =M7*0.9167 -> 3951.8937
A8: 20 | C8: 8664.6484 | D8: 7595.7762 | E8: 6129.0562 | F8: 5317.7767 | G8: 3951.8937 | I8: 9452 | J8: 8286 | K8: 6686 | L8: 5801 | M8: 4311 | O8: 8664.6484 | P8: 7595.7762 | Q8: 6129.0562 | R8: 5317.7767 | S8: 3951.8937
A9: 21 | C9: 8664.6484 | D9: 7595.7762 | E9: 6129.0562 | F9: 5317.7767 | G9: 3951.8937 | I9: 9452 | J9: 8286 | K9: 6686 | L9: 5801 | M9: 4311 | O9: 8664.6484 | P9: 7595.7762 | Q9: 6129.0562 | R9: 5317.7767 | S9: 3951.8937
A10: 22 | C10: 8664.6484 | D10: 7595.7762 | E10: 6129.0562 | F10: 5317.7767 | G10: 3951.8937 | I10: 9452 | J10: 8286 | K10: 6686 | L10: 5801 | M10: 4311 | O10: 8664.6484 | P10: 7595.7762 | Q10: 6129.0562 | R10: 5317.7767 | S10: 3951.8937
A11: 23 | C11: 8664.6484 | D11: 7595.7762 | E11: 6129.0562 | F11: 5317.7767 | G11: 3951.8937 | I11: 9452 | J11: 8286 | K11: 6686 | L11: 5801 | M11: 4311 | O11: 8664.6484 | P11: 7595.7762 | Q11: 6129.0562 | R11: 5317.7767 | S11: 3951.8937
A12: 24 | C12: 8664.6484 | D12: 7595.7762 | E12: 6129.0562 | F12: 5317.7767 | G12: 3951.8937 | I12: 9452 | J12: 8286 | K12: 6686 | L12: 5801 | M12: 4311 | O12: 8664.6484 | P12: 7595.7762 | Q12: 6129.0562 | R12: 5317.7767 | S12: 3951.8937
A13: 25 | C13: 9260.5034 | D13: 8116.4618 | E13: 6510.4034 | F13: 5646.872 | G13: 4194.8192 | I13: 10102 | J13: 8854 | K13: 7102 | L13: 6160 | M13: 4576 | O13: 9260.5034 | P13: 8116.4618 | Q13: 6510.4034 | R13: 5646.872 | S13: 4194.8192
A14: 26 | C14: 9260.5034 | D14: 8116.4618 | E14: 6510.4034 | F14: 5646.872 | G14: 4194.8192 | I14: 10102 | J14: 8854 | K14: 7102 | L14: 6160 | M14: 4576 | O14: 9260.5034 | P14: 8116.4618 | Q14: 6510.4034 | R14: 5646.872 | S14: 4194.8192
A15: 27 | C15: 9260.5034 | D15: 8116.4618 | E15: 6510.4034 | F15: 5646.872 | G15: 4194.8192 | I15: 10102 | J15: 8854 | K15: 7102 | L15: 6160 | M15: 4576 | O15: 9260.5034 | P15: 8116.4618 | Q15: 6510.4034 | R15: 5646.872 | S15: 4194.8192
A16: 28 | C16: 9260.5034 | D16: 8116.4618 | E16: 6510.4034 | F16: 5646.872 | G16: 4194.8192 | I16: 10102 | J16: 8854 | K16: 7102 | L16: 6160 | M16: 4576 | O16: 9260.5034 | P16: 8116.4618 | Q16: 6510.4034 | R16: 5646.872 | S16: 4194.8192
A17: 29 | C17: 9260.5034 | D17: 8116.4618 | E17: 6510.4034 | F17: 5646.872 | G17: 4194.8192 | I17: 10102 | J17: 8854 | K17: 7102 | L17: 6160 | M17: 4576 | O17: 9260.5034 | P17: 8116.4618 | Q17: 6510.4034 | R17: 5646.872 | S17: 4194.8192
A18: 30 | C18: 10296.3744 | D18: 9026.7449 | E18: 7186.0113 | F18: 6231.7266 | G18: 4630.2517 | I18: 11232 | J18: 9847 | K18: 7839 | L18: 6798 | M18: 5051 | O18: 10296.3744 | P18: 9026.7449 | Q18: 7186.0113 | R18: 6231.7266 | S18: 4630.2517
A19: 31 | C19: 10296.3744 | D19: 9026.7449 | E19: 7186.0113 | F19: 6231.7266 | G19: 4630.2517 | I19: 11232 | J19: 9847 | K19: 7839 | L19: 6798 | M19: 5051 | O19: 10296.3744 | P19: 9026.7449 | Q19: 7186.0113 | R19: 6231.7266 | S19: 4630.2517
A20: 32 | C20: 10296.3744 | D20: 9026.7449 | E20: 7186.0113 | F20: 6231.7266 | G20: 4630.2517 | I20: 11232 | J20: 9847 | K20: 7839 | L20: 6798 | M20: 5051 | O20: 10296.3744 | P20: 9026.7449 | Q20: 7186.0113 | R20: 6231.7266 | S20: 4630.2517
A21: 33 | C21: 10296.3744 | D21: 9026.7449 | E21: 7186.0113 | F21: 6231.7266 | G21: 4630.2517 | I21: 11232 | J21: 9847 | K21: 7839 | L21: 6798 | M21: 5051 | O21: 10296.3744 | P21: 9026.7449 | Q21: 7186.0113 | R21: 6231.7266 | S21: 4630.2517
A22: 34 | C22: 10296.3744 | D22: 9026.7449 | E22: 7186.0113 | F22: 6231.7266 | G22: 4630.2517 | I22: 11232 | J22: 9847 | K22: 7839 | L22: 6798 | M22: 5051 | O22: 10296.3744 | P22: 9026.7449 | Q22: 7186.0113 | R22: 6231.7266 | S22: 4630.2517
A23: 35 | C23: 11498.1681 | D23: 10076.3664 | E23: 7976.2067 | F23: 6916.5015 | G23: 5140.8536 | I23: 12543 | J23: 10992 | K23: 8701 | L23: 7545 | M23: 5608 | O23: 11498.1681 | P23: 10076.3664 | Q23: 7976.2067 | R23: 6916.5015 | S23: 5140.8536
A24: 36 | C24: 11498.1681 | D24: 10076.3664 | E24: 7976.2067 | F24: 6916.5015 | G24: 5140.8536 | I24: 12543 | J24: 10992 | K24: 8701 | L24: 7545 | M24: 5608 | O24: 11498.1681 | P24: 10076.3664 | Q24: 7976.2067 | R24: 6916.5015 | S24: 5140.8536
A25: 37 | C25: 11498.1681 | D25: 10076.3664 | E25: 7976.2067 | F25: 6916.5015 | G25: 5140.8536 | I25: 12543 | J25: 10992 | K25: 8701 | L25: 7545 | M25: 5608 | O25: 11498.1681 | P25: 10076.3664 | Q25: 7976.2067 | R25: 6916.5015 | S25: 5140.8536
A26: 38 | C26: 11498.1681 | D26: 10076.3664 | E26: 7976.2067 | F26: 6916.5015 | G26: 5140.8536 | I26: 12543 | J26: 10992 | K26: 8701 | L26: 7545 | M26: 5608 | O26: 11498.1681 | P26: 10076.3664 | Q26: 7976.2067 | R26: 6916.5015 | S26: 5140.8536
A27: 39 | C27: 11498.1681 | D27: 10076.3664 | E27: 7976.2067 | F27: 6916.5015 | G27: 5140.8536 | I27: 12543 | J27: 10992 | K27: 8701 | L27: 7545 | M27: 5608 | O27: 11498.1681 | P27: 10076.3664 | Q27: 7976.2067 | R27: 6916.5015 | S27: 5140.8536
A28: 40 | C28: 12877.8016 | D28: 11289.1605 | E28: 8895.6568 | F28: 7714.0305 | G28: 5731.2084 | I28: 14048 | J28: 12315 | K28: 9704 | L28: 8415 | M28: 6252 | O28: 12877.8016 | P28: 11289.1605 | Q28: 8895.6568 | R28: 7714.0305 | S28: 5731.2084
A29: 41 | C29: 12877.8016 | D29: 11289.1605 | E29: 8895.6568 | F29: 7714.0305 | G29: 5731.2084 | I29: 14048 | J29: 12315 | K29: 9704 | L29: 8415 | M29: 6252 | O29: 12877.8016 | P29: 11289.1605 | Q29: 8895.6568 | R29: 7714.0305 | S29: 5731.2084
A30: 42 | C30: 12877.8016 | D30: 11289.1605 | E30: 8895.6568 | F30: 7714.0305 | G30: 5731.2084 | I30: 14048 | J30: 12315 | K30: 9704 | L30: 8415 | M30: 6252 | O30: 12877.8016 | P30: 11289.1605 | Q30: 8895.6568 | R30: 7714.0305 | S30: 5731.2084
A31: 43 | C31: 12877.8016 | D31: 11289.1605 | E31: 8895.6568 | F31: 7714.0305 | G31: 5731.2084 | I31: 14048 | J31: 12315 | K31: 9704 | L31: 8415 | M31: 6252 | O31: 12877.8016 | P31: 11289.1605 | Q31: 8895.6568 | R31: 7714.0305 | S31: 5731.2084
A32: 44 | C32: 12877.8016 | D32: 11289.1605 | E32: 8895.6568 | F32: 7714.0305 | G32: 5731.2084 | I32: 14048 | J32: 12315 | K32: 9704 | L32: 8415 | M32: 6252 | O32: 12877.8016 | P32: 11289.1605 | Q32: 8895.6568 | R32: 7714.0305 | S32: 5731.2084
A33: 45 | C33: 14412.3574 | D33: 12634.8761 | E33: 9925.1109 | F33: 8605.9796 | G33: 6394.8992 | I33: 15722 | J33: 13783 | K33: 10827 | L33: 9388 | M33: 6976 | O33: 14412.3574 | P33: 12634.8761 | Q33: 9925.1109 | R33: 8605.9796 | S33: 6394.8992
A34: 46 | C34: 14412.3574 | D34: 12634.8761 | E34: 9925.1109 | F34: 8605.9796 | G34: 6394.8992 | I34: 15722 | J34: 13783 | K34: 10827 | L34: 9388 | M34: 6976 | O34: 14412.3574 | P34: 12634.8761 | Q34: 9925.1109 | R34: 8605.9796 | S34: 6394.8992
A35: 47 | C35: 14412.3574 | D35: 12634.8761 | E35: 9925.1109 | F35: 8605.9796 | G35: 6394.8992 | I35: 15722 | J35: 13783 | K35: 10827 | L35: 9388 | M35: 6976 | O35: 14412.3574 | P35: 12634.8761 | Q35: 9925.1109 | R35: 8605.9796 | S35: 6394.8992
A36: 48 | C36: 14412.3574 | D36: 12634.8761 | E36: 9925.1109 | F36: 8605.9796 | G36: 6394.8992 | I36: 15722 | J36: 13783 | K36: 10827 | L36: 9388 | M36: 6976 | O36: 14412.3574 | P36: 12634.8761 | Q36: 9925.1109 | R36: 8605.9796 | S36: 6394.8992
A37: 49 | C37: 14412.3574 | D37: 12634.8761 | E37: 9925.1109 | F37: 8605.9796 | G37: 6394.8992 | I37: 15722 | J37: 13783 | K37: 10827 | L37: 9388 | M37: 6976 | O37: 14412.3574 | P37: 12634.8761 | Q37: 9925.1109 | R37: 8605.9796 | S37: 6394.8992
A38: 50 | C38: 16141.2536 | D38: 14150.1812 | E38: 11090.2366 | F38: 9618.0164 | G38: 7145.6765 | I38: 17608 | J38: 15436 | K38: 12098 | L38: 10492 | M38: 7795 | O38: 16141.2536 | P38: 14150.1812 | Q38: 11090.2366 | R38: 9618.0164 | S38: 7145.6765
A39: 51 | C39: 16141.2536 | D39: 14150.1812 | E39: 11090.2366 | F39: 9618.0164 | G39: 7145.6765 | I39: 17608 | J39: 15436 | K39: 12098 | L39: 10492 | M39: 7795 | O39: 16141.2536 | P39: 14150.1812 | Q39: 11090.2366 | R39: 9618.0164 | S39: 7145.6765
A40: 52 | C40: 16141.2536 | D40: 14150.1812 | E40: 11090.2366 | F40: 9618.0164 | G40: 7145.6765 | I40: 17608 | J40: 15436 | K40: 12098 | L40: 10492 | M40: 7795 | O40: 16141.2536 | P40: 14150.1812 | Q40: 11090.2366 | R40: 9618.0164 | S40: 7145.6765
A41: 53 | C41: 16141.2536 | D41: 14150.1812 | E41: 11090.2366 | F41: 9618.0164 | G41: 7145.6765 | I41: 17608 | J41: 15436 | K41: 12098 | L41: 10492 | M41: 7795 | O41: 16141.2536 | P41: 14150.1812 | Q41: 11090.2366 | R41: 9618.0164 | S41: 7145.6765
A42: 54 | C42: 16141.2536 | D42: 14150.1812 | E42: 11090.2366 | F42: 9618.0164 | G42: 7145.6765 | I42: 17608 | J42: 15436 | K42: 12098 | L42: 10492 | M42: 7795 | O42: 16141.2536 | P42: 14150.1812 | Q42: 11090.2366 | R42: 9618.0164 | S42: 7145.6765
A43: 55 | C43: 18044.3228 | D43: 15817.6585 | E43: 12378.2001 | F43: 10735.4737 | G43: 7977.1234 | I43: 19684 | J43: 17255 | K43: 13503 | L43: 11711 | M43: 8702 | O43: 18044.3228 | P43: 15817.6585 | Q43: 12378.2001 | R43: 10735.4737 | S43: 7977.1234
A44: 56 | C44: 18044.3228 | D44: 15817.6585 | E44: 12378.2001 | F44: 10735.4737 | G44: 7977.1234 | I44: 19684 | J44: 17255 | K44: 13503 | L44: 11711 | M44: 8702 | O44: 18044.3228 | P44: 15817.6585 | Q44: 12378.2001 | R44: 10735.4737 | S44: 7977.1234
A45: 57 | C45: 18044.3228 | D45: 15817.6585 | E45: 12378.2001 | F45: 10735.4737 | G45: 7977.1234 | I45: 19684 | J45: 17255 | K45: 13503 | L45: 11711 | M45: 8702 | O45: 18044.3228 | P45: 15817.6585 | Q45: 12378.2001 | R45: 10735.4737 | S45: 7977.1234
A46: 58 | C46: 18044.3228 | D46: 15817.6585 | E46: 12378.2001 | F46: 10735.4737 | G46: 7977.1234 | I46: 19684 | J46: 17255 | K46: 13503 | L46: 11711 | M46: 8702 | O46: 18044.3228 | P46: 15817.6585 | Q46: 12378.2001 | R46: 10735.4737 | S46: 7977.1234
A47: 59 | C47: 18044.3228 | D47: 15817.6585 | E47: 12378.2001 | F47: 10735.4737 | G47: 7977.1234 | I47: 19684 | J47: 17255 | K47: 13503 | L47: 11711 | M47: 8702 | O47: 18044.3228 | P47: 15817.6585 | Q47: 12378.2001 | R47: 10735.4737 | S47: 7977.1234
A48: 60 | C48: 19313.0356 | D48: 16928.6989 | E48: 13241.7315 | F48: 11480.7508 | G48: 8531.7269 | I48: 21068 | J48: 18467 | K48: 14445 | L48: 12524 | M48: 9307 | O48: 19313.0356 | P48: 16928.6989 | Q48: 13241.7315 | R48: 11480.7508 | S48: 8531.7269
A49: 61 | C49: 21524.116 | D49: 18863.8526 | E49: 14745.1195 | F49: 12786.1316 | G49: 9500.6788 | I49: 23480 | J49: 20578 | K49: 16085 | L49: 13948 | M49: 10364 | O49: 21524.116 | P49: 18863.8526 | Q49: 14745.1195 | R49: 12786.1316 | S49: 9500.6788
A50: 62 | C50: 23911.2028 | D50: 20957.5954 | E50: 16376.8455 | F50: 14201.5164 | G50: 10551.217 | I50: 26084 | J50: 22862 | K50: 17865 | L50: 15492 | M50: 11510 | O50: 23911.2028 | P50: 20957.5954 | Q50: 16376.8455 | R50: 14201.5164 | S50: 10551.217
A51: 63 | C51: 26479.7962 | D51: 23209.9273 | E51: 18136.9095 | F51: 15728.7386 | G51: 11687.0083 | I51: 28886 | J51: 25319 | K51: 19785 | L51: 17158 | M51: 12749 | O51: 26479.7962 | P51: 23209.9273 | Q51: 18136.9095 | R51: 15728.7386 | S51: 11687.0083
A52: 64 | C52: 29230.8129 | D52: 25619.9316 | E52: 20025.3115 | F52: 17365.0481 | G52: 12902.5525 | I52: 31887 | J52: 27948 | K52: 21845 | L52: 18943 | M52: 14075 | O52: 29230.8129 | P52: 25619.9316 | Q52: 20025.3115 | R52: 17365.0481 | S52: 12902.5525
A53: 65 | C53: 32161.5028 | D53: 28189.4417 | E53: 22040.2181 | F53: 19113.195 | G53: 14200.5997 | I53: 35084 | J53: 30751 | K53: 24043 | L53: 20850 | M53: 15491 | O53: 32161.5028 | P53: 28189.4417 | Q53: 22040.2181 | R53: 19113.195 | S53: 14200.5997
A54: 66 | C54: 35269.1158 | D54: 30915.7075 | E54: 24182.546 | F54: 20971.3459 | G54: 15578.3998 | I54: 38474 | J54: 33725 | K54: 26380 | L54: 22877 | M54: 16994 | O54: 35269.1158 | P54: 30915.7075 | Q54: 24182.546 | R54: 20971.3459 | S54: 15578.3998
A55: 67 | C55: 38560.9855 | D55: 33799.6457 | E55: 26453.2119 | F55: 22936.7507 | G55: 17041.453 | I55: 42065 | J55: 36871 | K55: 28857 | L55: 25021 | M55: 18590 | O55: 38560.9855 | P55: 33799.6457 | Q55: 26453.2119 | R55: 22936.7507 | S55: 17041.453
A56: 68 | C56: 42028.8616 | D56: 36843.0897 | E56: 28850.3824 | F56: 25018.5764 | G56: 18588.8426 | I56: 45848 | J56: 40191 | K56: 31472 | L56: 27292 | M56: 20278 | O56: 42028.8616 | P56: 36843.0897 | Q56: 28850.3824 | R56: 25018.5764 | S56: 18588.8426
A57: 69 | C57: 45683.7445 | D57: 40042.3727 | E57: 31376.8076 | F57: 27208.5727 | G57: 20215.9851 | I57: 49835 | J57: 43681 | K57: 34228 | L57: 29681 | M57: 22053 | O57: 45683.7445 | P57: 40042.3727 | Q57: 31376.8076 | R57: 27208.5727 | S57: 20215.9851
A58: 70 | C58: 49514.6338 | D58: 43400.2448 | E58: 34028.8207 | F58: 29508.573 | G58: 21922.8805 | I58: 54014 | J58: 47344 | K58: 37121 | L58: 32190 | M58: 23915 | O58: 49514.6338 | P58: 43400.2448 | Q58: 34028.8207 | R58: 29508.573 | S58: 21922.8805
A59: 71 | C59: 53526.113 | D59: 46916.706 | E59: 36811.9219 | F59: 31919.494 | G59: 23715.9457 | I59: 58390 | J59: 51180 | K59: 40157 | L59: 34820 | M59: 25871 | O59: 53526.113 | P59: 46916.706 | Q59: 36811.9219 | R59: 31919.494 | S59: 23715.9457
A60: 72 | C60: 57718.1821 | D60: 50589.9229 | E60: 39717.8609 | F60: 34441.3357 | G60: 25586.9304 | I60: 62963 | J60: 55187 | K60: 43327 | L60: 37571 | M60: 27912 | O60: 57718.1821 | P60: 50589.9229 | Q60: 39717.8609 | R60: 34441.3357 | S60: 25586.9304
A61: 73 | C61: 62089.0077 | D61: 54422.6456 | E61: 42754.888 | F61: 37074.0981 | G61: 27545.9183 | I61: 67731 | J61: 59368 | K61: 46640 | L61: 40443 | M61: 30049 | O61: 62089.0077 | P61: 54422.6456 | Q61: 42754.888 | R61: 37074.0981 | S61: 27545.9183
A62: 74 | C62: 66642.2566 | D62: 58412.124 | E62: 45918.4197 | F62: 39816.8645 | G62: 29583.7424 | I62: 72698 | J62: 63720 | K62: 50091 | L62: 43435 | M62: 32272 | O62: 66642.2566 | P62: 58412.124 | Q62: 45918.4197 | R62: 39816.8645 | S62: 29583.7424
A63: 75 | C63: 71374.262 | D63: 62563.8583 | E63: 49208.456 | F63: 42669.6349 | G63: 31700.4027 | I63: 77860 | J63: 68249 | K63: 53680 | L63: 46547 | M63: 34581 | O63: 71374.262 | P63: 62563.8583 | Q63: 49208.456 | R63: 42669.6349 | S63: 31700.4027
A64: 76 | C64: 71374.262 | D64: 62563.8583 | E64: 49208.456 | F64: 42669.6349 | G64: 31700.4027 | I64: 77860 | J64: 68249 | K64: 53680 | L64: 46547 | M64: 34581 | O64: 71374.262 | P64: 62563.8583 | Q64: 49208.456 | R64: 42669.6349 | S64: 31700.4027
A65: 77 | C65: 71374.262 | D65: 62563.8583 | E65: 49208.456 | F65: 42669.6349 | G65: 31700.4027 | I65: 77860 | J65: 68249 | K65: 53680 | L65: 46547 | M65: 34581 | O65: 71374.262 | P65: 62563.8583 | Q65: 49208.456 | R65: 42669.6349 | S65: 31700.4027
A66: 78 | C66: 71374.262 | D66: 62563.8583 | E66: 49208.456 | F66: 42669.6349 | G66: 31700.4027 | I66: 77860 | J66: 68249 | K66: 53680 | L66: 46547 | M66: 34581 | O66: 71374.262 | P66: 62563.8583 | Q66: 49208.456 | R66: 42669.6349 | S66: 31700.4027
A67: 79 | C67: 71374.262 | D67: 62563.8583 | E67: 49208.456 | F67: 42669.6349 | G67: 31700.4027 | I67: 77860 | J67: 68249 | K67: 53680 | L67: 46547 | M67: 34581 | O67: 71374.262 | P67: 62563.8583 | Q67: 49208.456 | R67: 42669.6349 | S67: 31700.4027
A68: 80 | C68: 71374.262 | D68: 62563.8583 | E68: 49208.456 | F68: 42669.6349 | G68: 31700.4027 | I68: 77860 | J68: 68249 | K68: 53680 | L68: 46547 | M68: 34581 | O68: 71374.262 | P68: 62563.8583 | Q68: 49208.456 | R68: 42669.6349 | S68: 31700.4027
A69: 81 | C69: 71374.262 | D69: 62563.8583 | E69: 49208.456 | F69: 42669.6349 | G69: 31700.4027 | I69: 77860 | J69: 68249 | K69: 53680 | L69: 46547 | M69: 34581 | O69: 71374.262 | P69: 62563.8583 | Q69: 49208.456 | R69: 42669.6349 | S69: 31700.4027
A70: 82 | C70: 71374.262 | D70: 62563.8583 | E70: 49208.456 | F70: 42669.6349 | G70: 31700.4027 | I70: 77860 | J70: 68249 | K70: 53680 | L70: 46547 | M70: 34581 | O70: 71374.262 | P70: 62563.8583 | Q70: 49208.456 | R70: 42669.6349 | S70: 31700.4027
A71: 83 | C71: =O71 -> 71374.262 | D71: =P71 -> 62563.8583 | E71: =Q71 -> 49208.456 | F71: =R71 -> 42669.6349 | G71: =S71 -> 31700.4027 | I71: 77860 | J71: 68249 | K71: 53680 | L71: 46547 | M71: 34581 | O71: =I71*0.9167 -> 71374.262 | P71: =J71*0.9167 -> 62563.8583 | Q71: =K71*0.9167 -> 49208.456 | R71: =L71*0.9167 -> 42669.6349 | S71: =M71*0.9167 -> 31700.4027
A72: 84 | B72: o más | C72: 71374.262 | D72: 62563.8583 | E72: 49208.456 | F72: 42669.6349 | G72: 31700.4027 | I72: 77860 | J72: 68249 | K72: 53680 | L72: 46547 | M72: 34581 | O72: 71374.262 | P72: 62563.8583 | Q72: 49208.456 | R72: 42669.6349 | S72: 31700.4027
A73: 1 | B73: Hijo | C73: 3660.3831 | D73: 3211.2001 | E73: 2609.8449 | F73: 2264.249 | G73: 1683.0612 | I73: 3993 | J73: 3503 | K73: 2847 | L73: 2470 | M73: 1836 | O73: 3660.3831 | P73: 3211.2001 | Q73: 2609.8449 | R73: 2264.249 | S73: 1683.0612
A74: 2 | B74: Hijos | C74: 6225.3097 | D74: 5456.1984 | E74: 4432.2445 | F74: 3844.6398 | G74: 2857.3539 | I74: 6791 | J74: 5952 | K74: 4835 | L74: 4194 | M74: 3117 | O74: 6225.3097 | P74: 5456.1984 | Q74: 4432.2445 | R74: 3844.6398 | S74: 2857.3539
A75: 3 | B75: Hijos o más | C75: 8785.6528 | D75: 7703.9468 | E75: 6260.1443 | F75: 5427.7807 | G75: 4033.48 | I75: 9584 | J75: 8404 | K75: 6829 | L75: 5921 | M75: 4400 | O75: 8785.6528 | P75: 7703.9468 | Q75: 6260.1443 | R75: 5427.7807 | S75: 4033.48
A77: BUPA GLOBAL ELITE - MENSUALES
A78: EDAD
C79: 1000 | D79: 2000 | E79: 3500 | F79: 5000 | G79: 10000
A80: 18 | C80: =+C6*$K$2 -> 808.7005173 | D80: =+D6*$K$2 -> 708.939112 | E80: 572.0452453 | F80: 496.3258253 | G80: 368.843412
A81: 19 | C81: =+C7*$K$2 -> 808.7005173 | D81: 708.939112 | E81: 572.0452453 | F81: 496.3258253 | G81: 368.843412
A82: 20 | C82: 808.7005173 | D82: 708.939112 | E82: 572.0452453 | F82: 496.3258253 | G82: 368.843412
A83: 21 | C83: 808.7005173 | D83: 708.939112 | E83: 572.0452453 | F83: 496.3258253 | G83: 368.843412
A84: 22 | C84: 808.7005173 | D84: 708.939112 | E84: 572.0452453 | F84: 496.3258253 | G84: 368.843412
A85: 23 | C85: 808.7005173 | D85: 708.939112 | E85: 572.0452453 | F85: 496.3258253 | G85: 368.843412
A86: 24 | C86: 808.7005173 | D86: 708.939112 | E86: 572.0452453 | F86: 496.3258253 | G86: 368.843412
A87: 25 | C87: 864.3136507 | D87: 757.5364347 | E87: 607.6376507 | F87: 527.0413867 | G87: 391.5164587
A88: 26 | C88: 864.3136507 | D88: 757.5364347 | E88: 607.6376507 | F88: 527.0413867 | G88: 391.5164587
A89: 27 | C89: 864.3136507 | D89: 757.5364347 | E89: 607.6376507 | F89: 527.0413867 | G89: 391.5164587
A90: 28 | C90: 864.3136507 | D90: 757.5364347 | E90: 607.6376507 | F90: 527.0413867 | G90: 391.5164587
A91: 29 | C91: 864.3136507 | D91: 757.5364347 | E91: 607.6376507 | F91: 527.0413867 | G91: 391.5164587
A92: 30 | C92: 960.994944 | D92: 842.4961907 | E92: 670.694388 | F92: 581.627816 | G92: 432.1568253
A93: 31 | C93: 960.994944 | D93: 842.4961907 | E93: 670.694388 | F93: 581.627816 | G93: 432.1568253
A94: 32 | C94: 960.994944 | D94: 842.4961907 | E94: 670.694388 | F94: 581.627816 | G94: 432.1568253
A95: 33 | C95: 960.994944 | D95: 842.4961907 | E95: 670.694388 | F95: 581.627816 | G95: 432.1568253
A96: 34 | C96: 960.994944 | D96: 842.4961907 | E96: 670.694388 | F96: 581.627816 | G96: 432.1568253
A97: 35 | C97: =+C23*$K$2 -> 1073.162356 | D97: 940.460864 | E97: 744.4459587 | F97: 645.54014 | G97: 479.8130027
A98: 36 | C98: 1073.162356 | D98: 940.460864 | E98: 744.4459587 | F98: 645.54014 | G98: 479.8130027
A99: 37 | C99: 1073.162356 | D99: 940.460864 | E99: 744.4459587 | F99: 645.54014 | G99: 479.8130027
A100: 38 | C100: 1073.162356 | D100: 940.460864 | E100: 744.4459587 | F100: 645.54014 | G100: 479.8130027
A101: 39 | C101: 1073.162356 | D101: 940.460864 | E101: 744.4459587 | F101: 645.54014 | G101: 479.8130027
A102: 40 | C102: 1201.928149 | D102: 1053.65498 | E102: 830.2613013 | F102: 719.97618 | G102: 534.912784
A103: 41 | C103: 1201.928149 | D103: 1053.65498 | E103: 830.2613013 | F103: 719.97618 | G103: 534.912784
A104: 42 | C104: 1201.928149 | D104: 1053.65498 | E104: 830.2613013 | F104: 719.97618 | G104: 534.912784
A105: 43 | C105: 1201.928149 | D105: 1053.65498 | E105: 830.2613013 | F105: 719.97618 | G105: 534.912784
A106: 44 | C106: 1201.928149 | D106: 1053.65498 | E106: 830.2613013 | F106: 719.97618 | G106: 534.912784
A107: 45 | C107: 1345.153357 | D107: 1179.255103 | E107: 926.343684 | F107: 803.2247627 | G107: 596.8572587
A108: 46 | C108: 1345.153357 | D108: 1179.255103 | E108: 926.343684 | F108: 803.2247627 | G108: 596.8572587
A109: 47 | C109: 1345.153357 | D109: 1179.255103 | E109: 926.343684 | F109: 803.2247627 | G109: 596.8572587
A110: 48 | C110: 1345.153357 | D110: 1179.255103 | E110: 926.343684 | F110: 803.2247627 | G110: 596.8572587
A111: 49 | C111: 1345.153357 | D111: 1179.255103 | E111: 926.343684 | F111: 803.2247627 | G111: 596.8572587
A112: 50 | C112: 1506.517003 | D112: 1320.683579 | E112: 1035.088749 | F112: 897.6815307 | G112: 666.9298067
A113: 51 | C113: =+C39*$K$2 -> 1506.517003 | D113: 1320.683579 | E113: 1035.088749 | F113: 897.6815307 | G113: 666.9298067
A114: 52 | C114: 1506.517003 | D114: 1320.683579 | E114: 1035.088749 | F114: 897.6815307 | G114: 666.9298067
A115: 53 | C115: 1506.517003 | D115: 1320.683579 | E115: 1035.088749 | F115: 897.6815307 | G115: 666.9298067
A116: 54 | C116: 1506.517003 | D116: 1320.683579 | E116: 1035.088749 | F116: 897.6815307 | G116: 666.9298067
A117: 55 | C117: 1684.136795 | D117: 1476.314793 | E117: 1155.298676 | F117: 1001.977545 | G117: 744.5315173
A118: 56 | C118: 1684.136795 | D118: 1476.314793 | E118: 1155.298676 | F118: 1001.977545 | G118: 744.5315173
A119: 57 | C119: 1684.136795 | D119: 1476.314793 | E119: 1155.298676 | F119: 1001.977545 | G119: 744.5315173
A120: 58 | C120: 1684.136795 | D120: 1476.314793 | E120: 1155.298676 | F120: 1001.977545 | G120: 744.5315173
A121: 59 | C121: 1684.136795 | D121: 1476.314793 | E121: 1155.298676 | F121: 1001.977545 | G121: 744.5315173
A122: 60 | C122: 1802.549989 | D122: 1580.011897 | E122: 1235.89494 | F122: 1071.536741 | G122: 796.2945107
A123: 61 | C123: 2008.917493 | D123: 1760.626243 | E123: 1376.211153 | F123: 1193.372283 | G123: 886.7300213
A124: 62 | C124: 2231.712261 | D124: 1956.042237 | E124: 1528.50558 | F124: 1325.474864 | G124: 984.7802533
A125: 63 | C125: 2471.447645 | D125: 2166.259881 | E125: 1692.77822 | F125: 1468.015603 | G125: 1090.787441
A126: 64 | C126: 2728.209204 | D126: 2391.193616 | E126: 1869.029073 | F126: 1620.737823 | G126: 1204.238233
A127: 65 | C127: 3001.740261 | D127: 2631.014559 | E127: 2057.087023 | F127: 1783.8982 | G127: 1325.389305
A128: 66 | C128: 3291.784141 | D128: 2885.466033 | E128: 2257.037627 | F128: 1957.325617 | G128: 1453.983981
A129: 67 | C129: =+C55*$K$2 -> 3599.025313 | D129: 3154.633599 | E129: 2468.966444 | F129: 2140.763399 | G129: 1590.535613
A130: 68 | C130: 3922.693749 | D130: 3438.688372 | E130: 2692.702357 | F130: 2335.067131 | G130: 1734.958643
A131: 69 | C131: 4263.816153 | D131: 3737.288119 | E131: 2928.502043 | F131: 2539.466785 | G131: 1886.825276
A132: 70 | C132: 4621.365821 | D132: 4050.689515 | E132: 3176.023265 | F132: 2754.13348 | G132: 2046.135513
A133: 71 | C133: 4995.770547 | D133: 4378.89256 | E133: 3435.779377 | F133: 2979.152773 | G133: 2213.488265
A134: 72 | C134: 5387.030329 | D134: 4721.726137 | E134: 3707.000351 | F134: 3214.524665 | G134: 2388.113504
A135: 73 | C135: 5794.974052 | D135: 5079.446923 | E135: 3990.456213 | F135: 3460.249156 | G135: 2570.952375
A136: 74 | C136: 6219.943949 | D136: 5451.79824 | E136: 4285.719172 | F136: 3716.240687 | G136: 2761.149291
A137: 75 | C137: 6661.597787 | D137: 5839.293441 | E137: 4592.789227 | F137: 3982.499257 | G137: 2958.704252
A138: 76 | C138: 6661.597787 | D138: 5839.293441 | E138: 4592.789227 | F138: 3982.499257 | G138: 2958.704252
A139: 77 | C139: 6661.597787 | D139: 5839.293441 | E139: 4592.789227 | F139: 3982.499257 | G139: 2958.704252
A140: 78 | C140: 6661.597787 | D140: 5839.293441 | E140: 4592.789227 | F140: 3982.499257 | G140: 2958.704252
A141: 79 | C141: 6661.597787 | D141: 5839.293441 | E141: 4592.789227 | F141: 3982.499257 | G141: 2958.704252
A142: 80 | C142: 6661.597787 | D142: 5839.293441 | E142: 4592.789227 | F142: 3982.499257 | G142: 2958.704252
A143: 81 | C143: 6661.597787 | D143: 5839.293441 | E143: 4592.789227 | F143: 3982.499257 | G143: 2958.704252
A144: 82 | C144: 6661.597787 | D144: 5839.293441 | E144: 4592.789227 | F144: 3982.499257 | G144: 2958.704252
A145: 83 | C145: =+C71*$K$2 -> 6661.597787 | D145: 5839.293441 | E145: 4592.789227 | F145: 3982.499257 | G145: 2958.704252
A146: 84 | B146: o más | C146: 6661.597787 | D146: 5839.293441 | E146: 4592.789227 | F146: 3982.499257 | G146: 2958.704252
A147: 1 | B147: Hijo | C147: 341.635756 | D147: 299.7120093 | E147: 243.585524 | F147: 211.3299067 | G147: 157.085712
A148: 2 | B148: Hijos | C148: 581.0289053 | D148: 509.245184 | E148: 413.6761533 | F148: 358.833048 | G148: 266.686364
A149: 3 | B149: Hijos o más | C149: 819.9942613 | D149: 719.0350347 | E149: 584.2801347 | F149: 506.5928653 | G149: 376.4581333
A151: BUPA GLOBAL PREMIER
A152: TARIFAS ANUALES
A153: EDAD
C154: 250 | D154: 2000 | E154: 5000 | F154: 10000 | G154: 20000
A155: 18 | C155: =O155 -> 5646.872 | D155: =P155 -> 5123.4363 | E155: 3729.1356 | F155: 2660.2634 | G155: 2086.4092 | I155: 6160 | J155: 5589 | K155: 4068 | L155: 2902 | M155: 2276 | O155: =I155*0.9167 -> 5646.872 | P155: =J155*0.9167 -> 5123.4363 | Q155: 3729.1356 | R155: 2660.2634 | S155: 2086.4092
A156: 19 | C156: =O156 -> 5646.872 | D156: =P156 -> 5123.4363 | E156: =Q156 -> 3729.1356 | F156: =R156 -> 2660.2634 | G156: =S156 -> 2086.4092 | I156: 6160 | J156: 5589 | K156: 4068 | L156: 2902 | M156: 2276 | O156: =I156*0.9167 -> 5646.872 | P156: =J156*0.9167 -> 5123.4363 | Q156: =K156*0.9167 -> 3729.1356 | R156: =L156*0.9167 -> 2660.2634 | S156: =M156*0.9167 -> 2086.4092
A157: 20 | C157: 5646.872 | D157: 5123.4363 | E157: 3729.1356 | F157: 2660.2634 | G157: 2086.4092 | I157: 6160 | J157: 5589 | K157: 4068 | L157: 2902 | M157: 2276 | O157: 5646.872 | P157: 5123.4363 | Q157: 3729.1356 | R157: 2660.2634 | S157: 2086.4092
A158: 21 | C158: 5646.872 | D158: 5123.4363 | E158: 3729.1356 | F158: 2660.2634 | G158: 2086.4092 | I158: 6160 | J158: 5589 | K158: 4068 | L158: 2902 | M158: 2276 | O158: 5646.872 | P158: 5123.4363 | Q158: 3729.1356 | R158: 2660.2634 | S158: 2086.4092
A159: 22 | C159: 5646.872 | D159: 5123.4363 | E159: 3729.1356 | F159: 2660.2634 | G159: 2086.4092 | I159: 6160 | J159: 5589 | K159: 4068 | L159: 2902 | M159: 2276 | O159: 5646.872 | P159: 5123.4363 | Q159: 3729.1356 | R159: 2660.2634 | S159: 2086.4092
A160: 23 | C160: 5646.872 | D160: 5123.4363 | E160: 3729.1356 | F160: 2660.2634 | G160: 2086.4092 | I160: 6160 | J160: 5589 | K160: 4068 | L160: 2902 | M160: 2276 | O160: 5646.872 | P160: 5123.4363 | Q160: 3729.1356 | R160: 2660.2634 | S160: 2086.4092
A161: 24 | C161: 5646.872 | D161: 5123.4363 | E161: 3729.1356 | F161: 2660.2634 | G161: 2086.4092 | I161: 6160 | J161: 5589 | K161: 4068 | L161: 2902 | M161: 2276 | O161: 5646.872 | P161: 5123.4363 | Q161: 3729.1356 | R161: 2660.2634 | S161: 2086.4092
A162: 25 | C162: 6033.7194 | D162: 5474.5324 | E162: 3942.7267 | F162: 2811.5189 | G162: 2205.5802 | I162: 6582 | J162: 5972 | K162: 4301 | L162: 3067 | M162: 2406 | O162: 6033.7194 | P162: 5474.5324 | Q162: 3942.7267 | R162: 2811.5189 | S162: 2205.5802
A163: 26 | C163: 6033.7194 | D163: 5474.5324 | E163: 3942.7267 | F163: 2811.5189 | G163: 2205.5802 | I163: 6582 | J163: 5972 | K163: 4301 | L163: 3067 | M163: 2406 | O163: 6033.7194 | P163: 5474.5324 | Q163: 3942.7267 | R163: 2811.5189 | S163: 2205.5802
A164: 27 | C164: 6033.7194 | D164: 5474.5324 | E164: 3942.7267 | F164: 2811.5189 | G164: 2205.5802 | I164: 6582 | J164: 5972 | K164: 4301 | L164: 3067 | M164: 2406 | O164: 6033.7194 | P164: 5474.5324 | Q164: 3942.7267 | R164: 2811.5189 | S164: 2205.5802
A165: 28 | C165: 6033.7194 | D165: 5474.5324 | E165: 3942.7267 | F165: 2811.5189 | G165: 2205.5802 | I165: 6582 | J165: 5972 | K165: 4301 | L165: 3067 | M165: 2406 | O165: 6033.7194 | P165: 5474.5324 | Q165: 3942.7267 | R165: 2811.5189 | S165: 2205.5802
A166: 29 | C166: 6033.7194 | D166: 5474.5324 | E166: 3942.7267 | F166: 2811.5189 | G166: 2205.5802 | I166: 6582 | J166: 5972 | K166: 4301 | L166: 3067 | M166: 2406 | O166: 6033.7194 | P166: 5474.5324 | Q166: 3942.7267 | R166: 2811.5189 | S166: 2205.5802
A167: 30 | C167: 6710.244 | D167: 6088.7214 | E167: 4327.7407 | F167: 3085.6122 | G167: 2420.088 | I167: 7320 | J167: 6642 | K167: 4721 | L167: 3366 | M167: 2640 | O167: 6710.244 | P167: 6088.7214 | Q167: 4327.7407 | R167: 3085.6122 | S167: 2420.088
A168: 31 | C168: 6710.244 | D168: 6088.7214 | E168: 4327.7407 | F168: 3085.6122 | G168: 2420.088 | I168: 7320 | J168: 6642 | K168: 4721 | L168: 3366 | M168: 2640 | O168: 6710.244 | P168: 6088.7214 | Q168: 4327.7407 | R168: 3085.6122 | S168: 2420.088
A169: 32 | C169: 6710.244 | D169: 6088.7214 | E169: 4327.7407 | F169: 3085.6122 | G169: 2420.088 | I169: 7320 | J169: 6642 | K169: 4721 | L169: 3366 | M169: 2640 | O169: 6710.244 | P169: 6088.7214 | Q169: 4327.7407 | R169: 3085.6122 | S169: 2420.088
A170: 33 | C170: 6710.244 | D170: 6088.7214 | E170: 4327.7407 | F170: 3085.6122 | G170: 2420.088 | I170: 7320 | J170: 6642 | K170: 4721 | L170: 3366 | M170: 2640 | O170: 6710.244 | P170: 6088.7214 | Q170: 4327.7407 | R170: 3085.6122 | S170: 2420.088
A171: 34 | C171: 6710.244 | D171: 6088.7214 | E171: 4327.7407 | F171: 3085.6122 | G171: 2420.088 | I171: 7320 | J171: 6642 | K171: 4721 | L171: 3366 | M171: 2640 | O171: 6710.244 | P171: 6088.7214 | Q171: 4327.7407 | R171: 3085.6122 | S171: 2420.088
A172: 35 | C172: 7489.439 | D172: 6798.2472 | E172: 4782.4239 | F172: 3411.0407 | G172: 2675.8473 | I172: 8170 | J172: 7416 | K172: 5217 | L172: 3721 | M172: 2919 | O172: 7489.439 | P172: 6798.2472 | Q172: 4782.4239 | R172: 3411.0407 | S172: 2675.8473
A173: 36 | C173: 7489.439 | D173: 6798.2472 | E173: 4782.4239 | F173: 3411.0407 | G173: 2675.8473 | I173: 8170 | J173: 7416 | K173: 5217 | L173: 3721 | M173: 2919 | O173: 7489.439 | P173: 6798.2472 | Q173: 4782.4239 | R173: 3411.0407 | S173: 2675.8473
A174: 37 | C174: 7489.439 | D174: 6798.2472 | E174: 4782.4239 | F174: 3411.0407 | G174: 2675.8473 | I174: 8170 | J174: 7416 | K174: 5217 | L174: 3721 | M174: 2919 | O174: 7489.439 | P174: 6798.2472 | Q174: 4782.4239 | R174: 3411.0407 | S174: 2675.8473
A175: 38 | C175: 7489.439 | D175: 6798.2472 | E175: 4782.4239 | F175: 3411.0407 | G175: 2675.8473 | I175: 8170 | J175: 7416 | K175: 5217 | L175: 3721 | M175: 2919 | O175: 7489.439 | P175: 6798.2472 | Q175: 4782.4239 | R175: 3411.0407 | S175: 2675.8473
A176: 39 | C176: 7489.439 | D176: 6798.2472 | E176: 4782.4239 | F176: 3411.0407 | G176: 2675.8473 | I176: 8170 | J176: 7416 | K176: 5217 | L176: 3721 | M176: 2919 | O176: 7489.439 | P176: 6798.2472 | Q176: 4782.4239 | R176: 3411.0407 | S176: 2675.8473
A177: 40 | C177: 8390.5551 | D177: 7613.1935 | E177: 5317.7767 | F177: 3790.5545 | G177: 2973.7748 | I177: 9153 | J177: 8305 | K177: 5801 | L177: 4135 | M177: 3244 | O177: 8390.5551 | P177: 7613.1935 | Q177: 5317.7767 | R177: 3790.5545 | S177: 2973.7748
A178: 41 | C178: 8390.5551 | D178: 7613.1935 | E178: 5317.7767 | F178: 3790.5545 | G178: 2973.7748 | I178: 9153 | J178: 8305 | K178: 5801 | L178: 4135 | M178: 3244 | O178: 8390.5551 | P178: 7613.1935 | Q178: 5317.7767 | R178: 3790.5545 | S178: 2973.7748
A179: 42 | C179: 8390.5551 | D179: 7613.1935 | E179: 5317.7767 | F179: 3790.5545 | G179: 2973.7748 | I179: 9153 | J179: 8305 | K179: 5801 | L179: 4135 | M179: 3244 | O179: 8390.5551 | P179: 7613.1935 | Q179: 5317.7767 | R179: 3790.5545 | S179: 2973.7748
A180: 43 | C180: 8390.5551 | D180: 7613.1935 | E180: 5317.7767 | F180: 3790.5545 | G180: 2973.7748 | I180: 9153 | J180: 8305 | K180: 5801 | L180: 4135 | M180: 3244 | O180: 8390.5551 | P180: 7613.1935 | Q180: 5317.7767 | R180: 3790.5545 | S180: 2973.7748
A181: 44 | C181: 8390.5551 | D181: 7613.1935 | E181: 5317.7767 | F181: 3790.5545 | G181: 2973.7748 | I181: 9153 | J181: 8305 | K181: 5801 | L181: 4135 | M181: 3244 | O181: 8390.5551 | P181: 7613.1935 | Q181: 5317.7767 | R181: 3790.5545 | S181: 2973.7748
A182: 45 | C182: 9388.8414 | D182: 8521.6432 | E182: 5918.2152 | F182: 4218.6534 | G182: 3309.287 | I182: 10242 | J182: 9296 | K182: 6456 | L182: 4602 | M182: 3610 | O182: 9388.8414 | P182: 8521.6432 | Q182: 5918.2152 | R182: 4218.6534 | S182: 3309.287
A183: 46 | C183: 9388.8414 | D183: 8521.6432 | E183: 5918.2152 | F183: 4218.6534 | G183: 3309.287 | I183: 10242 | J183: 9296 | K183: 6456 | L183: 4602 | M183: 3610 | O183: 9388.8414 | P183: 8521.6432 | Q183: 5918.2152 | R183: 4218.6534 | S183: 3309.287
A184: 47 | C184: 9388.8414 | D184: 8521.6432 | E184: 5918.2152 | F184: 4218.6534 | G184: 3309.287 | I184: 10242 | J184: 9296 | K184: 6456 | L184: 4602 | M184: 3610 | O184: 9388.8414 | P184: 8521.6432 | Q184: 5918.2152 | R184: 4218.6534 | S184: 3309.287
A185: 48 | C185: 9388.8414 | D185: 8521.6432 | E185: 5918.2152 | F185: 4218.6534 | G185: 3309.287 | I185: 10242 | J185: 9296 | K185: 6456 | L185: 4602 | M185: 3610 | O185: 9388.8414 | P185: 8521.6432 | Q185: 5918.2152 | R185: 4218.6534 | S185: 3309.287
A186: 49 | C186: 9388.8414 | D186: 8521.6432 | E186: 5918.2152 | F186: 4218.6534 | G186: 3309.287 | I186: 10242 | J186: 9296 | K186: 6456 | L186: 4602 | M186: 3610 | O186: 9388.8414 | P186: 8521.6432 | Q186: 5918.2152 | R186: 4218.6534 | S186: 3309.287
A187: 50 | C187: 10514.549 | D187: 9545.5971 | E187: 6602.0734 | F187: 4706.3378 | G187: 3692.4676 | I187: 11470 | J187: 10413 | K187: 7202 | L187: 5134 | M187: 4028 | O187: 10514.549 | P187: 9545.5971 | Q187: 6602.0734 | R187: 4706.3378 | S187: 3692.4676
A188: 51 | C188: 10514.549 | D188: 9545.5971 | E188: 6602.0734 | F188: 4706.3378 | G188: 3692.4676 | I188: 11470 | J188: 10413 | K188: 7202 | L188: 5134 | M188: 4028 | O188: 10514.549 | P188: 9545.5971 | Q188: 6602.0734 | R188: 4706.3378 | S188: 3692.4676
A189: 52 | C189: 10514.549 | D189: 9545.5971 | E189: 6602.0734 | F189: 4706.3378 | G189: 3692.4676 | I189: 11470 | J189: 10413 | K189: 7202 | L189: 5134 | M189: 4028 | O189: 10514.549 | P189: 9545.5971 | Q189: 6602.0734 | R189: 4706.3378 | S189: 3692.4676
A190: 53 | C190: 10514.549 | D190: 9545.5971 | E190: 6602.0734 | F190: 4706.3378 | G190: 3692.4676 | I190: 11470 | J190: 10413 | K190: 7202 | L190: 5134 | M190: 4028 | O190: 10514.549 | P190: 9545.5971 | Q190: 6602.0734 | R190: 4706.3378 | S190: 3692.4676
A191: 54 | C191: 10514.549 | D191: 9545.5971 | E191: 6602.0734 | F191: 4706.3378 | G191: 3692.4676 | I191: 11470 | J191: 10413 | K191: 7202 | L191: 5134 | M191: 4028 | O191: 10514.549 | P191: 9545.5971 | Q191: 6602.0734 | R191: 4706.3378 | S191: 3692.4676
A192: 55 | C192: 11758.5109 | D192: 10667.6379 | E192: 7362.0177 | F192: 5246.2741 | G192: 4116.8997 | I192: 12827 | J192: 11637 | K192: 8031 | L192: 5723 | M192: 4491 | O192: 11758.5109 | P192: 10667.6379 | Q192: 7362.0177 | R192: 5246.2741 | S192: 4116.8997
A193: 56 | C193: 11758.5109 | D193: 10667.6379 | E193: 7362.0177 | F193: 5246.2741 | G193: 4116.8997 | I193: 12827 | J193: 11637 | K193: 8031 | L193: 5723 | M193: 4491 | O193: 11758.5109 | P193: 10667.6379 | Q193: 7362.0177 | R193: 5246.2741 | S193: 4116.8997
A194: 57 | C194: 11758.5109 | D194: 10667.6379 | E194: 7362.0177 | F194: 5246.2741 | G194: 4116.8997 | I194: 12827 | J194: 11637 | K194: 8031 | L194: 5723 | M194: 4491 | O194: 11758.5109 | P194: 10667.6379 | Q194: 7362.0177 | R194: 5246.2741 | S194: 4116.8997
A195: 58 | C195: 11758.5109 | D195: 10667.6379 | E195: 7362.0177 | F195: 5246.2741 | G195: 4116.8997 | I195: 12827 | J195: 11637 | K195: 8031 | L195: 5723 | M195: 4491 | O195: 11758.5109 | P195: 10667.6379 | Q195: 7362.0177 | R195: 5246.2741 | S195: 4116.8997
A196: 59 | C196: 11758.5109 | D196: 10667.6379 | E196: 7362.0177 | F196: 5246.2741 | G196: 4116.8997 | I196: 12827 | J196: 11637 | K196: 8031 | L196: 5723 | M196: 4491 | O196: 11758.5109 | P196: 10667.6379 | Q196: 7362.0177 | R196: 5246.2741 | S196: 4116.8997
A197: 60 | C197: 12580.7908 | D197: 11418.4152 | E197: 7869.8695 | F197: 5610.204 | G197: 4401.0767 | I197: 13724 | J197: 12456 | K197: 8585 | L197: 6120 | M197: 4801 | O197: 12580.7908 | P197: 11418.4152 | Q197: 7869.8695 | R197: 5610.204 | S197: 4401.0767
A198: 61 | C198: 14019.0931 | D198: 12724.7127 | E198: 8759.0685 | F198: 6244.5604 | G198: 4897.9281 | I198: 15293 | J198: 13881 | K198: 9555 | L198: 6812 | M198: 5343 | O198: 14019.0931 | P198: 12724.7127 | Q198: 8759.0685 | R198: 6244.5604 | S198: 4897.9281
A199: 62 | C199: 15576.5664 | D199: 14137.3474 | E199: 9728.0204 | F199: 6932.0854 | G199: 5437.8644 | I199: 16992 | J199: 15422 | K199: 10612 | L199: 7562 | M199: 5932 | O199: 15576.5664 | P199: 14137.3474 | Q199: 9728.0204 | R199: 6932.0854 | S199: 5437.8644
A200: 63 | C200: 17249.5439 | D200: 15655.4026 | E200: 10773.9751 | F200: 7677.3625 | G200: 6022.719 | I200: 18817 | J200: 17078 | K200: 11753 | L200: 8375 | M200: 6570 | O200: 17249.5439 | P200: 15655.4026 | Q200: 10773.9751 | R200: 7677.3625 | S200: 6022.719
A201: 64 | C201: 19041.6924 | D201: 17281.6284 | E201: 11896.0159 | F201: 8476.7249 | G201: 6650.6585 | I201: 20772 | J201: 18852 | K201: 12977 | L201: 9247 | M201: 7255 | O201: 19041.6924 | P201: 17281.6284 | Q201: 11896.0159 | R201: 8476.7249 | S201: 6650.6585
A202: 65 | C202: 20948.4284 | D202: 19011.4413 | E202: 13097.8096 | F202: 9333.8394 | G202: 7324.433 | I202: 22852 | J202: 20739 | K202: 14288 | L202: 10182 | M202: 7990 | O202: 20948.4284 | P202: 19011.4413 | Q202: 13097.8096 | R202: 9333.8394 | S202: 7324.433
A203: 66 | C203: 22974.3354 | D203: 20852.1749 | E203: 14373.856 | F203: 10245.0392 | G203: 8038.5423 | I203: 25062 | J203: 22747 | K203: 15680 | L203: 11176 | M203: 8769 | O203: 22974.3354 | P203: 20852.1749 | Q203: 14373.856 | R203: 10245.0392 | S203: 8038.5423
... 1275 more rows
